Workbook

Sheet Report - ALL (DASHBOARD)
A1: Dashboard | B1: Select Parameter: | F1: Select Statistic: | I1: Select Seasonal Period: | L1: Notes: | W1: 68
L2: - year type sorting is done by calendar year | W2: 1
L3: - year type sorting is provided for 60-20-20 index as well as 40-30-30 index | W3: 1
W4: FALSE
B12: =CONCATENATE('Report Data'!$P$7," / seasonal statistics (",$W$1,"-",$W$2,"-",$W$3,"-",IF(NOT($W$4),1,2),"a):") -> Average X2 Distance / seasonal statistics (68-1-1-1a):
C16: ='Report Data'!P6 -> October
C17: ='Report Data'!P7 -> Average X2 Distance
C18: ='Report Data'!P9 -> (X2/X2-POSITION)
C19: ='Report Data'!P8 -> Averages
C20: ='Report Data'!P11 -> POSITION (KM) | F20: =CONCATENATE("Difference from ",'Report Data'!Q13) -> Difference from NAA 051422 | G20: ="Difference from Previous" -> Difference from Previous
C24: ='Report Data'!O14 -> NAA 051422 | E24: ='Report Data'!P14 -> 85.4728855
C25: ='Report Data'!O15 -> ALT1A 051722 | E25: ='Report Data'!P15 -> 85.02510601 | F25: ='Report Data'!Q15 -> -0.4477794926 | G25: ='Report Data'!R15 -> -0.4477794926
C26: ='Report Data'!O16 -> ALT1B 051722 | E26: ='Report Data'!P16 -> 85.0123224 | F26: ='Report Data'!Q16 -> -0.4605631014 | G26: ='Report Data'!R16 -> -0.01278360879
C27: =IF(LEFT('Report Data'!O17,5)="EXTRA","",'Report Data'!O17) -> ALT2 051722 | E27: =IF(C27="","",'Report Data'!P17) -> 85.00622121 | F27: ='Report Data'!Q17 -> -0.466664291 | G27: =IF(E27="","",'Report Data'!R17) -> -0.00610118959
C28: =IF(LEFT('Report Data'!O18,5)="EXTRA","",'Report Data'!O18) -> ALT3 051722 | E28: =IF(C28="","",'Report Data'!P18) -> 84.91359245 | F28: ='Report Data'!Q18 -> -0.5592930491 | G28: =IF(E28="","",'Report Data'!R18) -> -0.09262875813
B59: =CONCATENATE('Report Data'!$P$7," / monthly statistics (",$W$1,"-",$W$2,"-",$W$3,"-",IF(NOT($W$4),1,2),"b):") -> Average X2 Distance / monthly statistics (68-1-1-1b):
B87: =CONCATENATE('Report Data'!$P$7," / time series (",$W$1,"-",$W$2,"-",$W$3,"-",IF(NOT($W$4),1,2),"c):") -> Average X2 Distance / time series (68-1-1-1c):

Sheet Chart - Prob Exc

Sheet Chart - Pattern

Sheet Report Data
A2: Information, Tables and Calculations for Reports
A4: Table of Selected Values for Monthly Chart: | O4: Trend Evaluation:
A6: Title: | B6: ='Compile Data'!$B$5 -> Average X2 Distance | O6: Title: | P6: =INDEX(Other!$B$9:$B$31,'Report - ALL (DASHBOARD)'!$W$3) -> October
B7: =INDEX(Other!$C$9:$C$35,'Report - ALL (DASHBOARD)'!$W$2) -> Averages | P7: ='Compile Data'!$B$5 -> Average X2 Distance
B8: =CONCATENATE("(",'Compile Data'!$B$6,"/",'Compile Data'!$B$7,")") -> (X2/X2-POSITION) | P8: =CONCATENATE(INDEX(Other!$C$9:$C$35,'Report - ALL (DASHBOARD)'!$W$2)," ",IF('Report - ALL (DASHBOARD)'!$W$2>4,IF(AND('Compile Data'!$B$10="TAF",'Compile Data'!$B$8="PER-AVER"),"Totals","Averages"),"")) -> Averages
P9: =CONCATENATE("(",'Compile Data'!$B$6,"/",'Compile Data'!$B$7,")") -> (X2/X2-POSITION)
A11: Y-axis: | B11: =IF('Compile Data'!$B$10="CFS","Flow (CFS)",IF('Compile Data'!$B$10="TAF","Volume (TAF)",IF('Compile Data'!$B$10="KM","POSITION (KM)",IF('Compile Data'!$B$10="UMHOS/CM","EC (UMHOS/CM)",IF('Compile Data'!$B$10="mg/L","Chloride (mg/L)",""))))) -> POSITION (KM) | P11: =IF('Compile Data'!$B$10="CFS","Flow (CFS)",IF('Compile Data'!$B$10="TAF","Volume (TAF)",IF('Compile Data'!$B$10="KM","POSITION (KM)",IF('Compile Data'!$B$10="UMHOS/CM","EC (UMHOS/CM)",IF('Compile Data'!$B$10="mg/L","Chloride (mg/L)",""))))) -> POSITION (KM)
Q12: Diff from | R12: Diff from
B13: OCT | C13: NOV | D13: DEC | E13: JAN | F13: FEB | G13: MAR | H13: APR | I13: MAY | J13: JUN | K13: JUL | L13: AUG | M13: SEP | P13: Value | Q13: =$O$14 -> NAA 051422 | R13: Previous
A14: ='Compile Data'!$B$1 -> NAA 051422 | B14: =INDEX('Compile Data'!K$95:K$120,'Report - ALL (DASHBOARD)'!$W$2) -> 85.4728855 | C14: =INDEX('Compile Data'!L$95:L$120,'Report - ALL (DASHBOARD)'!$W$2) -> 84.62111771 | D14: =INDEX('Compile Data'!M$95:M$120,'Report - ALL (DASHBOARD)'!$W$2) -> 78.14526079 | E14: =INDEX('Compile Data'!N$95:N$120,'Report - ALL (DASHBOARD)'!$W$2) -> 69.81818134 | F14: =INDEX('Compile Data'!O$95:O$120,'Report - ALL (DASHBOARD)'!$W$2) -> 63.10123365 | G14: =INDEX('Compile Data'!P$95:P$120,'Report - ALL (DASHBOARD)'!$W$2) -> 62.62985764 | H14: =INDEX('Compile Data'!Q$95:Q$120,'Report - ALL (DASHBOARD)'!$W$2) -> 64.79662114 | I14: =INDEX('Compile Data'!R$95:R$120,'Report - ALL (DASHBOARD)'!$W$2) -> 68.99456885 | J14: =INDEX('Compile Data'!S$95:S$120,'Report - ALL (DASHBOARD)'!$W$2) -> 75.20937287 | K14: =INDEX('Compile Data'!T$95:T$120,'Report - ALL (DASHBOARD)'!$W$2) -> 80.45059688 | L14: =INDEX('Compile Data'!U$95:U$120,'Report - ALL (DASHBOARD)'!$W$2) -> 85.55848629 | M14: =INDEX('Compile Data'!V$95:V$120,'Report - ALL (DASHBOARD)'!$W$2) -> 85.47457504 | O14: ='Compile Data'!$B$1 -> NAA 051422 | P14: =INDEX('Compile Data'!$K$95:$AF$120,'Report - ALL (DASHBOARD)'!$W$2,'Report - ALL (DASHBOARD)'!$W$3) -> 85.4728855
A15: ='Compile Data'!$C$1 -> ALT1A 051722 | B15: =INDEX('Compile Data'!AI$95:AI$120,'Report - ALL (DASHBOARD)'!$W$2) -> 85.02510601 | C15: =INDEX('Compile Data'!AJ$95:AJ$120,'Report - ALL (DASHBOARD)'!$W$2) -> 84.58657111 | D15: =INDEX('Compile Data'!AK$95:AK$120,'Report - ALL (DASHBOARD)'!$W$2) -> 78.3640915 | E15: =INDEX('Compile Data'!AL$95:AL$120,'Report - ALL (DASHBOARD)'!$W$2) -> 69.99268983 | F15: =INDEX('Compile Data'!AM$95:AM$120,'Report - ALL (DASHBOARD)'!$W$2) -> 63.25273314 | G15: =INDEX('Compile Data'!AN$95:AN$120,'Report - ALL (DASHBOARD)'!$W$2) -> 62.80701605 | H15: =INDEX('Compile Data'!AO$95:AO$120,'Report - ALL (DASHBOARD)'!$W$2) -> 64.85412709 | I15: =INDEX('Compile Data'!AP$95:AP$120,'Report - ALL (DASHBOARD)'!$W$2) -> 68.97128775 | J15: =INDEX('Compile Data'!AQ$95:AQ$120,'Report - ALL (DASHBOARD)'!$W$2) -> 75.1876277 | K15: =INDEX('Compile Data'!AR$95:AR$120,'Report - ALL (DASHBOARD)'!$W$2) -> 80.33888254 | L15: =INDEX('Compile Data'!AS$95:AS$120,'Report - ALL (DASHBOARD)'!$W$2) -> 85.12481289 | M15: =INDEX('Compile Data'!AT$95:AT$120,'Report - ALL (DASHBOARD)'!$W$2) -> 84.90146609 | O15: ='Compile Data'!$C$1 -> ALT1A 051722 | P15: =INDEX('Compile Data'!$AI$95:$BD$120,'Report - ALL (DASHBOARD)'!$W$2,'Report - ALL (DASHBOARD)'!$W$3) -> 85.02510601 | Q15: =$P15-$P$14 -> -0.4477794926 | R15: =$P15-$P$14 -> -0.4477794926
A16: ='Compile Data'!$D$1 -> ALT1B 051722 | B16: =INDEX('Compile Data'!BG$95:BG$120,'Report - ALL (DASHBOARD)'!$W$2) -> 85.0123224 | C16: =INDEX('Compile Data'!BH$95:BH$120,'Report - ALL (DASHBOARD)'!$W$2) -> 84.62270611 | D16: =INDEX('Compile Data'!BI$95:BI$120,'Report - ALL (DASHBOARD)'!$W$2) -> 78.33637005 | E16: =INDEX('Compile Data'!BJ$95:BJ$120,'Report - ALL (DASHBOARD)'!$W$2) -> 70.02295722 | F16: =INDEX('Compile Data'!BK$95:BK$120,'Report - ALL (DASHBOARD)'!$W$2) -> 63.25039566 | G16: =INDEX('Compile Data'!BL$95:BL$120,'Report - ALL (DASHBOARD)'!$W$2) -> 62.81593974 | H16: =INDEX('Compile Data'!BM$95:BM$120,'Report - ALL (DASHBOARD)'!$W$2) -> 64.86979927 | I16: =INDEX('Compile Data'!BN$95:BN$120,'Report - ALL (DASHBOARD)'!$W$2) -> 68.94505687 | J16: =INDEX('Compile Data'!BO$95:BO$120,'Report - ALL (DASHBOARD)'!$W$2) -> 75.1902162 | K16: =INDEX('Compile Data'!BP$95:BP$120,'Report - ALL (DASHBOARD)'!$W$2) -> 80.34460054 | L16: =INDEX('Compile Data'!BQ$95:BQ$120,'Report - ALL (DASHBOARD)'!$W$2) -> 85.13690325 | M16: =INDEX('Compile Data'!BR$95:BR$120,'Report - ALL (DASHBOARD)'!$W$2) -> 84.91179034 | O16: ='Compile Data'!$D$1 -> ALT1B 051722 | P16: =INDEX('Compile Data'!$BG$95:$CB$120,'Report - ALL (DASHBOARD)'!$W$2,'Report - ALL (DASHBOARD)'!$W$3) -> 85.0123224 | Q16: =$P16-$P$14 -> -0.4605631014 | R16: =$P16-$P$15 -> -0.01278360879
A17: ='Compile Data'!$E$1 -> ALT2 051722 | B17: =IFERROR(INDEX('Compile Data'!CE$95:CE$120,'Report - ALL (DASHBOARD)'!$W$2),"") -> 85.00622121 | C17: =IFERROR(INDEX('Compile Data'!CF$95:CF$120,'Report - ALL (DASHBOARD)'!$W$2),"") -> 84.58086851 | D17: =IFERROR(INDEX('Compile Data'!CG$95:CG$120,'Report - ALL (DASHBOARD)'!$W$2),"") -> 78.35566898 | E17: =IFERROR(INDEX('Compile Data'!CH$95:CH$120,'Report - ALL (DASHBOARD)'!$W$2),"") -> 69.98706836 | F17: =IFERROR(INDEX('Compile Data'!CI$95:CI$120,'Report - ALL (DASHBOARD)'!$W$2),"") -> 63.25116613 | G17: =IFERROR(INDEX('Compile Data'!CJ$95:CJ$120,'Report - ALL (DASHBOARD)'!$W$2),"") -> 62.80691207 | H17: =IFERROR(INDEX('Compile Data'!CK$95:CK$120,'Report - ALL (DASHBOARD)'!$W$2),"") -> 64.85533035 | I17: =IFERROR(INDEX('Compile Data'!CL$95:CL$120,'Report - ALL (DASHBOARD)'!$W$2),"") -> 68.97213108 | J17: =IFERROR(INDEX('Compile Data'!CM$95:CM$120,'Report - ALL (DASHBOARD)'!$W$2),"") -> 75.18777847 | K17: =IFERROR(INDEX('Compile Data'!CN$95:CN$120,'Report - ALL (DASHBOARD)'!$W$2),"") -> 80.33978388 | L17: =IFERROR(INDEX('Compile Data'!CO$95:CO$120,'Report - ALL (DASHBOARD)'!$W$2),"") -> 85.1081075 | M17: =IFERROR(INDEX('Compile Data'!CP$95:CP$120,'Report - ALL (DASHBOARD)'!$W$2),"") -> 84.88650708 | O17: ='Compile Data'!$E$1 -> ALT2 051722 | P17: =INDEX('Compile Data'!$CE$95:$CZ$120,'Report - ALL (DASHBOARD)'!$W$2,'Report - ALL (DASHBOARD)'!$W$3) -> 85.00622121 | Q17: -0.466664291 | R17: =$P17-$P$16 -> -0.00610118959
A18: ='Compile Data'!$F$1 -> ALT3 051722 | B18: =IFERROR(INDEX('Compile Data'!DC$95:DC$120,'Report - ALL (DASHBOARD)'!$W$2),"") -> 84.91359245 | C18: =IFERROR(INDEX('Compile Data'!DD$95:DD$120,'Report - ALL (DASHBOARD)'!$W$2),"") -> 84.28678517 | D18: =IFERROR(INDEX('Compile Data'!DE$95:DE$120,'Report - ALL (DASHBOARD)'!$W$2),"") -> 78.16992588 | E18: =IFERROR(INDEX('Compile Data'!DF$95:DF$120,'Report - ALL (DASHBOARD)'!$W$2),"") -> 69.98404154 | F18: =IFERROR(INDEX('Compile Data'!DG$95:DG$120,'Report - ALL (DASHBOARD)'!$W$2),"") -> 63.25247216 | G18: =IFERROR(INDEX('Compile Data'!DH$95:DH$120,'Report - ALL (DASHBOARD)'!$W$2),"") -> 62.83247185 | H18: =IFERROR(INDEX('Compile Data'!DI$95:DI$120,'Report - ALL (DASHBOARD)'!$W$2),"") -> 64.88650773 | I18: =IFERROR(INDEX('Compile Data'!DJ$95:DJ$120,'Report - ALL (DASHBOARD)'!$W$2),"") -> 68.94950094 | J18: =IFERROR(INDEX('Compile Data'!DK$95:DK$120,'Report - ALL (DASHBOARD)'!$W$2),"") -> 75.20761336 | K18: =IFERROR(INDEX('Compile Data'!DL$95:DL$120,'Report - ALL (DASHBOARD)'!$W$2),"") -> 80.34127249 | L18: =IFERROR(INDEX('Compile Data'!DM$95:DM$120,'Report - ALL (DASHBOARD)'!$W$2),"") -> 85.15905557 | M18: =IFERROR(INDEX('Compile Data'!DN$95:DN$120,'Report - ALL (DASHBOARD)'!$W$2),"") -> 84.98963426 | O18: ='Compile Data'!$F$1 -> ALT3 051722 | P18: =INDEX('Compile Data'!$DC$95:$DX$120,'Report - ALL (DASHBOARD)'!$W$2,'Report - ALL (DASHBOARD)'!$W$3) -> 84.91359245 | Q18: -0.5592930491 | R18: =$P18-$P$17 -> -0.09262875813
A22: Annuals Plot: | O22: Exceedence Plot:
A24: Title: | B24: =INDEX(Other!$B$9:$B$31,'Report - ALL (DASHBOARD)'!$W$3) -> October | O24: Title: | P24: =INDEX(Other!$B$9:$B$31,'Report - ALL (DASHBOARD)'!$W$3) -> October
B25: ='Compile Data'!$B$5 -> Average X2 Distance | P25: ='Compile Data'!$B$5 -> Average X2 Distance
B26: =IF('Compile Data'!$B$10="CFS","Flow (CFS)",IF('Compile Data'!$B$10="TAF","Volume (TAF)",IF('Compile Data'!$B$10="KM","POSITION (KM)",IF('Compile Data'!$B$10="UMHOS/CM","EC (UMHOS/CM)",IF('Compile Data'!$B$10="mg/L","Chloride (mg/L)",""))))) -> POSITION (KM) | P26: =IF('Compile Data'!$B$10="CFS","Flow (CFS)",IF('Compile Data'!$B$10="TAF","Volume (TAF)",IF('Compile Data'!$B$10="KM","POSITION (KM)",IF('Compile Data'!$B$10="UMHOS/CM","EC (UMHOS/CM)",IF('Compile Data'!$B$10="mg/L","Chloride (mg/L)",""))))) -> POSITION (KM)
B28: ='Compile Data'!$B$1 -> NAA 051422 | C28: ='Compile Data'!$C$1 -> ALT1A 051722 | D28: ='Compile Data'!$D$1 -> ALT1B 051722 | E28: ='Compile Data'!$E$1 -> ALT2 051722 | F28: ='Compile Data'!$F$1 -> ALT3 051722 | Q28: ='Compile Data'!$B$1 -> NAA 051422 | R28: ='Compile Data'!$C$1 -> ALT1A 051722 | S28: ='Compile Data'!$D$1 -> ALT1B 051722 | T28: ='Compile Data'!$E$1 -> ALT2 051722 | U28: ='Compile Data'!$F$1 -> ALT3 051722
A29: 1922 | B29: =INDEX('Compile Data'!$K$12:$AF$93,$A29-1921,'Report - ALL (DASHBOARD)'!$W$3) -> 83.17147064 | C29: =INDEX('Compile Data'!$AI$12:$BD$93,$A29-1921,'Report - ALL (DASHBOARD)'!$W$3) -> 83.0413208 | D29: =INDEX('Compile Data'!$BG$12:$CB$93,$A29-1921,'Report - ALL (DASHBOARD)'!$W$3) -> 83.04149628 | E29: =INDEX('Compile Data'!$CE$12:$CZ$93,$A29-1921,'Report - ALL (DASHBOARD)'!$W$3) -> 83.0413208 | F29: =INDEX('Compile Data'!$DC$12:$DX$93,$A29-1921,'Report - ALL (DASHBOARD)'!$W$3) -> 83.04393005 | O29: 1 | P29: =(O29-1)/81 -> 0 | Q29: =INDEX('Compile Data'!$K$123:$AF$204,$O29,'Report - ALL (DASHBOARD)'!$W$3) -> 93.90883636 | R29: =INDEX('Compile Data'!$AI$123:$BD$204,$O29,'Report - ALL (DASHBOARD)'!$W$3) -> 93.72576904 | S29: =INDEX('Compile Data'!$BG$123:$CB$204,$O29,'Report - ALL (DASHBOARD)'!$W$3) -> 93.72577667 | T29: =INDEX('Compile Data'!$CE$123:$CZ$204,$O29,'Report - ALL (DASHBOARD)'!$W$3) -> 93.72528839 | U29: =INDEX('Compile Data'!$DC$123:$DX$204,$O29,'Report - ALL (DASHBOARD)'!$W$3) -> 93.7587738
A30: =A29+1 -> 1923 | B30: =INDEX('Compile Data'!$K$12:$AF$93,$A30-1921,'Report - ALL (DASHBOARD)'!$W$3) -> 78.8926239 | C30: =INDEX('Compile Data'!$AI$12:$BD$93,$A30-1921,'Report - ALL (DASHBOARD)'!$W$3) -> 78.40938568 | D30: =INDEX('Compile Data'!$BG$12:$CB$93,$A30-1921,'Report - ALL (DASHBOARD)'!$W$3) -> 77.47868347 | E30: =INDEX('Compile Data'!$CE$12:$CZ$93,$A30-1921,'Report - ALL (DASHBOARD)'!$W$3) -> 78.39854431 | F30: =INDEX('Compile Data'!$DC$12:$DX$93,$A30-1921,'Report - ALL (DASHBOARD)'!$W$3) -> 77.49324799 | O30: 2 | P30: 0.01234567901 | Q30: =INDEX('Compile Data'!$K$123:$AF$204,$O30,'Report - ALL (DASHBOARD)'!$W$3) -> 93.72555542 | R30: =INDEX('Compile Data'!$AI$123:$BD$204,$O30,'Report - ALL (DASHBOARD)'!$W$3) -> 93.2254715 | S30: =INDEX('Compile Data'!$BG$123:$CB$204,$O30,'Report - ALL (DASHBOARD)'!$W$3) -> 93.1530838 | T30: =INDEX('Compile Data'!$CE$123:$CZ$204,$O30,'Report - ALL (DASHBOARD)'!$W$3) -> 93.17204285 | U30: =INDEX('Compile Data'!$DC$123:$DX$204,$O30,'Report - ALL (DASHBOARD)'!$W$3) -> 93.26766205
A31: =A30+1 -> 1924 | B31: =INDEX('Compile Data'!$K$12:$AF$93,$A31-1921,'Report - ALL (DASHBOARD)'!$W$3) -> 91.41667938 | C31: =INDEX('Compile Data'!$AI$12:$BD$93,$A31-1921,'Report - ALL (DASHBOARD)'!$W$3) -> 90.88804626 | D31: =INDEX('Compile Data'!$BG$12:$CB$93,$A31-1921,'Report - ALL (DASHBOARD)'!$W$3) -> 90.84889221 | E31: =INDEX('Compile Data'!$CE$12:$CZ$93,$A31-1921,'Report - ALL (DASHBOARD)'!$W$3) -> 90.88804626 | F31: =INDEX('Compile Data'!$DC$12:$DX$93,$A31-1921,'Report - ALL (DASHBOARD)'!$W$3) -> 90.30807495 | O31: 3 | P31: 0.02469135802 | Q31: =INDEX('Compile Data'!$K$123:$AF$204,$O31,'Report - ALL (DASHBOARD)'!$W$3) -> 93.71186829 | R31: =INDEX('Compile Data'!$AI$123:$BD$204,$O31,'Report - ALL (DASHBOARD)'!$W$3) -> 93.12824249 | S31: =INDEX('Compile Data'!$BG$123:$CB$204,$O31,'Report - ALL (DASHBOARD)'!$W$3) -> 93.14537811 | T31: =INDEX('Compile Data'!$CE$123:$CZ$204,$O31,'Report - ALL (DASHBOARD)'!$W$3) -> 93.07946014 | U31: =INDEX('Compile Data'!$DC$123:$DX$204,$O31,'Report - ALL (DASHBOARD)'!$W$3) -> 93.19742584
A32: 1925 | B32: =INDEX('Compile Data'!$K$12:$AF$93,$A32-1921,'Report - ALL (DASHBOARD)'!$W$3) -> 93.71186829 | C32: =INDEX('Compile Data'!$AI$12:$BD$93,$A32-1921,'Report - ALL (DASHBOARD)'!$W$3) -> 93.12824249 | D32: =INDEX('Compile Data'!$BG$12:$CB$93,$A32-1921,'Report - ALL (DASHBOARD)'!$W$3) -> 93.14537811 | E32: =INDEX('Compile Data'!$CE$12:$CZ$93,$A32-1921,'Report - ALL (DASHBOARD)'!$W$3) -> 93.07946014 | F32: =INDEX('Compile Data'!$DC$12:$DX$93,$A32-1921,'Report - ALL (DASHBOARD)'!$W$3) -> 93.26766205 | O32: 4 | P32: 0.03703703704 | Q32: =INDEX('Compile Data'!$K$123:$AF$204,$O32,'Report - ALL (DASHBOARD)'!$W$3) -> 93.64591217 | R32: =INDEX('Compile Data'!$AI$123:$BD$204,$O32,'Report - ALL (DASHBOARD)'!$W$3) -> 92.78427124 | S32: =INDEX('Compile Data'!$BG$123:$CB$204,$O32,'Report - ALL (DASHBOARD)'!$W$3) -> 92.92373657 | T32: =INDEX('Compile Data'!$CE$123:$CZ$204,$O32,'Report - ALL (DASHBOARD)'!$W$3) -> 92.93656158 | U32: =INDEX('Compile Data'!$DC$123:$DX$204,$O32,'Report - ALL (DASHBOARD)'!$W$3) -> 93.06194305
A33: 1926 | B33: =INDEX('Compile Data'!$K$12:$AF$93,$A33-1921,'Report - ALL (DASHBOARD)'!$W$3) -> 92.76840973 | C33: =INDEX('Compile Data'!$AI$12:$BD$93,$A33-1921,'Report - ALL (DASHBOARD)'!$W$3) -> 92.54547119 | D33: =INDEX('Compile Data'!$BG$12:$CB$93,$A33-1921,'Report - ALL (DASHBOARD)'!$W$3) -> 92.59088898 | E33: =INDEX('Compile Data'!$CE$12:$CZ$93,$A33-1921,'Report - ALL (DASHBOARD)'!$W$3) -> 92.1654129 | F33: =INDEX('Compile Data'!$DC$12:$DX$93,$A33-1921,'Report - ALL (DASHBOARD)'!$W$3) -> 92.6359787 | O33: 5 | P33: 0.04938271605 | Q33: =INDEX('Compile Data'!$K$123:$AF$204,$O33,'Report - ALL (DASHBOARD)'!$W$3) -> 93.34705353 | R33: =INDEX('Compile Data'!$AI$123:$BD$204,$O33,'Report - ALL (DASHBOARD)'!$W$3) -> 92.54547119 | S33: =INDEX('Compile Data'!$BG$123:$CB$204,$O33,'Report - ALL (DASHBOARD)'!$W$3) -> 92.76663208 | T33: =INDEX('Compile Data'!$CE$123:$CZ$204,$O33,'Report - ALL (DASHBOARD)'!$W$3) -> 92.9116745 | U33: =INDEX('Compile Data'!$DC$123:$DX$204,$O33,'Report - ALL (DASHBOARD)'!$W$3) -> 92.95082092
A34: 1927 | B34: =INDEX('Compile Data'!$K$12:$AF$93,$A34-1921,'Report - ALL (DASHBOARD)'!$W$3) -> 93.00458527 | C34: =INDEX('Compile Data'!$AI$12:$BD$93,$A34-1921,'Report - ALL (DASHBOARD)'!$W$3) -> 92.48779297 | D34: =INDEX('Compile Data'!$BG$12:$CB$93,$A34-1921,'Report - ALL (DASHBOARD)'!$W$3) -> 92.49263 | E34: =INDEX('Compile Data'!$CE$12:$CZ$93,$A34-1921,'Report - ALL (DASHBOARD)'!$W$3) -> 92.9116745 | F34: =INDEX('Compile Data'!$DC$12:$DX$93,$A34-1921,'Report - ALL (DASHBOARD)'!$W$3) -> 92.5082016 | O34: 6 | P34: 0.06172839506 | Q34: =INDEX('Compile Data'!$K$123:$AF$204,$O34,'Report - ALL (DASHBOARD)'!$W$3) -> 93.31281281 | R34: =INDEX('Compile Data'!$AI$123:$BD$204,$O34,'Report - ALL (DASHBOARD)'!$W$3) -> 92.48779297 | S34: =INDEX('Compile Data'!$BG$123:$CB$204,$O34,'Report - ALL (DASHBOARD)'!$W$3) -> 92.59088898 | T34: =INDEX('Compile Data'!$CE$123:$CZ$204,$O34,'Report - ALL (DASHBOARD)'!$W$3) -> 92.36354828 | U34: =INDEX('Compile Data'!$DC$123:$DX$204,$O34,'Report - ALL (DASHBOARD)'!$W$3) -> 92.6359787
A35: 1928 | B35: =INDEX('Compile Data'!$K$12:$AF$93,$A35-1921,'Report - ALL (DASHBOARD)'!$W$3) -> 80.31043243 | C35: =INDEX('Compile Data'!$AI$12:$BD$93,$A35-1921,'Report - ALL (DASHBOARD)'!$W$3) -> 79.92010498 | D35: =INDEX('Compile Data'!$BG$12:$CB$93,$A35-1921,'Report - ALL (DASHBOARD)'!$W$3) -> 79.92687988 | E35: =INDEX('Compile Data'!$CE$12:$CZ$93,$A35-1921,'Report - ALL (DASHBOARD)'!$W$3) -> 79.82900238 | F35: =INDEX('Compile Data'!$DC$12:$DX$93,$A35-1921,'Report - ALL (DASHBOARD)'!$W$3) -> 80.16664886 | O35: 7 | P35: 0.07407407407 | Q35: =INDEX('Compile Data'!$K$123:$AF$204,$O35,'Report - ALL (DASHBOARD)'!$W$3) -> 93.00458527 | R35: =INDEX('Compile Data'!$AI$123:$BD$204,$O35,'Report - ALL (DASHBOARD)'!$W$3) -> 92.47180176 | S35: =INDEX('Compile Data'!$BG$123:$CB$204,$O35,'Report - ALL (DASHBOARD)'!$W$3) -> 92.49263 | T35: =INDEX('Compile Data'!$CE$123:$CZ$204,$O35,'Report - ALL (DASHBOARD)'!$W$3) -> 92.35482788 | U35: =INDEX('Compile Data'!$DC$123:$DX$204,$O35,'Report - ALL (DASHBOARD)'!$W$3) -> 92.5082016
A36: 1929 | B36: =INDEX('Compile Data'!$K$12:$AF$93,$A36-1921,'Report - ALL (DASHBOARD)'!$W$3) -> 80.82818604 | C36: =INDEX('Compile Data'!$AI$12:$BD$93,$A36-1921,'Report - ALL (DASHBOARD)'!$W$3) -> 80.98410034 | D36: =INDEX('Compile Data'!$BG$12:$CB$93,$A36-1921,'Report - ALL (DASHBOARD)'!$W$3) -> 80.98266602 | E36: =INDEX('Compile Data'!$CE$12:$CZ$93,$A36-1921,'Report - ALL (DASHBOARD)'!$W$3) -> 80.48985291 | F36: =INDEX('Compile Data'!$DC$12:$DX$93,$A36-1921,'Report - ALL (DASHBOARD)'!$W$3) -> 80.85612488 | O36: 8 | P36: 0.08641975309 | Q36: =INDEX('Compile Data'!$K$123:$AF$204,$O36,'Report - ALL (DASHBOARD)'!$W$3) -> 92.90348816 | R36: =INDEX('Compile Data'!$AI$123:$BD$204,$O36,'Report - ALL (DASHBOARD)'!$W$3) -> 92.36631775 | S36: =INDEX('Compile Data'!$BG$123:$CB$204,$O36,'Report - ALL (DASHBOARD)'!$W$3) -> 92.47262573 | T36: =INDEX('Compile Data'!$CE$123:$CZ$204,$O36,'Report - ALL (DASHBOARD)'!$W$3) -> 92.1654129 | U36: =INDEX('Compile Data'!$DC$123:$DX$204,$O36,'Report - ALL (DASHBOARD)'!$W$3) -> 92.47031403
A37: 1930 | B37: =INDEX('Compile Data'!$K$12:$AF$93,$A37-1921,'Report - ALL (DASHBOARD)'!$W$3) -> 93.90883636 | C37: =INDEX('Compile Data'!$AI$12:$BD$93,$A37-1921,'Report - ALL (DASHBOARD)'!$W$3) -> 91.8634491 | D37: =INDEX('Compile Data'!$BG$12:$CB$93,$A37-1921,'Report - ALL (DASHBOARD)'!$W$3) -> 91.86428833 | E37: =INDEX('Compile Data'!$CE$12:$CZ$93,$A37-1921,'Report - ALL (DASHBOARD)'!$W$3) -> 91.72393036 | F37: =INDEX('Compile Data'!$DC$12:$DX$93,$A37-1921,'Report - ALL (DASHBOARD)'!$W$3) -> 92.06250763 | O37: 9 | P37: 0.0987654321 | Q37: =INDEX('Compile Data'!$K$123:$AF$204,$O37,'Report - ALL (DASHBOARD)'!$W$3) -> 92.87779236 | R37: =INDEX('Compile Data'!$AI$123:$BD$204,$O37,'Report - ALL (DASHBOARD)'!$W$3) -> 92.28450012 | S37: =INDEX('Compile Data'!$BG$123:$CB$204,$O37,'Report - ALL (DASHBOARD)'!$W$3) -> 92.40631104 | T37: =INDEX('Compile Data'!$CE$123:$CZ$204,$O37,'Report - ALL (DASHBOARD)'!$W$3) -> 92.06632996 | U37: =INDEX('Compile Data'!$DC$123:$DX$204,$O37,'Report - ALL (DASHBOARD)'!$W$3) -> 92.42040253
A38: 1931 | B38: =INDEX('Compile Data'!$K$12:$AF$93,$A38-1921,'Report - ALL (DASHBOARD)'!$W$3) -> 91.8710022 | C38: =INDEX('Compile Data'!$AI$12:$BD$93,$A38-1921,'Report - ALL (DASHBOARD)'!$W$3) -> 91.71213531 | D38: =INDEX('Compile Data'!$BG$12:$CB$93,$A38-1921,'Report - ALL (DASHBOARD)'!$W$3) -> 91.62028503 | E38: =INDEX('Compile Data'!$CE$12:$CZ$93,$A38-1921,'Report - ALL (DASHBOARD)'!$W$3) -> 91.87805176 | F38: =INDEX('Compile Data'!$DC$12:$DX$93,$A38-1921,'Report - ALL (DASHBOARD)'!$W$3) -> 91.84312439 | O38: 10 | P38: 0.1111111111 | Q38: =INDEX('Compile Data'!$K$123:$AF$204,$O38,'Report - ALL (DASHBOARD)'!$W$3) -> 92.76840973 | R38: =INDEX('Compile Data'!$AI$123:$BD$204,$O38,'Report - ALL (DASHBOARD)'!$W$3) -> 92.13770294 | S38: =INDEX('Compile Data'!$BG$123:$CB$204,$O38,'Report - ALL (DASHBOARD)'!$W$3) -> 92.03885651 | T38: =INDEX('Compile Data'!$CE$123:$CZ$204,$O38,'Report - ALL (DASHBOARD)'!$W$3) -> 92.02735138 | U38: =INDEX('Compile Data'!$DC$123:$DX$204,$O38,'Report - ALL (DASHBOARD)'!$W$3) -> 92.30053711
A39: 1932 | B39: =INDEX('Compile Data'!$K$12:$AF$93,$A39-1921,'Report - ALL (DASHBOARD)'!$W$3) -> 93.72555542 | C39: =INDEX('Compile Data'!$AI$12:$BD$93,$A39-1921,'Report - ALL (DASHBOARD)'!$W$3) -> 93.72576904 | D39: =INDEX('Compile Data'!$BG$12:$CB$93,$A39-1921,'Report - ALL (DASHBOARD)'!$W$3) -> 93.72577667 | E39: =INDEX('Compile Data'!$CE$12:$CZ$93,$A39-1921,'Report - ALL (DASHBOARD)'!$W$3) -> 93.72528839 | F39: =INDEX('Compile Data'!$DC$12:$DX$93,$A39-1921,'Report - ALL (DASHBOARD)'!$W$3) -> 93.7587738 | O39: 11 | P39: 0.1234567901 | Q39: =INDEX('Compile Data'!$K$123:$AF$204,$O39,'Report - ALL (DASHBOARD)'!$W$3) -> 92.72338104 | R39: =INDEX('Compile Data'!$AI$123:$BD$204,$O39,'Report - ALL (DASHBOARD)'!$W$3) -> 92.02841187 | S39: =INDEX('Compile Data'!$BG$123:$CB$204,$O39,'Report - ALL (DASHBOARD)'!$W$3) -> 92.02153778 | T39: =INDEX('Compile Data'!$CE$123:$CZ$204,$O39,'Report - ALL (DASHBOARD)'!$W$3) -> 91.87805176 | U39: =INDEX('Compile Data'!$DC$123:$DX$204,$O39,'Report - ALL (DASHBOARD)'!$W$3) -> 92.08010101
A40: 1933 | B40: =INDEX('Compile Data'!$K$12:$AF$93,$A40-1921,'Report - ALL (DASHBOARD)'!$W$3) -> 92.02882385 | C40: =INDEX('Compile Data'!$AI$12:$BD$93,$A40-1921,'Report - ALL (DASHBOARD)'!$W$3) -> 92.00923157 | D40: =INDEX('Compile Data'!$BG$12:$CB$93,$A40-1921,'Report - ALL (DASHBOARD)'!$W$3) -> 92.00860596 | E40: =INDEX('Compile Data'!$CE$12:$CZ$93,$A40-1921,'Report - ALL (DASHBOARD)'!$W$3) -> 92.02735138 | F40: =INDEX('Compile Data'!$DC$12:$DX$93,$A40-1921,'Report - ALL (DASHBOARD)'!$W$3) -> 92.0351181 | O40: 12 | P40: 0.1358024691 | Q40: =INDEX('Compile Data'!$K$123:$AF$204,$O40,'Report - ALL (DASHBOARD)'!$W$3) -> 92.62472534 | R40: =INDEX('Compile Data'!$AI$123:$BD$204,$O40,'Report - ALL (DASHBOARD)'!$W$3) -> 92.00923157 | S40: =INDEX('Compile Data'!$BG$123:$CB$204,$O40,'Report - ALL (DASHBOARD)'!$W$3) -> 92.00860596 | T40: =INDEX('Compile Data'!$CE$123:$CZ$204,$O40,'Report - ALL (DASHBOARD)'!$W$3) -> 91.87765503 | U40: =INDEX('Compile Data'!$DC$123:$DX$204,$O40,'Report - ALL (DASHBOARD)'!$W$3) -> 92.06250763
A41: 1934 | B41: =INDEX('Compile Data'!$K$12:$AF$93,$A41-1921,'Report - ALL (DASHBOARD)'!$W$3) -> 91.63383484 | C41: =INDEX('Compile Data'!$AI$12:$BD$93,$A41-1921,'Report - ALL (DASHBOARD)'!$W$3) -> 91.71681976 | D41: =INDEX('Compile Data'!$BG$12:$CB$93,$A41-1921,'Report - ALL (DASHBOARD)'!$W$3) -> 91.71733856 | E41: =INDEX('Compile Data'!$CE$12:$CZ$93,$A41-1921,'Report - ALL (DASHBOARD)'!$W$3) -> 91.71752167 | F41: =INDEX('Compile Data'!$DC$12:$DX$93,$A41-1921,'Report - ALL (DASHBOARD)'!$W$3) -> 91.71701813 | O41: 13 | P41: 0.1481481481 | Q41: =INDEX('Compile Data'!$K$123:$AF$204,$O41,'Report - ALL (DASHBOARD)'!$W$3) -> 92.61186981 | R41: =INDEX('Compile Data'!$AI$123:$BD$204,$O41,'Report - ALL (DASHBOARD)'!$W$3) -> 91.8634491 | S41: =INDEX('Compile Data'!$BG$123:$CB$204,$O41,'Report - ALL (DASHBOARD)'!$W$3) -> 91.88471985 | T41: =INDEX('Compile Data'!$CE$123:$CZ$204,$O41,'Report - ALL (DASHBOARD)'!$W$3) -> 91.81839752 | U41: =INDEX('Compile Data'!$DC$123:$DX$204,$O41,'Report - ALL (DASHBOARD)'!$W$3) -> 92.05652618
A42: 1935 | B42: =INDEX('Compile Data'!$K$12:$AF$93,$A42-1921,'Report - ALL (DASHBOARD)'!$W$3) -> 91.69656372 | C42: =INDEX('Compile Data'!$AI$12:$BD$93,$A42-1921,'Report - ALL (DASHBOARD)'!$W$3) -> 91.69711304 | D42: =INDEX('Compile Data'!$BG$12:$CB$93,$A42-1921,'Report - ALL (DASHBOARD)'!$W$3) -> 91.6971283 | E42: =INDEX('Compile Data'!$CE$12:$CZ$93,$A42-1921,'Report - ALL (DASHBOARD)'!$W$3) -> 91.69723511 | F42: =INDEX('Compile Data'!$DC$12:$DX$93,$A42-1921,'Report - ALL (DASHBOARD)'!$W$3) -> 91.69651794 | O42: 14 | P42: 0.1604938272 | Q42: =INDEX('Compile Data'!$K$123:$AF$204,$O42,'Report - ALL (DASHBOARD)'!$W$3) -> 92.48470306 | R42: =INDEX('Compile Data'!$AI$123:$BD$204,$O42,'Report - ALL (DASHBOARD)'!$W$3) -> 91.72681427 | S42: =INDEX('Compile Data'!$BG$123:$CB$204,$O42,'Report - ALL (DASHBOARD)'!$W$3) -> 91.86428833 | T42: =INDEX('Compile Data'!$CE$123:$CZ$204,$O42,'Report - ALL (DASHBOARD)'!$W$3) -> 91.73820496 | U42: =INDEX('Compile Data'!$DC$123:$DX$204,$O42,'Report - ALL (DASHBOARD)'!$W$3) -> 92.0351181
A43: 1936 | B43: =INDEX('Compile Data'!$K$12:$AF$93,$A43-1921,'Report - ALL (DASHBOARD)'!$W$3) -> 92.22205353 | C43: =INDEX('Compile Data'!$AI$12:$BD$93,$A43-1921,'Report - ALL (DASHBOARD)'!$W$3) -> 91.51108551 | D43: =INDEX('Compile Data'!$BG$12:$CB$93,$A43-1921,'Report - ALL (DASHBOARD)'!$W$3) -> 91.51911163 | E43: =INDEX('Compile Data'!$CE$12:$CZ$93,$A43-1921,'Report - ALL (DASHBOARD)'!$W$3) -> 91.38742065 | F43: =INDEX('Compile Data'!$DC$12:$DX$93,$A43-1921,'Report - ALL (DASHBOARD)'!$W$3) -> 91.4107132 | O43: 15 | P43: 0.1728395062 | Q43: =INDEX('Compile Data'!$K$123:$AF$204,$O43,'Report - ALL (DASHBOARD)'!$W$3) -> 92.36355591 | R43: =INDEX('Compile Data'!$AI$123:$BD$204,$O43,'Report - ALL (DASHBOARD)'!$W$3) -> 91.71681976 | S43: =INDEX('Compile Data'!$BG$123:$CB$204,$O43,'Report - ALL (DASHBOARD)'!$W$3) -> 91.71733856 | T43: =INDEX('Compile Data'!$CE$123:$CZ$204,$O43,'Report - ALL (DASHBOARD)'!$W$3) -> 91.72393036 | U43: =INDEX('Compile Data'!$DC$123:$DX$204,$O43,'Report - ALL (DASHBOARD)'!$W$3) -> 91.97559357
A44: 1937 | B44: =INDEX('Compile Data'!$K$12:$AF$93,$A44-1921,'Report - ALL (DASHBOARD)'!$W$3) -> 90.24757385 | C44: =INDEX('Compile Data'!$AI$12:$BD$93,$A44-1921,'Report - ALL (DASHBOARD)'!$W$3) -> 90.1631546 | D44: =INDEX('Compile Data'!$BG$12:$CB$93,$A44-1921,'Report - ALL (DASHBOARD)'!$W$3) -> 90.20056152 | E44: =INDEX('Compile Data'!$CE$12:$CZ$93,$A44-1921,'Report - ALL (DASHBOARD)'!$W$3) -> 90.3365097 | F44: =INDEX('Compile Data'!$DC$12:$DX$93,$A44-1921,'Report - ALL (DASHBOARD)'!$W$3) -> 90.21966553 | O44: 16 | P44: 0.1851851852 | Q44: =INDEX('Compile Data'!$K$123:$AF$204,$O44,'Report - ALL (DASHBOARD)'!$W$3) -> 92.30693054 | R44: =INDEX('Compile Data'!$AI$123:$BD$204,$O44,'Report - ALL (DASHBOARD)'!$W$3) -> 91.71213531 | S44: =INDEX('Compile Data'!$BG$123:$CB$204,$O44,'Report - ALL (DASHBOARD)'!$W$3) -> 91.6971283 | T44: =INDEX('Compile Data'!$CE$123:$CZ$204,$O44,'Report - ALL (DASHBOARD)'!$W$3) -> 91.71752167 | U44: =INDEX('Compile Data'!$DC$123:$DX$204,$O44,'Report - ALL (DASHBOARD)'!$W$3) -> 91.88491058
A45: 1938 | B45: =INDEX('Compile Data'!$K$12:$AF$93,$A45-1921,'Report - ALL (DASHBOARD)'!$W$3) -> 92.07689667 | C45: =INDEX('Compile Data'!$AI$12:$BD$93,$A45-1921,'Report - ALL (DASHBOARD)'!$W$3) -> 91.72681427 | D45: =INDEX('Compile Data'!$BG$12:$CB$93,$A45-1921,'Report - ALL (DASHBOARD)'!$W$3) -> 91.88471985 | E45: =INDEX('Compile Data'!$CE$12:$CZ$93,$A45-1921,'Report - ALL (DASHBOARD)'!$W$3) -> 91.73820496 | F45: =INDEX('Compile Data'!$DC$12:$DX$93,$A45-1921,'Report - ALL (DASHBOARD)'!$W$3) -> 92.08010101 | O45: 17 | P45: 0.1975308642 | Q45: =INDEX('Compile Data'!$K$123:$AF$204,$O45,'Report - ALL (DASHBOARD)'!$W$3) -> 92.27158356 | R45: =INDEX('Compile Data'!$AI$123:$BD$204,$O45,'Report - ALL (DASHBOARD)'!$W$3) -> 91.69711304 | S45: =INDEX('Compile Data'!$BG$123:$CB$204,$O45,'Report - ALL (DASHBOARD)'!$W$3) -> 91.66236877 | T45: =INDEX('Compile Data'!$CE$123:$CZ$204,$O45,'Report - ALL (DASHBOARD)'!$W$3) -> 91.69723511 | U45: =INDEX('Compile Data'!$DC$123:$DX$204,$O45,'Report - ALL (DASHBOARD)'!$W$3) -> 91.84312439
A46: 1939 | B46: =INDEX('Compile Data'!$K$12:$AF$93,$A46-1921,'Report - ALL (DASHBOARD)'!$W$3) -> 77.27713776 | C46: =INDEX('Compile Data'!$AI$12:$BD$93,$A46-1921,'Report - ALL (DASHBOARD)'!$W$3) -> 76.80121613 | D46: =INDEX('Compile Data'!$BG$12:$CB$93,$A46-1921,'Report - ALL (DASHBOARD)'!$W$3) -> 76.84153748 | E46: =INDEX('Compile Data'!$CE$12:$CZ$93,$A46-1921,'Report - ALL (DASHBOARD)'!$W$3) -> 76.80120087 | F46: =INDEX('Compile Data'!$DC$12:$DX$93,$A46-1921,'Report - ALL (DASHBOARD)'!$W$3) -> 77.06800842 | O46: 18 | P46: 0.2098765432 | Q46: =INDEX('Compile Data'!$K$123:$AF$204,$O46,'Report - ALL (DASHBOARD)'!$W$3) -> 92.22205353 | R46: =INDEX('Compile Data'!$AI$123:$BD$204,$O46,'Report - ALL (DASHBOARD)'!$W$3) -> 91.66651154 | S46: =INDEX('Compile Data'!$BG$123:$CB$204,$O46,'Report - ALL (DASHBOARD)'!$W$3) -> 91.62028503 | T46: =INDEX('Compile Data'!$CE$123:$CZ$204,$O46,'Report - ALL (DASHBOARD)'!$W$3) -> 91.66449738 | U46: =INDEX('Compile Data'!$DC$123:$DX$204,$O46,'Report - ALL (DASHBOARD)'!$W$3) -> 91.71701813
A47: 1940 | B47: =INDEX('Compile Data'!$K$12:$AF$93,$A47-1921,'Report - ALL (DASHBOARD)'!$W$3) -> 92.19737244 | C47: =INDEX('Compile Data'!$AI$12:$BD$93,$A47-1921,'Report - ALL (DASHBOARD)'!$W$3) -> 90.99160004 | D47: =INDEX('Compile Data'!$BG$12:$CB$93,$A47-1921,'Report - ALL (DASHBOARD)'!$W$3) -> 90.96250916 | E47: =INDEX('Compile Data'!$CE$12:$CZ$93,$A47-1921,'Report - ALL (DASHBOARD)'!$W$3) -> 90.99152374 | F47: =INDEX('Compile Data'!$DC$12:$DX$93,$A47-1921,'Report - ALL (DASHBOARD)'!$W$3) -> 90.96033478 | O47: 19 | P47: 0.2222222222 | Q47: =INDEX('Compile Data'!$K$123:$AF$204,$O47,'Report - ALL (DASHBOARD)'!$W$3) -> 92.19737244 | R47: =INDEX('Compile Data'!$AI$123:$BD$204,$O47,'Report - ALL (DASHBOARD)'!$W$3) -> 91.58940125 | S47: =INDEX('Compile Data'!$BG$123:$CB$204,$O47,'Report - ALL (DASHBOARD)'!$W$3) -> 91.51911163 | T47: =INDEX('Compile Data'!$CE$123:$CZ$204,$O47,'Report - ALL (DASHBOARD)'!$W$3) -> 91.58776093 | U47: =INDEX('Compile Data'!$DC$123:$DX$204,$O47,'Report - ALL (DASHBOARD)'!$W$3) -> 91.69651794
A48: 1941 | B48: =INDEX('Compile Data'!$K$12:$AF$93,$A48-1921,'Report - ALL (DASHBOARD)'!$W$3) -> 80.84468842 | C48: =INDEX('Compile Data'!$AI$12:$BD$93,$A48-1921,'Report - ALL (DASHBOARD)'!$W$3) -> 80.56235504 | D48: =INDEX('Compile Data'!$BG$12:$CB$93,$A48-1921,'Report - ALL (DASHBOARD)'!$W$3) -> 80.62181854 | E48: =INDEX('Compile Data'!$CE$12:$CZ$93,$A48-1921,'Report - ALL (DASHBOARD)'!$W$3) -> 80.30897522 | F48: =INDEX('Compile Data'!$DC$12:$DX$93,$A48-1921,'Report - ALL (DASHBOARD)'!$W$3) -> 80.53643799 | O48: 20 | P48: 0.2345679012 | Q48: =INDEX('Compile Data'!$K$123:$AF$204,$O48,'Report - ALL (DASHBOARD)'!$W$3) -> 92.16609955 | R48: =INDEX('Compile Data'!$AI$123:$BD$204,$O48,'Report - ALL (DASHBOARD)'!$W$3) -> 91.51108551 | S48: =INDEX('Compile Data'!$BG$123:$CB$204,$O48,'Report - ALL (DASHBOARD)'!$W$3) -> 91.43429565 | T48: =INDEX('Compile Data'!$CE$123:$CZ$204,$O48,'Report - ALL (DASHBOARD)'!$W$3) -> 91.43670654 | U48: =INDEX('Compile Data'!$DC$123:$DX$204,$O48,'Report - ALL (DASHBOARD)'!$W$3) -> 91.4706192
A49: 1942 | B49: =INDEX('Compile Data'!$K$12:$AF$93,$A49-1921,'Report - ALL (DASHBOARD)'!$W$3) -> 77.75354767 | C49: =INDEX('Compile Data'!$AI$12:$BD$93,$A49-1921,'Report - ALL (DASHBOARD)'!$W$3) -> 77.17769623 | D49: =INDEX('Compile Data'!$BG$12:$CB$93,$A49-1921,'Report - ALL (DASHBOARD)'!$W$3) -> 77.1776886 | E49: =INDEX('Compile Data'!$CE$12:$CZ$93,$A49-1921,'Report - ALL (DASHBOARD)'!$W$3) -> 77.17745972 | F49: =INDEX('Compile Data'!$DC$12:$DX$93,$A49-1921,'Report - ALL (DASHBOARD)'!$W$3) -> 77.17803955 | O49: 21 | P49: 0.2469135802 | Q49: =INDEX('Compile Data'!$K$123:$AF$204,$O49,'Report - ALL (DASHBOARD)'!$W$3) -> 92.16410065 | R49: =INDEX('Compile Data'!$AI$123:$BD$204,$O49,'Report - ALL (DASHBOARD)'!$W$3) -> 91.43712616 | S49: =INDEX('Compile Data'!$BG$123:$CB$204,$O49,'Report - ALL (DASHBOARD)'!$W$3) -> 91.40680695 | T49: =INDEX('Compile Data'!$CE$123:$CZ$204,$O49,'Report - ALL (DASHBOARD)'!$W$3) -> 91.38742065 | U49: =INDEX('Compile Data'!$DC$123:$DX$204,$O49,'Report - ALL (DASHBOARD)'!$W$3) -> 91.42678833
A50: 1943 | B50: =INDEX('Compile Data'!$K$12:$AF$93,$A50-1921,'Report - ALL (DASHBOARD)'!$W$3) -> 77.58504486 | C50: =INDEX('Compile Data'!$AI$12:$BD$93,$A50-1921,'Report - ALL (DASHBOARD)'!$W$3) -> 77.1653595 | D50: =INDEX('Compile Data'!$BG$12:$CB$93,$A50-1921,'Report - ALL (DASHBOARD)'!$W$3) -> 77.16622162 | E50: =INDEX('Compile Data'!$CE$12:$CZ$93,$A50-1921,'Report - ALL (DASHBOARD)'!$W$3) -> 77.16584015 | F50: =INDEX('Compile Data'!$DC$12:$DX$93,$A50-1921,'Report - ALL (DASHBOARD)'!$W$3) -> 77.16786194 | O50: 22 | P50: 0.2592592593 | Q50: =INDEX('Compile Data'!$K$123:$AF$204,$O50,'Report - ALL (DASHBOARD)'!$W$3) -> 92.12224579 | R50: =INDEX('Compile Data'!$AI$123:$BD$204,$O50,'Report - ALL (DASHBOARD)'!$W$3) -> 91.40358734 | S50: =INDEX('Compile Data'!$BG$123:$CB$204,$O50,'Report - ALL (DASHBOARD)'!$W$3) -> 91.40590668 | T50: =INDEX('Compile Data'!$CE$123:$CZ$204,$O50,'Report - ALL (DASHBOARD)'!$W$3) -> 91.35929108 | U50: =INDEX('Compile Data'!$DC$123:$DX$204,$O50,'Report - ALL (DASHBOARD)'!$W$3) -> 91.4107132
A51: 1944 | B51: =INDEX('Compile Data'!$K$12:$AF$93,$A51-1921,'Report - ALL (DASHBOARD)'!$W$3) -> 80.5583725 | C51: =INDEX('Compile Data'!$AI$12:$BD$93,$A51-1921,'Report - ALL (DASHBOARD)'!$W$3) -> 80.06137848 | D51: =INDEX('Compile Data'!$BG$12:$CB$93,$A51-1921,'Report - ALL (DASHBOARD)'!$W$3) -> 80.06124115 | E51: =INDEX('Compile Data'!$CE$12:$CZ$93,$A51-1921,'Report - ALL (DASHBOARD)'!$W$3) -> 80.06143188 | F51: =INDEX('Compile Data'!$DC$12:$DX$93,$A51-1921,'Report - ALL (DASHBOARD)'!$W$3) -> 80.06013489 | O51: 23 | P51: 0.2716049383 | Q51: =INDEX('Compile Data'!$K$123:$AF$204,$O51,'Report - ALL (DASHBOARD)'!$W$3) -> 92.10670471 | R51: =INDEX('Compile Data'!$AI$123:$BD$204,$O51,'Report - ALL (DASHBOARD)'!$W$3) -> 91.35954285 | S51: =INDEX('Compile Data'!$BG$123:$CB$204,$O51,'Report - ALL (DASHBOARD)'!$W$3) -> 91.36374664 | T51: =INDEX('Compile Data'!$CE$123:$CZ$204,$O51,'Report - ALL (DASHBOARD)'!$W$3) -> 91.3314743 | U51: =INDEX('Compile Data'!$DC$123:$DX$204,$O51,'Report - ALL (DASHBOARD)'!$W$3) -> 91.40748596
A52: 1945 | B52: =INDEX('Compile Data'!$K$12:$AF$93,$A52-1921,'Report - ALL (DASHBOARD)'!$W$3) -> 92.48470306 | C52: =INDEX('Compile Data'!$AI$12:$BD$93,$A52-1921,'Report - ALL (DASHBOARD)'!$W$3) -> 91.08689117 | D52: =INDEX('Compile Data'!$BG$12:$CB$93,$A52-1921,'Report - ALL (DASHBOARD)'!$W$3) -> 91.08661652 | E52: =INDEX('Compile Data'!$CE$12:$CZ$93,$A52-1921,'Report - ALL (DASHBOARD)'!$W$3) -> 91.08690643 | F52: =INDEX('Compile Data'!$DC$12:$DX$93,$A52-1921,'Report - ALL (DASHBOARD)'!$W$3) -> 91.40748596 | O52: 24 | P52: 0.2839506173 | Q52: =INDEX('Compile Data'!$K$123:$AF$204,$O52,'Report - ALL (DASHBOARD)'!$W$3) -> 92.07689667 | R52: =INDEX('Compile Data'!$AI$123:$BD$204,$O52,'Report - ALL (DASHBOARD)'!$W$3) -> 91.30612946 | S52: =INDEX('Compile Data'!$BG$123:$CB$204,$O52,'Report - ALL (DASHBOARD)'!$W$3) -> 91.28237152 | T52: =INDEX('Compile Data'!$CE$123:$CZ$204,$O52,'Report - ALL (DASHBOARD)'!$W$3) -> 91.30614471 | U52: =INDEX('Compile Data'!$DC$123:$DX$204,$O52,'Report - ALL (DASHBOARD)'!$W$3) -> 91.3702774
A53: 1946 | B53: =INDEX('Compile Data'!$K$12:$AF$93,$A53-1921,'Report - ALL (DASHBOARD)'!$W$3) -> 91.81985474 | C53: =INDEX('Compile Data'!$AI$12:$BD$93,$A53-1921,'Report - ALL (DASHBOARD)'!$W$3) -> 91.66651154 | D53: =INDEX('Compile Data'!$BG$12:$CB$93,$A53-1921,'Report - ALL (DASHBOARD)'!$W$3) -> 91.66236877 | E53: =INDEX('Compile Data'!$CE$12:$CZ$93,$A53-1921,'Report - ALL (DASHBOARD)'!$W$3) -> 91.66449738 | F53: =INDEX('Compile Data'!$DC$12:$DX$93,$A53-1921,'Report - ALL (DASHBOARD)'!$W$3) -> 91.33934784 | O53: 25 | P53: 0.2962962963 | Q53: =INDEX('Compile Data'!$K$123:$AF$204,$O53,'Report - ALL (DASHBOARD)'!$W$3) -> 92.06311035 | R53: =INDEX('Compile Data'!$AI$123:$BD$204,$O53,'Report - ALL (DASHBOARD)'!$W$3) -> 91.22770691 | S53: =INDEX('Compile Data'!$BG$123:$CB$204,$O53,'Report - ALL (DASHBOARD)'!$W$3) -> 91.21244049 | T53: =INDEX('Compile Data'!$CE$123:$CZ$204,$O53,'Report - ALL (DASHBOARD)'!$W$3) -> 91.22518158 | U53: =INDEX('Compile Data'!$DC$123:$DX$204,$O53,'Report - ALL (DASHBOARD)'!$W$3) -> 91.3503418
A54: 1947 | B54: =INDEX('Compile Data'!$K$12:$AF$93,$A54-1921,'Report - ALL (DASHBOARD)'!$W$3) -> 90.44530487 | C54: =INDEX('Compile Data'!$AI$12:$BD$93,$A54-1921,'Report - ALL (DASHBOARD)'!$W$3) -> 89.60934448 | D54: =INDEX('Compile Data'!$BG$12:$CB$93,$A54-1921,'Report - ALL (DASHBOARD)'!$W$3) -> 89.96935272 | E54: =INDEX('Compile Data'!$CE$12:$CZ$93,$A54-1921,'Report - ALL (DASHBOARD)'!$W$3) -> 89.54428101 | F54: =INDEX('Compile Data'!$DC$12:$DX$93,$A54-1921,'Report - ALL (DASHBOARD)'!$W$3) -> 89.95604706 | O54: 26 | P54: 0.3086419753 | Q54: =INDEX('Compile Data'!$K$123:$AF$204,$O54,'Report - ALL (DASHBOARD)'!$W$3) -> 92.02882385 | R54: =INDEX('Compile Data'!$AI$123:$BD$204,$O54,'Report - ALL (DASHBOARD)'!$W$3) -> 91.21849823 | S54: =INDEX('Compile Data'!$BG$123:$CB$204,$O54,'Report - ALL (DASHBOARD)'!$W$3) -> 91.1987381 | T54: =INDEX('Compile Data'!$CE$123:$CZ$204,$O54,'Report - ALL (DASHBOARD)'!$W$3) -> 91.21855927 | U54: =INDEX('Compile Data'!$DC$123:$DX$204,$O54,'Report - ALL (DASHBOARD)'!$W$3) -> 91.33934784
A55: 1948 | B55: =INDEX('Compile Data'!$K$12:$AF$93,$A55-1921,'Report - ALL (DASHBOARD)'!$W$3) -> 92.16609955 | C55: =INDEX('Compile Data'!$AI$12:$BD$93,$A55-1921,'Report - ALL (DASHBOARD)'!$W$3) -> 91.43712616 | D55: =INDEX('Compile Data'!$BG$12:$CB$93,$A55-1921,'Report - ALL (DASHBOARD)'!$W$3) -> 91.43429565 | E55: =INDEX('Compile Data'!$CE$12:$CZ$93,$A55-1921,'Report - ALL (DASHBOARD)'!$W$3) -> 91.43670654 | F55: =INDEX('Compile Data'!$DC$12:$DX$93,$A55-1921,'Report - ALL (DASHBOARD)'!$W$3) -> 91.42678833 | O55: 27 | P55: 0.3209876543 | Q55: =INDEX('Compile Data'!$K$123:$AF$204,$O55,'Report - ALL (DASHBOARD)'!$W$3) -> 91.8710022 | R55: =INDEX('Compile Data'!$AI$123:$BD$204,$O55,'Report - ALL (DASHBOARD)'!$W$3) -> 91.17317963 | S55: =INDEX('Compile Data'!$BG$123:$CB$204,$O55,'Report - ALL (DASHBOARD)'!$W$3) -> 91.18038177 | T55: =INDEX('Compile Data'!$CE$123:$CZ$204,$O55,'Report - ALL (DASHBOARD)'!$W$3) -> 91.17733765 | U55: =INDEX('Compile Data'!$DC$123:$DX$204,$O55,'Report - ALL (DASHBOARD)'!$W$3) -> 91.2862854
A56: 1949 | B56: =INDEX('Compile Data'!$K$12:$AF$93,$A56-1921,'Report - ALL (DASHBOARD)'!$W$3) -> 90.4017868 | C56: =INDEX('Compile Data'!$AI$12:$BD$93,$A56-1921,'Report - ALL (DASHBOARD)'!$W$3) -> 90.59893036 | D56: =INDEX('Compile Data'!$BG$12:$CB$93,$A56-1921,'Report - ALL (DASHBOARD)'!$W$3) -> 90.59088135 | E56: =INDEX('Compile Data'!$CE$12:$CZ$93,$A56-1921,'Report - ALL (DASHBOARD)'!$W$3) -> 90.59897614 | F56: =INDEX('Compile Data'!$DC$12:$DX$93,$A56-1921,'Report - ALL (DASHBOARD)'!$W$3) -> 90.37290955 | O56: 28 | P56: 0.3333333333 | Q56: =INDEX('Compile Data'!$K$123:$AF$204,$O56,'Report - ALL (DASHBOARD)'!$W$3) -> 91.81985474 | R56: =INDEX('Compile Data'!$AI$123:$BD$204,$O56,'Report - ALL (DASHBOARD)'!$W$3) -> 91.12232208 | S56: =INDEX('Compile Data'!$BG$123:$CB$204,$O56,'Report - ALL (DASHBOARD)'!$W$3) -> 91.16699982 | T56: =INDEX('Compile Data'!$CE$123:$CZ$204,$O56,'Report - ALL (DASHBOARD)'!$W$3) -> 91.14676666 | U56: =INDEX('Compile Data'!$DC$123:$DX$204,$O56,'Report - ALL (DASHBOARD)'!$W$3) -> 91.14396667
A57: 1950 | B57: =INDEX('Compile Data'!$K$12:$AF$93,$A57-1921,'Report - ALL (DASHBOARD)'!$W$3) -> 92.10670471 | C57: =INDEX('Compile Data'!$AI$12:$BD$93,$A57-1921,'Report - ALL (DASHBOARD)'!$W$3) -> 90.60457611 | D57: =INDEX('Compile Data'!$BG$12:$CB$93,$A57-1921,'Report - ALL (DASHBOARD)'!$W$3) -> 90.48796082 | E57: =INDEX('Compile Data'!$CE$12:$CZ$93,$A57-1921,'Report - ALL (DASHBOARD)'!$W$3) -> 91.0249176 | F57: =INDEX('Compile Data'!$DC$12:$DX$93,$A57-1921,'Report - ALL (DASHBOARD)'!$W$3) -> 92.05652618 | O57: 29 | P57: 0.3456790123 | Q57: =INDEX('Compile Data'!$K$123:$AF$204,$O57,'Report - ALL (DASHBOARD)'!$W$3) -> 91.74020386 | R57: =INDEX('Compile Data'!$AI$123:$BD$204,$O57,'Report - ALL (DASHBOARD)'!$W$3) -> 91.08689117 | S57: =INDEX('Compile Data'!$BG$123:$CB$204,$O57,'Report - ALL (DASHBOARD)'!$W$3) -> 91.08661652 | T57: =INDEX('Compile Data'!$CE$123:$CZ$204,$O57,'Report - ALL (DASHBOARD)'!$W$3) -> 91.08846283 | U57: =INDEX('Compile Data'!$DC$123:$DX$204,$O57,'Report - ALL (DASHBOARD)'!$W$3) -> 91.06060791
A58: 1951 | B58: =INDEX('Compile Data'!$K$12:$AF$93,$A58-1921,'Report - ALL (DASHBOARD)'!$W$3) -> 91.09104919 | C58: =INDEX('Compile Data'!$AI$12:$BD$93,$A58-1921,'Report - ALL (DASHBOARD)'!$W$3) -> 91.12232208 | D58: =INDEX('Compile Data'!$BG$12:$CB$93,$A58-1921,'Report - ALL (DASHBOARD)'!$W$3) -> 91.01092529 | E58: =INDEX('Compile Data'!$CE$12:$CZ$93,$A58-1921,'Report - ALL (DASHBOARD)'!$W$3) -> 91.08846283 | F58: =INDEX('Compile Data'!$DC$12:$DX$93,$A58-1921,'Report - ALL (DASHBOARD)'!$W$3) -> 86.22092438 | O58: 30 | P58: 0.3580246914 | Q58: =INDEX('Compile Data'!$K$123:$AF$204,$O58,'Report - ALL (DASHBOARD)'!$W$3) -> 91.69656372 | R58: =INDEX('Compile Data'!$AI$123:$BD$204,$O58,'Report - ALL (DASHBOARD)'!$W$3) -> 91.03356171 | S58: =INDEX('Compile Data'!$BG$123:$CB$204,$O58,'Report - ALL (DASHBOARD)'!$W$3) -> 91.05767822 | T58: =INDEX('Compile Data'!$CE$123:$CZ$204,$O58,'Report - ALL (DASHBOARD)'!$W$3) -> 91.08690643 | U58: =INDEX('Compile Data'!$DC$123:$DX$204,$O58,'Report - ALL (DASHBOARD)'!$W$3) -> 90.98675537
A59: 1952 | B59: =INDEX('Compile Data'!$K$12:$AF$93,$A59-1921,'Report - ALL (DASHBOARD)'!$W$3) -> 80.47190094 | C59: =INDEX('Compile Data'!$AI$12:$BD$93,$A59-1921,'Report - ALL (DASHBOARD)'!$W$3) -> 79.99376678 | D59: =INDEX('Compile Data'!$BG$12:$CB$93,$A59-1921,'Report - ALL (DASHBOARD)'!$W$3) -> 80.01838684 | E59: =INDEX('Compile Data'!$CE$12:$CZ$93,$A59-1921,'Report - ALL (DASHBOARD)'!$W$3) -> 80.16863251 | F59: =INDEX('Compile Data'!$DC$12:$DX$93,$A59-1921,'Report - ALL (DASHBOARD)'!$W$3) -> 80.22957611 | O59: 31 | P59: 0.3703703704 | Q59: =INDEX('Compile Data'!$K$123:$AF$204,$O59,'Report - ALL (DASHBOARD)'!$W$3) -> 91.64429474 | R59: =INDEX('Compile Data'!$AI$123:$BD$204,$O59,'Report - ALL (DASHBOARD)'!$W$3) -> 91.02378082 | S59: =INDEX('Compile Data'!$BG$123:$CB$204,$O59,'Report - ALL (DASHBOARD)'!$W$3) -> 91.01092529 | T59: =INDEX('Compile Data'!$CE$123:$CZ$204,$O59,'Report - ALL (DASHBOARD)'!$W$3) -> 91.04931641 | U59: =INDEX('Compile Data'!$DC$123:$DX$204,$O59,'Report - ALL (DASHBOARD)'!$W$3) -> 90.96033478
A60: 1953 | B60: =INDEX('Compile Data'!$K$12:$AF$93,$A60-1921,'Report - ALL (DASHBOARD)'!$W$3) -> 76.96785736 | C60: =INDEX('Compile Data'!$AI$12:$BD$93,$A60-1921,'Report - ALL (DASHBOARD)'!$W$3) -> 76.49264526 | D60: =INDEX('Compile Data'!$BG$12:$CB$93,$A60-1921,'Report - ALL (DASHBOARD)'!$W$3) -> 76.49272919 | E60: =INDEX('Compile Data'!$CE$12:$CZ$93,$A60-1921,'Report - ALL (DASHBOARD)'!$W$3) -> 76.49268341 | F60: =INDEX('Compile Data'!$DC$12:$DX$93,$A60-1921,'Report - ALL (DASHBOARD)'!$W$3) -> 76.50904846 | O60: 32 | P60: 0.3827160494 | Q60: =INDEX('Compile Data'!$K$123:$AF$204,$O60,'Report - ALL (DASHBOARD)'!$W$3) -> 91.63383484 | R60: =INDEX('Compile Data'!$AI$123:$BD$204,$O60,'Report - ALL (DASHBOARD)'!$W$3) -> 91.0124054 | S60: =INDEX('Compile Data'!$BG$123:$CB$204,$O60,'Report - ALL (DASHBOARD)'!$W$3) -> 90.96250916 | T60: =INDEX('Compile Data'!$CE$123:$CZ$204,$O60,'Report - ALL (DASHBOARD)'!$W$3) -> 91.0249176 | U60: =INDEX('Compile Data'!$DC$123:$DX$204,$O60,'Report - ALL (DASHBOARD)'!$W$3) -> 90.91822815
A61: 1954 | B61: =INDEX('Compile Data'!$K$12:$AF$93,$A61-1921,'Report - ALL (DASHBOARD)'!$W$3) -> 77.37887573 | C61: =INDEX('Compile Data'!$AI$12:$BD$93,$A61-1921,'Report - ALL (DASHBOARD)'!$W$3) -> 76.92665863 | D61: =INDEX('Compile Data'!$BG$12:$CB$93,$A61-1921,'Report - ALL (DASHBOARD)'!$W$3) -> 76.86737823 | E61: =INDEX('Compile Data'!$CE$12:$CZ$93,$A61-1921,'Report - ALL (DASHBOARD)'!$W$3) -> 76.92675781 | F61: =INDEX('Compile Data'!$DC$12:$DX$93,$A61-1921,'Report - ALL (DASHBOARD)'!$W$3) -> 76.86727905 | O61: 33 | P61: =(O61-1)/81 -> 0.3950617284 | Q61: =INDEX('Compile Data'!$K$123:$AF$204,$O61,'Report - ALL (DASHBOARD)'!$W$3) -> 91.52169037 | R61: =INDEX('Compile Data'!$AI$123:$BD$204,$O61,'Report - ALL (DASHBOARD)'!$W$3) -> 90.99160004 | S61: =INDEX('Compile Data'!$BG$123:$CB$204,$O61,'Report - ALL (DASHBOARD)'!$W$3) -> 90.93712616 | T61: =INDEX('Compile Data'!$CE$123:$CZ$204,$O61,'Report - ALL (DASHBOARD)'!$W$3) -> 91.02385712 | U61: =INDEX('Compile Data'!$DC$123:$DX$204,$O61,'Report - ALL (DASHBOARD)'!$W$3) -> 90.9129715
A62: 1955 | B62: =INDEX('Compile Data'!$K$12:$AF$93,$A62-1921,'Report - ALL (DASHBOARD)'!$W$3) -> 79.93366241 | C62: =INDEX('Compile Data'!$AI$12:$BD$93,$A62-1921,'Report - ALL (DASHBOARD)'!$W$3) -> 79.4514389 | D62: =INDEX('Compile Data'!$BG$12:$CB$93,$A62-1921,'Report - ALL (DASHBOARD)'!$W$3) -> 79.44890594 | E62: =INDEX('Compile Data'!$CE$12:$CZ$93,$A62-1921,'Report - ALL (DASHBOARD)'!$W$3) -> 79.45160675 | F62: =INDEX('Compile Data'!$DC$12:$DX$93,$A62-1921,'Report - ALL (DASHBOARD)'!$W$3) -> 79.09960175 | O62: 34 | P62: 0.4074074074 | Q62: =INDEX('Compile Data'!$K$123:$AF$204,$O62,'Report - ALL (DASHBOARD)'!$W$3) -> 91.41667938 | R62: =INDEX('Compile Data'!$AI$123:$BD$204,$O62,'Report - ALL (DASHBOARD)'!$W$3) -> 90.95608521 | S62: =INDEX('Compile Data'!$BG$123:$CB$204,$O62,'Report - ALL (DASHBOARD)'!$W$3) -> 90.93283081 | T62: =INDEX('Compile Data'!$CE$123:$CZ$204,$O62,'Report - ALL (DASHBOARD)'!$W$3) -> 90.99152374 | U62: =INDEX('Compile Data'!$DC$123:$DX$204,$O62,'Report - ALL (DASHBOARD)'!$W$3) -> 90.91158295
A63: 1956 | B63: =INDEX('Compile Data'!$K$12:$AF$93,$A63-1921,'Report - ALL (DASHBOARD)'!$W$3) -> 91.37112427 | C63: =INDEX('Compile Data'!$AI$12:$BD$93,$A63-1921,'Report - ALL (DASHBOARD)'!$W$3) -> 90.90435028 | D63: =INDEX('Compile Data'!$BG$12:$CB$93,$A63-1921,'Report - ALL (DASHBOARD)'!$W$3) -> 90.53656006 | E63: =INDEX('Compile Data'!$CE$12:$CZ$93,$A63-1921,'Report - ALL (DASHBOARD)'!$W$3) -> 90.90437317 | F63: =INDEX('Compile Data'!$DC$12:$DX$93,$A63-1921,'Report - ALL (DASHBOARD)'!$W$3) -> 90.54333496 | O63: 35 | P63: 0.4197530864 | Q63: =INDEX('Compile Data'!$K$123:$AF$204,$O63,'Report - ALL (DASHBOARD)'!$W$3) -> 91.37112427 | R63: =INDEX('Compile Data'!$AI$123:$BD$204,$O63,'Report - ALL (DASHBOARD)'!$W$3) -> 90.90435028 | S63: =INDEX('Compile Data'!$BG$123:$CB$204,$O63,'Report - ALL (DASHBOARD)'!$W$3) -> 90.88040924 | T63: =INDEX('Compile Data'!$CE$123:$CZ$204,$O63,'Report - ALL (DASHBOARD)'!$W$3) -> 90.98829651 | U63: =INDEX('Compile Data'!$DC$123:$DX$204,$O63,'Report - ALL (DASHBOARD)'!$W$3) -> 90.54333496
A64: 1957 | B64: =INDEX('Compile Data'!$K$12:$AF$93,$A64-1921,'Report - ALL (DASHBOARD)'!$W$3) -> 77.04986572 | C64: =INDEX('Compile Data'!$AI$12:$BD$93,$A64-1921,'Report - ALL (DASHBOARD)'!$W$3) -> 76.55132294 | D64: =INDEX('Compile Data'!$BG$12:$CB$93,$A64-1921,'Report - ALL (DASHBOARD)'!$W$3) -> 76.64026642 | E64: =INDEX('Compile Data'!$CE$12:$CZ$93,$A64-1921,'Report - ALL (DASHBOARD)'!$W$3) -> 76.55140686 | F64: =INDEX('Compile Data'!$DC$12:$DX$93,$A64-1921,'Report - ALL (DASHBOARD)'!$W$3) -> 77.45704651 | O64: 36 | P64: 0.4320987654 | Q64: =INDEX('Compile Data'!$K$123:$AF$204,$O64,'Report - ALL (DASHBOARD)'!$W$3) -> 91.09104919 | R64: =INDEX('Compile Data'!$AI$123:$BD$204,$O64,'Report - ALL (DASHBOARD)'!$W$3) -> 90.88804626 | S64: =INDEX('Compile Data'!$BG$123:$CB$204,$O64,'Report - ALL (DASHBOARD)'!$W$3) -> 90.84889221 | T64: =INDEX('Compile Data'!$CE$123:$CZ$204,$O64,'Report - ALL (DASHBOARD)'!$W$3) -> 90.95644379 | U64: =INDEX('Compile Data'!$DC$123:$DX$204,$O64,'Report - ALL (DASHBOARD)'!$W$3) -> 90.37290955
A65: 1958 | B65: =INDEX('Compile Data'!$K$12:$AF$93,$A65-1921,'Report - ALL (DASHBOARD)'!$W$3) -> 78.94006348 | C65: =INDEX('Compile Data'!$AI$12:$BD$93,$A65-1921,'Report - ALL (DASHBOARD)'!$W$3) -> 77.61201477 | D65: =INDEX('Compile Data'!$BG$12:$CB$93,$A65-1921,'Report - ALL (DASHBOARD)'!$W$3) -> 77.4884491 | E65: =INDEX('Compile Data'!$CE$12:$CZ$93,$A65-1921,'Report - ALL (DASHBOARD)'!$W$3) -> 77.61195374 | F65: =INDEX('Compile Data'!$DC$12:$DX$93,$A65-1921,'Report - ALL (DASHBOARD)'!$W$3) -> 79.81465149 | O65: 37 | P65: 0.4444444444 | Q65: =INDEX('Compile Data'!$K$123:$AF$204,$O65,'Report - ALL (DASHBOARD)'!$W$3) -> 90.94544983 | R65: =INDEX('Compile Data'!$AI$123:$BD$204,$O65,'Report - ALL (DASHBOARD)'!$W$3) -> 90.82396698 | S65: =INDEX('Compile Data'!$BG$123:$CB$204,$O65,'Report - ALL (DASHBOARD)'!$W$3) -> 90.59088135 | T65: =INDEX('Compile Data'!$CE$123:$CZ$204,$O65,'Report - ALL (DASHBOARD)'!$W$3) -> 90.90437317 | U65: =INDEX('Compile Data'!$DC$123:$DX$204,$O65,'Report - ALL (DASHBOARD)'!$W$3) -> 90.30807495
A66: 1959 | B66: =INDEX('Compile Data'!$K$12:$AF$93,$A66-1921,'Report - ALL (DASHBOARD)'!$W$3) -> 77.69317627 | C66: =INDEX('Compile Data'!$AI$12:$BD$93,$A66-1921,'Report - ALL (DASHBOARD)'!$W$3) -> 77.14096069 | D66: =INDEX('Compile Data'!$BG$12:$CB$93,$A66-1921,'Report - ALL (DASHBOARD)'!$W$3) -> 77.52090454 | E66: =INDEX('Compile Data'!$CE$12:$CZ$93,$A66-1921,'Report - ALL (DASHBOARD)'!$W$3) -> 77.14093781 | F66: =INDEX('Compile Data'!$DC$12:$DX$93,$A66-1921,'Report - ALL (DASHBOARD)'!$W$3) -> 77.14091492 | O66: 38 | P66: 0.4567901235 | Q66: =INDEX('Compile Data'!$K$123:$AF$204,$O66,'Report - ALL (DASHBOARD)'!$W$3) -> 90.46190643 | R66: =INDEX('Compile Data'!$AI$123:$BD$204,$O66,'Report - ALL (DASHBOARD)'!$W$3) -> 90.60457611 | S66: =INDEX('Compile Data'!$BG$123:$CB$204,$O66,'Report - ALL (DASHBOARD)'!$W$3) -> 90.53656006 | T66: =INDEX('Compile Data'!$CE$123:$CZ$204,$O66,'Report - ALL (DASHBOARD)'!$W$3) -> 90.88804626 | U66: =INDEX('Compile Data'!$DC$123:$DX$204,$O66,'Report - ALL (DASHBOARD)'!$W$3) -> 90.21966553
A67: 1960 | B67: =INDEX('Compile Data'!$K$12:$AF$93,$A67-1921,'Report - ALL (DASHBOARD)'!$W$3) -> 90.46190643 | C67: =INDEX('Compile Data'!$AI$12:$BD$93,$A67-1921,'Report - ALL (DASHBOARD)'!$W$3) -> 89.29747009 | D67: =INDEX('Compile Data'!$BG$12:$CB$93,$A67-1921,'Report - ALL (DASHBOARD)'!$W$3) -> 89.25416565 | E67: =INDEX('Compile Data'!$CE$12:$CZ$93,$A67-1921,'Report - ALL (DASHBOARD)'!$W$3) -> 89.29734802 | F67: =INDEX('Compile Data'!$DC$12:$DX$93,$A67-1921,'Report - ALL (DASHBOARD)'!$W$3) -> 89.38746643 | O67: 39 | P67: 0.4691358025 | Q67: =INDEX('Compile Data'!$K$123:$AF$204,$O67,'Report - ALL (DASHBOARD)'!$W$3) -> 90.44530487 | R67: =INDEX('Compile Data'!$AI$123:$BD$204,$O67,'Report - ALL (DASHBOARD)'!$W$3) -> 90.59893036 | S67: =INDEX('Compile Data'!$BG$123:$CB$204,$O67,'Report - ALL (DASHBOARD)'!$W$3) -> 90.48796082 | T67: =INDEX('Compile Data'!$CE$123:$CZ$204,$O67,'Report - ALL (DASHBOARD)'!$W$3) -> 90.59897614 | U67: =INDEX('Compile Data'!$DC$123:$DX$204,$O67,'Report - ALL (DASHBOARD)'!$W$3) -> 89.95604706
A68: 1961 | B68: =INDEX('Compile Data'!$K$12:$AF$93,$A68-1921,'Report - ALL (DASHBOARD)'!$W$3) -> 92.16410065 | C68: =INDEX('Compile Data'!$AI$12:$BD$93,$A68-1921,'Report - ALL (DASHBOARD)'!$W$3) -> 91.02378082 | D68: =INDEX('Compile Data'!$BG$12:$CB$93,$A68-1921,'Report - ALL (DASHBOARD)'!$W$3) -> 90.93712616 | E68: =INDEX('Compile Data'!$CE$12:$CZ$93,$A68-1921,'Report - ALL (DASHBOARD)'!$W$3) -> 91.02385712 | F68: =INDEX('Compile Data'!$DC$12:$DX$93,$A68-1921,'Report - ALL (DASHBOARD)'!$W$3) -> 90.9129715 | O68: 40 | P68: 0.4814814815 | Q68: =INDEX('Compile Data'!$K$123:$AF$204,$O68,'Report - ALL (DASHBOARD)'!$W$3) -> 90.40961456 | R68: =INDEX('Compile Data'!$AI$123:$BD$204,$O68,'Report - ALL (DASHBOARD)'!$W$3) -> 90.1631546 | S68: =INDEX('Compile Data'!$BG$123:$CB$204,$O68,'Report - ALL (DASHBOARD)'!$W$3) -> 90.20056152 | T68: =INDEX('Compile Data'!$CE$123:$CZ$204,$O68,'Report - ALL (DASHBOARD)'!$W$3) -> 90.3365097 | U68: =INDEX('Compile Data'!$DC$123:$DX$204,$O68,'Report - ALL (DASHBOARD)'!$W$3) -> 89.38746643
A69: 1962 | B69: =INDEX('Compile Data'!$K$12:$AF$93,$A69-1921,'Report - ALL (DASHBOARD)'!$W$3) -> 91.64429474 | C69: =INDEX('Compile Data'!$AI$12:$BD$93,$A69-1921,'Report - ALL (DASHBOARD)'!$W$3) -> 91.03356171 | D69: =INDEX('Compile Data'!$BG$12:$CB$93,$A69-1921,'Report - ALL (DASHBOARD)'!$W$3) -> 90.88040924 | E69: =INDEX('Compile Data'!$CE$12:$CZ$93,$A69-1921,'Report - ALL (DASHBOARD)'!$W$3) -> 91.04931641 | F69: =INDEX('Compile Data'!$DC$12:$DX$93,$A69-1921,'Report - ALL (DASHBOARD)'!$W$3) -> 90.91822815 | O69: 41 | P69: 0.4938271605 | Q69: =INDEX('Compile Data'!$K$123:$AF$204,$O69,'Report - ALL (DASHBOARD)'!$W$3) -> 90.4017868 | R69: =INDEX('Compile Data'!$AI$123:$BD$204,$O69,'Report - ALL (DASHBOARD)'!$W$3) -> 89.60934448 | S69: =INDEX('Compile Data'!$BG$123:$CB$204,$O69,'Report - ALL (DASHBOARD)'!$W$3) -> 89.96935272 | T69: =INDEX('Compile Data'!$CE$123:$CZ$204,$O69,'Report - ALL (DASHBOARD)'!$W$3) -> 89.54428101 | U69: =INDEX('Compile Data'!$DC$123:$DX$204,$O69,'Report - ALL (DASHBOARD)'!$W$3) -> 87.9532547
A70: 1963 | B70: =INDEX('Compile Data'!$K$12:$AF$93,$A70-1921,'Report - ALL (DASHBOARD)'!$W$3) -> 67.5086441 | C70: =INDEX('Compile Data'!$AI$12:$BD$93,$A70-1921,'Report - ALL (DASHBOARD)'!$W$3) -> 68.63524628 | D70: =INDEX('Compile Data'!$BG$12:$CB$93,$A70-1921,'Report - ALL (DASHBOARD)'!$W$3) -> 68.6314621 | E70: =INDEX('Compile Data'!$CE$12:$CZ$93,$A70-1921,'Report - ALL (DASHBOARD)'!$W$3) -> 68.6361084 | F70: =INDEX('Compile Data'!$DC$12:$DX$93,$A70-1921,'Report - ALL (DASHBOARD)'!$W$3) -> 68.37030792 | O70: 42 | P70: 0.5061728395 | Q70: =INDEX('Compile Data'!$K$123:$AF$204,$O70,'Report - ALL (DASHBOARD)'!$W$3) -> 90.24757385 | R70: =INDEX('Compile Data'!$AI$123:$BD$204,$O70,'Report - ALL (DASHBOARD)'!$W$3) -> 89.49600983 | S70: =INDEX('Compile Data'!$BG$123:$CB$204,$O70,'Report - ALL (DASHBOARD)'!$W$3) -> 89.46952057 | T70: =INDEX('Compile Data'!$CE$123:$CZ$204,$O70,'Report - ALL (DASHBOARD)'!$W$3) -> 89.49624634 | U70: =INDEX('Compile Data'!$DC$123:$DX$204,$O70,'Report - ALL (DASHBOARD)'!$W$3) -> 86.22092438
A71: 1964 | B71: =INDEX('Compile Data'!$K$12:$AF$93,$A71-1921,'Report - ALL (DASHBOARD)'!$W$3) -> 79.95411682 | C71: =INDEX('Compile Data'!$AI$12:$BD$93,$A71-1921,'Report - ALL (DASHBOARD)'!$W$3) -> 79.5141449 | D71: =INDEX('Compile Data'!$BG$12:$CB$93,$A71-1921,'Report - ALL (DASHBOARD)'!$W$3) -> 79.75401306 | E71: =INDEX('Compile Data'!$CE$12:$CZ$93,$A71-1921,'Report - ALL (DASHBOARD)'!$W$3) -> 79.44844818 | F71: =INDEX('Compile Data'!$DC$12:$DX$93,$A71-1921,'Report - ALL (DASHBOARD)'!$W$3) -> 79.78752136 | O71: 43 | P71: 0.5185185185 | Q71: =INDEX('Compile Data'!$K$123:$AF$204,$O71,'Report - ALL (DASHBOARD)'!$W$3) -> 89.71569061 | R71: =INDEX('Compile Data'!$AI$123:$BD$204,$O71,'Report - ALL (DASHBOARD)'!$W$3) -> 89.29747009 | S71: =INDEX('Compile Data'!$BG$123:$CB$204,$O71,'Report - ALL (DASHBOARD)'!$W$3) -> 89.25416565 | T71: =INDEX('Compile Data'!$CE$123:$CZ$204,$O71,'Report - ALL (DASHBOARD)'!$W$3) -> 89.29734802 | U71: =INDEX('Compile Data'!$DC$123:$DX$204,$O71,'Report - ALL (DASHBOARD)'!$W$3) -> 85.13311768
A72: 1965 | B72: =INDEX('Compile Data'!$K$12:$AF$93,$A72-1921,'Report - ALL (DASHBOARD)'!$W$3) -> 92.61186981 | C72: =INDEX('Compile Data'!$AI$12:$BD$93,$A72-1921,'Report - ALL (DASHBOARD)'!$W$3) -> 91.40358734 | D72: =INDEX('Compile Data'!$BG$12:$CB$93,$A72-1921,'Report - ALL (DASHBOARD)'!$W$3) -> 91.40590668 | E72: =INDEX('Compile Data'!$CE$12:$CZ$93,$A72-1921,'Report - ALL (DASHBOARD)'!$W$3) -> 91.3314743 | F72: =INDEX('Compile Data'!$DC$12:$DX$93,$A72-1921,'Report - ALL (DASHBOARD)'!$W$3) -> 91.4706192 | O72: 44 | P72: 0.5308641975 | Q72: =INDEX('Compile Data'!$K$123:$AF$204,$O72,'Report - ALL (DASHBOARD)'!$W$3) -> 83.17147064 | R72: =INDEX('Compile Data'!$AI$123:$BD$204,$O72,'Report - ALL (DASHBOARD)'!$W$3) -> 83.0413208 | S72: =INDEX('Compile Data'!$BG$123:$CB$204,$O72,'Report - ALL (DASHBOARD)'!$W$3) -> 83.04149628 | T72: =INDEX('Compile Data'!$CE$123:$CZ$204,$O72,'Report - ALL (DASHBOARD)'!$W$3) -> 83.0413208 | U72: =INDEX('Compile Data'!$DC$123:$DX$204,$O72,'Report - ALL (DASHBOARD)'!$W$3) -> 83.04393005
A73: 1966 | B73: =INDEX('Compile Data'!$K$12:$AF$93,$A73-1921,'Report - ALL (DASHBOARD)'!$W$3) -> 79.62283325 | C73: =INDEX('Compile Data'!$AI$12:$BD$93,$A73-1921,'Report - ALL (DASHBOARD)'!$W$3) -> 79.36441803 | D73: =INDEX('Compile Data'!$BG$12:$CB$93,$A73-1921,'Report - ALL (DASHBOARD)'!$W$3) -> 79.3966217 | E73: =INDEX('Compile Data'!$CE$12:$CZ$93,$A73-1921,'Report - ALL (DASHBOARD)'!$W$3) -> 79.21936035 | F73: =INDEX('Compile Data'!$DC$12:$DX$93,$A73-1921,'Report - ALL (DASHBOARD)'!$W$3) -> 79.65751648 | O73: 45 | P73: 0.5432098765 | Q73: =INDEX('Compile Data'!$K$123:$AF$204,$O73,'Report - ALL (DASHBOARD)'!$W$3) -> 81.6312561 | R73: =INDEX('Compile Data'!$AI$123:$BD$204,$O73,'Report - ALL (DASHBOARD)'!$W$3) -> 81.01912689 | S73: =INDEX('Compile Data'!$BG$123:$CB$204,$O73,'Report - ALL (DASHBOARD)'!$W$3) -> 81.02494049 | T73: =INDEX('Compile Data'!$CE$123:$CZ$204,$O73,'Report - ALL (DASHBOARD)'!$W$3) -> 81.01983643 | U73: =INDEX('Compile Data'!$DC$123:$DX$204,$O73,'Report - ALL (DASHBOARD)'!$W$3) -> 81.02147675
A74: 1967 | B74: =INDEX('Compile Data'!$K$12:$AF$93,$A74-1921,'Report - ALL (DASHBOARD)'!$W$3) -> 92.06311035 | C74: =INDEX('Compile Data'!$AI$12:$BD$93,$A74-1921,'Report - ALL (DASHBOARD)'!$W$3) -> 91.21849823 | D74: =INDEX('Compile Data'!$BG$12:$CB$93,$A74-1921,'Report - ALL (DASHBOARD)'!$W$3) -> 91.1987381 | E74: =INDEX('Compile Data'!$CE$12:$CZ$93,$A74-1921,'Report - ALL (DASHBOARD)'!$W$3) -> 91.21855927 | F74: =INDEX('Compile Data'!$DC$12:$DX$93,$A74-1921,'Report - ALL (DASHBOARD)'!$W$3) -> 91.14396667 | O74: 46 | P74: 0.5555555556 | Q74: =INDEX('Compile Data'!$K$123:$AF$204,$O74,'Report - ALL (DASHBOARD)'!$W$3) -> 80.84468842 | R74: =INDEX('Compile Data'!$AI$123:$BD$204,$O74,'Report - ALL (DASHBOARD)'!$W$3) -> 80.98410034 | S74: =INDEX('Compile Data'!$BG$123:$CB$204,$O74,'Report - ALL (DASHBOARD)'!$W$3) -> 80.98266602 | T74: =INDEX('Compile Data'!$CE$123:$CZ$204,$O74,'Report - ALL (DASHBOARD)'!$W$3) -> 80.48985291 | U74: =INDEX('Compile Data'!$DC$123:$DX$204,$O74,'Report - ALL (DASHBOARD)'!$W$3) -> 80.85612488
A75: 1968 | B75: =INDEX('Compile Data'!$K$12:$AF$93,$A75-1921,'Report - ALL (DASHBOARD)'!$W$3) -> 77.29821014 | C75: =INDEX('Compile Data'!$AI$12:$BD$93,$A75-1921,'Report - ALL (DASHBOARD)'!$W$3) -> 76.32874298 | D75: =INDEX('Compile Data'!$BG$12:$CB$93,$A75-1921,'Report - ALL (DASHBOARD)'!$W$3) -> 76.32886505 | E75: =INDEX('Compile Data'!$CE$12:$CZ$93,$A75-1921,'Report - ALL (DASHBOARD)'!$W$3) -> 76.32875824 | F75: =INDEX('Compile Data'!$DC$12:$DX$93,$A75-1921,'Report - ALL (DASHBOARD)'!$W$3) -> 76.4085083 | O75: 47 | P75: 0.5679012346 | Q75: =INDEX('Compile Data'!$K$123:$AF$204,$O75,'Report - ALL (DASHBOARD)'!$W$3) -> 80.82818604 | R75: =INDEX('Compile Data'!$AI$123:$BD$204,$O75,'Report - ALL (DASHBOARD)'!$W$3) -> 80.56235504 | S75: =INDEX('Compile Data'!$BG$123:$CB$204,$O75,'Report - ALL (DASHBOARD)'!$W$3) -> 80.62181854 | T75: =INDEX('Compile Data'!$CE$123:$CZ$204,$O75,'Report - ALL (DASHBOARD)'!$W$3) -> 80.30897522 | U75: =INDEX('Compile Data'!$DC$123:$DX$204,$O75,'Report - ALL (DASHBOARD)'!$W$3) -> 80.53643799
A76: 1969 | B76: =INDEX('Compile Data'!$K$12:$AF$93,$A76-1921,'Report - ALL (DASHBOARD)'!$W$3) -> 90.40961456 | C76: =INDEX('Compile Data'!$AI$12:$BD$93,$A76-1921,'Report - ALL (DASHBOARD)'!$W$3) -> 89.49600983 | D76: =INDEX('Compile Data'!$BG$12:$CB$93,$A76-1921,'Report - ALL (DASHBOARD)'!$W$3) -> 89.46952057 | E76: =INDEX('Compile Data'!$CE$12:$CZ$93,$A76-1921,'Report - ALL (DASHBOARD)'!$W$3) -> 89.49624634 | F76: =INDEX('Compile Data'!$DC$12:$DX$93,$A76-1921,'Report - ALL (DASHBOARD)'!$W$3) -> 87.9532547 | O76: 48 | P76: 0.5802469136 | Q76: =INDEX('Compile Data'!$K$123:$AF$204,$O76,'Report - ALL (DASHBOARD)'!$W$3) -> 80.5583725 | R76: =INDEX('Compile Data'!$AI$123:$BD$204,$O76,'Report - ALL (DASHBOARD)'!$W$3) -> 80.06137848 | S76: =INDEX('Compile Data'!$BG$123:$CB$204,$O76,'Report - ALL (DASHBOARD)'!$W$3) -> 80.06124115 | T76: =INDEX('Compile Data'!$CE$123:$CZ$204,$O76,'Report - ALL (DASHBOARD)'!$W$3) -> 80.16863251 | U76: =INDEX('Compile Data'!$DC$123:$DX$204,$O76,'Report - ALL (DASHBOARD)'!$W$3) -> 80.22957611
A77: 1970 | B77: =INDEX('Compile Data'!$K$12:$AF$93,$A77-1921,'Report - ALL (DASHBOARD)'!$W$3) -> 75.9539032 | C77: =INDEX('Compile Data'!$AI$12:$BD$93,$A77-1921,'Report - ALL (DASHBOARD)'!$W$3) -> 77.51993561 | D77: =INDEX('Compile Data'!$BG$12:$CB$93,$A77-1921,'Report - ALL (DASHBOARD)'!$W$3) -> 77.26361084 | E77: =INDEX('Compile Data'!$CE$12:$CZ$93,$A77-1921,'Report - ALL (DASHBOARD)'!$W$3) -> 77.26377869 | F77: =INDEX('Compile Data'!$DC$12:$DX$93,$A77-1921,'Report - ALL (DASHBOARD)'!$W$3) -> 77.9899292 | O77: 49 | P77: 0.5925925926 | Q77: =INDEX('Compile Data'!$K$123:$AF$204,$O77,'Report - ALL (DASHBOARD)'!$W$3) -> 80.54477692 | R77: =INDEX('Compile Data'!$AI$123:$BD$204,$O77,'Report - ALL (DASHBOARD)'!$W$3) -> 80.00811768 | S77: =INDEX('Compile Data'!$BG$123:$CB$204,$O77,'Report - ALL (DASHBOARD)'!$W$3) -> 80.01838684 | T77: =INDEX('Compile Data'!$CE$123:$CZ$204,$O77,'Report - ALL (DASHBOARD)'!$W$3) -> 80.06143188 | U77: =INDEX('Compile Data'!$DC$123:$DX$204,$O77,'Report - ALL (DASHBOARD)'!$W$3) -> 80.16664886
A78: 1971 | B78: =INDEX('Compile Data'!$K$12:$AF$93,$A78-1921,'Report - ALL (DASHBOARD)'!$W$3) -> 80.18295288 | C78: =INDEX('Compile Data'!$AI$12:$BD$93,$A78-1921,'Report - ALL (DASHBOARD)'!$W$3) -> 79.64889526 | D78: =INDEX('Compile Data'!$BG$12:$CB$93,$A78-1921,'Report - ALL (DASHBOARD)'!$W$3) -> 79.65707397 | E78: =INDEX('Compile Data'!$CE$12:$CZ$93,$A78-1921,'Report - ALL (DASHBOARD)'!$W$3) -> 79.64883423 | F78: =INDEX('Compile Data'!$DC$12:$DX$93,$A78-1921,'Report - ALL (DASHBOARD)'!$W$3) -> 79.63577271 | O78: 50 | P78: 0.6049382716 | Q78: =INDEX('Compile Data'!$K$123:$AF$204,$O78,'Report - ALL (DASHBOARD)'!$W$3) -> 80.47190094 | R78: =INDEX('Compile Data'!$AI$123:$BD$204,$O78,'Report - ALL (DASHBOARD)'!$W$3) -> 79.99376678 | S78: =INDEX('Compile Data'!$BG$123:$CB$204,$O78,'Report - ALL (DASHBOARD)'!$W$3) -> 79.92687988 | T78: =INDEX('Compile Data'!$CE$123:$CZ$204,$O78,'Report - ALL (DASHBOARD)'!$W$3) -> 80.00813293 | U78: =INDEX('Compile Data'!$DC$123:$DX$204,$O78,'Report - ALL (DASHBOARD)'!$W$3) -> 80.06013489
A79: 1972 | B79: =INDEX('Compile Data'!$K$12:$AF$93,$A79-1921,'Report - ALL (DASHBOARD)'!$W$3) -> 77.77579498 | C79: =INDEX('Compile Data'!$AI$12:$BD$93,$A79-1921,'Report - ALL (DASHBOARD)'!$W$3) -> 77.15705109 | D79: =INDEX('Compile Data'!$BG$12:$CB$93,$A79-1921,'Report - ALL (DASHBOARD)'!$W$3) -> 77.15706635 | E79: =INDEX('Compile Data'!$CE$12:$CZ$93,$A79-1921,'Report - ALL (DASHBOARD)'!$W$3) -> 77.15706635 | F79: =INDEX('Compile Data'!$DC$12:$DX$93,$A79-1921,'Report - ALL (DASHBOARD)'!$W$3) -> 77.16049957 | O79: 51 | P79: 0.6172839506 | Q79: =INDEX('Compile Data'!$K$123:$AF$204,$O79,'Report - ALL (DASHBOARD)'!$W$3) -> 80.34991455 | R79: =INDEX('Compile Data'!$AI$123:$BD$204,$O79,'Report - ALL (DASHBOARD)'!$W$3) -> 79.92010498 | S79: =INDEX('Compile Data'!$BG$123:$CB$204,$O79,'Report - ALL (DASHBOARD)'!$W$3) -> 79.91622925 | T79: =INDEX('Compile Data'!$CE$123:$CZ$204,$O79,'Report - ALL (DASHBOARD)'!$W$3) -> 79.95082092 | U79: =INDEX('Compile Data'!$DC$123:$DX$204,$O79,'Report - ALL (DASHBOARD)'!$W$3) -> 80.02449799
A80: 1973 | B80: =INDEX('Compile Data'!$K$12:$AF$93,$A80-1921,'Report - ALL (DASHBOARD)'!$W$3) -> 92.27158356 | C80: =INDEX('Compile Data'!$AI$12:$BD$93,$A80-1921,'Report - ALL (DASHBOARD)'!$W$3) -> 91.30612946 | D80: =INDEX('Compile Data'!$BG$12:$CB$93,$A80-1921,'Report - ALL (DASHBOARD)'!$W$3) -> 91.28237152 | E80: =INDEX('Compile Data'!$CE$12:$CZ$93,$A80-1921,'Report - ALL (DASHBOARD)'!$W$3) -> 91.30614471 | F80: =INDEX('Compile Data'!$DC$12:$DX$93,$A80-1921,'Report - ALL (DASHBOARD)'!$W$3) -> 85.13311768 | O80: 52 | P80: 0.6296296296 | Q80: =INDEX('Compile Data'!$K$123:$AF$204,$O80,'Report - ALL (DASHBOARD)'!$W$3) -> 80.31043243 | R80: =INDEX('Compile Data'!$AI$123:$BD$204,$O80,'Report - ALL (DASHBOARD)'!$W$3) -> 79.8991394 | S80: =INDEX('Compile Data'!$BG$123:$CB$204,$O80,'Report - ALL (DASHBOARD)'!$W$3) -> 79.84185028 | T80: =INDEX('Compile Data'!$CE$123:$CZ$204,$O80,'Report - ALL (DASHBOARD)'!$W$3) -> 79.90053558 | U80: =INDEX('Compile Data'!$DC$123:$DX$204,$O80,'Report - ALL (DASHBOARD)'!$W$3) -> 79.94519806
A81: 1974 | B81: =INDEX('Compile Data'!$K$12:$AF$93,$A81-1921,'Report - ALL (DASHBOARD)'!$W$3) -> 80.03303528 | C81: =INDEX('Compile Data'!$AI$12:$BD$93,$A81-1921,'Report - ALL (DASHBOARD)'!$W$3) -> 79.28800964 | D81: =INDEX('Compile Data'!$BG$12:$CB$93,$A81-1921,'Report - ALL (DASHBOARD)'!$W$3) -> 79.30844116 | E81: =INDEX('Compile Data'!$CE$12:$CZ$93,$A81-1921,'Report - ALL (DASHBOARD)'!$W$3) -> 79.28801727 | F81: =INDEX('Compile Data'!$DC$12:$DX$93,$A81-1921,'Report - ALL (DASHBOARD)'!$W$3) -> 78.05838776 | O81: 53 | P81: 0.6419753086 | Q81: =INDEX('Compile Data'!$K$123:$AF$204,$O81,'Report - ALL (DASHBOARD)'!$W$3) -> 80.18295288 | R81: =INDEX('Compile Data'!$AI$123:$BD$204,$O81,'Report - ALL (DASHBOARD)'!$W$3) -> 79.83496094 | S81: =INDEX('Compile Data'!$BG$123:$CB$204,$O81,'Report - ALL (DASHBOARD)'!$W$3) -> 79.75401306 | T81: =INDEX('Compile Data'!$CE$123:$CZ$204,$O81,'Report - ALL (DASHBOARD)'!$W$3) -> 79.83499146 | U81: =INDEX('Compile Data'!$DC$123:$DX$204,$O81,'Report - ALL (DASHBOARD)'!$W$3) -> 79.81465149
A82: 1975 | B82: =INDEX('Compile Data'!$K$12:$AF$93,$A82-1921,'Report - ALL (DASHBOARD)'!$W$3) -> 78.18418121 | C82: =INDEX('Compile Data'!$AI$12:$BD$93,$A82-1921,'Report - ALL (DASHBOARD)'!$W$3) -> 77.6306839 | D82: =INDEX('Compile Data'!$BG$12:$CB$93,$A82-1921,'Report - ALL (DASHBOARD)'!$W$3) -> 77.63054657 | E82: =INDEX('Compile Data'!$CE$12:$CZ$93,$A82-1921,'Report - ALL (DASHBOARD)'!$W$3) -> 77.63052368 | F82: =INDEX('Compile Data'!$DC$12:$DX$93,$A82-1921,'Report - ALL (DASHBOARD)'!$W$3) -> 77.61954498 | O82: 54 | P82: 0.6543209877 | Q82: =INDEX('Compile Data'!$K$123:$AF$204,$O82,'Report - ALL (DASHBOARD)'!$W$3) -> 80.13628387 | R82: =INDEX('Compile Data'!$AI$123:$BD$204,$O82,'Report - ALL (DASHBOARD)'!$W$3) -> 79.82381439 | S82: =INDEX('Compile Data'!$BG$123:$CB$204,$O82,'Report - ALL (DASHBOARD)'!$W$3) -> 79.65707397 | T82: =INDEX('Compile Data'!$CE$123:$CZ$204,$O82,'Report - ALL (DASHBOARD)'!$W$3) -> 79.82900238 | U82: =INDEX('Compile Data'!$DC$123:$DX$204,$O82,'Report - ALL (DASHBOARD)'!$W$3) -> 79.78752136
A83: 1976 | B83: =INDEX('Compile Data'!$K$12:$AF$93,$A83-1921,'Report - ALL (DASHBOARD)'!$W$3) -> 78.16284943 | C83: =INDEX('Compile Data'!$AI$12:$BD$93,$A83-1921,'Report - ALL (DASHBOARD)'!$W$3) -> 78.34869385 | D83: =INDEX('Compile Data'!$BG$12:$CB$93,$A83-1921,'Report - ALL (DASHBOARD)'!$W$3) -> 78.34868622 | E83: =INDEX('Compile Data'!$CE$12:$CZ$93,$A83-1921,'Report - ALL (DASHBOARD)'!$W$3) -> 78.34874725 | F83: =INDEX('Compile Data'!$DC$12:$DX$93,$A83-1921,'Report - ALL (DASHBOARD)'!$W$3) -> 78.35079193 | O83: 55 | P83: 0.6666666667 | Q83: =INDEX('Compile Data'!$K$123:$AF$204,$O83,'Report - ALL (DASHBOARD)'!$W$3) -> 80.11800385 | R83: =INDEX('Compile Data'!$AI$123:$BD$204,$O83,'Report - ALL (DASHBOARD)'!$W$3) -> 79.67934418 | S83: =INDEX('Compile Data'!$BG$123:$CB$204,$O83,'Report - ALL (DASHBOARD)'!$W$3) -> 79.47568512 | T83: =INDEX('Compile Data'!$CE$123:$CZ$204,$O83,'Report - ALL (DASHBOARD)'!$W$3) -> 79.64883423 | U83: =INDEX('Compile Data'!$DC$123:$DX$204,$O83,'Report - ALL (DASHBOARD)'!$W$3) -> 79.65751648
A84: 1977 | B84: =INDEX('Compile Data'!$K$12:$AF$93,$A84-1921,'Report - ALL (DASHBOARD)'!$W$3) -> 92.87779236 | C84: =INDEX('Compile Data'!$AI$12:$BD$93,$A84-1921,'Report - ALL (DASHBOARD)'!$W$3) -> 92.02841187 | D84: =INDEX('Compile Data'!$BG$12:$CB$93,$A84-1921,'Report - ALL (DASHBOARD)'!$W$3) -> 92.02153778 | E84: =INDEX('Compile Data'!$CE$12:$CZ$93,$A84-1921,'Report - ALL (DASHBOARD)'!$W$3) -> 92.06632996 | F84: =INDEX('Compile Data'!$DC$12:$DX$93,$A84-1921,'Report - ALL (DASHBOARD)'!$W$3) -> 91.97559357 | O84: 56 | P84: 0.6790123457 | Q84: =INDEX('Compile Data'!$K$123:$AF$204,$O84,'Report - ALL (DASHBOARD)'!$W$3) -> 80.03303528 | R84: =INDEX('Compile Data'!$AI$123:$BD$204,$O84,'Report - ALL (DASHBOARD)'!$W$3) -> 79.64889526 | S84: =INDEX('Compile Data'!$BG$123:$CB$204,$O84,'Report - ALL (DASHBOARD)'!$W$3) -> 79.47387695 | T84: =INDEX('Compile Data'!$CE$123:$CZ$204,$O84,'Report - ALL (DASHBOARD)'!$W$3) -> 79.45160675 | U84: =INDEX('Compile Data'!$DC$123:$DX$204,$O84,'Report - ALL (DASHBOARD)'!$W$3) -> 79.63577271
A85: 1978 | B85: =INDEX('Compile Data'!$K$12:$AF$93,$A85-1921,'Report - ALL (DASHBOARD)'!$W$3) -> 89.71569061 | C85: =INDEX('Compile Data'!$AI$12:$BD$93,$A85-1921,'Report - ALL (DASHBOARD)'!$W$3) -> 92.28450012 | D85: =INDEX('Compile Data'!$BG$12:$CB$93,$A85-1921,'Report - ALL (DASHBOARD)'!$W$3) -> 92.03885651 | E85: =INDEX('Compile Data'!$CE$12:$CZ$93,$A85-1921,'Report - ALL (DASHBOARD)'!$W$3) -> 91.81839752 | F85: =INDEX('Compile Data'!$DC$12:$DX$93,$A85-1921,'Report - ALL (DASHBOARD)'!$W$3) -> 92.30053711 | O85: 57 | P85: 0.6913580247 | Q85: =INDEX('Compile Data'!$K$123:$AF$204,$O85,'Report - ALL (DASHBOARD)'!$W$3) -> 79.95411682 | R85: =INDEX('Compile Data'!$AI$123:$BD$204,$O85,'Report - ALL (DASHBOARD)'!$W$3) -> 79.5141449 | S85: =INDEX('Compile Data'!$BG$123:$CB$204,$O85,'Report - ALL (DASHBOARD)'!$W$3) -> 79.44890594 | T85: =INDEX('Compile Data'!$CE$123:$CZ$204,$O85,'Report - ALL (DASHBOARD)'!$W$3) -> 79.44844818 | U85: =INDEX('Compile Data'!$DC$123:$DX$204,$O85,'Report - ALL (DASHBOARD)'!$W$3) -> 79.40861511
A86: 1979 | B86: =INDEX('Compile Data'!$K$12:$AF$93,$A86-1921,'Report - ALL (DASHBOARD)'!$W$3) -> 80.13628387 | C86: =INDEX('Compile Data'!$AI$12:$BD$93,$A86-1921,'Report - ALL (DASHBOARD)'!$W$3) -> 79.82381439 | D86: =INDEX('Compile Data'!$BG$12:$CB$93,$A86-1921,'Report - ALL (DASHBOARD)'!$W$3) -> 79.47568512 | E86: =INDEX('Compile Data'!$CE$12:$CZ$93,$A86-1921,'Report - ALL (DASHBOARD)'!$W$3) -> 79.95082092 | F86: =INDEX('Compile Data'!$DC$12:$DX$93,$A86-1921,'Report - ALL (DASHBOARD)'!$W$3) -> 79.27164459 | O86: 58 | P86: 0.7037037037 | Q86: =INDEX('Compile Data'!$K$123:$AF$204,$O86,'Report - ALL (DASHBOARD)'!$W$3) -> 79.93366241 | R86: =INDEX('Compile Data'!$AI$123:$BD$204,$O86,'Report - ALL (DASHBOARD)'!$W$3) -> 79.4514389 | S86: =INDEX('Compile Data'!$BG$123:$CB$204,$O86,'Report - ALL (DASHBOARD)'!$W$3) -> 79.3966217 | T86: =INDEX('Compile Data'!$CE$123:$CZ$204,$O86,'Report - ALL (DASHBOARD)'!$W$3) -> 79.31887817 | U86: =INDEX('Compile Data'!$DC$123:$DX$204,$O86,'Report - ALL (DASHBOARD)'!$W$3) -> 79.34024811
A87: 1980 | B87: =INDEX('Compile Data'!$K$12:$AF$93,$A87-1921,'Report - ALL (DASHBOARD)'!$W$3) -> 91.52169037 | C87: =INDEX('Compile Data'!$AI$12:$BD$93,$A87-1921,'Report - ALL (DASHBOARD)'!$W$3) -> 91.17317963 | D87: =INDEX('Compile Data'!$BG$12:$CB$93,$A87-1921,'Report - ALL (DASHBOARD)'!$W$3) -> 91.18038177 | E87: =INDEX('Compile Data'!$CE$12:$CZ$93,$A87-1921,'Report - ALL (DASHBOARD)'!$W$3) -> 91.14676666 | F87: =INDEX('Compile Data'!$DC$12:$DX$93,$A87-1921,'Report - ALL (DASHBOARD)'!$W$3) -> 90.98675537 | O87: 59 | P87: 0.7160493827 | Q87: =INDEX('Compile Data'!$K$123:$AF$204,$O87,'Report - ALL (DASHBOARD)'!$W$3) -> 79.62283325 | R87: =INDEX('Compile Data'!$AI$123:$BD$204,$O87,'Report - ALL (DASHBOARD)'!$W$3) -> 79.36441803 | S87: =INDEX('Compile Data'!$BG$123:$CB$204,$O87,'Report - ALL (DASHBOARD)'!$W$3) -> 79.30844116 | T87: =INDEX('Compile Data'!$CE$123:$CZ$204,$O87,'Report - ALL (DASHBOARD)'!$W$3) -> 79.28801727 | U87: =INDEX('Compile Data'!$DC$123:$DX$204,$O87,'Report - ALL (DASHBOARD)'!$W$3) -> 79.27164459
A88: 1981 | B88: =INDEX('Compile Data'!$K$12:$AF$93,$A88-1921,'Report - ALL (DASHBOARD)'!$W$3) -> 80.11800385 | C88: =INDEX('Compile Data'!$AI$12:$BD$93,$A88-1921,'Report - ALL (DASHBOARD)'!$W$3) -> 79.67934418 | D88: =INDEX('Compile Data'!$BG$12:$CB$93,$A88-1921,'Report - ALL (DASHBOARD)'!$W$3) -> 79.47387695 | E88: =INDEX('Compile Data'!$CE$12:$CZ$93,$A88-1921,'Report - ALL (DASHBOARD)'!$W$3) -> 79.31887817 | F88: =INDEX('Compile Data'!$DC$12:$DX$93,$A88-1921,'Report - ALL (DASHBOARD)'!$W$3) -> 79.34024811 | O88: 60 | P88: 0.7283950617 | Q88: =INDEX('Compile Data'!$K$123:$AF$204,$O88,'Report - ALL (DASHBOARD)'!$W$3) -> 79.48492432 | R88: =INDEX('Compile Data'!$AI$123:$BD$204,$O88,'Report - ALL (DASHBOARD)'!$W$3) -> 79.28800964 | S88: =INDEX('Compile Data'!$BG$123:$CB$204,$O88,'Report - ALL (DASHBOARD)'!$W$3) -> 79.28084564 | T88: =INDEX('Compile Data'!$CE$123:$CZ$204,$O88,'Report - ALL (DASHBOARD)'!$W$3) -> 79.21936035 | U88: =INDEX('Compile Data'!$DC$123:$DX$204,$O88,'Report - ALL (DASHBOARD)'!$W$3) -> 79.09960175
A89: 1982 | B89: =INDEX('Compile Data'!$K$12:$AF$93,$A89-1921,'Report - ALL (DASHBOARD)'!$W$3) -> 93.31281281 | C89: =INDEX('Compile Data'!$AI$12:$BD$93,$A89-1921,'Report - ALL (DASHBOARD)'!$W$3) -> 92.47180176 | D89: =INDEX('Compile Data'!$BG$12:$CB$93,$A89-1921,'Report - ALL (DASHBOARD)'!$W$3) -> 92.47262573 | E89: =INDEX('Compile Data'!$CE$12:$CZ$93,$A89-1921,'Report - ALL (DASHBOARD)'!$W$3) -> 91.87765503 | F89: =INDEX('Compile Data'!$DC$12:$DX$93,$A89-1921,'Report - ALL (DASHBOARD)'!$W$3) -> 92.47031403 | O89: 61 | P89: 0.7407407407 | Q89: =INDEX('Compile Data'!$K$123:$AF$204,$O89,'Report - ALL (DASHBOARD)'!$W$3) -> 79.39099884 | R89: =INDEX('Compile Data'!$AI$123:$BD$204,$O89,'Report - ALL (DASHBOARD)'!$W$3) -> 79.20021057 | S89: =INDEX('Compile Data'!$BG$123:$CB$204,$O89,'Report - ALL (DASHBOARD)'!$W$3) -> 79.20085144 | T89: =INDEX('Compile Data'!$CE$123:$CZ$204,$O89,'Report - ALL (DASHBOARD)'!$W$3) -> 79.20354462 | U89: =INDEX('Compile Data'!$DC$123:$DX$204,$O89,'Report - ALL (DASHBOARD)'!$W$3) -> 78.48725891
A90: 1983 | B90: =INDEX('Compile Data'!$K$12:$AF$93,$A90-1921,'Report - ALL (DASHBOARD)'!$W$3) -> 68.20491791 | C90: =INDEX('Compile Data'!$AI$12:$BD$93,$A90-1921,'Report - ALL (DASHBOARD)'!$W$3) -> 68.55477905 | D90: =INDEX('Compile Data'!$BG$12:$CB$93,$A90-1921,'Report - ALL (DASHBOARD)'!$W$3) -> 69.07019043 | E90: =INDEX('Compile Data'!$CE$12:$CZ$93,$A90-1921,'Report - ALL (DASHBOARD)'!$W$3) -> 68.54105377 | F90: =INDEX('Compile Data'!$DC$12:$DX$93,$A90-1921,'Report - ALL (DASHBOARD)'!$W$3) -> 69.08334351 | O90: 62 | P90: 0.7530864198 | Q90: =INDEX('Compile Data'!$K$123:$AF$204,$O90,'Report - ALL (DASHBOARD)'!$W$3) -> 79.00572205 | R90: =INDEX('Compile Data'!$AI$123:$BD$204,$O90,'Report - ALL (DASHBOARD)'!$W$3) -> 78.49047089 | S90: =INDEX('Compile Data'!$BG$123:$CB$204,$O90,'Report - ALL (DASHBOARD)'!$W$3) -> 78.62734985 | T90: =INDEX('Compile Data'!$CE$123:$CZ$204,$O90,'Report - ALL (DASHBOARD)'!$W$3) -> 78.50965118 | U90: =INDEX('Compile Data'!$DC$123:$DX$204,$O90,'Report - ALL (DASHBOARD)'!$W$3) -> 78.37280273
A91: 1984 | B91: =INDEX('Compile Data'!$K$12:$AF$93,$A91-1921,'Report - ALL (DASHBOARD)'!$W$3) -> 70.85189819 | C91: =INDEX('Compile Data'!$AI$12:$BD$93,$A91-1921,'Report - ALL (DASHBOARD)'!$W$3) -> 71.24590302 | D91: =INDEX('Compile Data'!$BG$12:$CB$93,$A91-1921,'Report - ALL (DASHBOARD)'!$W$3) -> 71.23901367 | E91: =INDEX('Compile Data'!$CE$12:$CZ$93,$A91-1921,'Report - ALL (DASHBOARD)'!$W$3) -> 71.2456665 | F91: =INDEX('Compile Data'!$DC$12:$DX$93,$A91-1921,'Report - ALL (DASHBOARD)'!$W$3) -> 71.23880768 | O91: 63 | P91: 0.7654320988 | Q91: =INDEX('Compile Data'!$K$123:$AF$204,$O91,'Report - ALL (DASHBOARD)'!$W$3) -> 78.94006348 | R91: =INDEX('Compile Data'!$AI$123:$BD$204,$O91,'Report - ALL (DASHBOARD)'!$W$3) -> 78.40938568 | S91: =INDEX('Compile Data'!$BG$123:$CB$204,$O91,'Report - ALL (DASHBOARD)'!$W$3) -> 78.34868622 | T91: =INDEX('Compile Data'!$CE$123:$CZ$204,$O91,'Report - ALL (DASHBOARD)'!$W$3) -> 78.39854431 | U91: =INDEX('Compile Data'!$DC$123:$DX$204,$O91,'Report - ALL (DASHBOARD)'!$W$3) -> 78.35079193
A92: 1985 | B92: =INDEX('Compile Data'!$K$12:$AF$93,$A92-1921,'Report - ALL (DASHBOARD)'!$W$3) -> 79.48492432 | C92: =INDEX('Compile Data'!$AI$12:$BD$93,$A92-1921,'Report - ALL (DASHBOARD)'!$W$3) -> 79.8991394 | D92: =INDEX('Compile Data'!$BG$12:$CB$93,$A92-1921,'Report - ALL (DASHBOARD)'!$W$3) -> 79.28084564 | E92: =INDEX('Compile Data'!$CE$12:$CZ$93,$A92-1921,'Report - ALL (DASHBOARD)'!$W$3) -> 79.90053558 | F92: =INDEX('Compile Data'!$DC$12:$DX$93,$A92-1921,'Report - ALL (DASHBOARD)'!$W$3) -> 79.94519806 | O92: 64 | P92: 0.7777777778 | Q92: =INDEX('Compile Data'!$K$123:$AF$204,$O92,'Report - ALL (DASHBOARD)'!$W$3) -> 78.8926239 | R92: =INDEX('Compile Data'!$AI$123:$BD$204,$O92,'Report - ALL (DASHBOARD)'!$W$3) -> 78.34869385 | S92: =INDEX('Compile Data'!$BG$123:$CB$204,$O92,'Report - ALL (DASHBOARD)'!$W$3) -> 78.18045807 | T92: =INDEX('Compile Data'!$CE$123:$CZ$204,$O92,'Report - ALL (DASHBOARD)'!$W$3) -> 78.34874725 | U92: =INDEX('Compile Data'!$DC$123:$DX$204,$O92,'Report - ALL (DASHBOARD)'!$W$3) -> 78.18054199
A93: 1986 | B93: =INDEX('Compile Data'!$K$12:$AF$93,$A93-1921,'Report - ALL (DASHBOARD)'!$W$3) -> 92.36355591 | C93: =INDEX('Compile Data'!$AI$12:$BD$93,$A93-1921,'Report - ALL (DASHBOARD)'!$W$3) -> 90.95608521 | D93: =INDEX('Compile Data'!$BG$12:$CB$93,$A93-1921,'Report - ALL (DASHBOARD)'!$W$3) -> 90.93283081 | E93: =INDEX('Compile Data'!$CE$12:$CZ$93,$A93-1921,'Report - ALL (DASHBOARD)'!$W$3) -> 90.95644379 | F93: =INDEX('Compile Data'!$DC$12:$DX$93,$A93-1921,'Report - ALL (DASHBOARD)'!$W$3) -> 90.91158295 | O93: 65 | P93: =(O93-1)/81 -> 0.7901234568 | Q93: =INDEX('Compile Data'!$K$123:$AF$204,$O93,'Report - ALL (DASHBOARD)'!$W$3) -> 78.70885468 | R93: =INDEX('Compile Data'!$AI$123:$BD$204,$O93,'Report - ALL (DASHBOARD)'!$W$3) -> 78.31999207 | S93: =INDEX('Compile Data'!$BG$123:$CB$204,$O93,'Report - ALL (DASHBOARD)'!$W$3) -> 77.63054657 | T93: =INDEX('Compile Data'!$CE$123:$CZ$204,$O93,'Report - ALL (DASHBOARD)'!$W$3) -> 78.18049622 | U93: =INDEX('Compile Data'!$DC$123:$DX$204,$O93,'Report - ALL (DASHBOARD)'!$W$3) -> 78.05838776
A94: 1987 | B94: =INDEX('Compile Data'!$K$12:$AF$93,$A94-1921,'Report - ALL (DASHBOARD)'!$W$3) -> 80.34991455 | C94: =INDEX('Compile Data'!$AI$12:$BD$93,$A94-1921,'Report - ALL (DASHBOARD)'!$W$3) -> 79.83496094 | D94: =INDEX('Compile Data'!$BG$12:$CB$93,$A94-1921,'Report - ALL (DASHBOARD)'!$W$3) -> 79.84185028 | E94: =INDEX('Compile Data'!$CE$12:$CZ$93,$A94-1921,'Report - ALL (DASHBOARD)'!$W$3) -> 79.83499146 | F94: =INDEX('Compile Data'!$DC$12:$DX$93,$A94-1921,'Report - ALL (DASHBOARD)'!$W$3) -> 80.02449799 | O94: 66 | P94: 0.8024691358 | Q94: =INDEX('Compile Data'!$K$123:$AF$204,$O94,'Report - ALL (DASHBOARD)'!$W$3) -> 78.18418121 | R94: =INDEX('Compile Data'!$AI$123:$BD$204,$O94,'Report - ALL (DASHBOARD)'!$W$3) -> 77.6306839 | S94: =INDEX('Compile Data'!$BG$123:$CB$204,$O94,'Report - ALL (DASHBOARD)'!$W$3) -> 77.52090454 | T94: =INDEX('Compile Data'!$CE$123:$CZ$204,$O94,'Report - ALL (DASHBOARD)'!$W$3) -> 77.63052368 | U94: =INDEX('Compile Data'!$DC$123:$DX$204,$O94,'Report - ALL (DASHBOARD)'!$W$3) -> 77.9899292
A95: =A94+1 -> 1988 | B95: =INDEX('Compile Data'!$K$12:$AF$93,$A95-1921,'Report - ALL (DASHBOARD)'!$W$3) -> 92.62472534 | C95: =INDEX('Compile Data'!$AI$12:$BD$93,$A95-1921,'Report - ALL (DASHBOARD)'!$W$3) -> 91.58940125 | D95: =INDEX('Compile Data'!$BG$12:$CB$93,$A95-1921,'Report - ALL (DASHBOARD)'!$W$3) -> 91.40680695 | E95: =INDEX('Compile Data'!$CE$12:$CZ$93,$A95-1921,'Report - ALL (DASHBOARD)'!$W$3) -> 91.58776093 | F95: =INDEX('Compile Data'!$DC$12:$DX$93,$A95-1921,'Report - ALL (DASHBOARD)'!$W$3) -> 91.88491058 | O95: 67 | P95: 0.8148148148 | Q95: =INDEX('Compile Data'!$K$123:$AF$204,$O95,'Report - ALL (DASHBOARD)'!$W$3) -> 78.16284943 | R95: =INDEX('Compile Data'!$AI$123:$BD$204,$O95,'Report - ALL (DASHBOARD)'!$W$3) -> 77.61201477 | S95: =INDEX('Compile Data'!$BG$123:$CB$204,$O95,'Report - ALL (DASHBOARD)'!$W$3) -> 77.4884491 | T95: =INDEX('Compile Data'!$CE$123:$CZ$204,$O95,'Report - ALL (DASHBOARD)'!$W$3) -> 77.61195374 | U95: =INDEX('Compile Data'!$DC$123:$DX$204,$O95,'Report - ALL (DASHBOARD)'!$W$3) -> 77.61954498
A96: 1989 | B96: =INDEX('Compile Data'!$K$12:$AF$93,$A96-1921,'Report - ALL (DASHBOARD)'!$W$3) -> 93.64591217 | C96: =INDEX('Compile Data'!$AI$12:$BD$93,$A96-1921,'Report - ALL (DASHBOARD)'!$W$3) -> 92.13770294 | D96: =INDEX('Compile Data'!$BG$12:$CB$93,$A96-1921,'Report - ALL (DASHBOARD)'!$W$3) -> 92.76663208 | E96: =INDEX('Compile Data'!$CE$12:$CZ$93,$A96-1921,'Report - ALL (DASHBOARD)'!$W$3) -> 92.36354828 | F96: =INDEX('Compile Data'!$DC$12:$DX$93,$A96-1921,'Report - ALL (DASHBOARD)'!$W$3) -> 93.06194305 | O96: 68 | P96: 0.8271604938 | Q96: =INDEX('Compile Data'!$K$123:$AF$204,$O96,'Report - ALL (DASHBOARD)'!$W$3) -> 77.77579498 | R96: =INDEX('Compile Data'!$AI$123:$BD$204,$O96,'Report - ALL (DASHBOARD)'!$W$3) -> 77.51993561 | S96: =INDEX('Compile Data'!$BG$123:$CB$204,$O96,'Report - ALL (DASHBOARD)'!$W$3) -> 77.47868347 | T96: =INDEX('Compile Data'!$CE$123:$CZ$204,$O96,'Report - ALL (DASHBOARD)'!$W$3) -> 77.26377869 | U96: =INDEX('Compile Data'!$DC$123:$DX$204,$O96,'Report - ALL (DASHBOARD)'!$W$3) -> 77.49324799
A97: 1990 | B97: =INDEX('Compile Data'!$K$12:$AF$93,$A97-1921,'Report - ALL (DASHBOARD)'!$W$3) -> 91.74020386 | C97: =INDEX('Compile Data'!$AI$12:$BD$93,$A97-1921,'Report - ALL (DASHBOARD)'!$W$3) -> 91.0124054 | D97: =INDEX('Compile Data'!$BG$12:$CB$93,$A97-1921,'Report - ALL (DASHBOARD)'!$W$3) -> 91.05767822 | E97: =INDEX('Compile Data'!$CE$12:$CZ$93,$A97-1921,'Report - ALL (DASHBOARD)'!$W$3) -> 91.17733765 | F97: =INDEX('Compile Data'!$DC$12:$DX$93,$A97-1921,'Report - ALL (DASHBOARD)'!$W$3) -> 91.3503418 | O97: 69 | P97: 0.8395061728 | Q97: =INDEX('Compile Data'!$K$123:$AF$204,$O97,'Report - ALL (DASHBOARD)'!$W$3) -> 77.75354767 | R97: =INDEX('Compile Data'!$AI$123:$BD$204,$O97,'Report - ALL (DASHBOARD)'!$W$3) -> 77.17769623 | S97: =INDEX('Compile Data'!$BG$123:$CB$204,$O97,'Report - ALL (DASHBOARD)'!$W$3) -> 77.26361084 | T97: =INDEX('Compile Data'!$CE$123:$CZ$204,$O97,'Report - ALL (DASHBOARD)'!$W$3) -> 77.17745972 | U97: =INDEX('Compile Data'!$DC$123:$DX$204,$O97,'Report - ALL (DASHBOARD)'!$W$3) -> 77.45704651
A98: 1991 | B98: =INDEX('Compile Data'!$K$12:$AF$93,$A98-1921,'Report - ALL (DASHBOARD)'!$W$3) -> 92.90348816 | C98: =INDEX('Compile Data'!$AI$12:$BD$93,$A98-1921,'Report - ALL (DASHBOARD)'!$W$3) -> 92.78427124 | D98: =INDEX('Compile Data'!$BG$12:$CB$93,$A98-1921,'Report - ALL (DASHBOARD)'!$W$3) -> 92.92373657 | E98: =INDEX('Compile Data'!$CE$12:$CZ$93,$A98-1921,'Report - ALL (DASHBOARD)'!$W$3) -> 92.93656158 | F98: =INDEX('Compile Data'!$DC$12:$DX$93,$A98-1921,'Report - ALL (DASHBOARD)'!$W$3) -> 92.95082092 | O98: 70 | P98: 0.8518518519 | Q98: =INDEX('Compile Data'!$K$123:$AF$204,$O98,'Report - ALL (DASHBOARD)'!$W$3) -> 77.69317627 | R98: =INDEX('Compile Data'!$AI$123:$BD$204,$O98,'Report - ALL (DASHBOARD)'!$W$3) -> 77.1653595 | S98: =INDEX('Compile Data'!$BG$123:$CB$204,$O98,'Report - ALL (DASHBOARD)'!$W$3) -> 77.1776886 | T98: =INDEX('Compile Data'!$CE$123:$CZ$204,$O98,'Report - ALL (DASHBOARD)'!$W$3) -> 77.16584015 | U98: =INDEX('Compile Data'!$DC$123:$DX$204,$O98,'Report - ALL (DASHBOARD)'!$W$3) -> 77.17803955
A99: 1992 | B99: =INDEX('Compile Data'!$K$12:$AF$93,$A99-1921,'Report - ALL (DASHBOARD)'!$W$3) -> 93.34705353 | C99: =INDEX('Compile Data'!$AI$12:$BD$93,$A99-1921,'Report - ALL (DASHBOARD)'!$W$3) -> 93.2254715 | D99: =INDEX('Compile Data'!$BG$12:$CB$93,$A99-1921,'Report - ALL (DASHBOARD)'!$W$3) -> 93.1530838 | E99: =INDEX('Compile Data'!$CE$12:$CZ$93,$A99-1921,'Report - ALL (DASHBOARD)'!$W$3) -> 93.17204285 | F99: =INDEX('Compile Data'!$DC$12:$DX$93,$A99-1921,'Report - ALL (DASHBOARD)'!$W$3) -> 93.19742584 | O99: 71 | P99: 0.8641975309 | Q99: =INDEX('Compile Data'!$K$123:$AF$204,$O99,'Report - ALL (DASHBOARD)'!$W$3) -> 77.58504486 | R99: =INDEX('Compile Data'!$AI$123:$BD$204,$O99,'Report - ALL (DASHBOARD)'!$W$3) -> 77.15705109 | S99: =INDEX('Compile Data'!$BG$123:$CB$204,$O99,'Report - ALL (DASHBOARD)'!$W$3) -> 77.16622162 | T99: =INDEX('Compile Data'!$CE$123:$CZ$204,$O99,'Report - ALL (DASHBOARD)'!$W$3) -> 77.15706635 | U99: =INDEX('Compile Data'!$DC$123:$DX$204,$O99,'Report - ALL (DASHBOARD)'!$W$3) -> 77.16786194
A100: 1993 | B100: =INDEX('Compile Data'!$K$12:$AF$93,$A100-1921,'Report - ALL (DASHBOARD)'!$W$3) -> 92.72338104 | C100: =INDEX('Compile Data'!$AI$12:$BD$93,$A100-1921,'Report - ALL (DASHBOARD)'!$W$3) -> 92.36631775 | D100: =INDEX('Compile Data'!$BG$12:$CB$93,$A100-1921,'Report - ALL (DASHBOARD)'!$W$3) -> 92.40631104 | E100: =INDEX('Compile Data'!$CE$12:$CZ$93,$A100-1921,'Report - ALL (DASHBOARD)'!$W$3) -> 92.35482788 | F100: =INDEX('Compile Data'!$DC$12:$DX$93,$A100-1921,'Report - ALL (DASHBOARD)'!$W$3) -> 92.42040253 | O100: 72 | P100: 0.8765432099 | Q100: =INDEX('Compile Data'!$K$123:$AF$204,$O100,'Report - ALL (DASHBOARD)'!$W$3) -> 77.37887573 | R100: =INDEX('Compile Data'!$AI$123:$BD$204,$O100,'Report - ALL (DASHBOARD)'!$W$3) -> 77.14096069 | S100: =INDEX('Compile Data'!$BG$123:$CB$204,$O100,'Report - ALL (DASHBOARD)'!$W$3) -> 77.15706635 | T100: =INDEX('Compile Data'!$CE$123:$CZ$204,$O100,'Report - ALL (DASHBOARD)'!$W$3) -> 77.14093781 | U100: =INDEX('Compile Data'!$DC$123:$DX$204,$O100,'Report - ALL (DASHBOARD)'!$W$3) -> 77.16049957
A101: 1994 | B101: =INDEX('Compile Data'!$K$12:$AF$93,$A101-1921,'Report - ALL (DASHBOARD)'!$W$3) -> 79.39099884 | C101: =INDEX('Compile Data'!$AI$12:$BD$93,$A101-1921,'Report - ALL (DASHBOARD)'!$W$3) -> 79.20021057 | D101: =INDEX('Compile Data'!$BG$12:$CB$93,$A101-1921,'Report - ALL (DASHBOARD)'!$W$3) -> 79.20085144 | E101: =INDEX('Compile Data'!$CE$12:$CZ$93,$A101-1921,'Report - ALL (DASHBOARD)'!$W$3) -> 79.20354462 | F101: =INDEX('Compile Data'!$DC$12:$DX$93,$A101-1921,'Report - ALL (DASHBOARD)'!$W$3) -> 78.37280273 | O101: 73 | P101: 0.8888888889 | Q101: =INDEX('Compile Data'!$K$123:$AF$204,$O101,'Report - ALL (DASHBOARD)'!$W$3) -> 77.29821014 | R101: =INDEX('Compile Data'!$AI$123:$BD$204,$O101,'Report - ALL (DASHBOARD)'!$W$3) -> 76.92665863 | S101: =INDEX('Compile Data'!$BG$123:$CB$204,$O101,'Report - ALL (DASHBOARD)'!$W$3) -> 76.86737823 | T101: =INDEX('Compile Data'!$CE$123:$CZ$204,$O101,'Report - ALL (DASHBOARD)'!$W$3) -> 76.92675781 | U101: =INDEX('Compile Data'!$DC$123:$DX$204,$O101,'Report - ALL (DASHBOARD)'!$W$3) -> 77.14091492
A102: 1995 | B102: =INDEX('Compile Data'!$K$12:$AF$93,$A102-1921,'Report - ALL (DASHBOARD)'!$W$3) -> 90.94544983 | C102: =INDEX('Compile Data'!$AI$12:$BD$93,$A102-1921,'Report - ALL (DASHBOARD)'!$W$3) -> 90.82396698 | D102: =INDEX('Compile Data'!$BG$12:$CB$93,$A102-1921,'Report - ALL (DASHBOARD)'!$W$3) -> 91.16699982 | E102: =INDEX('Compile Data'!$CE$12:$CZ$93,$A102-1921,'Report - ALL (DASHBOARD)'!$W$3) -> 90.98829651 | F102: =INDEX('Compile Data'!$DC$12:$DX$93,$A102-1921,'Report - ALL (DASHBOARD)'!$W$3) -> 91.06060791 | O102: 74 | P102: 0.9012345679 | Q102: =INDEX('Compile Data'!$K$123:$AF$204,$O102,'Report - ALL (DASHBOARD)'!$W$3) -> 77.27713776 | R102: =INDEX('Compile Data'!$AI$123:$BD$204,$O102,'Report - ALL (DASHBOARD)'!$W$3) -> 76.80121613 | S102: =INDEX('Compile Data'!$BG$123:$CB$204,$O102,'Report - ALL (DASHBOARD)'!$W$3) -> 76.84153748 | T102: =INDEX('Compile Data'!$CE$123:$CZ$204,$O102,'Report - ALL (DASHBOARD)'!$W$3) -> 76.80120087 | U102: =INDEX('Compile Data'!$DC$123:$DX$204,$O102,'Report - ALL (DASHBOARD)'!$W$3) -> 77.06800842
A103: 1996 | B103: =INDEX('Compile Data'!$K$12:$AF$93,$A103-1921,'Report - ALL (DASHBOARD)'!$W$3) -> 77.27224731 | C103: =INDEX('Compile Data'!$AI$12:$BD$93,$A103-1921,'Report - ALL (DASHBOARD)'!$W$3) -> 76.64949799 | D103: =INDEX('Compile Data'!$BG$12:$CB$93,$A103-1921,'Report - ALL (DASHBOARD)'!$W$3) -> 76.64948273 | E103: =INDEX('Compile Data'!$CE$12:$CZ$93,$A103-1921,'Report - ALL (DASHBOARD)'!$W$3) -> 76.64966583 | F103: =INDEX('Compile Data'!$DC$12:$DX$93,$A103-1921,'Report - ALL (DASHBOARD)'!$W$3) -> 76.64929962 | O103: 75 | P103: 0.9135802469 | Q103: =INDEX('Compile Data'!$K$123:$AF$204,$O103,'Report - ALL (DASHBOARD)'!$W$3) -> 77.27224731 | R103: =INDEX('Compile Data'!$AI$123:$BD$204,$O103,'Report - ALL (DASHBOARD)'!$W$3) -> 76.64949799 | S103: =INDEX('Compile Data'!$BG$123:$CB$204,$O103,'Report - ALL (DASHBOARD)'!$W$3) -> 76.64948273 | T103: =INDEX('Compile Data'!$CE$123:$CZ$204,$O103,'Report - ALL (DASHBOARD)'!$W$3) -> 76.64966583 | U103: =INDEX('Compile Data'!$DC$123:$DX$204,$O103,'Report - ALL (DASHBOARD)'!$W$3) -> 76.86727905
A104: 1997 | B104: =INDEX('Compile Data'!$K$12:$AF$93,$A104-1921,'Report - ALL (DASHBOARD)'!$W$3) -> 79.00572205 | C104: =INDEX('Compile Data'!$AI$12:$BD$93,$A104-1921,'Report - ALL (DASHBOARD)'!$W$3) -> 78.49047089 | D104: =INDEX('Compile Data'!$BG$12:$CB$93,$A104-1921,'Report - ALL (DASHBOARD)'!$W$3) -> 78.62734985 | E104: =INDEX('Compile Data'!$CE$12:$CZ$93,$A104-1921,'Report - ALL (DASHBOARD)'!$W$3) -> 78.50965118 | F104: =INDEX('Compile Data'!$DC$12:$DX$93,$A104-1921,'Report - ALL (DASHBOARD)'!$W$3) -> 78.48725891 | O104: 76 | P104: 0.9259259259 | Q104: =INDEX('Compile Data'!$K$123:$AF$204,$O104,'Report - ALL (DASHBOARD)'!$W$3) -> 77.04986572 | R104: =INDEX('Compile Data'!$AI$123:$BD$204,$O104,'Report - ALL (DASHBOARD)'!$W$3) -> 76.55132294 | S104: =INDEX('Compile Data'!$BG$123:$CB$204,$O104,'Report - ALL (DASHBOARD)'!$W$3) -> 76.64026642 | T104: =INDEX('Compile Data'!$CE$123:$CZ$204,$O104,'Report - ALL (DASHBOARD)'!$W$3) -> 76.55140686 | U104: =INDEX('Compile Data'!$DC$123:$DX$204,$O104,'Report - ALL (DASHBOARD)'!$W$3) -> 76.64929962
A105: 1998 | B105: =INDEX('Compile Data'!$K$12:$AF$93,$A105-1921,'Report - ALL (DASHBOARD)'!$W$3) -> 81.6312561 | C105: =INDEX('Compile Data'!$AI$12:$BD$93,$A105-1921,'Report - ALL (DASHBOARD)'!$W$3) -> 81.01912689 | D105: =INDEX('Compile Data'!$BG$12:$CB$93,$A105-1921,'Report - ALL (DASHBOARD)'!$W$3) -> 81.02494049 | E105: =INDEX('Compile Data'!$CE$12:$CZ$93,$A105-1921,'Report - ALL (DASHBOARD)'!$W$3) -> 81.01983643 | F105: =INDEX('Compile Data'!$DC$12:$DX$93,$A105-1921,'Report - ALL (DASHBOARD)'!$W$3) -> 81.02147675 | O105: 77 | P105: 0.9382716049 | Q105: =INDEX('Compile Data'!$K$123:$AF$204,$O105,'Report - ALL (DASHBOARD)'!$W$3) -> 76.96785736 | R105: =INDEX('Compile Data'!$AI$123:$BD$204,$O105,'Report - ALL (DASHBOARD)'!$W$3) -> 76.49264526 | S105: =INDEX('Compile Data'!$BG$123:$CB$204,$O105,'Report - ALL (DASHBOARD)'!$W$3) -> 76.49272919 | T105: =INDEX('Compile Data'!$CE$123:$CZ$204,$O105,'Report - ALL (DASHBOARD)'!$W$3) -> 76.49268341 | U105: =INDEX('Compile Data'!$DC$123:$DX$204,$O105,'Report - ALL (DASHBOARD)'!$W$3) -> 76.50904846
A106: 1999 | B106: =INDEX('Compile Data'!$K$12:$AF$93,$A106-1921,'Report - ALL (DASHBOARD)'!$W$3) -> 74.56929016 | C106: =INDEX('Compile Data'!$AI$12:$BD$93,$A106-1921,'Report - ALL (DASHBOARD)'!$W$3) -> 74.18920898 | D106: =INDEX('Compile Data'!$BG$12:$CB$93,$A106-1921,'Report - ALL (DASHBOARD)'!$W$3) -> 74.18904114 | E106: =INDEX('Compile Data'!$CE$12:$CZ$93,$A106-1921,'Report - ALL (DASHBOARD)'!$W$3) -> 74.18947601 | F106: =INDEX('Compile Data'!$DC$12:$DX$93,$A106-1921,'Report - ALL (DASHBOARD)'!$W$3) -> 74.18893433 | O106: 78 | P106: 0.950617284 | Q106: =INDEX('Compile Data'!$K$123:$AF$204,$O106,'Report - ALL (DASHBOARD)'!$W$3) -> 75.9539032 | R106: =INDEX('Compile Data'!$AI$123:$BD$204,$O106,'Report - ALL (DASHBOARD)'!$W$3) -> 76.32874298 | S106: =INDEX('Compile Data'!$BG$123:$CB$204,$O106,'Report - ALL (DASHBOARD)'!$W$3) -> 76.32886505 | T106: =INDEX('Compile Data'!$CE$123:$CZ$204,$O106,'Report - ALL (DASHBOARD)'!$W$3) -> 76.32875824 | U106: =INDEX('Compile Data'!$DC$123:$DX$204,$O106,'Report - ALL (DASHBOARD)'!$W$3) -> 76.4085083
A107: 2000 | B107: =INDEX('Compile Data'!$K$12:$AF$93,$A107-1921,'Report - ALL (DASHBOARD)'!$W$3) -> 78.70885468 | C107: =INDEX('Compile Data'!$AI$12:$BD$93,$A107-1921,'Report - ALL (DASHBOARD)'!$W$3) -> 78.31999207 | D107: =INDEX('Compile Data'!$BG$12:$CB$93,$A107-1921,'Report - ALL (DASHBOARD)'!$W$3) -> 78.18045807 | E107: =INDEX('Compile Data'!$CE$12:$CZ$93,$A107-1921,'Report - ALL (DASHBOARD)'!$W$3) -> 78.18049622 | F107: =INDEX('Compile Data'!$DC$12:$DX$93,$A107-1921,'Report - ALL (DASHBOARD)'!$W$3) -> 78.18054199 | O107: 79 | P107: 0.962962963 | Q107: =INDEX('Compile Data'!$K$123:$AF$204,$O107,'Report - ALL (DASHBOARD)'!$W$3) -> 74.56929016 | R107: =INDEX('Compile Data'!$AI$123:$BD$204,$O107,'Report - ALL (DASHBOARD)'!$W$3) -> 74.18920898 | S107: =INDEX('Compile Data'!$BG$123:$CB$204,$O107,'Report - ALL (DASHBOARD)'!$W$3) -> 74.18904114 | T107: =INDEX('Compile Data'!$CE$123:$CZ$204,$O107,'Report - ALL (DASHBOARD)'!$W$3) -> 74.18947601 | U107: =INDEX('Compile Data'!$DC$123:$DX$204,$O107,'Report - ALL (DASHBOARD)'!$W$3) -> 74.18893433
A108: 2001 | B108: =INDEX('Compile Data'!$K$12:$AF$93,$A108-1921,'Report - ALL (DASHBOARD)'!$W$3) -> 80.54477692 | C108: =INDEX('Compile Data'!$AI$12:$BD$93,$A108-1921,'Report - ALL (DASHBOARD)'!$W$3) -> 80.00811768 | D108: =INDEX('Compile Data'!$BG$12:$CB$93,$A108-1921,'Report - ALL (DASHBOARD)'!$W$3) -> 79.91622925 | E108: =INDEX('Compile Data'!$CE$12:$CZ$93,$A108-1921,'Report - ALL (DASHBOARD)'!$W$3) -> 80.00813293 | F108: =INDEX('Compile Data'!$DC$12:$DX$93,$A108-1921,'Report - ALL (DASHBOARD)'!$W$3) -> 79.40861511 | O108: 80 | P108: 0.975308642 | Q108: =INDEX('Compile Data'!$K$123:$AF$204,$O108,'Report - ALL (DASHBOARD)'!$W$3) -> 70.85189819 | R108: =INDEX('Compile Data'!$AI$123:$BD$204,$O108,'Report - ALL (DASHBOARD)'!$W$3) -> 71.24590302 | S108: =INDEX('Compile Data'!$BG$123:$CB$204,$O108,'Report - ALL (DASHBOARD)'!$W$3) -> 71.23901367 | T108: =INDEX('Compile Data'!$CE$123:$CZ$204,$O108,'Report - ALL (DASHBOARD)'!$W$3) -> 71.2456665 | U108: =INDEX('Compile Data'!$DC$123:$DX$204,$O108,'Report - ALL (DASHBOARD)'!$W$3) -> 71.23880768
A109: 2002 | B109: =INDEX('Compile Data'!$K$12:$AF$93,$A109-1921,'Report - ALL (DASHBOARD)'!$W$3) -> 92.30693054 | C109: =INDEX('Compile Data'!$AI$12:$BD$93,$A109-1921,'Report - ALL (DASHBOARD)'!$W$3) -> 91.35954285 | D109: =INDEX('Compile Data'!$BG$12:$CB$93,$A109-1921,'Report - ALL (DASHBOARD)'!$W$3) -> 91.36374664 | E109: =INDEX('Compile Data'!$CE$12:$CZ$93,$A109-1921,'Report - ALL (DASHBOARD)'!$W$3) -> 91.35929108 | F109: =INDEX('Compile Data'!$DC$12:$DX$93,$A109-1921,'Report - ALL (DASHBOARD)'!$W$3) -> 91.3702774 | O109: 81 | P109: 0.987654321 | Q109: =INDEX('Compile Data'!$K$123:$AF$204,$O109,'Report - ALL (DASHBOARD)'!$W$3) -> 68.20491791 | R109: =INDEX('Compile Data'!$AI$123:$BD$204,$O109,'Report - ALL (DASHBOARD)'!$W$3) -> 68.63524628 | S109: =INDEX('Compile Data'!$BG$123:$CB$204,$O109,'Report - ALL (DASHBOARD)'!$W$3) -> 69.07019043 | T109: =INDEX('Compile Data'!$CE$123:$CZ$204,$O109,'Report - ALL (DASHBOARD)'!$W$3) -> 68.6361084 | U109: =INDEX('Compile Data'!$DC$123:$DX$204,$O109,'Report - ALL (DASHBOARD)'!$W$3) -> 69.08334351
A110: 2003 | B110: =INDEX('Compile Data'!$K$12:$AF$93,$A110-1921,'Report - ALL (DASHBOARD)'!$W$3) -> 92.12224579 | C110: =INDEX('Compile Data'!$AI$12:$BD$93,$A110-1921,'Report - ALL (DASHBOARD)'!$W$3) -> 91.22770691 | D110: =INDEX('Compile Data'!$BG$12:$CB$93,$A110-1921,'Report - ALL (DASHBOARD)'!$W$3) -> 91.21244049 | E110: =INDEX('Compile Data'!$CE$12:$CZ$93,$A110-1921,'Report - ALL (DASHBOARD)'!$W$3) -> 91.22518158 | F110: =INDEX('Compile Data'!$DC$12:$DX$93,$A110-1921,'Report - ALL (DASHBOARD)'!$W$3) -> 91.2862854 | O110: 82 | P110: 1 | Q110: =INDEX('Compile Data'!$K$123:$AF$204,$O110,'Report - ALL (DASHBOARD)'!$W$3) -> 67.5086441 | R110: =INDEX('Compile Data'!$AI$123:$BD$204,$O110,'Report - ALL (DASHBOARD)'!$W$3) -> 68.55477905 | S110: =INDEX('Compile Data'!$BG$123:$CB$204,$O110,'Report - ALL (DASHBOARD)'!$W$3) -> 68.6314621 | T110: =INDEX('Compile Data'!$CE$123:$CZ$204,$O110,'Report - ALL (DASHBOARD)'!$W$3) -> 68.54105377 | U110: =INDEX('Compile Data'!$DC$123:$DX$204,$O110,'Report - ALL (DASHBOARD)'!$W$3) -> 68.37030792

Sheet Compile Data
B1: =Control!$B$9 -> NAA 051422 | C1: =Control!$B$10 -> ALT1A 051722 | D1: =Control!$B$11 -> ALT1B 051722 | E1: =Control!$B$12 -> ALT2 051722 | F1: =Control!$B$13 -> ALT3 051722 | AB1: =$B$8 -> PER-AVER | AZ1: =$C$8 -> PER-AVER | BX1: ='Compile Data'!$D$8 -> PER-AVER | CV1: ='Compile Data'!$D$8 -> PER-AVER | DT1: ='Compile Data'!$F$8 -> PER-AVER
A2: Index: | B2: ='Report - ALL (DASHBOARD)'!W1 -> 68 | C2: =B2 -> 68 | D2: 68 | E2: 68 | F2: 68
A3: Convert? | B3: =IF('Report - ALL (DASHBOARD)'!W4,1,0) -> 0 | C3: 0 | D3: 0 | E3: 0 | F3: 0
A4: Column: | B4: =VLOOKUP(B$2,Control!$A$25:$J$93,7) -> BP | C4: BP | D4: BP | E4: BP | F4: BP
A5: Title: | B5: =VLOOKUP(B$2,Control!$A$25:$J$93,10) -> Average X2 Distance | C5: =VLOOKUP(C$2,Control!$A$25:$J$155,9) -> PER-AVER | D5: =VLOOKUP(D$2,Control!$A$25:$J$155,9) -> PER-AVER | E5: =VLOOKUP(E$2,Control!$A$25:$J$155,9) -> PER-AVER | F5: =VLOOKUP(F$2,Control!$A$25:$J$155,9) -> PER-AVER
A6: Parameter: | B6: =INDIRECT(CONCATENATE("'",B$1,"'!",B$4,2)) -> X2 | C6: =INDIRECT(CONCATENATE("'",C$1,"'!",C$4,2)) -> X2 | D6: X2 | E6: X2 | F6: X2
B7: =INDIRECT(CONCATENATE("'",B$1,"'!",B$4,3)) -> X2-POSITION | C7: X2-POSITION | D7: X2-POSITION | E7: X2-POSITION | F7: X2-POSITION
A8: Type: | B8: =TRIM(VLOOKUP(B$2,Control!$A$25:$J$93,9)) -> PER-AVER | C8: =TRIM(VLOOKUP(C$2,Control!$A$25:$J$155,9)) -> PER-AVER | D8: =TRIM(VLOOKUP(D$2,Control!$A$25:$J$155,9)) -> PER-AVER | E8: =TRIM(VLOOKUP(E$2,Control!$A$25:$J$155,9)) -> PER-AVER | F8: =TRIM(VLOOKUP(F$2,Control!$A$25:$J$155,9)) -> PER-AVER | J8: =CONCATENATE(TRIM(B$1),": ",TRIM(B$5)," - ",TRIM(B$6)," ",TRIM(B$7)," (",TRIM(B$10),") ",TRIM(B$11)) -> NAA 051422: Average X2 Distance - X2 X2-POSITION (KM) | AH8: =CONCATENATE(TRIM(C$1),": ",TRIM(C$5)," - ",TRIM(C$6)," ",TRIM(C$7)," (",TRIM(C$10),") ",TRIM(C$11)) -> ALT1A 051722: PER-AVER - X2 X2-POSITION (KM) | BF8: =CONCATENATE(TRIM('Compile Data'!D$1),": ",TRIM('Compile Data'!D$5)," - ",TRIM('Compile Data'!D$6)," ",TRIM('Compile Data'!D$7)," (",TRIM('Compile Data'!D$10),") ",TRIM('Compile Data'!D$11)) -> ALT1B 051722: PER-AVER - X2 X2-POSITION (KM) | CD8: =CONCATENATE(TRIM('Compile Data'!E$1),": ",TRIM('Compile Data'!E$5)," - ",TRIM('Compile Data'!E$6)," ",TRIM('Compile Data'!E$7)," (",TRIM('Compile Data'!E$10),") ",TRIM('Compile Data'!E$11)) -> ALT2 051722: PER-AVER - X2 X2-POSITION (KM) | DB8: =CONCATENATE(TRIM('Compile Data'!F$1),": ",TRIM('Compile Data'!F$5)," - ",TRIM('Compile Data'!F$6)," ",TRIM('Compile Data'!F$7)," (",TRIM('Compile Data'!F$10),") ",TRIM('Compile Data'!F$11)) -> ALT3 051722: PER-AVER - X2 X2-POSITION (KM)
A9: Units-native: | B9: =TRIM(INDIRECT(CONCATENATE("'",B$1,"'!",B$4,11))) -> KM | C9: KM | D9: KM | E9: KM | F9: KM
A10: Units-shown: | B10: =IF(AND(B$3>0,B$9="CFS"),"TAF",B$9) -> KM | C10: KM | D10: KM | E10: KM | F10: KM | X10: Jan-Dec | Y10: Mar-Feb | Z10: Oct-Sep | AB10: Oct-Jan | AC10: Dec-Feb | AD10: Mar-Jun | AE10: Jun-Sep | AF10: Sep-Nov | AV10: Jan-Dec | AW10: Mar-Feb | AX10: Oct-Sep | AZ10: Oct-Jan | BA10: Dec-Feb | BB10: Mar-Jun | BC10: Jun-Sep | BD10: Sep-Nov | BT10: Jan-Dec | BU10: Mar-Feb | BV10: Oct-Sep | BX10: Oct-Jan | BY10: Dec-Feb | BZ10: Mar-Jun | CA10: Jun-Sep | CB10: Sep-Nov | CR10: Jan-Dec | CS10: Mar-Feb | CT10: Oct-Sep | CV10: Oct-Jan | CW10: Dec-Feb | CX10: Mar-Jun | CY10: Jun-Sep | CZ10: Sep-Nov | DP10: Jan-Dec | DQ10: Mar-Feb | DR10: Oct-Sep | DT10: Oct-Jan | DU10: Dec-Feb | DV10: Mar-Jun | DW10: Jun-Sep | DX10: Sep-Nov
A11: Date | B11: =IF(ISNUMBER(FIND("PRV",B$6)),"SHIFTED","") ->  | J11: YEAR | K11: OCT | L11: NOV | M11: DEC | N11: JAN | O11: FEB | P11: MAR | Q11: APR | R11: MAY | S11: JUN | T11: JUL | U11: AUG | V11: SEP | X11: =IF(AND($B$10="TAF",$B$8="PER-AVER"),"TOT","AVG") -> AVG | Y11: =IF(AND($B$10="TAF",$B$8="PER-AVER"),"TOT","AVG") -> AVG | Z11: =IF(AND($B$10="TAF",$B$8="PER-AVER"),"TOT","AVG") -> AVG | AB11: =IF(AND($B$10="TAF",$B$8="PER-AVER"),"TOT","AVG") -> AVG | AC11: =IF(AND($B$10="TAF",$B$8="PER-AVER"),"TOT","AVG") -> AVG | AD11: =IF(AND($B$10="TAF",$B$8="PER-AVER"),"TOT","AVG") -> AVG | AE11: =IF(AND($B$10="TAF",$B$8="PER-AVER"),"TOT","AVG") -> AVG | AF11: =IF(AND($B$10="TAF",$B$8="PER-AVER"),"TOT","AVG") -> AVG | AH11: YEAR | AI11: OCT | AJ11: NOV | AK11: DEC | AL11: JAN | AM11: FEB | AN11: MAR | AO11: APR | AP11: MAY | AQ11: JUN | AR11: JUL | AS11: AUG | AT11: SEP | AV11: =IF(AND($C$10="TAF",$C$8="PER-AVER"),"TOT","AVG") -> AVG | AW11: =IF(AND($C$10="TAF",$C$8="PER-AVER"),"TOT","AVG") -> AVG | AX11: =IF(AND($C$10="TAF",$C$8="PER-AVER"),"TOT","AVG") -> AVG | AZ11: =IF(AND($C$10="TAF",$C$8="PER-AVER"),"TOT","AVG") -> AVG | BA11: =IF(AND($C$10="TAF",$C$8="PER-AVER"),"TOT","AVG") -> AVG | BB11: =IF(AND($C$10="TAF",$C$8="PER-AVER"),"TOT","AVG") -> AVG | BC11: =IF(AND($C$10="TAF",$C$8="PER-AVER"),"TOT","AVG") -> AVG | BD11: =IF(AND($C$10="TAF",$C$8="PER-AVER"),"TOT","AVG") -> AVG | BF11: YEAR | BG11: OCT | BH11: NOV | BI11: DEC | BJ11: JAN | BK11: FEB | BL11: MAR | BM11: APR | BN11: MAY | BO11: JUN | BP11: JUL | BQ11: AUG | BR11: SEP | BT11: =IF(AND('Compile Data'!$D$10="TAF",'Compile Data'!$D$8="PER-AVER"),"TOT","AVG") -> AVG | BU11: =IF(AND('Compile Data'!$D$10="TAF",'Compile Data'!$D$8="PER-AVER"),"TOT","AVG") -> AVG | BV11: =IF(AND('Compile Data'!$D$10="TAF",'Compile Data'!$D$8="PER-AVER"),"TOT","AVG") -> AVG | BX11: =IF(AND('Compile Data'!$D$10="TAF",'Compile Data'!$D$8="PER-AVER"),"TOT","AVG") -> AVG | BY11: =IF(AND('Compile Data'!$D$10="TAF",'Compile Data'!$D$8="PER-AVER"),"TOT","AVG") -> AVG | BZ11: =IF(AND('Compile Data'!$D$10="TAF",'Compile Data'!$D$8="PER-AVER"),"TOT","AVG") -> AVG | CA11: =IF(AND('Compile Data'!$D$10="TAF",'Compile Data'!$D$8="PER-AVER"),"TOT","AVG") -> AVG | CB11: =IF(AND('Compile Data'!$D$10="TAF",'Compile Data'!$D$8="PER-AVER"),"TOT","AVG") -> AVG | CD11: YEAR | CE11: OCT | CF11: NOV | CG11: DEC | CH11: JAN | CI11: FEB | CJ11: MAR | CK11: APR | CL11: MAY | CM11: JUN | CN11: JUL | CO11: AUG | CP11: SEP | CR11: =IF(AND('Compile Data'!$D$10="TAF",'Compile Data'!$D$8="PER-AVER"),"TOT","AVG") -> AVG | CS11: =IF(AND('Compile Data'!$D$10="TAF",'Compile Data'!$D$8="PER-AVER"),"TOT","AVG") -> AVG | CT11: =IF(AND('Compile Data'!$D$10="TAF",'Compile Data'!$D$8="PER-AVER"),"TOT","AVG") -> AVG | CV11: =IF(AND('Compile Data'!$D$10="TAF",'Compile Data'!$D$8="PER-AVER"),"TOT","AVG") -> AVG | CW11: =IF(AND('Compile Data'!$D$10="TAF",'Compile Data'!$D$8="PER-AVER"),"TOT","AVG") -> AVG | CX11: =IF(AND('Compile Data'!$D$10="TAF",'Compile Data'!$D$8="PER-AVER"),"TOT","AVG") -> AVG | CY11: =IF(AND('Compile Data'!$D$10="TAF",'Compile Data'!$D$8="PER-AVER"),"TOT","AVG") -> AVG | CZ11: =IF(AND('Compile Data'!$D$10="TAF",'Compile Data'!$D$8="PER-AVER"),"TOT","AVG") -> AVG | DB11: YEAR | DC11: OCT | DD11: NOV | DE11: DEC | DF11: JAN | DG11: FEB | DH11: MAR | DI11: APR | DJ11: MAY | DK11: JUN | DL11: JUL | DM11: AUG | DN11: SEP | DP11: =IF(AND('Compile Data'!$F$10="TAF",'Compile Data'!$F$8="PER-AVER"),"TOT","AVG") -> AVG | DQ11: =IF(AND('Compile Data'!$F$10="TAF",'Compile Data'!$F$8="PER-AVER"),"TOT","AVG") -> AVG | DR11: =IF(AND('Compile Data'!$F$10="TAF",'Compile Data'!$F$8="PER-AVER"),"TOT","AVG") -> AVG | DT11: =IF(AND('Compile Data'!$F$10="TAF",'Compile Data'!$F$8="PER-AVER"),"TOT","AVG") -> AVG | DU11: =IF(AND('Compile Data'!$F$10="TAF",'Compile Data'!$F$8="PER-AVER"),"TOT","AVG") -> AVG | DV11: =IF(AND('Compile Data'!$F$10="TAF",'Compile Data'!$F$8="PER-AVER"),"TOT","AVG") -> AVG | DW11: =IF(AND('Compile Data'!$F$10="TAF",'Compile Data'!$F$8="PER-AVER"),"TOT","AVG") -> AVG | DX11: =IF(AND('Compile Data'!$F$10="TAF",'Compile Data'!$F$8="PER-AVER"),"TOT","AVG") -> AVG
A12: 1921-09-30 | J12: 1922 | K12: =B13 -> 83.17147064 | L12: =B14 -> 87.80047607 | M12: =B15 -> 83.66568756 | N12: =B16 -> 78.021492 | O12: =B17 -> 61.19195557 | P12: =B18 -> 60.22486877 | Q12: =B19 -> 59.95578003 | R12: =B20 -> 54.34654617 | S12: =B21 -> 56.1666832 | T12: =B22 -> 70.96258545 | U12: =B23 -> 81.37631989 | V12: =B24 -> 79.23446655 | X12: =IF(X$11="AVG",AVERAGE(N12:V12,K13:M13),SUM(N12:V12,K13:M13)) -> 69.10585976 | Y12: =IF(Y$11="AVG",AVERAGE(P12:V12,K13:O13),SUM(P12:V12,K13:O13)) -> 68.02707799 | Z12: =IF(Z$11="AVG",AVERAGE(K12:V12),SUM(K12:V12)) -> 71.34319433 | AB12: =IF(AB$11="AVG",IF(AB$1="INST-VAL",AVERAGE(V11,K12:M12,K12:N12),AVERAGE(K12:N12)),SUM(K12:N12)) -> 83.16478157 | AC12: =IF(AC$11="AVG",IF(AB$1="INST-VAL",AVERAGE(L12:N12,M12:O12),AVERAGE(M12:O12)),SUM(M12:O12)) -> 74.29304504 | AD12: =IF(AD$11="AVG",IF(AB$1="INST-VAL",AVERAGE(O12:R12,P12:S12),AVERAGE(P12:S12)),SUM(P12:S12)) -> 57.67346954 | AE12: =IF(AE$11="AVG",IF(AB$1="INST-VAL",AVERAGE(R12:U12,S12:V12),AVERAGE(S12:V12)),SUM(S12:V12)) -> 71.93501377 | AF12: =IF(AF$11="AVG",IF(AB$1="INST-VAL",AVERAGE(U12:V12,K13,V12,K13:L13),AVERAGE(V12,K13:L13)),SUM(V12,K13:L13)) -> 80.31474304 | AH12: 1922 | AI12: ='Compile Data'!C13 -> 83.0413208 | AJ12: ='Compile Data'!C14 -> 87.7791748 | AK12: ='Compile Data'!C15 -> 83.66742706 | AL12: ='Compile Data'!C16 -> 77.98860168 | AM12: ='Compile Data'!C17 -> 62.05132294 | AN12: ='Compile Data'!C18 -> 60.39351654 | AO12: ='Compile Data'!C19 -> 59.95698547 | AP12: ='Compile Data'!C20 -> 54.34766769 | AQ12: ='Compile Data'!C21 -> 56.16677475 | AR12: ='Compile Data'!C22 -> 70.9624176 | AS12: ='Compile Data'!C23 -> 81.0621109 | AT12: ='Compile Data'!C24 -> 78.73194885 | AV12: =IF(AV$11="AVG",AVERAGE(AL12:AT12,AI13:AK13),SUM(AL12:AT12,AI13:AK13)) -> 69.09772682 | AW12: =IF(AW$11="AVG",AVERAGE(AN12:AT12,AI13:AM13),SUM(AN12:AT12,AI13:AM13)) -> 67.95618312 | AX12: =IF(AX$11="AVG",AVERAGE(AI12:AT12),SUM(AI12:AT12)) -> 71.34577243 | AZ12: =IF(AZ$11="AVG",IF(AZ$1="INST-VAL",AVERAGE(AT11,AI12:AK12,AI12:AL12),AVERAGE(AI12:AL12)),SUM(AI12:AL12)) -> 83.11913109 | BA12: =IF(BA$11="AVG",IF(AZ$1="INST-VAL",AVERAGE(AJ12:AL12,AK12:AM12),AVERAGE(AK12:AM12)),SUM(AK12:AM12)) -> 74.56911723 | BB12: =IF(BB$11="AVG",IF(AZ$1="INST-VAL",AVERAGE(AM12:AP12,AN12:AQ12),AVERAGE(AN12:AQ12)),SUM(AN12:AQ12)) -> 57.71623611 | BC12: =IF(BC$11="AVG",IF(AZ$1="INST-VAL",AVERAGE(AP12:AS12,AQ12:AT12),AVERAGE(AQ12:AT12)),SUM(AQ12:AT12)) -> 71.73081303 | BD12: =IF(BD$11="AVG",IF(AZ$1="INST-VAL",AVERAGE(AS12:AT12,AI13,AT12,AI13:AJ13),AVERAGE(AT12,AI13:AJ13)),SUM(AT12,AI13:AJ13)) -> 79.92836253 | BF12: 1922 | BG12: ='Compile Data'!D13 -> 83.04149628 | BH12: ='Compile Data'!D14 -> 87.77942657 | BI12: ='Compile Data'!D15 -> 83.67101288 | BJ12: ='Compile Data'!D16 -> 77.98949432 | BK12: ='Compile Data'!D17 -> 62.10730743 | BL12: ='Compile Data'!D18 -> 60.40644836 | BM12: ='Compile Data'!D19 -> 59.90697098 | BN12: ='Compile Data'!D20 -> 54.34240723 | BO12: ='Compile Data'!D21 -> 56.16691971 | BP12: ='Compile Data'!D22 -> 70.96239471 | BQ12: ='Compile Data'!D23 -> 81.06301117 | BR12: ='Compile Data'!D24 -> 78.74894714 | BT12: =IF(BT$11="AVG",AVERAGE(BJ12:BR12,BG13:BI13),SUM(BJ12:BR12,BG13:BI13)) -> 68.93705304 | BU12: =IF(BU$11="AVG",AVERAGE(BL12:BR12,BG13:BK13),SUM(BL12:BR12,BG13:BK13)) -> 67.79040146 | BV12: =IF(BV$11="AVG",AVERAGE(BG12:BR12),SUM(BG12:BR12)) -> 71.34881973 | BX12: =IF(BX$11="AVG",IF(BX$1="INST-VAL",AVERAGE(BR11,BG12:BI12,BG12:BJ12),AVERAGE(BG12:BJ12)),SUM(BG12:BJ12)) -> 83.12035751 | BY12: =IF(BY$11="AVG",IF(BX$1="INST-VAL",AVERAGE(BH12:BJ12,BI12:BK12),AVERAGE(BI12:BK12)),SUM(BI12:BK12)) -> 74.58927155 | BZ12: =IF(BZ$11="AVG",IF(BX$1="INST-VAL",AVERAGE(BK12:BN12,BL12:BO12),AVERAGE(BL12:BO12)),SUM(BL12:BO12)) -> 57.70568657 | CA12: =IF(CA$11="AVG",IF(BX$1="INST-VAL",AVERAGE(BN12:BQ12,BO12:BR12),AVERAGE(BO12:BR12)),SUM(BO12:BR12)) -> 71.73531818 | CB12: =IF(CB$11="AVG",IF(BX$1="INST-VAL",AVERAGE(BQ12:BR12,BG13,BR12,BG13:BH13),AVERAGE(BR12,BG13:BH13)),SUM(BR12,BG13:BH13)) -> 79.43902079 | CD12: 1922 | CE12: ='Compile Data'!E13 -> 83.0413208 | CF12: ='Compile Data'!E14 -> 87.7791748 | CG12: ='Compile Data'!E15 -> 83.66742706 | CH12: ='Compile Data'!E16 -> 77.98860168 | CI12: ='Compile Data'!E17 -> 62.05132294 | CJ12: ='Compile Data'!E18 -> 60.39351654 | CK12: ='Compile Data'!E19 -> 59.95698547 | CL12: ='Compile Data'!E20 -> 54.34766769 | CM12: ='Compile Data'!E21 -> 56.16677475 | CN12: ='Compile Data'!E22 -> 70.9624176 | CO12: ='Compile Data'!E23 -> 81.0621109 | CP12: ='Compile Data'!E24 -> 78.73194885 | CR12: =IF(CR$11="AVG",AVERAGE(CH12:CP12,CE13:CG13),SUM(CH12:CP12,CE13:CG13)) -> 69.09681002 | CS12: =IF(CS$11="AVG",AVERAGE(CJ12:CP12,CE13:CI13),SUM(CJ12:CP12,CE13:CI13)) -> 67.95535692 | CT12: =IF(CT$11="AVG",AVERAGE(CE12:CP12),SUM(CE12:CP12)) -> 71.34577243 | CV12: =IF(CV$11="AVG",IF(CV$1="INST-VAL",AVERAGE(CP11,CE12:CG12,CE12:CH12),AVERAGE(CE12:CH12)),SUM(CE12:CH12)) -> 83.11913109 | CW12: =IF(CW$11="AVG",IF(CV$1="INST-VAL",AVERAGE(CF12:CH12,CG12:CI12),AVERAGE(CG12:CI12)),SUM(CG12:CI12)) -> 74.56911723 | CX12: =IF(CX$11="AVG",IF(CV$1="INST-VAL",AVERAGE(CI12:CL12,CJ12:CM12),AVERAGE(CJ12:CM12)),SUM(CJ12:CM12)) -> 57.71623611 | CY12: =IF(CY$11="AVG",IF(CV$1="INST-VAL",AVERAGE(CL12:CO12,CM12:CP12),AVERAGE(CM12:CP12)),SUM(CM12:CP12)) -> 71.73081303 | CZ12: =IF(CZ$11="AVG",IF(CV$1="INST-VAL",AVERAGE(CO12:CP12,CE13,CP12,CE13:CF13),AVERAGE(CP12,CE13:CF13)),SUM(CP12,CE13:CF13)) -> 79.92318726 | DB12: 1922 | DC12: ='Compile Data'!F13 -> 83.04393005 | DD12: ='Compile Data'!F14 -> 87.78263855 | DE12: ='Compile Data'!F15 -> 83.68009186 | DF12: ='Compile Data'!F16 -> 77.99326324 | DG12: ='Compile Data'!F17 -> 62.28545761 | DH12: ='Compile Data'!F18 -> 60.4483757 | DI12: ='Compile Data'!F19 -> 59.74892807 | DJ12: ='Compile Data'!F20 -> 54.32551956 | DK12: ='Compile Data'!F21 -> 56.16735458 | DL12: ='Compile Data'!F22 -> 70.96207428 | DM12: ='Compile Data'!F23 -> 81.07924652 | DN12: ='Compile Data'!F24 -> 78.76198578 | DP12: =IF(DP$11="AVG",AVERAGE(DF12:DN12,DC13:DE13),SUM(DF12:DN12,DC13:DE13)) -> 68.80089219 | DQ12: =IF(DQ$11="AVG",AVERAGE(DH12:DN12,DC13:DG13),SUM(DH12:DN12,DC13:DG13)) -> 67.64699014 | DR12: =IF(DR$11="AVG",AVERAGE(DC12:DN12),SUM(DC12:DN12)) -> 71.35657215 | DT12: =IF(DT$11="AVG",IF(DT$1="INST-VAL",AVERAGE(DN11,DC12:DE12,DC12:DF12),AVERAGE(DC12:DF12)),SUM(DC12:DF12)) -> 83.12498093 | DU12: =IF(DU$11="AVG",IF(DT$1="INST-VAL",AVERAGE(DD12:DF12,DE12:DG12),AVERAGE(DE12:DG12)),SUM(DE12:DG12)) -> 74.65293757 | DV12: =IF(DV$11="AVG",IF(DT$1="INST-VAL",AVERAGE(DG12:DJ12,DH12:DK12),AVERAGE(DH12:DK12)),SUM(DH12:DK12)) -> 57.67254448 | DW12: =IF(DW$11="AVG",IF(DT$1="INST-VAL",AVERAGE(DJ12:DM12,DK12:DN12),AVERAGE(DK12:DN12)),SUM(DK12:DN12)) -> 71.74266529 | DX12: =IF(DX$11="AVG",IF(DT$1="INST-VAL",AVERAGE(DM12:DN12,DC13,DN12,DC13:DD13),AVERAGE(DN12,DC13:DD13)),SUM(DN12,DC13:DD13)) -> 79.08664703
A13: 1921-10-31 | B13: =INDIRECT(CONCATENATE("'",B$1,"'!",B$4,(YEAR($A13)-1921)*12+MONTH($A13)+3+IF(ISNUMBER(FIND("PRV",B$6)),1,0)))*IF(AND(B$3>0,TRIM(B$9)="CFS"),Conv_Flags!$C13,1) -> 83.17147064 | C13: =INDIRECT(CONCATENATE("'",C$1,"'!",C$4,(YEAR($A13)-1921)*12+MONTH($A13)+3+IF(ISNUMBER(FIND("PRV",C$6)),1,0)))*IF(AND(C$3>0,TRIM(C$9)="CFS"),Conv_Flags!$C13,1) -> 83.0413208 | D13: =INDIRECT(CONCATENATE("'",D$1,"'!",D$4,(YEAR($A13)-1921)*12+MONTH($A13)+3+IF(ISNUMBER(FIND("PRV",D$6)),1,0)))*IF(AND(D$3>0,TRIM(D$9)="CFS"),Conv_Flags!$C13,1) -> 83.04149628 | E13: =INDIRECT(CONCATENATE("'",E$1,"'!",E$4,(YEAR($A13)-1921)*12+MONTH($A13)+3+IF(ISNUMBER(FIND("PRV",E$6)),1,0)))*IF(AND(E$3>0,TRIM(E$9)="CFS"),Conv_Flags!$C13,1) -> 83.0413208 | F13: =INDIRECT(CONCATENATE("'",F$1,"'!",F$4,(YEAR($A13)-1921)*12+MONTH($A13)+3+IF(ISNUMBER(FIND("PRV",F$6)),1,0)))*IF(AND(F$3>0,TRIM(F$9)="CFS"),Conv_Flags!$C13,1) -> 83.04393005 | J13: 1923 | K13: =B25 -> 78.8926239 | L13: =B26 -> 82.81713867 | M13: =B27 -> 66.07985687 | N13: =B28 -> 60.9159317 | O13: =B29 -> 65.3521347 | P13: =B30 -> 73.49872589 | Q13: =B31 -> 64.09114075 | R13: =B32 -> 63.92809296 | S13: =B33 -> 76.09367371 | T13: =B34 -> 82.98035431 | U13: =B35 -> 87.20682526 | V13: =B36 -> 89.99554443 | X13: 78.09807905 | Y13: 81.37838745 | Z13: 74.3210036 | AB13: 72.17638779 | AC13: 64.11597443 | AD13: 69.40290833 | AE13: 84.06909943 | AF13: 90.9195226 | AH13: 1923 | AI13: ='Compile Data'!C25 -> 78.40938568 | AJ13: ='Compile Data'!C26 -> 82.64375305 | AK13: ='Compile Data'!C27 -> 66.45823669 | AL13: ='Compile Data'!C28 -> 60.99359131 | AM13: ='Compile Data'!C29 -> 65.34780884 | AN13: ='Compile Data'!C30 -> 73.50023651 | AO13: ='Compile Data'!C31 -> 64.09104919 | AP13: ='Compile Data'!C32 -> 63.92559814 | AQ13: ='Compile Data'!C33 -> 76.09089661 | AR13: ='Compile Data'!C34 -> 82.98595428 | AS13: ='Compile Data'!C35 -> 87.18811035 | AT13: ='Compile Data'!C36 -> 90.01702118 | AV13: 77.9737676 | AW13: 81.22569784 | AX13: 74.30430349 | AZ13: 72.12624168 | BA13: 64.26654561 | BB13: 69.40194511 | BC13: 84.07049561 | BD13: 90.46031952 | BF13: 1923 | BG13: ='Compile Data'!D25 -> 77.47868347 | BH13: ='Compile Data'!D26 -> 82.08943176 | BI13: ='Compile Data'!D27 -> 65.98262024 | BJ13: ='Compile Data'!D28 -> 60.9868927 | BK13: ='Compile Data'!D29 -> 65.35009003 | BL13: ='Compile Data'!D30 -> 73.38317108 | BM13: ='Compile Data'!D31 -> 64.04458618 | BN13: ='Compile Data'!D32 -> 63.92429352 | BO13: ='Compile Data'!D33 -> 76.09156799 | BP13: ='Compile Data'!D34 -> 82.98160553 | BQ13: ='Compile Data'!D35 -> 87.1988678 | BR13: ='Compile Data'!D36 -> 89.94194794 | BT13: 77.93638865 | BU13: 81.19443766 | BV13: 74.12114652 | BX13: 71.63440704 | BY13: 64.10653432 | BZ13: 69.36090469 | CA13: 84.05349731 | CB13: 90.4211909 | CD13: 1923 | CE13: ='Compile Data'!E25 -> 78.39854431 | CF13: ='Compile Data'!E26 -> 82.6390686 | CG13: ='Compile Data'!E27 -> 66.46276093 | CH13: ='Compile Data'!E28 -> 60.9946785 | CI13: ='Compile Data'!E29 -> 65.34780884 | CJ13: ='Compile Data'!E30 -> 73.50023651 | CK13: ='Compile Data'!E31 -> 64.09104156 | CL13: ='Compile Data'!E32 -> 63.9251976 | CM13: ='Compile Data'!E33 -> 76.09088898 | CN13: ='Compile Data'!E34 -> 82.98595428 | CO13: ='Compile Data'!E35 -> 87.18811035 | CP13: ='Compile Data'!E36 -> 90.01702118 | CR13: 77.97382355 | CS13: 81.22566319 | CT13: 74.30344264 | CV13: 72.12376308 | CW13: 64.26841609 | CX13: 69.40184116 | CY13: 84.0704937 | CZ13: 90.46031952 | DB13: 1923 | DC13: ='Compile Data'!F25 -> 77.49324799 | DD13: ='Compile Data'!F26 -> 81.00470734 | DE13: ='Compile Data'!F27 -> 65.34054565 | DF13: ='Compile Data'!F28 -> 60.96429825 | DG13: ='Compile Data'!F29 -> 65.46759796 | DH13: ='Compile Data'!F30 -> 73.56845093 | DI13: ='Compile Data'!F31 -> 64.09056091 | DJ13: ='Compile Data'!F32 -> 63.92675018 | DK13: ='Compile Data'!F33 -> 76.09190369 | DL13: ='Compile Data'!F34 -> 82.96713257 | DM13: ='Compile Data'!F35 -> 87.16234589 | DN13: ='Compile Data'!F36 -> 88.86289215 | DP13: 77.81108189 | DQ13: 81.057326 | DR13: 73.91170279 | DT13: 71.20069981 | DU13: 63.92414729 | DV13: 69.41941643 | DW13: 83.77106857 | DX13: 89.85005188
A14: 1921-11-30 | B14: =INDIRECT(CONCATENATE("'",B$1,"'!",B$4,(YEAR($A14)-1921)*12+MONTH($A14)+3+IF(ISNUMBER(FIND("PRV",B$6)),1,0)))*IF(AND(B$3>0,TRIM(B$9)="CFS"),Conv_Flags!$C14,1) -> 87.80047607 | C14: =INDIRECT(CONCATENATE("'",C$1,"'!",C$4,(YEAR($A14)-1921)*12+MONTH($A14)+3+IF(ISNUMBER(FIND("PRV",C$6)),1,0)))*IF(AND(C$3>0,TRIM(C$9)="CFS"),Conv_Flags!$C14,1) -> 87.7791748 | D14: =INDIRECT(CONCATENATE("'",D$1,"'!",D$4,(YEAR($A14)-1921)*12+MONTH($A14)+3+IF(ISNUMBER(FIND("PRV",D$6)),1,0)))*IF(AND(D$3>0,TRIM(D$9)="CFS"),Conv_Flags!$C14,1) -> 87.77942657 | E14: =INDIRECT(CONCATENATE("'",E$1,"'!",E$4,(YEAR($A14)-1921)*12+MONTH($A14)+3+IF(ISNUMBER(FIND("PRV",E$6)),1,0)))*IF(AND(E$3>0,TRIM(E$9)="CFS"),Conv_Flags!$C14,1) -> 87.7791748 | F14: =INDIRECT(CONCATENATE("'",F$1,"'!",F$4,(YEAR($A14)-1921)*12+MONTH($A14)+3+IF(ISNUMBER(FIND("PRV",F$6)),1,0)))*IF(AND(F$3>0,TRIM(F$9)="CFS"),Conv_Flags!$C14,1) -> 87.78263855 | J14: 1924 | K14: =B37 -> 91.41667938 | L14: =B38 -> 91.34634399 | M14: =B39 -> 90.35150146 | N14: =B40 -> 87.00849152 | O14: =B41 -> 78.62327576 | P14: =B42 -> 77.50389862 | Q14: =B43 -> 82.68484497 | R14: =B44 -> 88.17504883 | S14: =B45 -> 91.3505249 | T14: =B46 -> 91.81104279 | U14: =B47 -> 91.36144257 | V14: =B48 -> 92.2723465 | X14: 87.90652021 | Y14: 85.91692511 | Z14: 87.82545344 | AB14: 90.03075409 | AC14: 85.32775625 | AD14: 84.92857933 | AE14: 91.69883919 | AF14: 93.21622976 | AH14: 1924 | AI14: ='Compile Data'!C37 -> 90.88804626 | AJ14: ='Compile Data'!C38 -> 90.47589111 | AK14: ='Compile Data'!C39 -> 90.18100739 | AL14: ='Compile Data'!C40 -> 86.83348083 | AM14: ='Compile Data'!C41 -> 78.53108215 | AN14: ='Compile Data'!C42 -> 77.4721756 | AO14: ='Compile Data'!C43 -> 82.68197632 | AP14: ='Compile Data'!C44 -> 87.85391998 | AQ14: ='Compile Data'!C45 -> 91.14375305 | AR14: ='Compile Data'!C46 -> 90.83376312 | AS14: ='Compile Data'!C47 -> 89.88305664 | AT14: ='Compile Data'!C48 -> 90.87411499 | AV14: 87.43457794 | AW14: 85.47881031 | AX14: 87.30435562 | AZ14: 89.5946064 | BA14: 85.18185679 | BB14: 84.78795624 | BC14: 90.68367195 | BD14: 92.43573252 | BF14: 1924 | BG14: ='Compile Data'!D37 -> 90.84889221 | BH14: ='Compile Data'!D38 -> 90.47273254 | BI14: ='Compile Data'!D39 -> 90.0120163 | BJ14: ='Compile Data'!D40 -> 86.87960815 | BK14: ='Compile Data'!D41 -> 78.55396271 | BL14: ='Compile Data'!D42 -> 77.47260284 | BM14: ='Compile Data'!D43 -> 82.68273926 | BN14: ='Compile Data'!D44 -> 87.85397339 | BO14: ='Compile Data'!D45 -> 91.14228821 | BP14: ='Compile Data'!D46 -> 90.87792969 | BQ14: ='Compile Data'!D47 -> 89.88957977 | BR14: ='Compile Data'!D48 -> 90.87065125 | BT14: 87.4458313 | BU14: 85.48461342 | BV14: 87.29641469 | BX14: 89.5533123 | BY14: 85.14852905 | BZ14: 84.78790092 | CA14: 90.69511223 | CB14: 92.44092051 | CD14: 1924 | CE14: ='Compile Data'!E37 -> 90.88804626 | CF14: ='Compile Data'!E38 -> 90.47589111 | CG14: ='Compile Data'!E39 -> 90.18100739 | CH14: ='Compile Data'!E40 -> 86.83348083 | CI14: ='Compile Data'!E41 -> 78.53108215 | CJ14: ='Compile Data'!E42 -> 77.47216797 | CK14: ='Compile Data'!E43 -> 82.68197632 | CL14: ='Compile Data'!E44 -> 87.85391998 | CM14: ='Compile Data'!E45 -> 91.14375305 | CN14: ='Compile Data'!E46 -> 90.83376312 | CO14: ='Compile Data'!E47 -> 89.88302612 | CP14: ='Compile Data'!E48 -> 90.87612915 | CR14: 87.4272213 | CS14: 85.4706157 | CT14: 87.30452029 | CV14: 89.5946064 | CW14: 85.18185679 | CX14: 84.78795433 | CY14: 90.68416786 | CZ14: 92.41537984 | DB14: 1924 | DC14: ='Compile Data'!F37 -> 90.30807495 | DD14: ='Compile Data'!F38 -> 90.37918854 | DE14: ='Compile Data'!F39 -> 89.94378662 | DF14: ='Compile Data'!F40 -> 86.85095978 | DG14: ='Compile Data'!F41 -> 78.53586578 | DH14: ='Compile Data'!F42 -> 77.46337891 | DI14: ='Compile Data'!F43 -> 82.68096161 | DJ14: ='Compile Data'!F44 -> 87.85172272 | DK14: ='Compile Data'!F45 -> 91.14141083 | DL14: ='Compile Data'!F46 -> 90.85521698 | DM14: ='Compile Data'!F47 -> 90.28614044 | DN14: ='Compile Data'!F48 -> 91.73227692 | DP14: 87.55142784 | DQ14: 85.60791683 | DR14: 87.33574867 | DT14: 89.37050247 | DU14: 85.11020406 | DV14: 84.78436852 | DW14: 91.00376129 | DX14: 92.74690247
A15: 1921-12-31 | B15: =INDIRECT(CONCATENATE("'",B$1,"'!",B$4,(YEAR($A15)-1921)*12+MONTH($A15)+3+IF(ISNUMBER(FIND("PRV",B$6)),1,0)))*IF(AND(B$3>0,TRIM(B$9)="CFS"),Conv_Flags!$C15,1) -> 83.66568756 | C15: =INDIRECT(CONCATENATE("'",C$1,"'!",C$4,(YEAR($A15)-1921)*12+MONTH($A15)+3+IF(ISNUMBER(FIND("PRV",C$6)),1,0)))*IF(AND(C$3>0,TRIM(C$9)="CFS"),Conv_Flags!$C15,1) -> 83.66742706 | D15: =INDIRECT(CONCATENATE("'",D$1,"'!",D$4,(YEAR($A15)-1921)*12+MONTH($A15)+3+IF(ISNUMBER(FIND("PRV",D$6)),1,0)))*IF(AND(D$3>0,TRIM(D$9)="CFS"),Conv_Flags!$C15,1) -> 83.67101288 | E15: =INDIRECT(CONCATENATE("'",E$1,"'!",E$4,(YEAR($A15)-1921)*12+MONTH($A15)+3+IF(ISNUMBER(FIND("PRV",E$6)),1,0)))*IF(AND(E$3>0,TRIM(E$9)="CFS"),Conv_Flags!$C15,1) -> 83.66742706 | F15: =INDIRECT(CONCATENATE("'",F$1,"'!",F$4,(YEAR($A15)-1921)*12+MONTH($A15)+3+IF(ISNUMBER(FIND("PRV",F$6)),1,0)))*IF(AND(F$3>0,TRIM(F$9)="CFS"),Conv_Flags!$C15,1) -> 83.68009186 | J15: 1925 | K15: =B49 -> 93.71186829 | L15: =B50 -> 93.66447449 | M15: =B51 -> 86.71098328 | N15: =B52 -> 84.77311707 | O15: =B53 -> 56.98350906 | P15: =B54 -> 63.95012283 | Q15: =B55 -> 61.4784317 | R15: =B56 -> 64.73806763 | S15: =B57 -> 77.81721497 | T15: =B58 -> 84.26924133 | U15: =B59 -> 89.7633667 | V15: =B60 -> 91.49596405 | X15: 79.26188278 | Y15: 79.14899699 | Z15: 79.11303012 | AB15: 89.71511078 | AC15: 76.1558698 | AD15: 66.99595928 | AE15: 85.83644676 | AF15: 91.97451528 | AH15: 1925 | AI15: ='Compile Data'!C49 -> 93.12824249 | AJ15: ='Compile Data'!C50 -> 93.30484009 | AK15: ='Compile Data'!C51 -> 86.67453003 | AL15: ='Compile Data'!C52 -> 84.72810364 | AM15: ='Compile Data'!C53 -> 57.16724777 | AN15: ='Compile Data'!C54 -> 63.99378204 | AO15: ='Compile Data'!C55 -> 61.471138 | AP15: ='Compile Data'!C56 -> 64.45993805 | AQ15: ='Compile Data'!C57 -> 77.65187836 | AR15: ='Compile Data'!C58 -> 84.23206329 | AS15: ='Compile Data'!C59 -> 88.74925995 | AT15: ='Compile Data'!C60 -> 91.04955292 | AV15: 79.07805856 | AW15: 79.02304268 | AX15: 78.88421472 | AZ15: 89.45892906 | BA15: 76.18996048 | BB15: 66.89418411 | BC15: 85.42068863 | BD15: 91.7236557 | BF15: 1925 | BG15: ='Compile Data'!D49 -> 93.14537811 | BH15: ='Compile Data'!D50 -> 93.30673218 | BI15: ='Compile Data'!D51 -> 86.67453003 | BJ15: ='Compile Data'!D52 -> 84.72756195 | BK15: ='Compile Data'!D53 -> 57.17139435 | BL15: ='Compile Data'!D54 -> 63.99509811 | BM15: ='Compile Data'!D55 -> 61.46934891 | BN15: ='Compile Data'!D56 -> 64.73804474 | BO15: ='Compile Data'!D57 -> 77.81864929 | BP15: ='Compile Data'!D58 -> 84.27014923 | BQ15: ='Compile Data'!D59 -> 89.0157547 | BR15: ='Compile Data'!D60 -> 91.21041107 | BT15: 79.16193581 | BU15: 79.10451953 | BV15: 78.96192106 | BX15: 89.46355057 | BY15: 76.19116211 | BZ15: 67.00528526 | CA15: 85.57874107 | CB15: 91.7924881 | CD15: 1925 | CE15: ='Compile Data'!E49 -> 93.07946014 | CF15: ='Compile Data'!E50 -> 93.29055023 | CG15: ='Compile Data'!E51 -> 86.6473465 | CH15: ='Compile Data'!E52 -> 84.71910095 | CI15: ='Compile Data'!E53 -> 57.16619492 | CJ15: ='Compile Data'!E54 -> 63.99374008 | CK15: ='Compile Data'!E55 -> 61.47102356 | CL15: ='Compile Data'!E56 -> 64.45989227 | CM15: ='Compile Data'!E57 -> 77.65188599 | CN15: ='Compile Data'!E58 -> 84.23132324 | CO15: ='Compile Data'!E59 -> 88.76900482 | CP15: ='Compile Data'!E60 -> 90.62361908 | CR15: 79.00087293 | CS15: 78.94639397 | CT15: 78.84192848 | CV15: 89.43411446 | CW15: 76.17754745 | CX15: 66.89413548 | CY15: 85.31895828 | CZ15: 91.41649628 | DB15: 1925 | DC15: ='Compile Data'!F49 -> 93.26766205 | DD15: ='Compile Data'!F50 -> 93.24076843 | DE15: ='Compile Data'!F51 -> 86.71076965 | DF15: ='Compile Data'!F52 -> 84.88467407 | DG15: ='Compile Data'!F53 -> 57.18001938 | DH15: ='Compile Data'!F54 -> 63.99219131 | DI15: ='Compile Data'!F55 -> 61.47975159 | DJ15: ='Compile Data'!F56 -> 64.46598053 | DK15: ='Compile Data'!F57 -> 77.62772369 | DL15: ='Compile Data'!F58 -> 84.18099976 | DM15: ='Compile Data'!F59 -> 89.68725586 | DN15: ='Compile Data'!F60 -> 91.45131683 | DP15: 79.21813774 | DQ15: 79.14284611 | DR15: 79.01409276 | DT15: 89.52596855 | DU15: 76.2584877 | DV15: 66.89141178 | DW15: 85.73682404 | DX15: 91.89294942
A16: 1922-01-31 | B16: =INDIRECT(CONCATENATE("'",B$1,"'!",B$4,(YEAR($A16)-1921)*12+MONTH($A16)+3+IF(ISNUMBER(FIND("PRV",B$6)),1,0)))*IF(AND(B$3>0,TRIM(B$9)="CFS"),Conv_Flags!$C16,1) -> 78.021492 | C16: =INDIRECT(CONCATENATE("'",C$1,"'!",C$4,(YEAR($A16)-1921)*12+MONTH($A16)+3+IF(ISNUMBER(FIND("PRV",C$6)),1,0)))*IF(AND(C$3>0,TRIM(C$9)="CFS"),Conv_Flags!$C16,1) -> 77.98860168 | D16: =INDIRECT(CONCATENATE("'",D$1,"'!",D$4,(YEAR($A16)-1921)*12+MONTH($A16)+3+IF(ISNUMBER(FIND("PRV",D$6)),1,0)))*IF(AND(D$3>0,TRIM(D$9)="CFS"),Conv_Flags!$C16,1) -> 77.98949432 | E16: =INDIRECT(CONCATENATE("'",E$1,"'!",E$4,(YEAR($A16)-1921)*12+MONTH($A16)+3+IF(ISNUMBER(FIND("PRV",E$6)),1,0)))*IF(AND(E$3>0,TRIM(E$9)="CFS"),Conv_Flags!$C16,1) -> 77.98860168 | F16: =INDIRECT(CONCATENATE("'",F$1,"'!",F$4,(YEAR($A16)-1921)*12+MONTH($A16)+3+IF(ISNUMBER(FIND("PRV",F$6)),1,0)))*IF(AND(F$3>0,TRIM(F$9)="CFS"),Conv_Flags!$C16,1) -> 77.99326324 | J16: 1926 | K16: =B61 -> 92.76840973 | L16: =B62 -> 91.65917206 | M16: =B63 -> 91.44597626 | N16: =B64 -> 82.17584991 | O16: =B65 -> 58.2261467 | P16: =B66 -> 65.72394562 | Q16: =B67 -> 64.48136902 | R16: =B68 -> 70.03847504 | S16: =B69 -> 82.26241302 | T16: =B70 -> 85.82815552 | U16: =B71 -> 90.8526535 | V16: =B72 -> 92.19535828 | X16: 78.09332053 | Y16: 76.00461388 | Z16: 80.63816039 | AB16: 89.51235199 | AC16: 77.28265762 | AD16: 70.62655067 | AE16: 87.78464508 | AF16: 89.27192434 | AH16: 1926 | AI16: ='Compile Data'!C61 -> 92.54547119 | AJ16: ='Compile Data'!C62 -> 91.57594299 | AK16: ='Compile Data'!C63 -> 91.31232452 | AL16: ='Compile Data'!C64 -> 82.11440277 | AM16: ='Compile Data'!C65 -> 59.12075806 | AN16: ='Compile Data'!C66 -> 65.83398438 | AO16: ='Compile Data'!C67 -> 64.42874908 | AP16: ='Compile Data'!C68 -> 70.04223633 | AQ16: ='Compile Data'!C69 -> 82.12141418 | AR16: ='Compile Data'!C70 -> 85.23554993 | AS16: ='Compile Data'!C71 -> 89.99356079 | AT16: ='Compile Data'!C72 -> 91.72420502 | AV16: 78.11749585 | AW16: 76.12045733 | AX16: 80.50404994 | AZ16: 89.38703537 | BA16: 77.51582845 | BB16: 70.60659599 | BC16: 87.26868248 | BD16: 88.92574056 | BF16: 1926 | BG16: ='Compile Data'!D61 -> 92.59088898 | BH16: ='Compile Data'!D62 -> 91.57616425 | BI16: ='Compile Data'!D63 -> 91.3597641 | BJ16: ='Compile Data'!D64 -> 82.11411285 | BK16: ='Compile Data'!D65 -> 59.09584808 | BL16: ='Compile Data'!D66 -> 65.82766724 | BM16: ='Compile Data'!D67 -> 64.42980957 | BN16: ='Compile Data'!D68 -> 70.04370117 | BO16: ='Compile Data'!D69 -> 82.11418915 | BP16: ='Compile Data'!D70 -> 85.233078 | BQ16: ='Compile Data'!D71 -> 89.99691772 | BR16: ='Compile Data'!D72 -> 91.729599 | BT16: 78.10634486 | BU16: 76.10889371 | BV16: 80.50931168 | BX16: 89.41023254 | BY16: 77.52324168 | BZ16: 70.60384178 | CA16: 87.26844597 | CB16: 88.92993164 | CD16: 1926 | CE16: ='Compile Data'!E61 -> 92.1654129 | CF16: ='Compile Data'!E62 -> 91.46045685 | CG16: ='Compile Data'!E63 -> 91.2988205 | CH16: ='Compile Data'!E64 -> 82.10929871 | CI16: ='Compile Data'!E65 -> 59.1222496 | CJ16: ='Compile Data'!E66 -> 65.83434296 | CK16: ='Compile Data'!E67 -> 64.42886353 | CL16: ='Compile Data'!E68 -> 70.04239655 | CM16: ='Compile Data'!E69 -> 82.11921692 | CN16: ='Compile Data'!E70 -> 85.26566315 | CO16: ='Compile Data'!E71 -> 90.58811951 | CP16: ='Compile Data'!E72 -> 92.11074829 | CR16: 78.23862489 | CS16: 76.24262587 | CT16: 80.54546579 | CV16: 89.25849724 | CW16: 77.51012293 | CX16: 70.60620499 | CY16: 87.52093697 | CZ16: 89.19132741 | DB16: 1926 | DC16: ='Compile Data'!F61 -> 92.6359787 | DD16: ='Compile Data'!F62 -> 91.59155273 | DE16: ='Compile Data'!F63 -> 91.44020844 | DF16: ='Compile Data'!F64 -> 82.11340332 | DG16: ='Compile Data'!F65 -> 59.04779053 | DH16: ='Compile Data'!F66 -> 65.81548309 | DI16: ='Compile Data'!F67 -> 64.43094635 | DJ16: ='Compile Data'!F68 -> 70.04546356 | DK16: ='Compile Data'!F69 -> 82.10496521 | DL16: ='Compile Data'!F70 -> 85.27249908 | DM16: ='Compile Data'!F71 -> 89.96998596 | DN16: ='Compile Data'!F72 -> 91.74742889 | DP16: 78.07028389 | DQ16: 76.06771914 | DR16: 80.51797549 | DT16: 89.4452858 | DU16: 77.53380076 | DV16: 70.59921455 | DW16: 87.27371979 | DX16: 88.94421132
A17: 1922-02-28 | B17: =INDIRECT(CONCATENATE("'",B$1,"'!",B$4,(YEAR($A17)-1921)*12+MONTH($A17)+3+IF(ISNUMBER(FIND("PRV",B$6)),1,0)))*IF(AND(B$3>0,TRIM(B$9)="CFS"),Conv_Flags!$C17,1) -> 61.19195557 | C17: =INDIRECT(CONCATENATE("'",C$1,"'!",C$4,(YEAR($A17)-1921)*12+MONTH($A17)+3+IF(ISNUMBER(FIND("PRV",C$6)),1,0)))*IF(AND(C$3>0,TRIM(C$9)="CFS"),Conv_Flags!$C17,1) -> 62.05132294 | D17: =INDIRECT(CONCATENATE("'",D$1,"'!",D$4,(YEAR($A17)-1921)*12+MONTH($A17)+3+IF(ISNUMBER(FIND("PRV",D$6)),1,0)))*IF(AND(D$3>0,TRIM(D$9)="CFS"),Conv_Flags!$C17,1) -> 62.10730743 | E17: =INDIRECT(CONCATENATE("'",E$1,"'!",E$4,(YEAR($A17)-1921)*12+MONTH($A17)+3+IF(ISNUMBER(FIND("PRV",E$6)),1,0)))*IF(AND(E$3>0,TRIM(E$9)="CFS"),Conv_Flags!$C17,1) -> 62.05132294 | F17: =INDIRECT(CONCATENATE("'",F$1,"'!",F$4,(YEAR($A17)-1921)*12+MONTH($A17)+3+IF(ISNUMBER(FIND("PRV",F$6)),1,0)))*IF(AND(F$3>0,TRIM(F$9)="CFS"),Conv_Flags!$C17,1) -> 62.28545761 | J17: 1927 | K17: =B73 -> 93.00458527 | L17: =B74 -> 82.61582947 | M17: =B75 -> 69.715065 | N17: =B76 -> 61.26544189 | O17: =B77 -> 54.07207489 | P17: =B78 -> 54.25360489 | Q17: =B79 -> 54.01934433 | R17: =B80 -> 58.93656921 | S17: =B81 -> 68.55136871 | T17: =B82 -> 77.36828613 | U17: =B83 -> 83.22088623 | V17: =B84 -> 80.08039093 | X17: 69.82544327 | Y17: 71.70753352 | Z17: 69.75862058 | AB17: 76.65023041 | AC17: 61.68419393 | AD17: 58.94022179 | AE17: 77.305233 | AF17: 80.84429932 | AH17: 1927 | AI17: ='Compile Data'!C73 -> 92.48779297 | AJ17: ='Compile Data'!C74 -> 82.56522369 | AK17: ='Compile Data'!C75 -> 71.74207306 | AL17: ='Compile Data'!C76 -> 63.138237 | AM17: ='Compile Data'!C77 -> 54.13246155 | AN17: ='Compile Data'!C78 -> 54.63938904 | AO17: ='Compile Data'!C79 -> 54.06631088 | AP17: ='Compile Data'!C80 -> 59.06464767 | AQ17: ='Compile Data'!C81 -> 68.53596497 | AR17: ='Compile Data'!C82 -> 77.36637878 | AS17: ='Compile Data'!C83 -> 82.89208984 | AT17: ='Compile Data'!C84 -> 79.59304047 | AV17: 69.92751948 | AW17: 71.74040922 | AX17: 70.01863416 | AZ17: 77.48333168 | BA17: 63.0042572 | BB17: 59.07657814 | BC17: 77.09686852 | BD17: 80.53395844 | BF17: 1927 | BG17: ='Compile Data'!D73 -> 92.49263 | BH17: ='Compile Data'!D74 -> 82.56756592 | BI17: ='Compile Data'!D75 -> 71.63101959 | BJ17: ='Compile Data'!D76 -> 63.10786057 | BK17: ='Compile Data'!D77 -> 54.13268661 | BL17: ='Compile Data'!D78 -> 54.63879776 | BM17: ='Compile Data'!D79 -> 54.06618118 | BN17: ='Compile Data'!D80 -> 59.0646553 | BO17: ='Compile Data'!D81 -> 68.53605652 | BP17: ='Compile Data'!D82 -> 77.36643219 | BQ17: ='Compile Data'!D83 -> 82.89207458 | BR17: ='Compile Data'!D84 -> 79.59312439 | BT17: 69.92501163 | BU17: 71.74042225 | BV17: 70.00742372 | BX17: 77.44976902 | BY17: 62.95718892 | BZ17: 59.07642269 | CA17: 77.09692192 | CB17: 80.5346756 | CD17: 1927 | CE17: ='Compile Data'!E73 -> 92.9116745 | CF17: ='Compile Data'!E74 -> 82.55155945 | CG17: ='Compile Data'!E75 -> 71.77936554 | CH17: ='Compile Data'!E76 -> 63.14709091 | CI17: ='Compile Data'!E77 -> 54.13246918 | CJ17: ='Compile Data'!E78 -> 54.63937759 | CK17: ='Compile Data'!E79 -> 54.06630707 | CL17: ='Compile Data'!E80 -> 59.06467056 | CM17: ='Compile Data'!E81 -> 68.53591156 | CN17: ='Compile Data'!E82 -> 77.3664093 | CO17: ='Compile Data'!E83 -> 82.89219666 | CP17: ='Compile Data'!E84 -> 79.59269714 | CR17: 69.91815281 | CS17: 71.73040708 | CT17: 70.05664412 | CV17: 77.5974226 | CW17: 63.01964188 | CX17: 59.0765667 | CY17: 77.09680367 | CZ17: 80.49283346 | DB17: 1927 | DC17: ='Compile Data'!F73 -> 92.5082016 | DD17: ='Compile Data'!F74 -> 82.57700348 | DE17: ='Compile Data'!F75 -> 71.2102356 | DF17: ='Compile Data'!F76 -> 62.99697113 | DG17: ='Compile Data'!F77 -> 54.13344574 | DH17: ='Compile Data'!F78 -> 54.63683319 | DI17: ='Compile Data'!F79 -> 54.06576157 | DJ17: ='Compile Data'!F80 -> 59.0645256 | DK17: ='Compile Data'!F81 -> 68.53621674 | DL17: ='Compile Data'!F82 -> 77.36653137 | DM17: ='Compile Data'!F83 -> 82.89202881 | DN17: ='Compile Data'!F84 -> 79.59329987 | DP17: 69.94329135 | DQ17: 71.76900291 | DR17: 69.96508789 | DT17: 77.32310295 | DU17: 62.78021749 | DV17: 59.07583427 | DW17: 77.0970192 | DX17: 80.64050802
A18: 1922-03-31 | B18: =INDIRECT(CONCATENATE("'",B$1,"'!",B$4,(YEAR($A18)-1921)*12+MONTH($A18)+3+IF(ISNUMBER(FIND("PRV",B$6)),1,0)))*IF(AND(B$3>0,TRIM(B$9)="CFS"),Conv_Flags!$C18,1) -> 60.22486877 | C18: =INDIRECT(CONCATENATE("'",C$1,"'!",C$4,(YEAR($A18)-1921)*12+MONTH($A18)+3+IF(ISNUMBER(FIND("PRV",C$6)),1,0)))*IF(AND(C$3>0,TRIM(C$9)="CFS"),Conv_Flags!$C18,1) -> 60.39351654 | D18: =INDIRECT(CONCATENATE("'",D$1,"'!",D$4,(YEAR($A18)-1921)*12+MONTH($A18)+3+IF(ISNUMBER(FIND("PRV",D$6)),1,0)))*IF(AND(D$3>0,TRIM(D$9)="CFS"),Conv_Flags!$C18,1) -> 60.40644836 | E18: =INDIRECT(CONCATENATE("'",E$1,"'!",E$4,(YEAR($A18)-1921)*12+MONTH($A18)+3+IF(ISNUMBER(FIND("PRV",E$6)),1,0)))*IF(AND(E$3>0,TRIM(E$9)="CFS"),Conv_Flags!$C18,1) -> 60.39351654 | F18: =INDIRECT(CONCATENATE("'",F$1,"'!",F$4,(YEAR($A18)-1921)*12+MONTH($A18)+3+IF(ISNUMBER(FIND("PRV",F$6)),1,0)))*IF(AND(F$3>0,TRIM(F$9)="CFS"),Conv_Flags!$C18,1) -> 60.4483757 | J18: 1928 | K18: =B85 -> 80.31043243 | L18: =B86 -> 82.14207458 | M18: =B87 -> 83.68484497 | N18: =B88 -> 73.37348175 | O18: =B89 -> 64.54911804 | P18: =B90 -> 54.35996628 | Q18: =B91 -> 58.02577972 | R18: =B92 -> 69.89155579 | S18: =B93 -> 78.39732361 | T18: =B94 -> 79.49869537 | U18: =B95 -> 83.67986298 | V18: =B96 -> 78.82723236 | X18: 74.52037907 | Y18: 76.56761138 | Z18: 73.89503066 | AB18: 79.87770844 | AC18: 73.86914825 | AD18: 65.16865635 | AE18: 80.10077858 | AF18: 81.74547577 | AH18: 1928 | AI18: ='Compile Data'!C85 -> 79.92010498 | AJ18: ='Compile Data'!C86 -> 82.08872986 | AK18: ='Compile Data'!C87 -> 83.69287872 | AL18: ='Compile Data'!C88 -> 73.33861542 | AM18: ='Compile Data'!C89 -> 65.68675995 | AN18: ='Compile Data'!C90 -> 54.46669388 | AO18: ='Compile Data'!C91 -> 58.03025055 | AP18: ='Compile Data'!C92 -> 69.88124084 | AQ18: ='Compile Data'!C93 -> 78.46391296 | AR18: ='Compile Data'!C94 -> 79.50210571 | AS18: ='Compile Data'!C95 -> 83.67082214 | AT18: ='Compile Data'!C96 -> 78.80335236 | AV18: 74.63689899 | AW18: 76.59253979 | AX18: 73.96212228 | AZ18: 79.76008224 | BA18: 74.23941803 | BB18: 65.21052456 | BC18: 80.11004829 | BD18: 81.79374695 | BF18: 1928 | BG18: ='Compile Data'!D85 -> 79.92687988 | BH18: ='Compile Data'!D86 -> 82.08402252 | BI18: ='Compile Data'!D87 -> 83.6913681 | BJ18: ='Compile Data'!D88 -> 73.33866119 | BK18: ='Compile Data'!D89 -> 65.68681335 | BL18: ='Compile Data'!D90 -> 54.46668243 | BM18: ='Compile Data'!D91 -> 58.03025055 | BN18: ='Compile Data'!D92 -> 69.88088226 | BO18: ='Compile Data'!D93 -> 78.50266266 | BP18: ='Compile Data'!D94 -> 79.38643646 | BQ18: ='Compile Data'!D95 -> 83.62552643 | BR18: ='Compile Data'!D96 -> 78.80302429 | BT18: 74.62574895 | BU18: 76.57993253 | BV18: 73.95193418 | BX18: 79.76023293 | BY18: 74.23894755 | BZ18: 65.22011948 | CA18: 80.07941246 | CB18: 81.7918396 | CD18: 1928 | CE18: ='Compile Data'!E85 -> 79.82900238 | CF18: ='Compile Data'!E86 -> 82.05680084 | CG18: ='Compile Data'!E87 -> 83.69490051 | CH18: ='Compile Data'!E88 -> 73.3395462 | CI18: ='Compile Data'!E89 -> 65.68706512 | CJ18: ='Compile Data'!E90 -> 54.46669769 | CK18: ='Compile Data'!E91 -> 58.03028107 | CL18: ='Compile Data'!E92 -> 69.88127899 | CM18: ='Compile Data'!E93 -> 78.46389771 | CN18: ='Compile Data'!E94 -> 79.50209808 | CO18: ='Compile Data'!E95 -> 83.36260986 | CP18: ='Compile Data'!E96 -> 78.23516846 | CR18: 74.50387065 | CS18: 76.45885404 | CT18: 73.87911224 | CV18: 79.73006248 | CW18: 74.24050395 | CX18: 65.21053886 | CY18: 79.89094353 | CZ18: 81.37177277 | DB18: 1928 | DC18: ='Compile Data'!F85 -> 80.16664886 | DD18: ='Compile Data'!F86 -> 82.16157532 | DE18: ='Compile Data'!F87 -> 83.70565796 | DF18: ='Compile Data'!F88 -> 73.35064697 | DG18: ='Compile Data'!F89 -> 65.68830872 | DH18: ='Compile Data'!F90 -> 54.46664429 | DI18: ='Compile Data'!F91 -> 58.03603363 | DJ18: ='Compile Data'!F92 -> 68.76580048 | DK18: ='Compile Data'!F93 -> 77.90977478 | DL18: ='Compile Data'!F94 -> 79.43438721 | DM18: ='Compile Data'!F95 -> 83.63815308 | DN18: ='Compile Data'!F96 -> 78.81726837 | DP18: 74.49569639 | DQ18: 76.49666087 | DR18: 73.84507497 | DT18: 79.84613228 | DU18: 74.24820455 | DV18: 64.79456329 | DW18: 79.94989586 | DX18: 81.46508026
A19: 1922-04-30 | B19: =INDIRECT(CONCATENATE("'",B$1,"'!",B$4,(YEAR($A19)-1921)*12+MONTH($A19)+3+IF(ISNUMBER(FIND("PRV",B$6)),1,0)))*IF(AND(B$3>0,TRIM(B$9)="CFS"),Conv_Flags!$C19,1) -> 59.95578003 | C19: =INDIRECT(CONCATENATE("'",C$1,"'!",C$4,(YEAR($A19)-1921)*12+MONTH($A19)+3+IF(ISNUMBER(FIND("PRV",C$6)),1,0)))*IF(AND(C$3>0,TRIM(C$9)="CFS"),Conv_Flags!$C19,1) -> 59.95698547 | D19: =INDIRECT(CONCATENATE("'",D$1,"'!",D$4,(YEAR($A19)-1921)*12+MONTH($A19)+3+IF(ISNUMBER(FIND("PRV",D$6)),1,0)))*IF(AND(D$3>0,TRIM(D$9)="CFS"),Conv_Flags!$C19,1) -> 59.90697098 | E19: =INDIRECT(CONCATENATE("'",E$1,"'!",E$4,(YEAR($A19)-1921)*12+MONTH($A19)+3+IF(ISNUMBER(FIND("PRV",E$6)),1,0)))*IF(AND(E$3>0,TRIM(E$9)="CFS"),Conv_Flags!$C19,1) -> 59.95698547 | F19: =INDIRECT(CONCATENATE("'",F$1,"'!",F$4,(YEAR($A19)-1921)*12+MONTH($A19)+3+IF(ISNUMBER(FIND("PRV",F$6)),1,0)))*IF(AND(F$3>0,TRIM(F$9)="CFS"),Conv_Flags!$C19,1) -> 59.74892807 | J19: 1929 | K19: =B97 -> 80.82818604 | L19: =B98 -> 85.58100891 | M19: =B99 -> 87.23233795 | N19: =B100 -> 85.60462189 | O19: =B101 -> 76.88476562 | P19: =B102 -> 77.99517059 | Q19: =B103 -> 80.94618988 | R19: =B104 -> 82.67311096 | S19: =B105 -> 83.54599762 | T19: =B106 -> 87.37510681 | U19: =B107 -> 91.47835541 | V19: =B108 -> 92.9743576 | X19: 85.89086342 | Y19: 84.01688194 | Z19: 84.42660077 | AB19: 84.8115387 | AC19: 83.24057515 | AD19: 81.29011726 | AE19: 88.84345436 | AF19: 93.66477458 | AH19: 1929 | AI19: ='Compile Data'!C97 -> 80.98410034 | AJ19: ='Compile Data'!C98 -> 85.59378815 | AK19: ='Compile Data'!C99 -> 87.22114563 | AL19: ='Compile Data'!C100 -> 85.60684204 | AM19: ='Compile Data'!C101 -> 76.88622284 | AN19: ='Compile Data'!C102 -> 77.99658203 | AO19: ='Compile Data'!C103 -> 80.94571686 | AP19: ='Compile Data'!C104 -> 82.67188263 | AQ19: ='Compile Data'!C105 -> 83.58285522 | AR19: ='Compile Data'!C106 -> 86.96118927 | AS19: ='Compile Data'!C107 -> 90.47541809 | AT19: ='Compile Data'!C108 -> 91.5319519 | AV19: 85.31848335 | AW19: 83.46081225 | AX19: 84.20480792 | AZ19: 84.85146904 | BA19: 83.23807017 | BB19: 81.29925919 | BC19: 88.13785362 | BD19: 91.97181193 | BF19: 1929 | BG19: ='Compile Data'!D97 -> 80.98266602 | BH19: ='Compile Data'!D98 -> 85.58982849 | BI19: ='Compile Data'!D99 -> 87.21555328 | BJ19: ='Compile Data'!D100 -> 85.59783173 | BK19: ='Compile Data'!D101 -> 76.87784576 | BL19: ='Compile Data'!D102 -> 77.99328613 | BM19: ='Compile Data'!D103 -> 80.944664 | BN19: ='Compile Data'!D104 -> 82.67119598 | BO19: ='Compile Data'!D105 -> 83.58260345 | BP19: ='Compile Data'!D106 -> 86.9621048 | BQ19: ='Compile Data'!D107 -> 90.47858429 | BR19: ='Compile Data'!D108 -> 91.52799225 | BT19: 85.31696383 | BU19: 83.46076012 | BV19: 84.20201302 | BX19: 84.84646988 | BY19: 83.23041026 | BZ19: 81.29793739 | CA19: 88.1378212 | CB19: 91.97144572 | CD19: 1929 | CE19: ='Compile Data'!E97 -> 80.48985291 | CF19: ='Compile Data'!E98 -> 85.39029694 | CG19: ='Compile Data'!E99 -> 87.19765472 | CH19: ='Compile Data'!E100 -> 85.60228729 | CI19: ='Compile Data'!E101 -> 76.88412476 | CJ19: ='Compile Data'!E102 -> 77.99591827 | CK19: ='Compile Data'!E103 -> 80.94554138 | CL19: ='Compile Data'!E104 -> 82.67178345 | CM19: ='Compile Data'!E105 -> 83.5827713 | CN19: ='Compile Data'!E106 -> 86.96112823 | CO19: ='Compile Data'!E107 -> 90.04328918 | CP19: ='Compile Data'!E108 -> 91.01973724 | CR19: 85.22107124 | CS19: 83.36234474 | CT19: 84.06536547 | CV19: 84.67002296 | CW19: 83.22802226 | CX19: 81.2990036 | CY19: 87.90173149 | CZ19: 91.74273427 | DB19: 1929 | DC19: ='Compile Data'!F97 -> 80.85612488 | DD19: ='Compile Data'!F98 -> 84.72184753 | DE19: ='Compile Data'!F99 -> 88.2633667 | DF19: ='Compile Data'!F100 -> 86.11415863 | DG19: ='Compile Data'!F101 -> 76.93637085 | DH19: ='Compile Data'!F102 -> 78.04464722 | DI19: ='Compile Data'!F103 -> 80.97795868 | DJ19: ='Compile Data'!F104 -> 82.68261719 | DK19: ='Compile Data'!F105 -> 83.58737946 | DL19: ='Compile Data'!F106 -> 86.96861267 | DM19: ='Compile Data'!F107 -> 90.57811737 | DN19: ='Compile Data'!F108 -> 92.11087799 | DP19: 85.46003532 | DQ19: 83.56261762 | DR19: 84.32017326 | DT19: 84.98887444 | DU19: 83.77129873 | DV19: 81.32315063 | DW19: 88.31124687 | DX19: 92.26902771
A20: 1922-05-31 | B20: =INDIRECT(CONCATENATE("'",B$1,"'!",B$4,(YEAR($A20)-1921)*12+MONTH($A20)+3+IF(ISNUMBER(FIND("PRV",B$6)),1,0)))*IF(AND(B$3>0,TRIM(B$9)="CFS"),Conv_Flags!$C20,1) -> 54.34654617 | C20: =INDIRECT(CONCATENATE("'",C$1,"'!",C$4,(YEAR($A20)-1921)*12+MONTH($A20)+3+IF(ISNUMBER(FIND("PRV",C$6)),1,0)))*IF(AND(C$3>0,TRIM(C$9)="CFS"),Conv_Flags!$C20,1) -> 54.34766769 | D20: =INDIRECT(CONCATENATE("'",D$1,"'!",D$4,(YEAR($A20)-1921)*12+MONTH($A20)+3+IF(ISNUMBER(FIND("PRV",D$6)),1,0)))*IF(AND(D$3>0,TRIM(D$9)="CFS"),Conv_Flags!$C20,1) -> 54.34240723 | E20: =INDIRECT(CONCATENATE("'",E$1,"'!",E$4,(YEAR($A20)-1921)*12+MONTH($A20)+3+IF(ISNUMBER(FIND("PRV",E$6)),1,0)))*IF(AND(E$3>0,TRIM(E$9)="CFS"),Conv_Flags!$C20,1) -> 54.34766769 | F20: =INDIRECT(CONCATENATE("'",F$1,"'!",F$4,(YEAR($A20)-1921)*12+MONTH($A20)+3+IF(ISNUMBER(FIND("PRV",F$6)),1,0)))*IF(AND(F$3>0,TRIM(F$9)="CFS"),Conv_Flags!$C20,1) -> 54.32551956 | J20: 1930 | K20: =B109 -> 93.90883636 | L20: =B110 -> 94.11112976 | M20: =B111 -> 83.19271851 | N20: =B112 -> 71.90470886 | O20: =B113 -> 68.09690094 | P20: =B114 -> 60.89543152 | Q20: =B115 -> 67.94041443 | R20: =B116 -> 79.184021 | S20: =B117 -> 82.64459991 | T20: =B118 -> 85.00170898 | U20: =B119 -> 89.21833801 | V20: =B120 -> 91.28316498 | X20: 80.90583038 | Y20: 83.18107796 | Z20: 80.61516444 | AB20: 85.77934837 | AC20: 74.39810944 | AD20: 72.66611671 | AE20: 87.03695297 | AF20: 91.6015269 | AH20: 1930 | AI20: ='Compile Data'!C109 -> 91.8634491 | AJ20: ='Compile Data'!C110 -> 92.52003479 | AK20: ='Compile Data'!C111 -> 82.77965546 | AL20: ='Compile Data'!C112 -> 71.70620728 | AM20: ='Compile Data'!C113 -> 68.49480438 | AN20: ='Compile Data'!C114 -> 61.72879028 | AO20: ='Compile Data'!C115 -> 68.20068359 | AP20: ='Compile Data'!C116 -> 78.85126495 | AQ20: ='Compile Data'!C117 -> 82.45681 | AR20: ='Compile Data'!C118 -> 84.91975403 | AS20: ='Compile Data'!C119 -> 87.91165161 | AT20: ='Compile Data'!C120 -> 90.49314117 | AV20: 80.77720579 | AW20: 83.03057671 | AX20: 80.16052055 | AZ20: 84.71733665 | BA20: 74.32688904 | BB20: 72.80938721 | BC20: 86.4453392 | BD20: 91.3191452 | BF20: 1930 | BG20: ='Compile Data'!D109 -> 91.86428833 | BH20: ='Compile Data'!D110 -> 92.52205658 | BI20: ='Compile Data'!D111 -> 82.78111267 | BJ20: ='Compile Data'!D112 -> 71.70648193 | BK20: ='Compile Data'!D113 -> 68.49475098 | BL20: ='Compile Data'!D114 -> 61.72873688 | BM20: ='Compile Data'!D115 -> 68.19872284 | BN20: ='Compile Data'!D116 -> 78.84971619 | BO20: ='Compile Data'!D117 -> 82.4542923 | BP20: ='Compile Data'!D118 -> 84.95272827 | BQ20: ='Compile Data'!D119 -> 87.88563538 | BR20: ='Compile Data'!D120 -> 90.46177673 | BT20: 80.73625437 | BU20: 82.98780187 | BV20: 80.15835826 | BX20: 84.71848488 | BY20: 74.32744853 | BZ20: 72.80786705 | CA20: 86.43860817 | CB20: 91.18304698 | CD20: 1930 | CE20: ='Compile Data'!E109 -> 91.72393036 | CF20: ='Compile Data'!E110 -> 92.48453522 | CG20: ='Compile Data'!E111 -> 82.73780823 | CH20: ='Compile Data'!E112 -> 71.68895721 | CI20: ='Compile Data'!E113 -> 68.49273682 | CJ20: ='Compile Data'!E114 -> 61.72845459 | CK20: ='Compile Data'!E115 -> 68.20045471 | CL20: ='Compile Data'!E116 -> 78.85109711 | CM20: ='Compile Data'!E117 -> 82.45681 | CN20: ='Compile Data'!E118 -> 84.91864777 | CO20: ='Compile Data'!E119 -> 88.14300537 | CP20: ='Compile Data'!E120 -> 91.14566803 | CR20: 80.85632133 | CS20: 83.11334292 | CT20: 80.21434212 | CV20: 84.65880775 | CW20: 74.30650075 | CX20: 72.8092041 | CY20: 86.66603279 | CZ20: 91.55296326 | DB20: 1930 | DC20: ='Compile Data'!F109 -> 92.06250763 | DD20: ='Compile Data'!F110 -> 92.63369751 | DE20: ='Compile Data'!F111 -> 82.8234787 | DF20: ='Compile Data'!F112 -> 71.76698303 | DG20: ='Compile Data'!F113 -> 68.514534 | DH20: ='Compile Data'!F114 -> 61.7304306 | DI20: ='Compile Data'!F115 -> 68.21102142 | DJ20: ='Compile Data'!F116 -> 78.85999298 | DK20: ='Compile Data'!F117 -> 82.46780396 | DL20: ='Compile Data'!F118 -> 84.82411194 | DM20: ='Compile Data'!F119 -> 88.1075058 | DN20: ='Compile Data'!F120 -> 90.90808868 | DP20: 80.78357697 | DQ20: 83.02708562 | DR20: 80.24251302 | DT20: 84.82166672 | DU20: 74.36833191 | DV20: 72.81731224 | DW20: 86.57687759 | DX20: 91.25439962
A21: 1922-06-30 | B21: =INDIRECT(CONCATENATE("'",B$1,"'!",B$4,(YEAR($A21)-1921)*12+MONTH($A21)+3+IF(ISNUMBER(FIND("PRV",B$6)),1,0)))*IF(AND(B$3>0,TRIM(B$9)="CFS"),Conv_Flags!$C21,1) -> 56.1666832 | C21: =INDIRECT(CONCATENATE("'",C$1,"'!",C$4,(YEAR($A21)-1921)*12+MONTH($A21)+3+IF(ISNUMBER(FIND("PRV",C$6)),1,0)))*IF(AND(C$3>0,TRIM(C$9)="CFS"),Conv_Flags!$C21,1) -> 56.16677475 | D21: =INDIRECT(CONCATENATE("'",D$1,"'!",D$4,(YEAR($A21)-1921)*12+MONTH($A21)+3+IF(ISNUMBER(FIND("PRV",D$6)),1,0)))*IF(AND(D$3>0,TRIM(D$9)="CFS"),Conv_Flags!$C21,1) -> 56.16691971 | E21: =INDIRECT(CONCATENATE("'",E$1,"'!",E$4,(YEAR($A21)-1921)*12+MONTH($A21)+3+IF(ISNUMBER(FIND("PRV",E$6)),1,0)))*IF(AND(E$3>0,TRIM(E$9)="CFS"),Conv_Flags!$C21,1) -> 56.16677475 | F21: =INDIRECT(CONCATENATE("'",F$1,"'!",F$4,(YEAR($A21)-1921)*12+MONTH($A21)+3+IF(ISNUMBER(FIND("PRV",F$6)),1,0)))*IF(AND(F$3>0,TRIM(F$9)="CFS"),Conv_Flags!$C21,1) -> 56.16735458 | J21: 1931 | K21: =B121 -> 91.8710022 | L21: =B122 -> 91.65041351 | M21: =B123 -> 91.17926025 | N21: =B124 -> 85.3970871 | O21: =B125 -> 81.90749359 | P21: =B126 -> 82.51869965 | Q21: =B127 -> 83.20700073 | R21: =B128 -> 87.71785736 | S21: =B129 -> 91.25460815 | T21: =B130 -> 91.36842346 | U21: =B131 -> 91.35428619 | V21: =B132 -> 92.25300598 | X21: 87.9860878 | Y21: 85.64549192 | Z21: 88.47326152 | AB21: 90.02444077 | AC21: 86.16128031 | AD21: 86.17454147 | AE21: 91.55758095 | AF21: 93.38130697 | AH21: 1931 | AI21: ='Compile Data'!C121 -> 91.71213531 | AJ21: ='Compile Data'!C122 -> 91.75215912 | AK21: ='Compile Data'!C123 -> 91.09906769 | AL21: ='Compile Data'!C124 -> 85.36477661 | AM21: ='Compile Data'!C125 -> 81.8766861 | AN21: ='Compile Data'!C126 -> 82.5059433 | AO21: ='Compile Data'!C127 -> 83.20360565 | AP21: ='Compile Data'!C128 -> 87.71636963 | AQ21: ='Compile Data'!C129 -> 91.25403595 | AR21: ='Compile Data'!C130 -> 91.36798859 | AS21: ='Compile Data'!C131 -> 91.35404968 | AT21: ='Compile Data'!C132 -> 92.25285339 | AV21: 88.03809102 | AW21: 85.82827377 | AX21: 88.45497259 | AZ21: 89.98203468 | BA21: 86.11351013 | BB21: 86.16998863 | BC21: 91.5572319 | BD21: 93.37593333 | BF21: 1931 | BG21: ='Compile Data'!D121 -> 91.62028503 | BH21: ='Compile Data'!D122 -> 91.46707916 | BI21: ='Compile Data'!D123 -> 91.0148468 | BJ21: ='Compile Data'!D124 -> 85.35074615 | BK21: ='Compile Data'!D125 -> 81.8690567 | BL21: ='Compile Data'!D126 -> 82.50209808 | BM21: ='Compile Data'!D127 -> 83.20227814 | BN21: ='Compile Data'!D128 -> 87.71576691 | BO21: ='Compile Data'!D129 -> 91.2538147 | BP21: ='Compile Data'!D130 -> 91.36790466 | BQ21: ='Compile Data'!D131 -> 91.35401154 | BR21: ='Compile Data'!D132 -> 92.25283813 | BT21: 88.03648949 | BU21: 85.82889239 | BV21: 88.41422717 | BX21: 89.86323929 | BY21: 86.07821655 | BZ21: 86.16848946 | CA21: 91.55714226 | CB21: 93.37586212 | CD21: 1931 | CE21: ='Compile Data'!E121 -> 91.87805176 | CF21: ='Compile Data'!E122 -> 91.63516998 | CG21: ='Compile Data'!E123 -> 91.13680267 | CH21: ='Compile Data'!E124 -> 85.37501526 | CI21: ='Compile Data'!E125 -> 81.89093781 | CJ21: ='Compile Data'!E126 -> 82.5113678 | CK21: ='Compile Data'!E127 -> 83.2050705 | CL21: ='Compile Data'!E128 -> 87.71768188 | CM21: ='Compile Data'!E129 -> 91.24473572 | CN21: ='Compile Data'!E130 -> 91.36490631 | CO21: ='Compile Data'!E131 -> 91.35214233 | CP21: ='Compile Data'!E132 -> 92.2513504 | CR21: 88.03944969 | CS21: 85.82788722 | CT21: 88.4636027 | CV21: 90.00625992 | CW21: 86.13425191 | CX21: 86.16971397 | CY21: 91.55328369 | CZ21: 93.3752772 | DB21: 1931 | DC21: ='Compile Data'!F121 -> 91.84312439 | DD21: ='Compile Data'!F122 -> 91.01198578 | DE21: ='Compile Data'!F123 -> 91.157341 | DF21: ='Compile Data'!F124 -> 85.37690735 | DG21: ='Compile Data'!F125 -> 81.82671356 | DH21: ='Compile Data'!F126 -> 82.48216248 | DI21: ='Compile Data'!F127 -> 83.19855499 | DJ21: ='Compile Data'!F128 -> 87.71404266 | DK21: ='Compile Data'!F129 -> 91.24946594 | DL21: ='Compile Data'!F130 -> 91.4318924 | DM21: ='Compile Data'!F131 -> 91.44509888 | DN21: ='Compile Data'!F132 -> 92.32493591 | DP21: 88.05207761 | DQ21: 85.85890198 | DR21: 88.42185211 | DT21: 89.84733963 | DU21: 86.12032064 | DV21: 86.16105652 | DW21: 91.61284828 | DX21: 93.40675608
A22: 1922-07-31 | B22: =INDIRECT(CONCATENATE("'",B$1,"'!",B$4,(YEAR($A22)-1921)*12+MONTH($A22)+3+IF(ISNUMBER(FIND("PRV",B$6)),1,0)))*IF(AND(B$3>0,TRIM(B$9)="CFS"),Conv_Flags!$C22,1) -> 70.96258545 | C22: =INDIRECT(CONCATENATE("'",C$1,"'!",C$4,(YEAR($A22)-1921)*12+MONTH($A22)+3+IF(ISNUMBER(FIND("PRV",C$6)),1,0)))*IF(AND(C$3>0,TRIM(C$9)="CFS"),Conv_Flags!$C22,1) -> 70.9624176 | D22: =INDIRECT(CONCATENATE("'",D$1,"'!",D$4,(YEAR($A22)-1921)*12+MONTH($A22)+3+IF(ISNUMBER(FIND("PRV",D$6)),1,0)))*IF(AND(D$3>0,TRIM(D$9)="CFS"),Conv_Flags!$C22,1) -> 70.96239471 | E22: =INDIRECT(CONCATENATE("'",E$1,"'!",E$4,(YEAR($A22)-1921)*12+MONTH($A22)+3+IF(ISNUMBER(FIND("PRV",E$6)),1,0)))*IF(AND(E$3>0,TRIM(E$9)="CFS"),Conv_Flags!$C22,1) -> 70.9624176 | F22: =INDIRECT(CONCATENATE("'",F$1,"'!",F$4,(YEAR($A22)-1921)*12+MONTH($A22)+3+IF(ISNUMBER(FIND("PRV",F$6)),1,0)))*IF(AND(F$3>0,TRIM(F$9)="CFS"),Conv_Flags!$C22,1) -> 70.96207428 | J22: 1932 | K22: =B133 -> 93.72555542 | L22: =B134 -> 94.1653595 | M22: =B135 -> 80.96367645 | N22: =B136 -> 70.85220337 | O22: =B137 -> 68.36522675 | P22: =B138 -> 72.64183807 | Q22: =B139 -> 75.54738617 | R22: =B140 -> 71.54750061 | S22: =B141 -> 75.365242 | T22: =B142 -> 83.01751709 | U22: =B143 -> 89.16078186 | V22: =B144 -> 91.33491516 | X22: 81.02113914 | Y22: 82.9793574 | Z22: 80.55726687 | AB22: 84.92669868 | AC22: 73.39370219 | AD22: 73.77549171 | AE22: 84.71961403 | AF22: 91.68134308 | AH22: 1932 | AI22: ='Compile Data'!C133 -> 93.72576904 | AJ22: ='Compile Data'!C134 -> 94.14917755 | AK22: ='Compile Data'!C135 -> 81.68583679 | AL22: ='Compile Data'!C136 -> 72.20752716 | AM22: ='Compile Data'!C137 -> 68.51612854 | AN22: ='Compile Data'!C138 -> 72.63736725 | AO22: ='Compile Data'!C139 -> 75.54804993 | AP22: ='Compile Data'!C140 -> 71.54840851 | AQ22: ='Compile Data'!C141 -> 75.3603363 | AR22: ='Compile Data'!C142 -> 83.05135345 | AS22: ='Compile Data'!C143 -> 89.14805603 | AT22: ='Compile Data'!C144 -> 91.32699585 | AV22: 81.13621648 | AW22: 82.96824328 | AX22: 80.74208387 | AZ22: 85.44207764 | BA22: 74.1364975 | BB22: 73.7735405 | BC22: 84.72168541 | BD22: 91.62757365 | BF22: 1932 | BG22: ='Compile Data'!D133 -> 93.72577667 | BH22: ='Compile Data'!D134 -> 94.14897156 | BI22: ='Compile Data'!D135 -> 81.6946106 | BJ22: ='Compile Data'!D136 -> 72.21039581 | BK22: ='Compile Data'!D137 -> 68.51824188 | BL22: ='Compile Data'!D138 -> 72.63812256 | BM22: ='Compile Data'!D139 -> 75.54670715 | BN22: ='Compile Data'!D140 -> 71.54733276 | BO22: ='Compile Data'!D141 -> 75.3581543 | BP22: ='Compile Data'!D142 -> 83.06235504 | BQ22: ='Compile Data'!D143 -> 89.14315033 | BR22: ='Compile Data'!D144 -> 91.32445526 | BT22: 81.13646698 | BU22: 82.9679095 | BV22: 80.74318949 | BX22: 85.44493866 | BY22: 74.14108276 | BZ22: 73.77257919 | CA22: 84.72202873 | CB22: 91.62643687 | CD22: 1932 | CE22: ='Compile Data'!E133 -> 93.72528839 | CF22: ='Compile Data'!E134 -> 94.14919281 | CG22: ='Compile Data'!E135 -> 81.68570709 | CH22: ='Compile Data'!E136 -> 72.20877838 | CI22: ='Compile Data'!E137 -> 68.51842499 | CJ22: ='Compile Data'!E138 -> 72.63402557 | CK22: ='Compile Data'!E139 -> 75.54883575 | CL22: ='Compile Data'!E140 -> 71.54907227 | CM22: ='Compile Data'!E141 -> 75.36197662 | CN22: ='Compile Data'!E142 -> 83.04199219 | CO22: ='Compile Data'!E143 -> 89.15150452 | CP22: ='Compile Data'!E144 -> 91.32959747 | CR22: 81.14691226 | CS22: 82.9792366 | CT22: 80.742033 | CV22: 85.44224167 | CW22: 74.13763682 | CX22: 73.77347755 | CY22: 84.7212677 | CZ22: 91.67893982 | DB22: 1932 | DC22: ='Compile Data'!F133 -> 93.7587738 | DD22: ='Compile Data'!F134 -> 94.13655853 | DE22: ='Compile Data'!F135 -> 81.67982483 | DF22: ='Compile Data'!F136 -> 72.20159912 | DG22: ='Compile Data'!F137 -> 68.68391418 | DH22: ='Compile Data'!F138 -> 72.7255249 | DI22: ='Compile Data'!F139 -> 75.56095886 | DJ22: ='Compile Data'!F140 -> 71.55156708 | DK22: ='Compile Data'!F141 -> 75.38230896 | DL22: ='Compile Data'!F142 -> 82.91172028 | DM22: ='Compile Data'!F143 -> 89.19953156 | DN22: ='Compile Data'!F144 -> 91.35967255 | DP22: 81.16713397 | DQ22: 82.98601977 | DR22: 80.76266289 | DT22: 85.44418907 | DU22: 74.18844604 | DV22: 73.80508995 | DW22: 84.71330833 | DX22: 91.69221242
A23: 1922-08-31 | B23: =INDIRECT(CONCATENATE("'",B$1,"'!",B$4,(YEAR($A23)-1921)*12+MONTH($A23)+3+IF(ISNUMBER(FIND("PRV",B$6)),1,0)))*IF(AND(B$3>0,TRIM(B$9)="CFS"),Conv_Flags!$C23,1) -> 81.37631989 | C23: =INDIRECT(CONCATENATE("'",C$1,"'!",C$4,(YEAR($A23)-1921)*12+MONTH($A23)+3+IF(ISNUMBER(FIND("PRV",C$6)),1,0)))*IF(AND(C$3>0,TRIM(C$9)="CFS"),Conv_Flags!$C23,1) -> 81.0621109 | D23: =INDIRECT(CONCATENATE("'",D$1,"'!",D$4,(YEAR($A23)-1921)*12+MONTH($A23)+3+IF(ISNUMBER(FIND("PRV",D$6)),1,0)))*IF(AND(D$3>0,TRIM(D$9)="CFS"),Conv_Flags!$C23,1) -> 81.06301117 | E23: =INDIRECT(CONCATENATE("'",E$1,"'!",E$4,(YEAR($A23)-1921)*12+MONTH($A23)+3+IF(ISNUMBER(FIND("PRV",E$6)),1,0)))*IF(AND(E$3>0,TRIM(E$9)="CFS"),Conv_Flags!$C23,1) -> 81.0621109 | F23: =INDIRECT(CONCATENATE("'",F$1,"'!",F$4,(YEAR($A23)-1921)*12+MONTH($A23)+3+IF(ISNUMBER(FIND("PRV",F$6)),1,0)))*IF(AND(F$3>0,TRIM(F$9)="CFS"),Conv_Flags!$C23,1) -> 81.07924652 | J23: 1933 | K23: =B145 -> 92.02882385 | L23: =B146 -> 91.68029022 | M23: =B147 -> 90.71194458 | N23: =B148 -> 83.39733124 | O23: =B149 -> 79.31871796 | P23: =B150 -> 79.00547791 | Q23: =B151 -> 77.74958038 | R23: =B152 -> 81.04566956 | S23: =B153 -> 83.1010437 | T23: =B154 -> 87.56474304 | U23: =B155 -> 90.96494293 | V23: =B156 -> 92.61833954 | X23: 85.22832934 | Y23: 83.9063282 | Z23: 85.76557541 | AB23: 89.45459747 | AC23: 84.47599792 | AD23: 80.22544289 | AE23: 88.5622673 | AF23: 91.95198568 | AH23: 1933 | AI23: ='Compile Data'!C145 -> 92.00923157 | AJ23: ='Compile Data'!C146 -> 91.54649353 | AK23: ='Compile Data'!C147 -> 90.73464966 | AL23: ='Compile Data'!C148 -> 83.39350128 | AM23: ='Compile Data'!C149 -> 79.31447601 | AN23: ='Compile Data'!C150 -> 79.00527191 | AO23: ='Compile Data'!C151 -> 77.74607849 | AP23: ='Compile Data'!C152 -> 81.04325104 | AQ23: ='Compile Data'!C153 -> 83.1006546 | AR23: ='Compile Data'!C154 -> 87.56465149 | AS23: ='Compile Data'!C155 -> 90.96340942 | AT23: ='Compile Data'!C156 -> 92.65998077 | AV23: 85.24371719 | AW23: 83.76656214 | AX23: 85.75680415 | AZ23: 89.42096901 | BA23: 84.48087565 | BB23: 80.22381401 | BC23: 88.57217407 | BD23: 92.01713562 | BF23: 1933 | BG23: ='Compile Data'!D145 -> 92.00860596 | BH23: ='Compile Data'!D146 -> 91.54624939 | BI23: ='Compile Data'!D147 -> 90.73383331 | BJ23: ='Compile Data'!D148 -> 83.3924408 | BK23: ='Compile Data'!D149 -> 79.31350708 | BL23: ='Compile Data'!D150 -> 79.00487518 | BM23: ='Compile Data'!D151 -> 77.74572754 | BN23: ='Compile Data'!D152 -> 81.04307556 | BO23: ='Compile Data'!D153 -> 83.10062408 | BP23: ='Compile Data'!D154 -> 87.56462097 | BQ23: ='Compile Data'!D155 -> 90.96342468 | BR23: ='Compile Data'!D156 -> 92.66024017 | BT23: 85.24329885 | BU23: 83.76584307 | BV23: 85.75643539 | BX23: 89.42028236 | BY23: 84.47992706 | BZ23: 80.22357559 | CA23: 88.57222748 | CB23: 92.01755269 | CD23: 1933 | CE23: ='Compile Data'!E145 -> 92.02735138 | CF23: ='Compile Data'!E146 -> 91.67987061 | CG23: ='Compile Data'!E147 -> 90.71151733 | CH23: ='Compile Data'!E148 -> 83.39688873 | CI23: ='Compile Data'!E149 -> 79.31820679 | CJ23: ='Compile Data'!E150 -> 79.00518799 | CK23: ='Compile Data'!E151 -> 77.75030518 | CL23: ='Compile Data'!E152 -> 81.04618073 | CM23: ='Compile Data'!E153 -> 83.10106659 | CN23: ='Compile Data'!E154 -> 87.56473541 | CO23: ='Compile Data'!E155 -> 90.96320343 | CP23: ='Compile Data'!E156 -> 92.66056824 | CR23: 85.24629021 | CS23: 83.76654561 | CT23: 85.76875687 | CV23: 89.45390701 | CW23: 84.47553762 | CX23: 80.22568512 | CY23: 88.57239342 | CZ23: 92.01772308 | DB23: 1933 | DC23: ='Compile Data'!F145 -> 92.0351181 | DD23: ='Compile Data'!F146 -> 91.68184662 | DE23: ='Compile Data'!F147 -> 90.7118454 | DF23: ='Compile Data'!F148 -> 83.39624023 | DG23: ='Compile Data'!F149 -> 79.31590271 | DH23: ='Compile Data'!F150 -> 79.03159332 | DI23: ='Compile Data'!F151 -> 77.81388855 | DJ23: ='Compile Data'!F152 -> 81.04264069 | DK23: ='Compile Data'!F153 -> 83.07781219 | DL23: ='Compile Data'!F154 -> 87.55929565 | DM23: ='Compile Data'!F155 -> 90.96099854 | DN23: ='Compile Data'!F156 -> 92.66044617 | DP23: 85.2530098 | DQ23: 83.79467138 | DR23: 85.77396901 | DT23: 89.45626259 | DU23: 84.47466278 | DV23: 80.24148369 | DW23: 88.56463814 | DX23: 92.01736705
A24: 1922-09-30 | B24: =INDIRECT(CONCATENATE("'",B$1,"'!",B$4,(YEAR($A24)-1921)*12+MONTH($A24)+3+IF(ISNUMBER(FIND("PRV",B$6)),1,0)))*IF(AND(B$3>0,TRIM(B$9)="CFS"),Conv_Flags!$C24,1) -> 79.23446655 | C24: =INDIRECT(CONCATENATE("'",C$1,"'!",C$4,(YEAR($A24)-1921)*12+MONTH($A24)+3+IF(ISNUMBER(FIND("PRV",C$6)),1,0)))*IF(AND(C$3>0,TRIM(C$9)="CFS"),Conv_Flags!$C24,1) -> 78.73194885 | D24: =INDIRECT(CONCATENATE("'",D$1,"'!",D$4,(YEAR($A24)-1921)*12+MONTH($A24)+3+IF(ISNUMBER(FIND("PRV",D$6)),1,0)))*IF(AND(D$3>0,TRIM(D$9)="CFS"),Conv_Flags!$C24,1) -> 78.74894714 | E24: =INDIRECT(CONCATENATE("'",E$1,"'!",E$4,(YEAR($A24)-1921)*12+MONTH($A24)+3+IF(ISNUMBER(FIND("PRV",E$6)),1,0)))*IF(AND(E$3>0,TRIM(E$9)="CFS"),Conv_Flags!$C24,1) -> 78.73194885 | F24: =INDIRECT(CONCATENATE("'",F$1,"'!",F$4,(YEAR($A24)-1921)*12+MONTH($A24)+3+IF(ISNUMBER(FIND("PRV",F$6)),1,0)))*IF(AND(F$3>0,TRIM(F$9)="CFS"),Conv_Flags!$C24,1) -> 78.76198578 | J24: 1934 | K24: =B157 -> 91.63383484 | L24: =B158 -> 91.60378265 | M24: =B159 -> 84.73648834 | N24: =B160 -> 75.44726562 | O24: =B161 -> 71.4047699 | P24: =B162 -> 73.36733246 | Q24: =B163 -> 77.99586487 | R24: =B164 -> 81.97193146 | S24: =B165 -> 82.93714142 | T24: =B166 -> 87.24359131 | U24: =B167 -> 90.98569489 | V24: =B168 -> 93.13929749 | X24: 83.77969742 | Y24: 83.01272647 | Z24: 83.53891627 | AB24: 85.85534286 | AC24: 77.19617462 | AD24: 79.06806755 | AE24: 88.57643127 | AF24: 91.60012817 | AH24: 1934 | AI24: ='Compile Data'!C157 -> 91.71681976 | AJ24: ='Compile Data'!C158 -> 91.67460632 | AK24: ='Compile Data'!C159 -> 84.74190521 | AL24: ='Compile Data'!C160 -> 75.50763702 | AM24: ='Compile Data'!C161 -> 69.47447968 | AN24: ='Compile Data'!C162 -> 73.47174072 | AO24: ='Compile Data'!C163 -> 78.43510437 | AP24: ='Compile Data'!C164 -> 82.02464294 | AQ24: ='Compile Data'!C165 -> 82.95513153 | AR24: ='Compile Data'!C166 -> 87.25000763 | AS24: ='Compile Data'!C167 -> 90.98771667 | AT24: ='Compile Data'!C168 -> 93.14019012 | AV24: 83.67397817 | AW24: 83.14729118 | AX24: 83.44833183 | AZ24: 85.91024208 | BA24: 76.57467397 | BB24: 79.22165489 | BC24: 88.58326149 | BD24: 91.60075378 | BF24: 1934 | BG24: ='Compile Data'!D157 -> 91.71733856 | BH24: ='Compile Data'!D158 -> 91.67507935 | BI24: ='Compile Data'!D159 -> 84.7386322 | BJ24: ='Compile Data'!D160 -> 75.50354004 | BK24: ='Compile Data'!D161 -> 69.47293854 | BL24: ='Compile Data'!D162 -> 73.47119904 | BM24: ='Compile Data'!D163 -> 78.43492126 | BN24: ='Compile Data'!D164 -> 82.02461243 | BO24: ='Compile Data'!D165 -> 82.9551239 | BP24: ='Compile Data'!D166 -> 87.25000763 | BQ24: ='Compile Data'!D167 -> 90.9877243 | BR24: ='Compile Data'!D168 -> 93.14019775 | BT24: 83.6733532 | BU24: 83.14703623 | BV24: 83.44760958 | BX24: 85.90864754 | BY24: 76.57170359 | BZ24: 79.22146416 | CA24: 88.5832634 | CB24: 91.6007665 | CD24: 1934 | CE24: ='Compile Data'!E157 -> 91.71752167 | CF24: ='Compile Data'!E158 -> 91.67507935 | CG24: ='Compile Data'!E159 -> 84.75653839 | CH24: ='Compile Data'!E160 -> 75.52377319 | CI24: ='Compile Data'!E161 -> 69.43438721 | CJ24: ='Compile Data'!E162 -> 73.61537933 | CK24: ='Compile Data'!E163 -> 78.52881622 | CL24: ='Compile Data'!E164 -> 82.03752136 | CM24: ='Compile Data'!E165 -> 82.95948792 | CN24: ='Compile Data'!E166 -> 87.25153351 | CO24: ='Compile Data'!E167 -> 90.9881897 | CP24: ='Compile Data'!E168 -> 93.14040375 | CR24: 83.69339879 | CS24: 83.16872915 | CT24: 83.46905263 | CV24: 85.91822815 | CW24: 76.57156626 | CX24: 79.28530121 | CY24: 88.58490372 | CZ24: 91.60083516 | DB24: 1934 | DC24: ='Compile Data'!F157 -> 91.71701813 | DD24: ='Compile Data'!F158 -> 91.67463684 | DE24: ='Compile Data'!F159 -> 84.78564453 | DF24: ='Compile Data'!F160 -> 75.54761505 | DG24: ='Compile Data'!F161 -> 69.66446686 | DH24: ='Compile Data'!F162 -> 73.40060425 | DI24: ='Compile Data'!F163 -> 78.3536911 | DJ24: ='Compile Data'!F164 -> 82.01402283 | DK24: ='Compile Data'!F165 -> 82.95159912 | DL24: ='Compile Data'!F166 -> 87.24874878 | DM24: ='Compile Data'!F167 -> 90.98724365 | DN24: ='Compile Data'!F168 -> 93.14000702 | DP24: 83.67902056 | DQ24: 83.13189761 | DR24: 83.45710818 | DT24: 85.93122864 | DU24: 76.66590881 | DV24: 79.17997932 | DW24: 88.58189964 | DX24: 91.60035706
A25: 1922-10-31 | B25: =INDIRECT(CONCATENATE("'",B$1,"'!",B$4,(YEAR($A25)-1921)*12+MONTH($A25)+3+IF(ISNUMBER(FIND("PRV",B$6)),1,0)))*IF(AND(B$3>0,TRIM(B$9)="CFS"),Conv_Flags!$C25,1) -> 78.8926239 | C25: =INDIRECT(CONCATENATE("'",C$1,"'!",C$4,(YEAR($A25)-1921)*12+MONTH($A25)+3+IF(ISNUMBER(FIND("PRV",C$6)),1,0)))*IF(AND(C$3>0,TRIM(C$9)="CFS"),Conv_Flags!$C25,1) -> 78.40938568 | D25: =INDIRECT(CONCATENATE("'",D$1,"'!",D$4,(YEAR($A25)-1921)*12+MONTH($A25)+3+IF(ISNUMBER(FIND("PRV",D$6)),1,0)))*IF(AND(D$3>0,TRIM(D$9)="CFS"),Conv_Flags!$C25,1) -> 77.47868347 | E25: =INDIRECT(CONCATENATE("'",E$1,"'!",E$4,(YEAR($A25)-1921)*12+MONTH($A25)+3+IF(ISNUMBER(FIND("PRV",E$6)),1,0)))*IF(AND(E$3>0,TRIM(E$9)="CFS"),Conv_Flags!$C25,1) -> 78.39854431 | F25: =INDIRECT(CONCATENATE("'",F$1,"'!",F$4,(YEAR($A25)-1921)*12+MONTH($A25)+3+IF(ISNUMBER(FIND("PRV",F$6)),1,0)))*IF(AND(F$3>0,TRIM(F$9)="CFS"),Conv_Flags!$C25,1) -> 77.49324799 | J25: 1935 | K25: =B169 -> 91.69656372 | L25: =B170 -> 89.96452332 | M25: =B171 -> 89.20239258 | N25: =B172 -> 68.57186127 | O25: =B173 -> 69.07652283 | P25: =B174 -> 64.21711731 | Q25: =B175 -> 54.67190552 | R25: =B176 -> 61.40968704 | S25: =B177 -> 74.04268646 | T25: =B178 -> 81.53927612 | U25: =B179 -> 87.2989502 | V25: =B180 -> 90.62997437 | X25: 77.12091541 | Y25: 75.53690656 | Z25: 76.86012173 | AB25: 84.85883522 | AC25: 75.61692556 | AD25: 63.58534908 | AE25: 83.37772179 | AF25: 91.32938639 | AH25: 1935 | AI25: ='Compile Data'!C169 -> 91.69711304 | AJ25: ='Compile Data'!C170 -> 89.96495819 | AK25: ='Compile Data'!C171 -> 89.17901611 | AL25: ='Compile Data'!C172 -> 69.30362701 | AM25: ='Compile Data'!C173 -> 69.35824585 | AN25: ='Compile Data'!C174 -> 64.64134979 | AO25: ='Compile Data'!C175 -> 54.91781998 | AP25: ='Compile Data'!C176 -> 61.54813004 | AQ25: ='Compile Data'!C177 -> 74.03314209 | AR25: ='Compile Data'!C178 -> 81.54753876 | AS25: ='Compile Data'!C179 -> 86.90992737 | AT25: ='Compile Data'!C180 -> 90.06572723 | AV25: 77.06473732 | AW25: 75.42437553 | AX25: 76.93054962 | AZ25: 85.03617859 | BA25: 75.94696299 | BB25: 63.78511047 | BC25: 83.13908386 | BD25: 90.69187927 | BF25: 1935 | BG25: ='Compile Data'!D169 -> 91.6971283 | BH25: ='Compile Data'!D170 -> 89.96497345 | BI25: ='Compile Data'!D171 -> 89.1778717 | BJ25: ='Compile Data'!D172 -> 69.302742 | BK25: ='Compile Data'!D173 -> 69.35793304 | BL25: ='Compile Data'!D174 -> 64.64031982 | BM25: ='Compile Data'!D175 -> 54.92338943 | BN25: ='Compile Data'!D176 -> 61.55143738 | BO25: ='Compile Data'!D177 -> 74.03297424 | BP25: ='Compile Data'!D178 -> 81.54437256 | BQ25: ='Compile Data'!D179 -> 86.90298462 | BR25: ='Compile Data'!D180 -> 90.07686615 | BT25: 77.0679903 | BU25: 75.4286267 | BV25: 76.93108273 | BX25: 85.03567886 | BY25: 75.94618225 | BZ25: 63.78703022 | CA25: 83.13929939 | CB25: 90.70460256 | CD25: 1935 | CE25: ='Compile Data'!E169 -> 91.69723511 | CF25: ='Compile Data'!E170 -> 89.96486664 | CG25: ='Compile Data'!E171 -> 89.17919159 | CH25: ='Compile Data'!E172 -> 69.30381775 | CI25: ='Compile Data'!E173 -> 69.35830688 | CJ25: ='Compile Data'!E174 -> 64.64110565 | CK25: ='Compile Data'!E175 -> 54.91937256 | CL25: ='Compile Data'!E176 -> 61.54922485 | CM25: ='Compile Data'!E177 -> 74.03714752 | CN25: ='Compile Data'!E178 -> 81.51564026 | CO25: ='Compile Data'!E179 -> 86.83653259 | CP25: ='Compile Data'!E180 -> 90.39489746 | CR25: 77.05053584 | CS25: 75.39671548 | CT25: 76.94977824 | CV25: 85.03627777 | CW25: 75.94710541 | CX25: 63.78671265 | CY25: 83.19605446 | CZ25: 90.68687439 | DB25: 1935 | DC25: ='Compile Data'!F169 -> 91.69651794 | DD25: ='Compile Data'!F170 -> 89.9645462 | DE25: ='Compile Data'!F171 -> 89.17918396 | DF25: ='Compile Data'!F172 -> 69.29309845 | DG25: ='Compile Data'!F173 -> 69.353508 | DH25: ='Compile Data'!F174 -> 64.63868713 | DI25: ='Compile Data'!F175 -> 54.932724 | DJ25: ='Compile Data'!F176 -> 61.55760956 | DK25: ='Compile Data'!F177 -> 74.03233337 | DL25: ='Compile Data'!F178 -> 81.54914856 | DM25: ='Compile Data'!F179 -> 87.32067871 | DN25: ='Compile Data'!F180 -> 91.05466461 | DP25: 77.14083036 | DQ25: 75.48565865 | DR25: 77.04772504 | DT25: 85.03333664 | DU25: 75.94193014 | DV25: 63.79033852 | DW25: 83.48920631 | DX25: 90.8833669
A26: 1922-11-30 | B26: =INDIRECT(CONCATENATE("'",B$1,"'!",B$4,(YEAR($A26)-1921)*12+MONTH($A26)+3+IF(ISNUMBER(FIND("PRV",B$6)),1,0)))*IF(AND(B$3>0,TRIM(B$9)="CFS"),Conv_Flags!$C26,1) -> 82.81713867 | C26: =INDIRECT(CONCATENATE("'",C$1,"'!",C$4,(YEAR($A26)-1921)*12+MONTH($A26)+3+IF(ISNUMBER(FIND("PRV",C$6)),1,0)))*IF(AND(C$3>0,TRIM(C$9)="CFS"),Conv_Flags!$C26,1) -> 82.64375305 | D26: =INDIRECT(CONCATENATE("'",D$1,"'!",D$4,(YEAR($A26)-1921)*12+MONTH($A26)+3+IF(ISNUMBER(FIND("PRV",D$6)),1,0)))*IF(AND(D$3>0,TRIM(D$9)="CFS"),Conv_Flags!$C26,1) -> 82.08943176 | E26: =INDIRECT(CONCATENATE("'",E$1,"'!",E$4,(YEAR($A26)-1921)*12+MONTH($A26)+3+IF(ISNUMBER(FIND("PRV",E$6)),1,0)))*IF(AND(E$3>0,TRIM(E$9)="CFS"),Conv_Flags!$C26,1) -> 82.6390686 | F26: =INDIRECT(CONCATENATE("'",F$1,"'!",F$4,(YEAR($A26)-1921)*12+MONTH($A26)+3+IF(ISNUMBER(FIND("PRV",F$6)),1,0)))*IF(AND(F$3>0,TRIM(F$9)="CFS"),Conv_Flags!$C26,1) -> 81.00470734 | J26: 1936 | K26: =B181 -> 92.22205353 | L26: =B182 -> 91.13613129 | M26: =B183 -> 90.63481903 | N26: =B184 -> 64.60009766 | O26: =B185 -> 54.04018021 | P26: =B186 -> 58.06437683 | Q26: =B187 -> 60.02965164 | R26: =B188 -> 65.12136841 | S26: =B189 -> 74.32460785 | T26: =B190 -> 81.05361938 | U26: =B191 -> 86.80706024 | V26: =B192 -> 89.55662537 | X26: 75.42018827 | Y26: 77.52973811 | Z26: 75.63254929 | AB26: 84.64827538 | AC26: 69.75836563 | AD26: 64.38500118 | AE26: 82.93547821 | AF26: 90.25965118 | AH26: 1936 | AI26: ='Compile Data'!C181 -> 91.51108551 | AJ26: ='Compile Data'!C182 -> 90.49882507 | AK26: ='Compile Data'!C183 -> 90.44142914 | AL26: ='Compile Data'!C184 -> 64.91905975 | AM26: ='Compile Data'!C185 -> 54.05847168 | AN26: ='Compile Data'!C186 -> 58.06489944 | AO26: ='Compile Data'!C187 -> 60.02774429 | AP26: ='Compile Data'!C188 -> 65.1204834 | AQ26: ='Compile Data'!C189 -> 74.31975555 | AR26: ='Compile Data'!C190 -> 81.06301117 | AS26: ='Compile Data'!C191 -> 86.85317993 | AT26: ='Compile Data'!C192 -> 89.57613373 | AV26: 75.37195206 | AW26: 77.46045113 | AX26: 75.53783989 | AZ26: 84.34259987 | BA26: 69.80632019 | BB26: 64.38322067 | BC26: 82.9530201 | BD26: 90.01128896 | BF26: 1936 | BG26: ='Compile Data'!D181 -> 91.51911163 | BH26: ='Compile Data'!D182 -> 90.5178299 | BI26: ='Compile Data'!D183 -> 90.44592285 | BJ26: ='Compile Data'!D184 -> 64.93109131 | BK26: ='Compile Data'!D185 -> 54.05722046 | BL26: ='Compile Data'!D186 -> 58.06647491 | BM26: ='Compile Data'!D187 -> 60.02787781 | BN26: ='Compile Data'!D188 -> 65.11988068 | BO26: ='Compile Data'!D189 -> 74.32028198 | BP26: ='Compile Data'!D190 -> 81.05442047 | BQ26: ='Compile Data'!D191 -> 86.84346008 | BR26: ='Compile Data'!D192 -> 89.57398224 | BT26: 75.37607892 | BU26: 77.46651141 | BV26: 75.53979619 | BX26: 84.35348892 | BY26: 69.81141154 | BZ26: 64.38362885 | CA26: 82.94803619 | CB26: 90.02994283 | CD26: 1936 | CE26: ='Compile Data'!E181 -> 91.38742065 | CF26: ='Compile Data'!E182 -> 90.27830505 | CG26: ='Compile Data'!E183 -> 90.38465881 | CH26: ='Compile Data'!E184 -> 64.75997925 | CI26: ='Compile Data'!E185 -> 54.05630112 | CJ26: ='Compile Data'!E186 -> 58.061306 | CK26: ='Compile Data'!E187 -> 60.02638626 | CL26: ='Compile Data'!E188 -> 65.12132263 | CM26: ='Compile Data'!E189 -> 74.32418823 | CN26: ='Compile Data'!E190 -> 81.03781128 | CO26: ='Compile Data'!E191 -> 86.7853241 | CP26: ='Compile Data'!E192 -> 89.56928253 | CR26: 75.37445418 | CS26: 77.47922516 | CT26: 75.48269049 | CV26: 84.20259094 | CW26: 69.73364639 | CX26: 64.38330078 | CY26: 82.92915154 | CZ26: 90.09707387 | DB26: 1936 | DC26: ='Compile Data'!F181 -> 91.4107132 | DD26: ='Compile Data'!F182 -> 90.1847229 | DE26: ='Compile Data'!F183 -> 90.36207581 | DF26: ='Compile Data'!F184 -> 64.73729706 | DG26: ='Compile Data'!F185 -> 54.04724884 | DH26: ='Compile Data'!F186 -> 58.07051468 | DI26: ='Compile Data'!F187 -> 60.02783203 | DJ26: ='Compile Data'!F188 -> 65.11846924 | DK26: ='Compile Data'!F189 -> 74.32218933 | DL26: ='Compile Data'!F190 -> 81.04416656 | DM26: ='Compile Data'!F191 -> 86.34596252 | DN26: ='Compile Data'!F192 -> 89.22029877 | DP26: 75.29939938 | DQ26: 77.41182582 | DR26: 75.40762424 | DT26: 84.17370224 | DU26: 69.71554057 | DV26: 64.38475132 | DW26: 82.7331543 | DX26: 89.95252482
A27: 1922-12-31 | B27: =INDIRECT(CONCATENATE("'",B$1,"'!",B$4,(YEAR($A27)-1921)*12+MONTH($A27)+3+IF(ISNUMBER(FIND("PRV",B$6)),1,0)))*IF(AND(B$3>0,TRIM(B$9)="CFS"),Conv_Flags!$C27,1) -> 66.07985687 | C27: =INDIRECT(CONCATENATE("'",C$1,"'!",C$4,(YEAR($A27)-1921)*12+MONTH($A27)+3+IF(ISNUMBER(FIND("PRV",C$6)),1,0)))*IF(AND(C$3>0,TRIM(C$9)="CFS"),Conv_Flags!$C27,1) -> 66.45823669 | D27: =INDIRECT(CONCATENATE("'",D$1,"'!",D$4,(YEAR($A27)-1921)*12+MONTH($A27)+3+IF(ISNUMBER(FIND("PRV",D$6)),1,0)))*IF(AND(D$3>0,TRIM(D$9)="CFS"),Conv_Flags!$C27,1) -> 65.98262024 | E27: =INDIRECT(CONCATENATE("'",E$1,"'!",E$4,(YEAR($A27)-1921)*12+MONTH($A27)+3+IF(ISNUMBER(FIND("PRV",E$6)),1,0)))*IF(AND(E$3>0,TRIM(E$9)="CFS"),Conv_Flags!$C27,1) -> 66.46276093 | F27: =INDIRECT(CONCATENATE("'",F$1,"'!",F$4,(YEAR($A27)-1921)*12+MONTH($A27)+3+IF(ISNUMBER(FIND("PRV",F$6)),1,0)))*IF(AND(F$3>0,TRIM(F$9)="CFS"),Conv_Flags!$C27,1) -> 65.34054565 | J27: 1937 | K27: =B193 -> 90.24757385 | L27: =B194 -> 90.97475433 | M27: =B195 -> 90.22234344 | N27: =B196 -> 84.19138336 | O27: =B197 -> 59.76349258 | P27: =B198 -> 54.03102112 | Q27: =B199 -> 57.75289154 | R27: =B200 -> 64.9848175 | S27: =B201 -> 71.45575714 | T27: =B202 -> 80.01799011 | U27: =B203 -> 86.75118256 | V27: =B204 -> 91.33148956 | X27: 72.76108583 | Y27: 70.20858383 | Z27: 76.81039143 | AB27: 88.90901375 | AC27: 78.05907313 | AD27: 62.05612183 | AE27: 82.38910484 | AF27: 86.34817759 | AH27: 1937 | AI27: ='Compile Data'!C193 -> 90.1631546 | AJ27: ='Compile Data'!C194 -> 90.29457855 | AK27: ='Compile Data'!C195 -> 90.00295258 | AL27: ='Compile Data'!C196 -> 84.10153198 | AM27: ='Compile Data'!C197 -> 59.93798828 | AN27: ='Compile Data'!C198 -> 54.31757355 | AO27: ='Compile Data'!C199 -> 57.88175201 | AP27: ='Compile Data'!C200 -> 64.98654175 | AQ27: ='Compile Data'!C201 -> 71.62882996 | AR27: ='Compile Data'!C202 -> 80.11617279 | AS27: ='Compile Data'!C203 -> 86.02167511 | AT27: ='Compile Data'!C204 -> 90.51291656 | AV27: 72.95437368 | AW27: 70.41103427 | AX27: 76.66380564 | AZ27: 88.64055443 | BA27: 78.01415761 | BB27: 62.20367432 | BC27: 82.06989861 | BD27: 86.951238 | BF27: 1937 | BG27: ='Compile Data'!D193 -> 90.20056152 | BH27: ='Compile Data'!D194 -> 90.31528473 | BI27: ='Compile Data'!D195 -> 90.00241089 | BJ27: ='Compile Data'!D196 -> 84.10674286 | BK27: ='Compile Data'!D197 -> 59.96675873 | BL27: ='Compile Data'!D198 -> 54.32110596 | BM27: ='Compile Data'!D199 -> 57.88666534 | BN27: ='Compile Data'!D200 -> 64.99059296 | BO27: ='Compile Data'!D201 -> 71.6335907 | BP27: ='Compile Data'!D202 -> 80.10803223 | BQ27: ='Compile Data'!D203 -> 85.99502563 | BR27: ='Compile Data'!D204 -> 90.51867676 | BT27: 72.96849314 | BU27: 70.42224852 | BV27: 76.67045403 | BX27: 88.65625 | BY27: 78.02530416 | BZ27: 62.20798874 | CA27: 82.06383133 | CB27: 87.0040919 | CD27: 1937 | CE27: ='Compile Data'!E193 -> 90.3365097 | CF27: ='Compile Data'!E194 -> 90.38542938 | CG27: ='Compile Data'!E195 -> 90.02960968 | CH27: ='Compile Data'!E196 -> 84.10837555 | CI27: ='Compile Data'!E197 -> 59.96515656 | CJ27: ='Compile Data'!E198 -> 54.31817627 | CK27: ='Compile Data'!E199 -> 57.87831497 | CL27: ='Compile Data'!E200 -> 64.98278046 | CM27: ='Compile Data'!E201 -> 71.62632751 | CN27: ='Compile Data'!E202 -> 80.12335968 | CO27: ='Compile Data'!E203 -> 86.01462555 | CP27: ='Compile Data'!E204 -> 90.4214859 | CR27: 72.94753679 | CS27: 70.40131346 | CT27: 76.6825126 | CV27: 88.71498108 | CW27: 78.03438059 | CX27: 62.2013998 | CY27: 82.04644966 | CZ27: 86.9168752 | DB27: 1937 | DC27: ='Compile Data'!F193 -> 90.21966553 | DD27: ='Compile Data'!F194 -> 90.41761017 | DE27: ='Compile Data'!F195 -> 90.02153778 | DF27: ='Compile Data'!F196 -> 84.13302612 | DG27: ='Compile Data'!F197 -> 60.00063705 | DH27: ='Compile Data'!F198 -> 54.32482147 | DI27: ='Compile Data'!F199 -> 57.89665222 | DJ27: ='Compile Data'!F200 -> 64.99843597 | DK27: ='Compile Data'!F201 -> 71.63552094 | DL27: ='Compile Data'!F202 -> 80.1182785 | DM27: ='Compile Data'!F203 -> 86.42433167 | DN27: ='Compile Data'!F204 -> 91.21935272 | DP27: 72.97918669 | DQ27: 70.42766857 | DR27: 76.78415585 | DT27: 88.6979599 | DU27: 78.05173365 | DV27: 62.21385765 | DW27: 82.34937096 | DX27: 86.92556508
A28: 1923-01-31 | B28: =INDIRECT(CONCATENATE("'",B$1,"'!",B$4,(YEAR($A28)-1921)*12+MONTH($A28)+3+IF(ISNUMBER(FIND("PRV",B$6)),1,0)))*IF(AND(B$3>0,TRIM(B$9)="CFS"),Conv_Flags!$C28,1) -> 60.9159317 | C28: =INDIRECT(CONCATENATE("'",C$1,"'!",C$4,(YEAR($A28)-1921)*12+MONTH($A28)+3+IF(ISNUMBER(FIND("PRV",C$6)),1,0)))*IF(AND(C$3>0,TRIM(C$9)="CFS"),Conv_Flags!$C28,1) -> 60.99359131 | D28: =INDIRECT(CONCATENATE("'",D$1,"'!",D$4,(YEAR($A28)-1921)*12+MONTH($A28)+3+IF(ISNUMBER(FIND("PRV",D$6)),1,0)))*IF(AND(D$3>0,TRIM(D$9)="CFS"),Conv_Flags!$C28,1) -> 60.9868927 | E28: =INDIRECT(CONCATENATE("'",E$1,"'!",E$4,(YEAR($A28)-1921)*12+MONTH($A28)+3+IF(ISNUMBER(FIND("PRV",E$6)),1,0)))*IF(AND(E$3>0,TRIM(E$9)="CFS"),Conv_Flags!$C28,1) -> 60.9946785 | F28: =INDIRECT(CONCATENATE("'",F$1,"'!",F$4,(YEAR($A28)-1921)*12+MONTH($A28)+3+IF(ISNUMBER(FIND("PRV",F$6)),1,0)))*IF(AND(F$3>0,TRIM(F$9)="CFS"),Conv_Flags!$C28,1) -> 60.96429825 | J28: 1938 | K28: =B205 -> 92.07689667 | L28: =B206 -> 75.63614655 | M28: =B207 -> 55.13996124 | N28: =B208 -> 59.27592087 | O28: =B209 -> 54.04893112 | P28: =B210 -> 54 | Q28: =B211 -> 54 | R28: =B212 -> 54 | S28: =B213 -> 55.81829453 | T28: =B214 -> 70.87149811 | U28: =B215 -> 80.29337311 | V28: =B216 -> 76.5710144 | X28: 67.128239 | Y28: 71.75263309 | Z28: 65.14433638 | AB28: 70.53223133 | AC28: 56.15493774 | AD28: 54.45457363 | AE28: 70.88854504 | AF28: 78.83250682 | AH28: 1938 | AI28: ='Compile Data'!C205 -> 91.72681427 | AJ28: ='Compile Data'!C206 -> 78.61398315 | AK28: ='Compile Data'!C207 -> 55.60670471 | AL28: ='Compile Data'!C208 -> 59.46233368 | AM28: ='Compile Data'!C209 -> 54.05711365 | AN28: ='Compile Data'!C210 -> 54 | AO28: ='Compile Data'!C211 -> 54 | AP28: ='Compile Data'!C212 -> 54 | AQ28: ='Compile Data'!C213 -> 55.8176918 | AR28: ='Compile Data'!C214 -> 70.86328125 | AS28: ='Compile Data'!C215 -> 79.95030212 | AT28: ='Compile Data'!C216 -> 75.7654953 | AV28: 67.00289313 | AW28: 71.61629836 | AX28: 65.32197666 | AZ28: 71.35245895 | BA28: 56.37538401 | BB28: 54.45442295 | BC28: 70.59919262 | BD28: 78.37600962 | BF28: 1938 | BG28: ='Compile Data'!D205 -> 91.88471985 | BH28: ='Compile Data'!D206 -> 78.60887909 | BI28: ='Compile Data'!D207 -> 55.60112762 | BJ28: ='Compile Data'!D208 -> 59.46115875 | BK28: ='Compile Data'!D209 -> 54.05740738 | BL28: ='Compile Data'!D210 -> 54 | BM28: ='Compile Data'!D211 -> 54 | BN28: ='Compile Data'!D212 -> 54 | BO28: ='Compile Data'!D213 -> 55.81769562 | BP28: ='Compile Data'!D214 -> 70.86326599 | BQ28: ='Compile Data'!D215 -> 79.95030212 | BR28: ='Compile Data'!D216 -> 75.76547241 | BT28: 67.00763861 | BU28: 71.62142372 | BV28: 65.33416907 | BX28: 71.38897133 | BY28: 56.37323125 | BZ28: 54.4544239 | CA28: 70.59918404 | CB28: 78.39585622 | CD28: 1938 | CE28: ='Compile Data'!E205 -> 91.73820496 | CF28: ='Compile Data'!E206 -> 78.59093475 | CG28: ='Compile Data'!E207 -> 55.60269928 | CH28: ='Compile Data'!E208 -> 59.46165085 | CI28: ='Compile Data'!E209 -> 54.05720139 | CJ28: ='Compile Data'!E210 -> 54 | CK28: ='Compile Data'!E211 -> 54 | CL28: ='Compile Data'!E212 -> 54 | CM28: ='Compile Data'!E213 -> 55.81773376 | CN28: ='Compile Data'!E214 -> 70.86329651 | CO28: ='Compile Data'!E215 -> 79.95030212 | CP28: ='Compile Data'!E216 -> 75.76547241 | CR28: 67.00277774 | CS28: 71.61631584 | CT28: 65.32062467 | CV28: 71.34837246 | CW28: 56.3738505 | CX28: 54.45443344 | CY28: 70.5992012 | CZ28: 78.37598928 | DB28: 1938 | DC28: ='Compile Data'!F205 -> 92.08010101 | DD28: ='Compile Data'!F206 -> 77.47724152 | DE28: ='Compile Data'!F207 -> 55.44184113 | DF28: ='Compile Data'!F208 -> 59.45800018 | DG28: ='Compile Data'!F209 -> 54.05744553 | DH28: ='Compile Data'!F210 -> 54 | DI28: ='Compile Data'!F211 -> 54 | DJ28: ='Compile Data'!F212 -> 54 | DK28: ='Compile Data'!F213 -> 55.81759262 | DL28: ='Compile Data'!F214 -> 70.86322784 | DM28: ='Compile Data'!F215 -> 79.95031738 | DN28: ='Compile Data'!F216 -> 75.76547241 | DP28: 67.03718567 | DQ28: 71.65065606 | DR28: 65.2426033 | DT28: 71.11429596 | DU28: 56.31909561 | DV28: 54.45439816 | DW28: 70.59915257 | DX28: 78.50877126
A29: 1923-02-28 | B29: =INDIRECT(CONCATENATE("'",B$1,"'!",B$4,(YEAR($A29)-1921)*12+MONTH($A29)+3+IF(ISNUMBER(FIND("PRV",B$6)),1,0)))*IF(AND(B$3>0,TRIM(B$9)="CFS"),Conv_Flags!$C29,1) -> 65.3521347 | C29: =INDIRECT(CONCATENATE("'",C$1,"'!",C$4,(YEAR($A29)-1921)*12+MONTH($A29)+3+IF(ISNUMBER(FIND("PRV",C$6)),1,0)))*IF(AND(C$3>0,TRIM(C$9)="CFS"),Conv_Flags!$C29,1) -> 65.34780884 | D29: =INDIRECT(CONCATENATE("'",D$1,"'!",D$4,(YEAR($A29)-1921)*12+MONTH($A29)+3+IF(ISNUMBER(FIND("PRV",D$6)),1,0)))*IF(AND(D$3>0,TRIM(D$9)="CFS"),Conv_Flags!$C29,1) -> 65.35009003 | E29: =INDIRECT(CONCATENATE("'",E$1,"'!",E$4,(YEAR($A29)-1921)*12+MONTH($A29)+3+IF(ISNUMBER(FIND("PRV",E$6)),1,0)))*IF(AND(E$3>0,TRIM(E$9)="CFS"),Conv_Flags!$C29,1) -> 65.34780884 | F29: =INDIRECT(CONCATENATE("'",F$1,"'!",F$4,(YEAR($A29)-1921)*12+MONTH($A29)+3+IF(ISNUMBER(FIND("PRV",F$6)),1,0)))*IF(AND(F$3>0,TRIM(F$9)="CFS"),Conv_Flags!$C29,1) -> 65.46759796 | J29: 1939 | K29: =B217 -> 77.27713776 | L29: =B218 -> 82.64936829 | M29: =B219 -> 86.73332977 | N29: =B220 -> 86.70348358 | O29: =B221 -> 82.1140976 | P29: =B222 -> 81.10519409 | Q29: =B223 -> 79.38129425 | R29: =B224 -> 78.64892578 | S29: =B225 -> 84.42324066 | T29: =B226 -> 86.01334381 | U29: =B227 -> 89.65653992 | V29: =B228 -> 92.5681839 | X29: 86.31400681 | Y29: 82.27649816 | Z29: 83.93951162 | AB29: 83.34082985 | AC29: 85.18363698 | AD29: 80.8896637 | AE29: 88.16532707 | AF29: 92.22823334 | AH29: 1939 | AI29: ='Compile Data'!C217 -> 76.80121613 | AJ29: ='Compile Data'!C218 -> 82.56131744 | AK29: ='Compile Data'!C219 -> 86.75596619 | AL29: ='Compile Data'!C220 -> 86.73697662 | AM29: ='Compile Data'!C221 -> 82.14333344 | AN29: ='Compile Data'!C222 -> 81.11310577 | AO29: ='Compile Data'!C223 -> 79.47263336 | AP29: ='Compile Data'!C224 -> 78.74117279 | AQ29: ='Compile Data'!C225 -> 84.45272064 | AR29: ='Compile Data'!C226 -> 85.74210358 | AS29: ='Compile Data'!C227 -> 89.09626007 | AT29: ='Compile Data'!C228 -> 91.71243286 | AV29: 85.97540538 | AW29: 82.00754484 | AX29: 83.77743657 | AZ29: 83.21386909 | BA29: 85.21209208 | BB29: 80.94490814 | BC29: 87.75087929 | BD29: 91.18041738 | BF29: 1939 | BG29: ='Compile Data'!D217 -> 76.84153748 | BH29: ='Compile Data'!D218 -> 82.58055878 | BI29: ='Compile Data'!D219 -> 86.75426483 | BJ29: ='Compile Data'!D220 -> 86.73860931 | BK29: ='Compile Data'!D221 -> 82.14537811 | BL29: ='Compile Data'!D222 -> 81.11368561 | BM29: ='Compile Data'!D223 -> 79.47067261 | BN29: ='Compile Data'!D224 -> 79.74607086 | BO29: ='Compile Data'!D225 -> 84.97132874 | BP29: ='Compile Data'!D226 -> 85.71477509 | BQ29: ='Compile Data'!D227 -> 89.45475769 | BR29: ='Compile Data'!D228 -> 91.72536469 | BT29: 86.13362694 | BU29: 82.16699092 | BV29: 83.93808365 | BX29: 83.2287426 | BY29: 85.21275075 | BZ29: 81.32543945 | CA29: 87.96655655 | CB29: 91.19075012 | CD29: 1939 | CE29: ='Compile Data'!E217 -> 76.80120087 | CF29: ='Compile Data'!E218 -> 82.56129456 | CG29: ='Compile Data'!E219 -> 86.75518036 | CH29: ='Compile Data'!E220 -> 86.73739624 | CI29: ='Compile Data'!E221 -> 82.14391327 | CJ29: ='Compile Data'!E222 -> 81.11328125 | CK29: ='Compile Data'!E223 -> 79.47329712 | CL29: ='Compile Data'!E224 -> 78.74078369 | CM29: ='Compile Data'!E225 -> 84.45228577 | CN29: ='Compile Data'!E226 -> 85.74162292 | CO29: ='Compile Data'!E227 -> 89.09626007 | CP29: ='Compile Data'!E228 -> 91.71244049 | CR29: 85.97544161 | CS29: 82.00750573 | CT29: 83.77741305 | CV29: 83.21376801 | CW29: 85.21216329 | CX29: 80.94491196 | CY29: 87.75065231 | CZ29: 91.18038177 | DB29: 1939 | DC29: ='Compile Data'!F217 -> 77.06800842 | DD29: ='Compile Data'!F218 -> 82.69283295 | DE29: ='Compile Data'!F219 -> 86.77333069 | DF29: ='Compile Data'!F220 -> 86.73653412 | DG29: ='Compile Data'!F221 -> 82.14055634 | DH29: ='Compile Data'!F222 -> 81.11264801 | DI29: ='Compile Data'!F223 -> 79.4621048 | DJ29: ='Compile Data'!F224 -> 79.57939911 | DK29: ='Compile Data'!F225 -> 85.0151825 | DL29: ='Compile Data'!F226 -> 85.789711 | DM29: ='Compile Data'!F227 -> 89.57184601 | DN29: ='Compile Data'!F228 -> 91.68497467 | DP29: 86.14315351 | DQ29: 82.17246373 | DR29: 83.96892738 | DT29: 83.31767654 | DU29: 85.21680705 | DV29: 81.2923336 | DW29: 88.01542854 | DX29: 91.19619242
A30: 1923-03-31 | B30: =INDIRECT(CONCATENATE("'",B$1,"'!",B$4,(YEAR($A30)-1921)*12+MONTH($A30)+3+IF(ISNUMBER(FIND("PRV",B$6)),1,0)))*IF(AND(B$3>0,TRIM(B$9)="CFS"),Conv_Flags!$C30,1) -> 73.49872589 | C30: =INDIRECT(CONCATENATE("'",C$1,"'!",C$4,(YEAR($A30)-1921)*12+MONTH($A30)+3+IF(ISNUMBER(FIND("PRV",C$6)),1,0)))*IF(AND(C$3>0,TRIM(C$9)="CFS"),Conv_Flags!$C30,1) -> 73.50023651 | D30: =INDIRECT(CONCATENATE("'",D$1,"'!",D$4,(YEAR($A30)-1921)*12+MONTH($A30)+3+IF(ISNUMBER(FIND("PRV",D$6)),1,0)))*IF(AND(D$3>0,TRIM(D$9)="CFS"),Conv_Flags!$C30,1) -> 73.38317108 | E30: =INDIRECT(CONCATENATE("'",E$1,"'!",E$4,(YEAR($A30)-1921)*12+MONTH($A30)+3+IF(ISNUMBER(FIND("PRV",E$6)),1,0)))*IF(AND(E$3>0,TRIM(E$9)="CFS"),Conv_Flags!$C30,1) -> 73.50023651 | F30: =INDIRECT(CONCATENATE("'",F$1,"'!",F$4,(YEAR($A30)-1921)*12+MONTH($A30)+3+IF(ISNUMBER(FIND("PRV",F$6)),1,0)))*IF(AND(F$3>0,TRIM(F$9)="CFS"),Conv_Flags!$C30,1) -> 73.56845093 | J30: 1940 | K30: =B229 -> 92.19737244 | L30: =B230 -> 91.91914368 | M30: =B231 -> 91.03726196 | N30: =B232 -> 66.27349091 | O30: =B233 -> 54.09398651 | P30: =B234 -> 54 | Q30: =B235 -> 54 | R30: =B236 -> 62.9178772 | S30: =B237 -> 76.75632477 | T30: =B238 -> 79.5256958 | U30: =B239 -> 83.84040833 | V30: =B240 -> 79.65068054 | X30: 70.14995003 | Y30: 69.11932691 | Z30: 73.85102018 | AB30: 85.35681725 | AC30: 70.46824646 | AD30: 61.91855049 | AE30: 79.94327736 | AF30: 82.10643768 | AH30: 1940 | AI30: ='Compile Data'!C229 -> 90.99160004 | AJ30: ='Compile Data'!C230 -> 90.83721924 | AK30: ='Compile Data'!C231 -> 90.66530609 | AL30: ='Compile Data'!C232 -> 67.07600403 | AM30: ='Compile Data'!C233 -> 54.18997955 | AN30: ='Compile Data'!C234 -> 54 | AO30: ='Compile Data'!C235 -> 54 | AP30: ='Compile Data'!C236 -> 62.99145889 | AQ30: ='Compile Data'!C237 -> 76.54312897 | AR30: ='Compile Data'!C238 -> 79.44359589 | AS30: ='Compile Data'!C239 -> 83.44364166 | AT30: ='Compile Data'!C240 -> 79.00749969 | AV30: 70.14047464 | AW30: 69.03595352 | AX30: 73.5991195 | AZ30: 84.89253235 | BA30: 70.64376322 | BB30: 61.88364697 | BC30: 79.60946655 | BD30: 81.72360484 | BF30: 1940 | BG30: ='Compile Data'!D229 -> 90.96250916 | BH30: ='Compile Data'!D230 -> 90.88437653 | BI30: ='Compile Data'!D231 -> 90.67599487 | BJ30: ='Compile Data'!D232 -> 67.10040283 | BK30: ='Compile Data'!D233 -> 54.18395233 | BL30: ='Compile Data'!D234 -> 54 | BM30: ='Compile Data'!D235 -> 54 | BN30: ='Compile Data'!D236 -> 62.99171066 | BO30: ='Compile Data'!D237 -> 76.54286194 | BP30: ='Compile Data'!D238 -> 79.44817352 | BQ30: ='Compile Data'!D239 -> 83.44656372 | BR30: ='Compile Data'!D240 -> 79.0083313 | BT30: 70.13544114 | BU30: 69.02908325 | BV30: 73.60373974 | BX30: 84.90582085 | BY30: 70.65345001 | BZ30: 61.88364315 | CA30: 79.61148262 | CB30: 81.75755819 | CD30: 1940 | CE30: ='Compile Data'!E229 -> 90.99152374 | CF30: ='Compile Data'!E230 -> 90.83718109 | CG30: ='Compile Data'!E231 -> 90.66531372 | CH30: ='Compile Data'!E232 -> 67.07608032 | CI30: ='Compile Data'!E233 -> 54.18999863 | CJ30: ='Compile Data'!E234 -> 54 | CK30: ='Compile Data'!E235 -> 54 | CL30: ='Compile Data'!E236 -> 62.9914856 | CM30: ='Compile Data'!E237 -> 76.54314423 | CN30: ='Compile Data'!E238 -> 79.44354248 | CO30: ='Compile Data'!E239 -> 83.44355774 | CP30: ='Compile Data'!E240 -> 79.00762177 | CR30: 70.07627455 | CS30: 68.97108905 | CT30: 73.59912078 | CV30: 84.89252472 | CW30: 70.64379756 | CX30: 61.88365746 | CY30: 79.60946655 | CZ30: 81.59857178 | DB30: 1940 | DC30: ='Compile Data'!F229 -> 90.96033478 | DD30: ='Compile Data'!F230 -> 90.94326782 | DE30: ='Compile Data'!F231 -> 90.72128296 | DF30: ='Compile Data'!F232 -> 67.08547211 | DG30: ='Compile Data'!F233 -> 54.14334106 | DH30: ='Compile Data'!F234 -> 54 | DI30: ='Compile Data'!F235 -> 54 | DJ30: ='Compile Data'!F236 -> 62.98957443 | DK30: ='Compile Data'!F237 -> 76.74350739 | DL30: ='Compile Data'!F238 -> 79.44418335 | DM30: ='Compile Data'!F239 -> 83.45326996 | DN30: ='Compile Data'!F240 -> 79.04950714 | DP30: 70.09092681 | DQ30: 68.98852571 | DR30: 73.62781175 | DT30: 84.92758942 | DU30: 70.65003204 | DV30: 61.93327045 | DW30: 79.67261696 | DX30: 81.69329071
A31: 1923-04-30 | B31: =INDIRECT(CONCATENATE("'",B$1,"'!",B$4,(YEAR($A31)-1921)*12+MONTH($A31)+3+IF(ISNUMBER(FIND("PRV",B$6)),1,0)))*IF(AND(B$3>0,TRIM(B$9)="CFS"),Conv_Flags!$C31,1) -> 64.09114075 | C31: =INDIRECT(CONCATENATE("'",C$1,"'!",C$4,(YEAR($A31)-1921)*12+MONTH($A31)+3+IF(ISNUMBER(FIND("PRV",C$6)),1,0)))*IF(AND(C$3>0,TRIM(C$9)="CFS"),Conv_Flags!$C31,1) -> 64.09104919 | D31: =INDIRECT(CONCATENATE("'",D$1,"'!",D$4,(YEAR($A31)-1921)*12+MONTH($A31)+3+IF(ISNUMBER(FIND("PRV",D$6)),1,0)))*IF(AND(D$3>0,TRIM(D$9)="CFS"),Conv_Flags!$C31,1) -> 64.04458618 | E31: =INDIRECT(CONCATENATE("'",E$1,"'!",E$4,(YEAR($A31)-1921)*12+MONTH($A31)+3+IF(ISNUMBER(FIND("PRV",E$6)),1,0)))*IF(AND(E$3>0,TRIM(E$9)="CFS"),Conv_Flags!$C31,1) -> 64.09104156 | F31: =INDIRECT(CONCATENATE("'",F$1,"'!",F$4,(YEAR($A31)-1921)*12+MONTH($A31)+3+IF(ISNUMBER(FIND("PRV",F$6)),1,0)))*IF(AND(F$3>0,TRIM(F$9)="CFS"),Conv_Flags!$C31,1) -> 64.09056091 | J31: 1941 | K31: =B241 -> 80.84468842 | L31: =B242 -> 85.82394409 | M31: =B243 -> 64.07230377 | N31: =B244 -> 54 | O31: =B245 -> 54 | P31: =B246 -> 54 | Q31: =B247 -> 54 | R31: =B248 -> 54.1265564 | S31: =B249 -> 65.01569366 | T31: =B250 -> 76.6764679 | U31: =B251 -> 82.90096283 | V31: =B252 -> 79.58388519 | X31: 66.17483203 | Y31: 66.17483203 | Z31: 67.08704185 | AB31: 71.18523407 | AC31: 57.35743459 | AD31: 56.78556252 | AE31: 76.0442524 | AF31: 80.15248617 | AH31: 1941 | AI31: ='Compile Data'!C241 -> 80.56235504 | AJ31: ='Compile Data'!C242 -> 85.60095978 | AK31: ='Compile Data'!C243 -> 64.82707214 | AL31: ='Compile Data'!C244 -> 54.01173019 | AM31: ='Compile Data'!C245 -> 54 | AN31: ='Compile Data'!C246 -> 54 | AO31: ='Compile Data'!C247 -> 54 | AP31: ='Compile Data'!C248 -> 54.1381073 | AQ31: ='Compile Data'!C249 -> 65.02320862 | AR31: ='Compile Data'!C250 -> 76.67514801 | AS31: ='Compile Data'!C251 -> 82.56147766 | AT31: ='Compile Data'!C252 -> 78.99068451 | AV31: 66.06712723 | AW31: 66.06614971 | AX31: 67.03256194 | AZ31: 71.25052929 | BA31: 57.61293411 | BB31: 56.79032898 | BC31: 75.8126297 | BD31: 79.70126851 | BF31: 1941 | BG31: ='Compile Data'!D241 -> 80.62181854 | BH31: ='Compile Data'!D242 -> 85.64252472 | BI31: ='Compile Data'!D243 -> 64.63895416 | BJ31: ='Compile Data'!D244 -> 54.00806046 | BK31: ='Compile Data'!D245 -> 54 | BL31: ='Compile Data'!D246 -> 54 | BM31: ='Compile Data'!D247 -> 54 | BN31: ='Compile Data'!D248 -> 54.13816071 | BO31: ='Compile Data'!D249 -> 65.02335358 | BP31: ='Compile Data'!D250 -> 76.67526245 | BQ31: ='Compile Data'!D251 -> 82.56143951 | BR31: ='Compile Data'!D252 -> 78.99066162 | BT31: 66.0668443 | BU31: 66.0661726 | BV31: 67.02501965 | BX31: 71.22783947 | BY31: 57.54900487 | BZ31: 56.79037857 | CA31: 75.81267929 | CB31: 79.70126088 | CD31: 1941 | CE31: ='Compile Data'!E241 -> 80.30897522 | CF31: ='Compile Data'!E242 -> 85.47911835 | CG31: ='Compile Data'!E243 -> 64.43177032 | CH31: ='Compile Data'!E244 -> 54.00385284 | CI31: ='Compile Data'!E245 -> 54 | CJ31: ='Compile Data'!E246 -> 54 | CK31: ='Compile Data'!E247 -> 54 | CL31: ='Compile Data'!E248 -> 54.13690567 | CM31: ='Compile Data'!E249 -> 65.02103424 | CN31: ='Compile Data'!E250 -> 76.67405701 | CO31: ='Compile Data'!E251 -> 82.5612793 | CP31: ='Compile Data'!E252 -> 78.99030304 | CR31: 66.06540489 | CS31: 66.06508382 | CT31: 66.96727467 | CV31: 71.05592918 | CW31: 57.47854106 | CX31: 56.78948498 | CY31: 75.8116684 | CZ31: 79.70118459 | DB31: 1941 | DC31: ='Compile Data'!F241 -> 80.53643799 | DD31: ='Compile Data'!F242 -> 85.493927 | DE31: ='Compile Data'!F243 -> 64.15190125 | DF31: ='Compile Data'!F244 -> 54 | DG31: ='Compile Data'!F245 -> 54 | DH31: ='Compile Data'!F246 -> 54 | DI31: ='Compile Data'!F247 -> 54 | DJ31: ='Compile Data'!F248 -> 54.1376152 | DK31: ='Compile Data'!F249 -> 65.02631378 | DL31: ='Compile Data'!F250 -> 76.67630768 | DM31: ='Compile Data'!F251 -> 82.56129456 | DN31: ='Compile Data'!F252 -> 78.99117279 | DP31: 66.06686147 | DQ31: 66.06686147 | DR31: 66.96458085 | DT31: 71.04556656 | DU31: 57.38396708 | DV31: 56.79098225 | DW31: 75.8137722 | DX31: 79.70148977
A32: 1923-05-31 | B32: =INDIRECT(CONCATENATE("'",B$1,"'!",B$4,(YEAR($A32)-1921)*12+MONTH($A32)+3+IF(ISNUMBER(FIND("PRV",B$6)),1,0)))*IF(AND(B$3>0,TRIM(B$9)="CFS"),Conv_Flags!$C32,1) -> 63.92809296 | C32: =INDIRECT(CONCATENATE("'",C$1,"'!",C$4,(YEAR($A32)-1921)*12+MONTH($A32)+3+IF(ISNUMBER(FIND("PRV",C$6)),1,0)))*IF(AND(C$3>0,TRIM(C$9)="CFS"),Conv_Flags!$C32,1) -> 63.92559814 | D32: =INDIRECT(CONCATENATE("'",D$1,"'!",D$4,(YEAR($A32)-1921)*12+MONTH($A32)+3+IF(ISNUMBER(FIND("PRV",D$6)),1,0)))*IF(AND(D$3>0,TRIM(D$9)="CFS"),Conv_Flags!$C32,1) -> 63.92429352 | E32: =INDIRECT(CONCATENATE("'",E$1,"'!",E$4,(YEAR($A32)-1921)*12+MONTH($A32)+3+IF(ISNUMBER(FIND("PRV",E$6)),1,0)))*IF(AND(E$3>0,TRIM(E$9)="CFS"),Conv_Flags!$C32,1) -> 63.9251976 | F32: =INDIRECT(CONCATENATE("'",F$1,"'!",F$4,(YEAR($A32)-1921)*12+MONTH($A32)+3+IF(ISNUMBER(FIND("PRV",F$6)),1,0)))*IF(AND(F$3>0,TRIM(F$9)="CFS"),Conv_Flags!$C32,1) -> 63.92675018 | J32: 1942 | K32: =B253 -> 77.75354767 | L32: =B254 -> 83.12002563 | M32: =B255 -> 58.92084503 | N32: =B256 -> 54 | O32: =B257 -> 54 | P32: =B258 -> 58.5868721 | Q32: =B259 -> 54.89168549 | R32: =B260 -> 55.2046814 | S32: =B261 -> 61.3083992 | T32: =B262 -> 73.42899323 | U32: =B263 -> 81.888237 | V32: =B264 -> 79.23442841 | X32: 66.89128939 | Y32: 66.94608752 | Z32: 66.02814293 | AB32: 68.44860458 | AC32: 55.64028168 | AD32: 57.49790955 | AE32: 73.96501446 | AF32: 79.38380432 | AH32: 1942 | AI32: ='Compile Data'!C253 -> 77.17769623 | AJ32: ='Compile Data'!C254 -> 82.9354248 | AK32: ='Compile Data'!C255 -> 59.29204941 | AL32: ='Compile Data'!C256 -> 54 | AM32: ='Compile Data'!C257 -> 54 | AN32: ='Compile Data'!C258 -> 58.58816147 | AO32: ='Compile Data'!C259 -> 54.89234924 | AP32: ='Compile Data'!C260 -> 55.20493698 | AQ32: ='Compile Data'!C261 -> 61.3086319 | AR32: ='Compile Data'!C262 -> 73.42870331 | AS32: ='Compile Data'!C263 -> 81.56996918 | AT32: ='Compile Data'!C264 -> 78.6552124 | AV32: 66.80719694 | AW32: 66.86794408 | AX32: 65.92109458 | AZ32: 68.35129261 | BA32: 55.76401647 | BB32: 57.4985199 | BC32: 73.7406292 | BD32: 79.02628072 | BF32: 1942 | BG32: ='Compile Data'!D253 -> 77.1776886 | BH32: ='Compile Data'!D254 -> 82.93543243 | BI32: ='Compile Data'!D255 -> 59.2920723 | BJ32: ='Compile Data'!D256 -> 54 | BK32: ='Compile Data'!D257 -> 54 | BL32: ='Compile Data'!D258 -> 58.58812714 | BM32: ='Compile Data'!D259 -> 54.8923378 | BN32: ='Compile Data'!D260 -> 55.20492935 | BO32: ='Compile Data'!D261 -> 61.30870819 | BP32: ='Compile Data'!D262 -> 73.42886353 | BQ32: ='Compile Data'!D263 -> 81.57074738 | BR32: ='Compile Data'!D264 -> 78.65140533 | BT32: 66.80703608 | BU32: 66.86787192 | BV32: 65.92085934 | BX32: 68.35129833 | BY32: 55.7640241 | BZ32: 57.49852562 | CA32: 73.73993111 | CB32: 79.02548472 | CD32: 1942 | CE32: ='Compile Data'!E253 -> 77.17745972 | CF32: ='Compile Data'!E254 -> 82.93579102 | CG32: ='Compile Data'!E255 -> 59.28417587 | CH32: ='Compile Data'!E256 -> 54 | CI32: ='Compile Data'!E257 -> 54 | CJ32: ='Compile Data'!E258 -> 58.58817291 | CK32: ='Compile Data'!E259 -> 54.8923378 | CL32: ='Compile Data'!E260 -> 55.20495987 | CM32: ='Compile Data'!E261 -> 61.30869675 | CN32: ='Compile Data'!E262 -> 73.42874146 | CO32: ='Compile Data'!E263 -> 81.57015228 | CP32: ='Compile Data'!E264 -> 78.65441132 | CR32: 66.80723286 | CS32: 66.86794058 | CT32: 65.92040825 | CV32: 68.34935665 | CW32: 55.76139196 | CX32: 57.49854183 | CY32: 73.74050045 | CZ32: 79.02624257 | DB32: 1942 | DC32: ='Compile Data'!F253 -> 77.17803955 | DD32: ='Compile Data'!F254 -> 82.93525696 | DE32: ='Compile Data'!F255 -> 59.29633713 | DF32: ='Compile Data'!F256 -> 54 | DG32: ='Compile Data'!F257 -> 54 | DH32: ='Compile Data'!F258 -> 58.58811951 | DI32: ='Compile Data'!F259 -> 54.8923378 | DJ32: ='Compile Data'!F260 -> 55.20491791 | DK32: ='Compile Data'!F261 -> 61.30857086 | DL32: ='Compile Data'!F262 -> 73.4285965 | DM32: ='Compile Data'!F263 -> 81.57110596 | DN32: ='Compile Data'!F264 -> 78.64931488 | DP32: 66.80697091 | DQ32: 66.86785158 | DR32: 65.92104975 | DT32: 68.35240841 | DU32: 55.76544571 | DV32: 57.49848652 | DW32: 73.73939705 | DX32: 79.02537537
A33: 1923-06-30 | B33: =INDIRECT(CONCATENATE("'",B$1,"'!",B$4,(YEAR($A33)-1921)*12+MONTH($A33)+3+IF(ISNUMBER(FIND("PRV",B$6)),1,0)))*IF(AND(B$3>0,TRIM(B$9)="CFS"),Conv_Flags!$C33,1) -> 76.09367371 | C33: =INDIRECT(CONCATENATE("'",C$1,"'!",C$4,(YEAR($A33)-1921)*12+MONTH($A33)+3+IF(ISNUMBER(FIND("PRV",C$6)),1,0)))*IF(AND(C$3>0,TRIM(C$9)="CFS"),Conv_Flags!$C33,1) -> 76.09089661 | D33: =INDIRECT(CONCATENATE("'",D$1,"'!",D$4,(YEAR($A33)-1921)*12+MONTH($A33)+3+IF(ISNUMBER(FIND("PRV",D$6)),1,0)))*IF(AND(D$3>0,TRIM(D$9)="CFS"),Conv_Flags!$C33,1) -> 76.09156799 | E33: =INDIRECT(CONCATENATE("'",E$1,"'!",E$4,(YEAR($A33)-1921)*12+MONTH($A33)+3+IF(ISNUMBER(FIND("PRV",E$6)),1,0)))*IF(AND(E$3>0,TRIM(E$9)="CFS"),Conv_Flags!$C33,1) -> 76.09088898 | F33: =INDIRECT(CONCATENATE("'",F$1,"'!",F$4,(YEAR($A33)-1921)*12+MONTH($A33)+3+IF(ISNUMBER(FIND("PRV",F$6)),1,0)))*IF(AND(F$3>0,TRIM(F$9)="CFS"),Conv_Flags!$C33,1) -> 76.09190369 | J33: 1943 | K33: =B265 -> 77.58504486 | L33: =B266 -> 81.3319397 | M33: =B267 -> 71.23519135 | N33: =B268 -> 54.65757751 | O33: =B269 -> 54 | P33: =B270 -> 54 | Q33: =B271 -> 55.7599144 | R33: =B272 -> 64.83513641 | S33: =B273 -> 76.15849304 | T33: =B274 -> 78.15000153 | U33: =B275 -> 82.40666962 | V33: =B276 -> 79.4705658 | X33: 71.02567387 | Y33: 74.60466925 | Z33: 69.13254452 | AB33: 71.20243835 | AC33: 59.96425629 | AD33: 62.68838596 | AE33: 79.0464325 | AF33: 81.51659393 | AH33: 1943 | AI33: ='Compile Data'!C265 -> 77.1653595 | AJ33: ='Compile Data'!C266 -> 81.25827026 | AK33: ='Compile Data'!C267 -> 71.61476898 | AL33: ='Compile Data'!C268 -> 54.72896576 | AM33: ='Compile Data'!C269 -> 54 | AN33: ='Compile Data'!C270 -> 54 | AO33: ='Compile Data'!C271 -> 55.76102829 | AP33: ='Compile Data'!C272 -> 64.83656311 | AQ33: ='Compile Data'!C273 -> 76.1594162 | AR33: ='Compile Data'!C274 -> 78.1494751 | AS33: ='Compile Data'!C275 -> 82.06402588 | AT33: ='Compile Data'!C276 -> 78.90752411 | AV33: 70.89596335 | AW33: 74.47364076 | AX33: 69.0537831 | AZ33: 71.19184113 | BA33: 60.11457825 | BB33: 62.6892519 | BC33: 78.82011032 | BD33: 81.09590403 | BF33: 1943 | BG33: ='Compile Data'!D265 -> 77.16622162 | BH33: ='Compile Data'!D266 -> 81.25882721 | BI33: ='Compile Data'!D267 -> 71.61426544 | BJ33: ='Compile Data'!D268 -> 54.73003006 | BK33: ='Compile Data'!D269 -> 54 | BL33: ='Compile Data'!D270 -> 54 | BM33: ='Compile Data'!D271 -> 55.76107407 | BN33: ='Compile Data'!D272 -> 64.83659363 | BO33: ='Compile Data'!D273 -> 76.15943146 | BP33: ='Compile Data'!D274 -> 78.1493454 | BQ33: ='Compile Data'!D275 -> 82.06482697 | BR33: ='Compile Data'!D276 -> 78.90735626 | BT33: 70.89616521 | BU33: 74.47382132 | BV33: 69.05399768 | BX33: 71.19233608 | BY33: 60.11476517 | BZ33: 62.68927479 | CA33: 78.82024002 | CB33: 81.09593201 | CD33: 1943 | CE33: ='Compile Data'!E265 -> 77.16584015 | CF33: ='Compile Data'!E266 -> 81.25847626 | CG33: ='Compile Data'!E267 -> 71.61500549 | CH33: ='Compile Data'!E268 -> 54.72849274 | CI33: ='Compile Data'!E269 -> 54 | CJ33: ='Compile Data'!E270 -> 54 | CK33: ='Compile Data'!E271 -> 55.76103592 | CL33: ='Compile Data'!E272 -> 64.83663177 | CM33: ='Compile Data'!E273 -> 76.15945435 | CN33: ='Compile Data'!E274 -> 78.14944458 | CO33: ='Compile Data'!E275 -> 82.06422424 | CP33: ='Compile Data'!E276 -> 78.90753937 | CR33: 70.89595954 | CS33: 74.4736948 | CT33: 69.05384541 | CV33: 71.19195366 | CW33: 60.11449941 | CX33: 62.68928051 | CY33: 78.82016563 | CZ33: 81.09593201 | DB33: 1943 | DC33: ='Compile Data'!F265 -> 77.16786194 | DD33: ='Compile Data'!F266 -> 81.25894928 | DE33: ='Compile Data'!F267 -> 71.61387634 | DF33: ='Compile Data'!F268 -> 54.73056793 | DG33: ='Compile Data'!F269 -> 54 | DH33: ='Compile Data'!F270 -> 54 | DI33: ='Compile Data'!F271 -> 55.76105499 | DJ33: ='Compile Data'!F272 -> 64.83657074 | DK33: ='Compile Data'!F273 -> 76.15940094 | DL33: ='Compile Data'!F274 -> 78.14798737 | DM33: ='Compile Data'!F275 -> 82.07081604 | DN33: ='Compile Data'!F276 -> 78.90555573 | DP33: 70.89654859 | DQ33: 74.47431374 | DR33: 69.05438677 | DT33: 71.19281387 | DU33: 60.11481476 | DV33: 62.68925667 | DW33: 78.82094002 | DX33: 81.09533183
A34: 1923-07-31 | B34: =INDIRECT(CONCATENATE("'",B$1,"'!",B$4,(YEAR($A34)-1921)*12+MONTH($A34)+3+IF(ISNUMBER(FIND("PRV",B$6)),1,0)))*IF(AND(B$3>0,TRIM(B$9)="CFS"),Conv_Flags!$C34,1) -> 82.98035431 | C34: =INDIRECT(CONCATENATE("'",C$1,"'!",C$4,(YEAR($A34)-1921)*12+MONTH($A34)+3+IF(ISNUMBER(FIND("PRV",C$6)),1,0)))*IF(AND(C$3>0,TRIM(C$9)="CFS"),Conv_Flags!$C34,1) -> 82.98595428 | D34: =INDIRECT(CONCATENATE("'",D$1,"'!",D$4,(YEAR($A34)-1921)*12+MONTH($A34)+3+IF(ISNUMBER(FIND("PRV",D$6)),1,0)))*IF(AND(D$3>0,TRIM(D$9)="CFS"),Conv_Flags!$C34,1) -> 82.98160553 | E34: =INDIRECT(CONCATENATE("'",E$1,"'!",E$4,(YEAR($A34)-1921)*12+MONTH($A34)+3+IF(ISNUMBER(FIND("PRV",E$6)),1,0)))*IF(AND(E$3>0,TRIM(E$9)="CFS"),Conv_Flags!$C34,1) -> 82.98595428 | F34: =INDIRECT(CONCATENATE("'",F$1,"'!",F$4,(YEAR($A34)-1921)*12+MONTH($A34)+3+IF(ISNUMBER(FIND("PRV",F$6)),1,0)))*IF(AND(F$3>0,TRIM(F$9)="CFS"),Conv_Flags!$C34,1) -> 82.96713257 | J34: 1944 | K34: =B277 -> 80.5583725 | L34: =B278 -> 84.52084351 | M34: =B279 -> 87.79051208 | N34: =B280 -> 84.04750824 | O34: =B281 -> 67.55801392 | P34: =B282 -> 64.45953369 | Q34: =B283 -> 72.18332672 | R34: =B284 -> 79.10906219 | S34: =B285 -> 81.65818787 | T34: =B286 -> 84.32245636 | U34: =B287 -> 89.49371338 | V34: =B288 -> 91.98355865 | X34: 81.61136119 | Y34: 80.669583 | Z34: 80.64042409 | AB34: 84.22930908 | AC34: 79.79867808 | AD34: 74.35252762 | AE34: 86.86447906 | AF34: 90.949941 | AH34: 1944 | AI34: ='Compile Data'!C277 -> 80.06137848 | AJ34: ='Compile Data'!C278 -> 84.31880951 | AK34: ='Compile Data'!C279 -> 87.76437378 | AL34: ='Compile Data'!C280 -> 84.04179382 | AM34: ='Compile Data'!C281 -> 67.61930084 | AN34: ='Compile Data'!C282 -> 64.4756012 | AO34: ='Compile Data'!C283 -> 72.1839447 | AP34: ='Compile Data'!C284 -> 79.11017609 | AQ34: ='Compile Data'!C285 -> 81.6509552 | AR34: ='Compile Data'!C286 -> 84.26633453 | AS34: ='Compile Data'!C287 -> 88.73180389 | AT34: ='Compile Data'!C288 -> 90.92604065 | AV34: 81.2432181 | AW34: 80.00844701 | AX34: 80.42920939 | AZ34: 84.0465889 | BA34: 79.80848948 | BB34: 74.3551693 | BC34: 86.39378357 | BD34: 90.38504028 | BF34: 1944 | BG34: ='Compile Data'!D277 -> 80.06124115 | BH34: ='Compile Data'!D278 -> 84.31919861 | BI34: ='Compile Data'!D279 -> 87.76488495 | BJ34: ='Compile Data'!D280 -> 84.04230499 | BK34: ='Compile Data'!D281 -> 67.61959839 | BL34: ='Compile Data'!D282 -> 64.47570038 | BM34: ='Compile Data'!D283 -> 72.1833725 | BN34: ='Compile Data'!D284 -> 79.11013031 | BO34: ='Compile Data'!D285 -> 81.65102386 | BP34: ='Compile Data'!D286 -> 84.26812744 | BQ34: ='Compile Data'!D287 -> 88.7315979 | BR34: ='Compile Data'!D288 -> 90.92595673 | BT34: 81.4533507 | BU34: 80.52053579 | BV34: 80.4294281 | BX34: 84.04690742 | BY34: 79.80892944 | BZ34: 74.35505676 | CA34: 86.39417648 | CB34: 90.38515472 | CD34: 1944 | CE34: ='Compile Data'!E277 -> 80.06143188 | CF34: ='Compile Data'!E278 -> 84.31882477 | CG34: ='Compile Data'!E279 -> 87.76443481 | CH34: ='Compile Data'!E280 -> 84.04187775 | CI34: ='Compile Data'!E281 -> 67.61943817 | CJ34: ='Compile Data'!E282 -> 64.47570801 | CK34: ='Compile Data'!E283 -> 72.18404388 | CL34: ='Compile Data'!E284 -> 79.11014557 | CM34: ='Compile Data'!E285 -> 81.65096283 | CN34: ='Compile Data'!E286 -> 84.26660919 | CO34: ='Compile Data'!E287 -> 88.73216248 | CP34: ='Compile Data'!E288 -> 90.9261322 | CR34: 81.24333763 | CS34: 80.00858434 | CT34: 80.4293143 | CV34: 84.0466423 | CW34: 79.80858358 | CX34: 74.35521507 | CY34: 86.39396667 | CZ34: 90.38512929 | DB34: 1944 | DC34: ='Compile Data'!F277 -> 80.06013489 | DD34: ='Compile Data'!F278 -> 84.32030487 | DE34: ='Compile Data'!F279 -> 87.76618958 | DF34: ='Compile Data'!F280 -> 84.0434494 | DG34: ='Compile Data'!F281 -> 67.62030029 | DH34: ='Compile Data'!F282 -> 64.47585297 | DI34: ='Compile Data'!F283 -> 72.18341064 | DJ34: ='Compile Data'!F284 -> 79.10975647 | DK34: ='Compile Data'!F285 -> 81.66975403 | DL34: ='Compile Data'!F286 -> 84.32685089 | DM34: ='Compile Data'!F287 -> 88.92935181 | DN34: ='Compile Data'!F288 -> 91.03914642 | DP34: 81.33105024 | DQ34: 80.04748789 | DR34: 80.46204185 | DT34: 84.04751968 | DU34: 79.80997976 | DV34: 74.35969353 | DW34: 86.49127579 | DX34: 90.71127065
A35: 1923-08-31 | B35: =INDIRECT(CONCATENATE("'",B$1,"'!",B$4,(YEAR($A35)-1921)*12+MONTH($A35)+3+IF(ISNUMBER(FIND("PRV",B$6)),1,0)))*IF(AND(B$3>0,TRIM(B$9)="CFS"),Conv_Flags!$C35,1) -> 87.20682526 | C35: =INDIRECT(CONCATENATE("'",C$1,"'!",C$4,(YEAR($A35)-1921)*12+MONTH($A35)+3+IF(ISNUMBER(FIND("PRV",C$6)),1,0)))*IF(AND(C$3>0,TRIM(C$9)="CFS"),Conv_Flags!$C35,1) -> 87.18811035 | D35: =INDIRECT(CONCATENATE("'",D$1,"'!",D$4,(YEAR($A35)-1921)*12+MONTH($A35)+3+IF(ISNUMBER(FIND("PRV",D$6)),1,0)))*IF(AND(D$3>0,TRIM(D$9)="CFS"),Conv_Flags!$C35,1) -> 87.1988678 | E35: =INDIRECT(CONCATENATE("'",E$1,"'!",E$4,(YEAR($A35)-1921)*12+MONTH($A35)+3+IF(ISNUMBER(FIND("PRV",E$6)),1,0)))*IF(AND(E$3>0,TRIM(E$9)="CFS"),Conv_Flags!$C35,1) -> 87.18811035 | F35: =INDIRECT(CONCATENATE("'",F$1,"'!",F$4,(YEAR($A35)-1921)*12+MONTH($A35)+3+IF(ISNUMBER(FIND("PRV",F$6)),1,0)))*IF(AND(F$3>0,TRIM(F$9)="CFS"),Conv_Flags!$C35,1) -> 87.16234589 | J35: 1945 | K35: =B289 -> 92.48470306 | L35: =B290 -> 88.38156128 | M35: =B291 -> 83.65470886 | N35: =B292 -> 82.80488586 | O35: =B293 -> 57.4992981 | P35: =B294 -> 60.4487648 | Q35: =B295 -> 67.05628204 | R35: =B296 -> 68.9026413 | S35: =B297 -> 77.83818054 | T35: =B298 -> 82.7003479 | U35: =B299 -> 86.70722198 | V35: =B300 -> 91.10826874 | X35: 75.76167043 | Y35: 73.93231996 | Z35: 78.29890537 | AB35: 86.83146477 | AC35: 74.65296427 | AD35: 68.56146717 | AE35: 84.58850479 | AF35: 89.4302597 | AH35: 1945 | AI35: ='Compile Data'!C289 -> 91.08689117 | AJ35: ='Compile Data'!C290 -> 89.14218903 | AK35: ='Compile Data'!C291 -> 81.68358612 | AL35: ='Compile Data'!C292 -> 79.41355896 | AM35: ='Compile Data'!C293 -> 57.43028259 | AN35: ='Compile Data'!C294 -> 60.49199295 | AO35: ='Compile Data'!C295 -> 67.05517578 | AP35: ='Compile Data'!C296 -> 68.91378021 | AQ35: ='Compile Data'!C297 -> 77.84281158 | AR35: ='Compile Data'!C298 -> 82.70166779 | AS35: ='Compile Data'!C299 -> 86.68322754 | AT35: ='Compile Data'!C300 -> 90.94242859 | AV35: 75.46075471 | AW35: 73.96244017 | AX35: 77.78229936 | AZ35: 85.33155632 | BA35: 72.84247589 | BB35: 68.57594013 | BC35: 84.54253387 | BD35: 89.31076304 | BF35: 1945 | BG35: ='Compile Data'!D289 -> 91.08661652 | BH35: ='Compile Data'!D290 -> 89.14289093 | BI35: ='Compile Data'!D291 -> 84.20288849 | BJ35: ='Compile Data'!D292 -> 82.78851318 | BK35: ='Compile Data'!D293 -> 57.67961121 | BL35: ='Compile Data'!D294 -> 60.4759407 | BM35: ='Compile Data'!D295 -> 67.05535126 | BN35: ='Compile Data'!D296 -> 68.90500641 | BO35: ='Compile Data'!D297 -> 77.83912659 | BP35: ='Compile Data'!D298 -> 82.70021057 | BQ35: ='Compile Data'!D299 -> 86.67960358 | BR35: ='Compile Data'!D300 -> 90.91588593 | BT35: 75.73462296 | BU35: 73.93423112 | BV35: 78.28930378 | BX35: 86.80522728 | BY35: 74.89033763 | BZ35: 68.56885624 | CA35: 84.53370667 | CB35: 89.22605642 | CD35: 1945 | CE35: ='Compile Data'!E289 -> 91.08690643 | CF35: ='Compile Data'!E290 -> 89.14234924 | CG35: ='Compile Data'!E291 -> 81.68371582 | CH35: ='Compile Data'!E292 -> 79.41384125 | CI35: ='Compile Data'!E293 -> 57.43043518 | CJ35: ='Compile Data'!E294 -> 60.49206924 | CK35: ='Compile Data'!E295 -> 67.05530548 | CL35: ='Compile Data'!E296 -> 68.91391754 | CM35: ='Compile Data'!E297 -> 77.84291077 | CN35: ='Compile Data'!E298 -> 82.70184326 | CO35: ='Compile Data'!E299 -> 86.68225861 | CP35: ='Compile Data'!E300 -> 90.936409 | CR35: 75.46009986 | CS35: 73.96175925 | CT35: 77.78183015 | CV35: 85.33170319 | CW35: 72.84266408 | CX35: 68.57605076 | CY35: 84.54085541 | CZ35: 89.30809784 | DB35: 1945 | DC35: ='Compile Data'!F289 -> 91.40748596 | DD35: ='Compile Data'!F290 -> 89.68717957 | DE35: ='Compile Data'!F291 -> 81.48006439 | DF35: ='Compile Data'!F292 -> 79.16738129 | DG35: ='Compile Data'!F293 -> 57.0936203 | DH35: ='Compile Data'!F294 -> 60.45767212 | DI35: ='Compile Data'!F295 -> 67.05628967 | DJ35: ='Compile Data'!F296 -> 68.89334106 | DK35: ='Compile Data'!F297 -> 77.83480072 | DL35: ='Compile Data'!F298 -> 82.6747818 | DM35: ='Compile Data'!F299 -> 86.67628479 | DN35: ='Compile Data'!F300 -> 90.91665649 | DP35: 74.64400132 | DQ35: 73.1934611 | DR35: 77.77879651 | DT35: 85.4355278 | DU35: 72.58035533 | DV35: 68.56052589 | DW35: 84.52563095 | DX35: 86.84642537
A36: 1923-09-30 | B36: =INDIRECT(CONCATENATE("'",B$1,"'!",B$4,(YEAR($A36)-1921)*12+MONTH($A36)+3+IF(ISNUMBER(FIND("PRV",B$6)),1,0)))*IF(AND(B$3>0,TRIM(B$9)="CFS"),Conv_Flags!$C36,1) -> 89.99554443 | C36: =INDIRECT(CONCATENATE("'",C$1,"'!",C$4,(YEAR($A36)-1921)*12+MONTH($A36)+3+IF(ISNUMBER(FIND("PRV",C$6)),1,0)))*IF(AND(C$3>0,TRIM(C$9)="CFS"),Conv_Flags!$C36,1) -> 90.01702118 | D36: =INDIRECT(CONCATENATE("'",D$1,"'!",D$4,(YEAR($A36)-1921)*12+MONTH($A36)+3+IF(ISNUMBER(FIND("PRV",D$6)),1,0)))*IF(AND(D$3>0,TRIM(D$9)="CFS"),Conv_Flags!$C36,1) -> 89.94194794 | E36: =INDIRECT(CONCATENATE("'",E$1,"'!",E$4,(YEAR($A36)-1921)*12+MONTH($A36)+3+IF(ISNUMBER(FIND("PRV",E$6)),1,0)))*IF(AND(E$3>0,TRIM(E$9)="CFS"),Conv_Flags!$C36,1) -> 90.01702118 | F36: =INDIRECT(CONCATENATE("'",F$1,"'!",F$4,(YEAR($A36)-1921)*12+MONTH($A36)+3+IF(ISNUMBER(FIND("PRV",F$6)),1,0)))*IF(AND(F$3>0,TRIM(F$9)="CFS"),Conv_Flags!$C36,1) -> 88.86289215 | J36: 1946 | K36: =B301 -> 91.81985474 | L36: =B302 -> 85.36265564 | M36: =B303 -> 56.89164352 | N36: =B304 -> 54.28536606 | O36: =B305 -> 64.06661224 | P36: =B306 -> 69.18676758 | Q36: =B307 -> 68.51459503 | R36: =B308 -> 70.04020691 | S36: =B309 -> 77.13317108 | T36: =B310 -> 82.72277069 | U36: =B311 -> 86.61882019 | V36: =B312 -> 88.89152527 | X36: 77.21716531 | Y36: 80.4975001 | Z36: 74.62783241 | AB36: 72.08987999 | AC36: 58.41454061 | AD36: 71.21868515 | AE36: 83.84157181 | AF36: 90.12583415 | AH36: 1946 | AI36: ='Compile Data'!C301 -> 91.66651154 | AJ36: ='Compile Data'!C302 -> 85.323349 | AK36: ='Compile Data'!C303 -> 57.06427002 | AL36: ='Compile Data'!C304 -> 54.55003357 | AM36: ='Compile Data'!C305 -> 64.31403351 | AN36: ='Compile Data'!C306 -> 69.1967926 | AO36: ='Compile Data'!C307 -> 68.52723694 | AP36: ='Compile Data'!C308 -> 70.04124451 | AQ36: ='Compile Data'!C309 -> 77.1207428 | AR36: ='Compile Data'!C310 -> 82.72653961 | AS36: ='Compile Data'!C311 -> 86.13782501 | AT36: ='Compile Data'!C312 -> 88.15856171 | AV36: 77.04276784 | AW36: 80.27181943 | AX36: 74.5689284 | AZ36: 72.15104103 | BA36: 58.64277903 | BB36: 71.22150421 | BC36: 83.53591728 | BD36: 89.46219381 | BF36: 1946 | BG36: ='Compile Data'!D301 -> 91.66236877 | BH36: ='Compile Data'!D302 -> 85.09991455 | BI36: ='Compile Data'!D303 -> 57.01394272 | BJ36: ='Compile Data'!D304 -> 54.54972458 | BK36: ='Compile Data'!D305 -> 64.31369781 | BL36: ='Compile Data'!D306 -> 69.19635773 | BM36: ='Compile Data'!D307 -> 68.52689362 | BN36: ='Compile Data'!D308 -> 70.04089355 | BO36: ='Compile Data'!D309 -> 77.13690186 | BP36: ='Compile Data'!D310 -> 82.72904205 | BQ36: ='Compile Data'!D311 -> 86.14562225 | BR36: ='Compile Data'!D312 -> 88.24015808 | BT36: 77.09690253 | BU36: 80.3165582 | BV36: 74.55462646 | BX36: 72.08148766 | BY36: 58.62578837 | BZ36: 71.22526169 | CA36: 83.56293106 | CB36: 89.6680603 | CD36: 1946 | CE36: ='Compile Data'!E301 -> 91.66449738 | CF36: ='Compile Data'!E302 -> 85.32338715 | CG36: ='Compile Data'!E303 -> 57.06432343 | CH36: ='Compile Data'!E304 -> 54.55004883 | CI36: ='Compile Data'!E305 -> 64.31414032 | CJ36: ='Compile Data'!E306 -> 69.19690704 | CK36: ='Compile Data'!E307 -> 68.52736664 | CL36: ='Compile Data'!E308 -> 70.04131317 | CM36: ='Compile Data'!E309 -> 77.12071228 | CN36: ='Compile Data'!E310 -> 82.72652435 | CO36: ='Compile Data'!E311 -> 86.13780975 | CP36: ='Compile Data'!E312 -> 88.15855408 | CR36: 77.03358332 | CS36: 80.2625459 | CT36: 74.5687987 | CV36: 72.15056419 | CW36: 58.64283752 | CX36: 71.22157478 | CY36: 83.53590012 | CZ36: 89.42782338 | DB36: 1946 | DC36: ='Compile Data'!F301 -> 91.33934784 | DD36: ='Compile Data'!F302 -> 78.28327179 | DE36: ='Compile Data'!F303 -> 55.33456802 | DF36: ='Compile Data'!F304 -> 54.548069 | DG36: ='Compile Data'!F305 -> 64.30644989 | DH36: ='Compile Data'!F306 -> 69.19255829 | DI36: ='Compile Data'!F307 -> 68.51493835 | DJ36: ='Compile Data'!F308 -> 70.03944397 | DK36: ='Compile Data'!F309 -> 77.11605072 | DL36: ='Compile Data'!F310 -> 82.73670197 | DM36: ='Compile Data'!F311 -> 85.91420746 | DN36: ='Compile Data'!F312 -> 88.03167725 | DP36: 77.158295 | DQ36: 80.48038038 | DR36: 73.77977371 | DT36: 69.87631416 | DU36: 58.06302897 | DV36: 71.21574783 | DW36: 83.44965935 | DX36: 89.60014343
A37: 1923-10-31 | B37: =INDIRECT(CONCATENATE("'",B$1,"'!",B$4,(YEAR($A37)-1921)*12+MONTH($A37)+3+IF(ISNUMBER(FIND("PRV",B$6)),1,0)))*IF(AND(B$3>0,TRIM(B$9)="CFS"),Conv_Flags!$C37,1) -> 91.41667938 | C37: =INDIRECT(CONCATENATE("'",C$1,"'!",C$4,(YEAR($A37)-1921)*12+MONTH($A37)+3+IF(ISNUMBER(FIND("PRV",C$6)),1,0)))*IF(AND(C$3>0,TRIM(C$9)="CFS"),Conv_Flags!$C37,1) -> 90.88804626 | D37: =INDIRECT(CONCATENATE("'",D$1,"'!",D$4,(YEAR($A37)-1921)*12+MONTH($A37)+3+IF(ISNUMBER(FIND("PRV",D$6)),1,0)))*IF(AND(D$3>0,TRIM(D$9)="CFS"),Conv_Flags!$C37,1) -> 90.84889221 | E37: =INDIRECT(CONCATENATE("'",E$1,"'!",E$4,(YEAR($A37)-1921)*12+MONTH($A37)+3+IF(ISNUMBER(FIND("PRV",E$6)),1,0)))*IF(AND(E$3>0,TRIM(E$9)="CFS"),Conv_Flags!$C37,1) -> 90.88804626 | F37: =INDIRECT(CONCATENATE("'",F$1,"'!",F$4,(YEAR($A37)-1921)*12+MONTH($A37)+3+IF(ISNUMBER(FIND("PRV",F$6)),1,0)))*IF(AND(F$3>0,TRIM(F$9)="CFS"),Conv_Flags!$C37,1) -> 90.30807495 | J37: 1947 | K37: =B313 -> 90.44530487 | L37: =B314 -> 91.0406723 | M37: =B315 -> 83.66017151 | N37: =B316 -> 83.22297668 | O37: =B317 -> 74.4930191 | P37: =B318 -> 68.24228668 | Q37: =B319 -> 70.83305359 | R37: =B320 -> 80.18118286 | S37: =B321 -> 83.37013245 | T37: =B322 -> 85.43371582 | U37: =B323 -> 89.87265778 | V37: =B324 -> 91.59172058 | X37: 83.46494865 | Y37: 83.65343793 | Z37: 82.69890785 | AB37: 87.09228134 | AC37: 80.45872243 | AD37: 75.65666389 | AE37: 87.56705666 | AF37: 91.50917816 | AH37: 1947 | AI37: ='Compile Data'!C313 -> 89.60934448 | AJ37: ='Compile Data'!C314 -> 90.61867523 | AK37: ='Compile Data'!C315 -> 83.51218414 | AL37: ='Compile Data'!C316 -> 83.17041779 | AM37: ='Compile Data'!C317 -> 74.44226837 | AN37: ='Compile Data'!C318 -> 68.20810699 | AO37: ='Compile Data'!C319 -> 70.82194519 | AP37: ='Compile Data'!C320 -> 80.17987061 | AQ37: ='Compile Data'!C321 -> 83.40024567 | AR37: ='Compile Data'!C322 -> 84.96013641 | AS37: ='Compile Data'!C323 -> 89.00540924 | AT37: ='Compile Data'!C324 -> 90.65931702 | AV37: 83.13283539 | AW37: 83.30338732 | AX37: 82.38232676 | AZ37: 86.72765541 | BA37: 80.37495677 | BB37: 75.65254211 | BC37: 87.00627708 | BD37: 90.7575709 | BF37: 1947 | BG37: ='Compile Data'!D313 -> 89.96935272 | BH37: ='Compile Data'!D314 -> 90.7946701 | BI37: ='Compile Data'!D315 -> 83.51951599 | BJ37: ='Compile Data'!D316 -> 83.1655426 | BK37: ='Compile Data'!D317 -> 74.33374786 | BL37: ='Compile Data'!D318 -> 68.18179321 | BM37: ='Compile Data'!D319 -> 70.827034 | BN37: ='Compile Data'!D320 -> 80.17754364 | BO37: ='Compile Data'!D321 -> 83.39797211 | BP37: ='Compile Data'!D322 -> 84.96366882 | BQ37: ='Compile Data'!D323 -> 89.0063324 | BR37: ='Compile Data'!D324 -> 90.66151428 | BT37: 83.10489972 | BU37: 83.29461988 | BV37: 82.41655731 | BX37: 86.86227036 | BY37: 80.33960215 | BZ37: 75.64608574 | CA37: 87.0073719 | CB37: 90.70428975 | CD37: 1947 | CE37: ='Compile Data'!E313 -> 89.54428101 | CF37: ='Compile Data'!E314 -> 90.58063507 | CG37: ='Compile Data'!E315 -> 83.50470734 | CH37: ='Compile Data'!E316 -> 83.16941071 | CI37: ='Compile Data'!E317 -> 74.44232941 | CJ37: ='Compile Data'!E318 -> 68.20823669 | CK37: ='Compile Data'!E319 -> 70.82202148 | CL37: ='Compile Data'!E320 -> 80.17984772 | CM37: ='Compile Data'!E321 -> 83.40019989 | CN37: ='Compile Data'!E322 -> 84.96073914 | CO37: ='Compile Data'!E323 -> 89.0056076 | CP37: ='Compile Data'!E324 -> 90.65937042 | CR37: 83.13233312 | CS37: 83.30267652 | CT37: 82.37311554 | CV37: 86.69975853 | CW37: 80.37214915 | CX37: 75.65257645 | CY37: 87.00647926 | CZ37: 90.75584412 | DB37: 1947 | DC37: ='Compile Data'!F313 -> 89.95604706 | DD37: ='Compile Data'!F314 -> 90.81270599 | DE37: ='Compile Data'!F315 -> 84.73069 | DF37: ='Compile Data'!F316 -> 84.09449005 | DG37: ='Compile Data'!F317 -> 74.62505341 | DH37: ='Compile Data'!F318 -> 68.23350525 | DI37: ='Compile Data'!F319 -> 70.83596802 | DJ37: ='Compile Data'!F320 -> 80.18276978 | DK37: ='Compile Data'!F321 -> 83.41667938 | DL37: ='Compile Data'!F322 -> 84.88278961 | DM37: ='Compile Data'!F323 -> 89.05080414 | DN37: ='Compile Data'!F324 -> 90.74686432 | DP37: 83.22743861 | DQ37: 83.41593107 | DR37: 82.63069725 | DT37: 87.39848328 | DU37: 81.15007782 | DV37: 75.66723061 | DW37: 87.02428436 | DX37: 90.72017924
A38: 1923-11-30 | B38: =INDIRECT(CONCATENATE("'",B$1,"'!",B$4,(YEAR($A38)-1921)*12+MONTH($A38)+3+IF(ISNUMBER(FIND("PRV",B$6)),1,0)))*IF(AND(B$3>0,TRIM(B$9)="CFS"),Conv_Flags!$C38,1) -> 91.34634399 | C38: =INDIRECT(CONCATENATE("'",C$1,"'!",C$4,(YEAR($A38)-1921)*12+MONTH($A38)+3+IF(ISNUMBER(FIND("PRV",C$6)),1,0)))*IF(AND(C$3>0,TRIM(C$9)="CFS"),Conv_Flags!$C38,1) -> 90.47589111 | D38: =INDIRECT(CONCATENATE("'",D$1,"'!",D$4,(YEAR($A38)-1921)*12+MONTH($A38)+3+IF(ISNUMBER(FIND("PRV",D$6)),1,0)))*IF(AND(D$3>0,TRIM(D$9)="CFS"),Conv_Flags!$C38,1) -> 90.47273254 | E38: =INDIRECT(CONCATENATE("'",E$1,"'!",E$4,(YEAR($A38)-1921)*12+MONTH($A38)+3+IF(ISNUMBER(FIND("PRV",E$6)),1,0)))*IF(AND(E$3>0,TRIM(E$9)="CFS"),Conv_Flags!$C38,1) -> 90.47589111 | F38: =INDIRECT(CONCATENATE("'",F$1,"'!",F$4,(YEAR($A38)-1921)*12+MONTH($A38)+3+IF(ISNUMBER(FIND("PRV",F$6)),1,0)))*IF(AND(F$3>0,TRIM(F$9)="CFS"),Conv_Flags!$C38,1) -> 90.37918854 | J38: 1948 | K38: =B325 -> 92.16609955 | L38: =B326 -> 90.76971436 | M38: =B327 -> 91.4028244 | N38: =B328 -> 82.57343292 | O38: =B329 -> 77.4044342 | P38: =B330 -> 75.16042328 | Q38: =B331 -> 62.91342163 | R38: =B332 -> 59.26895905 | S38: =B333 -> 66.68319702 | T38: =B334 -> 77.93666077 | U38: =B335 -> 85.65275574 | V38: =B336 -> 89.15550995 | X38: 78.96185366 | Y38: 79.60318057 | Z38: 79.25728607 | AB38: 89.22801781 | AC38: 83.79356384 | AD38: 66.00650024 | AE38: 79.85703087 | AF38: 90.110967 | AH38: 1948 | AI38: ='Compile Data'!C325 -> 91.43712616 | AJ38: ='Compile Data'!C326 -> 90.17626953 | AK38: ='Compile Data'!C327 -> 91.13291168 | AL38: ='Compile Data'!C328 -> 82.36507416 | AM38: ='Compile Data'!C329 -> 77.29423523 | AN38: ='Compile Data'!C330 -> 75.12198639 | AO38: ='Compile Data'!C331 -> 62.86721802 | AP38: ='Compile Data'!C332 -> 59.25731659 | AQ38: ='Compile Data'!C333 -> 66.68067932 | AR38: ='Compile Data'!C334 -> 77.93574524 | AS38: ='Compile Data'!C335 -> 85.66356659 | AT38: ='Compile Data'!C336 -> 88.91501617 | AV38: 78.90206655 | AW38: 79.62785784 | AX38: 79.07059542 | AZ38: 88.77784538 | BA38: 83.59740702 | BB38: 65.98180008 | BC38: 79.79875183 | BD38: 90.03279877 | BF38: 1948 | BG38: ='Compile Data'!D325 -> 91.43429565 | BH38: ='Compile Data'!D326 -> 90.01705933 | BI38: ='Compile Data'!D327 -> 91.09229279 | BJ38: ='Compile Data'!D328 -> 82.43630219 | BK38: ='Compile Data'!D329 -> 77.33963013 | BL38: ='Compile Data'!D330 -> 75.13633728 | BM38: ='Compile Data'!D331 -> 62.75773239 | BN38: ='Compile Data'!D332 -> 59.24398804 | BO38: ='Compile Data'!D333 -> 66.68254089 | BP38: ='Compile Data'!D334 -> 77.93491364 | BQ38: ='Compile Data'!D335 -> 85.66349792 | BR38: ='Compile Data'!D336 -> 88.91545105 | BT38: 78.90215079 | BU38: 79.61724949 | BV38: 79.05450344 | BX38: 88.74498749 | BY38: 83.6227417 | BZ38: 65.95514965 | CA38: 79.79910088 | CB38: 90.02957153 | CD38: 1948 | CE38: ='Compile Data'!E325 -> 91.43670654 | CF38: ='Compile Data'!E326 -> 90.17145538 | CG38: ='Compile Data'!E327 -> 91.13207245 | CH38: ='Compile Data'!E328 -> 82.36316681 | CI38: ='Compile Data'!E329 -> 77.29269409 | CJ38: ='Compile Data'!E330 -> 75.12111664 | CK38: ='Compile Data'!E331 -> 62.8666153 | CL38: ='Compile Data'!E332 -> 59.25727463 | CM38: ='Compile Data'!E333 -> 66.68050385 | CN38: ='Compile Data'!E334 -> 77.93562317 | CO38: ='Compile Data'!E335 -> 85.6635437 | CP38: ='Compile Data'!E336 -> 88.91500854 | CR38: 78.90135733 | CS38: 79.62785498 | CT38: 79.06964842 | CV38: 88.7758503 | CW38: 83.59597778 | CX38: 65.9813776 | CY38: 79.79866982 | CZ38: 90.03278351 | DB38: 1948 | DC38: ='Compile Data'!F325 -> 91.42678833 | DD38: ='Compile Data'!F326 -> 89.98688507 | DE38: ='Compile Data'!F327 -> 91.24666595 | DF38: ='Compile Data'!F328 -> 83.15930176 | DG38: ='Compile Data'!F329 -> 77.82215118 | DH38: ='Compile Data'!F330 -> 75.23052979 | DI38: ='Compile Data'!F331 -> 62.96163559 | DJ38: ='Compile Data'!F332 -> 59.34651947 | DK38: ='Compile Data'!F333 -> 66.70397949 | DL38: ='Compile Data'!F334 -> 77.93811035 | DM38: ='Compile Data'!F335 -> 85.88365173 | DN38: ='Compile Data'!F336 -> 88.96067047 | DP38: 78.98160076 | DQ38: 79.62809594 | DR38: 79.22224077 | DT38: 88.95491028 | DU38: 84.07603963 | DV38: 66.06066608 | DW38: 79.87160301 | DX38: 89.76181793
A39: 1923-12-31 | B39: =INDIRECT(CONCATENATE("'",B$1,"'!",B$4,(YEAR($A39)-1921)*12+MONTH($A39)+3+IF(ISNUMBER(FIND("PRV",B$6)),1,0)))*IF(AND(B$3>0,TRIM(B$9)="CFS"),Conv_Flags!$C39,1) -> 90.35150146 | C39: =INDIRECT(CONCATENATE("'",C$1,"'!",C$4,(YEAR($A39)-1921)*12+MONTH($A39)+3+IF(ISNUMBER(FIND("PRV",C$6)),1,0)))*IF(AND(C$3>0,TRIM(C$9)="CFS"),Conv_Flags!$C39,1) -> 90.18100739 | D39: =INDIRECT(CONCATENATE("'",D$1,"'!",D$4,(YEAR($A39)-1921)*12+MONTH($A39)+3+IF(ISNUMBER(FIND("PRV",D$6)),1,0)))*IF(AND(D$3>0,TRIM(D$9)="CFS"),Conv_Flags!$C39,1) -> 90.0120163 | E39: =INDIRECT(CONCATENATE("'",E$1,"'!",E$4,(YEAR($A39)-1921)*12+MONTH($A39)+3+IF(ISNUMBER(FIND("PRV",E$6)),1,0)))*IF(AND(E$3>0,TRIM(E$9)="CFS"),Conv_Flags!$C39,1) -> 90.18100739 | F39: =INDIRECT(CONCATENATE("'",F$1,"'!",F$4,(YEAR($A39)-1921)*12+MONTH($A39)+3+IF(ISNUMBER(FIND("PRV",F$6)),1,0)))*IF(AND(F$3>0,TRIM(F$9)="CFS"),Conv_Flags!$C39,1) -> 89.94378662 | J39: 1949 | K39: =B337 -> 90.4017868 | L39: =B338 -> 90.77560425 | M39: =B339 -> 89.61605835 | N39: =B340 -> 85.85454559 | O39: =B341 -> 81.81924438 | P39: =B342 -> 58.28667831 | Q39: =B343 -> 66.16267395 | R39: =B344 -> 73.01283264 | S39: =B345 -> 79.66695404 | T39: =B346 -> 84.84375763 | U39: =B347 -> 89.55030823 | V39: =B348 -> 91.61012268 | X39: 82.08093039 | Y39: 79.42078845 | Z39: 81.80004724 | AB39: 89.16199875 | AC39: 85.76328278 | AD39: 69.28228474 | AE39: 86.41778564 | AF39: 91.73624674 | AH39: 1949 | AI39: ='Compile Data'!C337 -> 90.59893036 | AJ39: ='Compile Data'!C338 -> 90.58444977 | AK39: ='Compile Data'!C339 -> 89.54058075 | AL39: ='Compile Data'!C340 -> 86.29265594 | AM39: ='Compile Data'!C341 -> 82.07614899 | AN39: ='Compile Data'!C342 -> 59.1112175 | AO39: ='Compile Data'!C343 -> 66.46899414 | AP39: ='Compile Data'!C344 -> 72.86446381 | AQ39: ='Compile Data'!C345 -> 79.61082458 | AR39: ='Compile Data'!C346 -> 84.32397461 | AS39: ='Compile Data'!C347 -> 88.7301712 | AT39: ='Compile Data'!C348 -> 90.99760437 | AV39: 81.73875205 | AW39: 79.02867889 | AX39: 81.766668 | AZ39: 89.25415421 | BA39: 85.96979523 | BB39: 69.51387501 | BC39: 85.91564369 | BD39: 90.49740601 | BF39: 1949 | BG39: ='Compile Data'!D337 -> 90.59088135 | BH39: ='Compile Data'!D338 -> 90.5823822 | BI39: ='Compile Data'!D339 -> 89.5421524 | BJ39: ='Compile Data'!D340 -> 86.28636932 | BK39: ='Compile Data'!D341 -> 82.07074738 | BL39: ='Compile Data'!D342 -> 59.11116409 | BM39: ='Compile Data'!D343 -> 66.46899414 | BN39: ='Compile Data'!D344 -> 72.86257935 | BO39: ='Compile Data'!D345 -> 79.60991669 | BP39: ='Compile Data'!D346 -> 84.3238678 | BQ39: ='Compile Data'!D347 -> 88.72998047 | BR39: ='Compile Data'!D348 -> 91.00177765 | BT39: 81.81659222 | BU39: 79.10827033 | BV39: 81.76506774 | BX39: 89.25044632 | BY39: 85.96642303 | BZ39: 69.51316357 | CA39: 85.91638565 | CB39: 90.7116979 | CD39: 1949 | CE39: ='Compile Data'!E337 -> 90.59897614 | CF39: ='Compile Data'!E338 -> 90.58436584 | CG39: ='Compile Data'!E339 -> 89.53739929 | CH39: ='Compile Data'!E340 -> 86.29499817 | CI39: ='Compile Data'!E341 -> 82.07883453 | CJ39: ='Compile Data'!E342 -> 59.11146545 | CK39: ='Compile Data'!E343 -> 66.46843719 | CL39: ='Compile Data'!E344 -> 72.86463928 | CM39: ='Compile Data'!E345 -> 79.6111145 | CN39: ='Compile Data'!E346 -> 84.32377625 | CO39: ='Compile Data'!E347 -> 88.7304306 | CP39: ='Compile Data'!E348 -> 90.98409271 | CR39: 81.8515536 | CS39: 79.14729182 | CT39: 81.76571083 | CV39: 89.25393486 | CW39: 85.97041066 | CX39: 69.51391411 | CY39: 85.91235352 | CZ39: 90.88703664 | DB39: 1949 | DC39: ='Compile Data'!F337 -> 90.37290955 | DD39: ='Compile Data'!F338 -> 89.95187378 | DE39: ='Compile Data'!F339 -> 89.44787598 | DF39: ='Compile Data'!F340 -> 86.52568054 | DG39: ='Compile Data'!F341 -> 82.2137146 | DH39: ='Compile Data'!F342 -> 59.12250137 | DI39: ='Compile Data'!F343 -> 66.41087341 | DJ39: ='Compile Data'!F344 -> 73.50075531 | DK39: ='Compile Data'!F345 -> 79.95889282 | DL39: ='Compile Data'!F346 -> 84.40423584 | DM39: ='Compile Data'!F347 -> 88.98290253 | DN39: ='Compile Data'!F348 -> 91.49031067 | DP39: 82.20967833 | DQ39: 79.49747086 | DR39: 81.86521053 | DT39: 89.07458496 | DU39: 86.06242371 | DV39: 69.74825573 | DW39: 86.20908546 | DX39: 91.61105855
A40: 1924-01-31 | B40: =INDIRECT(CONCATENATE("'",B$1,"'!",B$4,(YEAR($A40)-1921)*12+MONTH($A40)+3+IF(ISNUMBER(FIND("PRV",B$6)),1,0)))*IF(AND(B$3>0,TRIM(B$9)="CFS"),Conv_Flags!$C40,1) -> 87.00849152 | C40: =INDIRECT(CONCATENATE("'",C$1,"'!",C$4,(YEAR($A40)-1921)*12+MONTH($A40)+3+IF(ISNUMBER(FIND("PRV",C$6)),1,0)))*IF(AND(C$3>0,TRIM(C$9)="CFS"),Conv_Flags!$C40,1) -> 86.83348083 | D40: =INDIRECT(CONCATENATE("'",D$1,"'!",D$4,(YEAR($A40)-1921)*12+MONTH($A40)+3+IF(ISNUMBER(FIND("PRV",D$6)),1,0)))*IF(AND(D$3>0,TRIM(D$9)="CFS"),Conv_Flags!$C40,1) -> 86.87960815 | E40: =INDIRECT(CONCATENATE("'",E$1,"'!",E$4,(YEAR($A40)-1921)*12+MONTH($A40)+3+IF(ISNUMBER(FIND("PRV",E$6)),1,0)))*IF(AND(E$3>0,TRIM(E$9)="CFS"),Conv_Flags!$C40,1) -> 86.83348083 | F40: =INDIRECT(CONCATENATE("'",F$1,"'!",F$4,(YEAR($A40)-1921)*12+MONTH($A40)+3+IF(ISNUMBER(FIND("PRV",F$6)),1,0)))*IF(AND(F$3>0,TRIM(F$9)="CFS"),Conv_Flags!$C40,1) -> 86.85095978 | J40: 1950 | K40: =B349 -> 92.10670471 | L40: =B350 -> 91.49191284 | M40: =B351 -> 90.56542969 | N40: =B352 -> 76.23016357 | O40: =B353 -> 59.52192307 | P40: =B354 -> 64.75919342 | Q40: =B355 -> 64.64962006 | R40: =B356 -> 67.45353699 | S40: =B357 -> 75.5483017 | T40: =B358 -> 81.65935516 | U40: =B359 -> 86.18006897 | V40: =B360 -> 90.02292633 | X40: 72.79612128 | Y40: 70.48344739 | Z40: 78.34909471 | AB40: 87.5985527 | AC40: 75.43917211 | AD40: 68.10266304 | AE40: 83.35266304 | AF40: 81.18376414 | AH40: 1950 | AI40: ='Compile Data'!C349 -> 90.60457611 | AJ40: ='Compile Data'!C350 -> 89.89003754 | AK40: ='Compile Data'!C351 -> 89.89435577 | AL40: ='Compile Data'!C352 -> 75.96765137 | AM40: ='Compile Data'!C353 -> 59.88027573 | AN40: ='Compile Data'!C354 -> 64.86225128 | AO40: ='Compile Data'!C355 -> 64.64226532 | AP40: ='Compile Data'!C356 -> 67.44973755 | AQ40: ='Compile Data'!C357 -> 75.54386902 | AR40: ='Compile Data'!C358 -> 81.6705246 | AS40: ='Compile Data'!C359 -> 86.21334076 | AT40: ='Compile Data'!C360 -> 90.04220581 | AV40: 72.86920325 | AW40: 70.54854266 | AX40: 78.0550909 | AZ40: 86.5891552 | BA40: 75.24742762 | BB40: 68.12453079 | BC40: 83.36748505 | BD40: 81.40017446 | BF40: 1950 | BG40: ='Compile Data'!D349 -> 90.48796082 | BH40: ='Compile Data'!D350 -> 90.64535522 | BI40: ='Compile Data'!D351 -> 90.20039368 | BJ40: ='Compile Data'!D352 -> 75.98036957 | BK40: ='Compile Data'!D353 -> 59.87688446 | BL40: ='Compile Data'!D354 -> 64.86365509 | BM40: ='Compile Data'!D355 -> 64.64540863 | BN40: ='Compile Data'!D356 -> 67.45372009 | BO40: ='Compile Data'!D357 -> 75.54624176 | BP40: ='Compile Data'!D358 -> 81.67098236 | BQ40: ='Compile Data'!D359 -> 86.21305847 | BR40: ='Compile Data'!D360 -> 90.04212189 | BT40: 72.85918268 | BU40: 70.53774484 | BV40: 78.13551267 | BX40: 86.82851982 | BY40: 75.35254924 | BZ40: 68.12725639 | CA40: 83.36810112 | CB40: 81.35329056 | CD40: 1950 | CE40: ='Compile Data'!E349 -> 91.0249176 | CF40: ='Compile Data'!E350 -> 90.65209961 | CG40: ='Compile Data'!E351 -> 90.07383728 | CH40: ='Compile Data'!E352 -> 76.02646637 | CI40: ='Compile Data'!E353 -> 59.89622498 | CJ40: ='Compile Data'!E354 -> 64.86413574 | CK40: ='Compile Data'!E355 -> 64.64259338 | CL40: ='Compile Data'!E356 -> 67.45049286 | CM40: ='Compile Data'!E357 -> 75.54463196 | CN40: ='Compile Data'!E358 -> 81.66953278 | CO40: ='Compile Data'!E359 -> 85.80296326 | CP40: ='Compile Data'!E360 -> 89.78070068 | CR40: 72.81760279 | CS40: 70.49071185 | CT40: 78.11904971 | CV40: 86.94433022 | CW40: 75.33217621 | CX40: 68.12546349 | CY40: 83.19945717 | CZ40: 81.30473073 | DB40: 1950 | DC40: ='Compile Data'!F349 -> 92.05652618 | DD40: ='Compile Data'!F350 -> 91.28633881 | DE40: ='Compile Data'!F351 -> 90.5634079 | DF40: ='Compile Data'!F352 -> 76.25272369 | DG40: ='Compile Data'!F353 -> 59.94018173 | DH40: ='Compile Data'!F354 -> 64.8653717 | DI40: ='Compile Data'!F355 -> 64.64545441 | DJ40: ='Compile Data'!F356 -> 67.41423798 | DK40: ='Compile Data'!F357 -> 75.50518799 | DL40: ='Compile Data'!F358 -> 81.71443176 | DM40: ='Compile Data'!F359 -> 86.20487213 | DN40: ='Compile Data'!F360 -> 90.20545959 | DP40: 72.24982103 | DQ40: 69.90041224 | DR40: 78.38784949 | DT40: 87.53974915 | DU40: 75.58543777 | DV40: 68.10756302 | DW40: 83.40748787 | DX40: 78.81846364
A41: 1924-02-29 | B41: =INDIRECT(CONCATENATE("'",B$1,"'!",B$4,(YEAR($A41)-1921)*12+MONTH($A41)+3+IF(ISNUMBER(FIND("PRV",B$6)),1,0)))*IF(AND(B$3>0,TRIM(B$9)="CFS"),Conv_Flags!$C41,1) -> 78.62327576 | C41: =INDIRECT(CONCATENATE("'",C$1,"'!",C$4,(YEAR($A41)-1921)*12+MONTH($A41)+3+IF(ISNUMBER(FIND("PRV",C$6)),1,0)))*IF(AND(C$3>0,TRIM(C$9)="CFS"),Conv_Flags!$C41,1) -> 78.53108215 | D41: =INDIRECT(CONCATENATE("'",D$1,"'!",D$4,(YEAR($A41)-1921)*12+MONTH($A41)+3+IF(ISNUMBER(FIND("PRV",D$6)),1,0)))*IF(AND(D$3>0,TRIM(D$9)="CFS"),Conv_Flags!$C41,1) -> 78.55396271 | E41: =INDIRECT(CONCATENATE("'",E$1,"'!",E$4,(YEAR($A41)-1921)*12+MONTH($A41)+3+IF(ISNUMBER(FIND("PRV",E$6)),1,0)))*IF(AND(E$3>0,TRIM(E$9)="CFS"),Conv_Flags!$C41,1) -> 78.53108215 | F41: =INDIRECT(CONCATENATE("'",F$1,"'!",F$4,(YEAR($A41)-1921)*12+MONTH($A41)+3+IF(ISNUMBER(FIND("PRV",F$6)),1,0)))*IF(AND(F$3>0,TRIM(F$9)="CFS"),Conv_Flags!$C41,1) -> 78.53586578 | J41: 1951 | K41: =B361 -> 91.09104919 | L41: =B362 -> 62.43731689 | M41: =B363 -> 54 | N41: =B364 -> 54 | O41: =B365 -> 54 | P41: =B366 -> 57.05763626 | Q41: =B367 -> 65.04772186 | R41: =B368 -> 67.51868439 | S41: =B369 -> 77.87928772 | T41: =B370 -> 78.95294952 | U41: =B371 -> 82.3808136 | V41: =B372 -> 79.77307892 | X41: 70.42915281 | Y41: 70.42915281 | Z41: 68.67821153 | AB41: 65.38209152 | AC41: 54 | AD41: 66.87583256 | AE41: 79.74653244 | AF41: 81.51463826 | AH41: 1951 | AI41: ='Compile Data'!C361 -> 91.12232208 | AJ41: ='Compile Data'!C362 -> 63.03599548 | AK41: ='Compile Data'!C363 -> 54 | AL41: ='Compile Data'!C364 -> 54 | AM41: ='Compile Data'!C365 -> 54 | AN41: ='Compile Data'!C366 -> 57.16384506 | AO41: ='Compile Data'!C367 -> 65.08461761 | AP41: ='Compile Data'!C368 -> 67.5402832 | AQ41: ='Compile Data'!C369 -> 77.76551056 | AR41: ='Compile Data'!C370 -> 78.97773743 | AS41: ='Compile Data'!C371 -> 82.11394501 | AT41: ='Compile Data'!C372 -> 79.23805237 | AV41: 70.44725577 | AW41: 70.45021788 | AX41: 68.6701924 | AZ41: 65.53957939 | BA41: 54 | BB41: 66.88856411 | BC41: 79.52381134 | BD41: 81.10467529 | BF41: 1951 | BG41: ='Compile Data'!D361 -> 91.01092529 | BH41: ='Compile Data'!D362 -> 63.00682449 | BI41: ='Compile Data'!D363 -> 54 | BJ41: ='Compile Data'!D364 -> 54 | BK41: ='Compile Data'!D365 -> 54 | BL41: ='Compile Data'!D366 -> 57.16374207 | BM41: ='Compile Data'!D367 -> 65.08441162 | BN41: ='Compile Data'!D368 -> 67.53966522 | BO41: ='Compile Data'!D369 -> 77.80538177 | BP41: ='Compile Data'!D370 -> 78.97038269 | BQ41: ='Compile Data'!D371 -> 82.09545898 | BR41: ='Compile Data'!D372 -> 79.23442078 | BT41: 70.42501005 | BU41: 70.42746099 | BV41: 68.65926774 | BX41: 65.50443745 | BY41: 54 | BZ41: 66.89830017 | CA41: 79.52641106 | CB41: 81.11708323 | CD41: 1951 | CE41: ='Compile Data'!E361 -> 91.08846283 | CF41: ='Compile Data'!E362 -> 63.04502869 | CG41: ='Compile Data'!E363 -> 54 | CH41: ='Compile Data'!E364 -> 54 | CI41: ='Compile Data'!E365 -> 54 | CJ41: ='Compile Data'!E366 -> 57.16391373 | CK41: ='Compile Data'!E367 -> 65.08480072 | CL41: ='Compile Data'!E368 -> 67.54030609 | CM41: ='Compile Data'!E369 -> 77.76545715 | CN41: ='Compile Data'!E370 -> 78.97782898 | CO41: ='Compile Data'!E371 -> 82.11395264 | CP41: ='Compile Data'!E372 -> 79.23807526 | CR41: 70.46890799 | CS41: 70.47187169 | CT41: 68.66815217 | CV41: 65.53337288 | CW41: 54 | CX41: 66.88861942 | CY41: 79.52382851 | CZ41: 81.18993632 | DB41: 1951 | DC41: ='Compile Data'!F361 -> 86.22092438 | DD41: ='Compile Data'!F362 -> 60.02900696 | DE41: ='Compile Data'!F363 -> 54 | DF41: ='Compile Data'!F364 -> 54 | DG41: ='Compile Data'!F365 -> 54 | DH41: ='Compile Data'!F366 -> 57.15749741 | DI41: ='Compile Data'!F367 -> 65.75241852 | DJ41: ='Compile Data'!F368 -> 67.11534119 | DK41: ='Compile Data'!F369 -> 77.80934906 | DL41: ='Compile Data'!F370 -> 78.95250702 | DM41: ='Compile Data'!F371 -> 81.96110535 | DN41: ='Compile Data'!F372 -> 79.20809174 | DP41: 70.41801675 | DQ41: 70.41969776 | DR41: 68.0171868 | DT41: 63.56248283 | DU41: 54 | DV41: 66.95865154 | DW41: 79.48276329 | DX41: 81.21570587
A42: 1924-03-31 | B42: =INDIRECT(CONCATENATE("'",B$1,"'!",B$4,(YEAR($A42)-1921)*12+MONTH($A42)+3+IF(ISNUMBER(FIND("PRV",B$6)),1,0)))*IF(AND(B$3>0,TRIM(B$9)="CFS"),Conv_Flags!$C42,1) -> 77.50389862 | C42: =INDIRECT(CONCATENATE("'",C$1,"'!",C$4,(YEAR($A42)-1921)*12+MONTH($A42)+3+IF(ISNUMBER(FIND("PRV",C$6)),1,0)))*IF(AND(C$3>0,TRIM(C$9)="CFS"),Conv_Flags!$C42,1) -> 77.4721756 | D42: =INDIRECT(CONCATENATE("'",D$1,"'!",D$4,(YEAR($A42)-1921)*12+MONTH($A42)+3+IF(ISNUMBER(FIND("PRV",D$6)),1,0)))*IF(AND(D$3>0,TRIM(D$9)="CFS"),Conv_Flags!$C42,1) -> 77.47260284 | E42: =INDIRECT(CONCATENATE("'",E$1,"'!",E$4,(YEAR($A42)-1921)*12+MONTH($A42)+3+IF(ISNUMBER(FIND("PRV",E$6)),1,0)))*IF(AND(E$3>0,TRIM(E$9)="CFS"),Conv_Flags!$C42,1) -> 77.47216797 | F42: =INDIRECT(CONCATENATE("'",F$1,"'!",F$4,(YEAR($A42)-1921)*12+MONTH($A42)+3+IF(ISNUMBER(FIND("PRV",F$6)),1,0)))*IF(AND(F$3>0,TRIM(F$9)="CFS"),Conv_Flags!$C42,1) -> 77.46337891 | J42: 1952 | K42: =B373 -> 80.47190094 | L42: =B374 -> 84.29893494 | M42: =B375 -> 63.76882553 | N42: =B376 -> 54 | O42: =B377 -> 54 | P42: =B378 -> 54 | Q42: =B379 -> 54 | R42: =B380 -> 54 | S42: =B381 -> 55.90147018 | T42: =B382 -> 67.58837128 | U42: =B383 -> 78.6676178 | V42: =B384 -> 75.83573151 | X42: 64.50941054 | Y42: 65.0298535 | Z42: 64.71107101 | AB42: 70.63491535 | AC42: 57.25627518 | AD42: 54.47536755 | AE42: 69.49829769 | AF42: 78.75934601 | AH42: 1952 | AI42: ='Compile Data'!C373 -> 79.99376678 | AJ42: ='Compile Data'!C374 -> 84.08220673 | AK42: ='Compile Data'!C375 -> 65.40710449 | AL42: ='Compile Data'!C376 -> 54.03554535 | AM42: ='Compile Data'!C377 -> 54 | AN42: ='Compile Data'!C378 -> 54 | AO42: ='Compile Data'!C379 -> 54 | AP42: ='Compile Data'!C380 -> 54 | AQ42: ='Compile Data'!C381 -> 55.86001205 | AR42: ='Compile Data'!C382 -> 67.58459473 | AS42: ='Compile Data'!C383 -> 78.31937408 | AT42: ='Compile Data'!C384 -> 75.32458496 | AV42: 64.4600865 | AW42: 64.98043982 | AX42: 64.71726576 | AZ42: 70.87965584 | BA42: 57.81421661 | BB42: 54.46500301 | BC42: 69.27214146 | BD42: 78.37507629 | BF42: 1952 | BG42: ='Compile Data'!D373 -> 80.01838684 | BH42: ='Compile Data'!D374 -> 84.09844208 | BI42: ='Compile Data'!D375 -> 65.08982849 | BJ42: ='Compile Data'!D376 -> 54.02941132 | BK42: ='Compile Data'!D377 -> 54 | BL42: ='Compile Data'!D378 -> 54 | BM42: ='Compile Data'!D379 -> 54 | BN42: ='Compile Data'!D380 -> 54 | BO42: ='Compile Data'!D381 -> 55.8613739 | BP42: ='Compile Data'!D382 -> 67.58583069 | BQ42: ='Compile Data'!D383 -> 78.31960297 | BR42: ='Compile Data'!D384 -> 75.324646 | BT42: 64.46362114 | BU42: 64.98462836 | BV42: 64.69396019 | BX42: 70.80901718 | BY42: 57.70641327 | BZ42: 54.46534348 | CA42: 69.27286339 | CB42: 78.37475586 | CD42: 1952 | CE42: ='Compile Data'!E373 -> 80.16863251 | CF42: ='Compile Data'!E374 -> 84.1631012 | CG42: ='Compile Data'!E375 -> 65.41082764 | CH42: ='Compile Data'!E376 -> 54.03556442 | CI42: ='Compile Data'!E377 -> 54 | CJ42: ='Compile Data'!E378 -> 54 | CK42: ='Compile Data'!E379 -> 54 | CL42: ='Compile Data'!E380 -> 54 | CM42: ='Compile Data'!E381 -> 55.85841751 | CN42: ='Compile Data'!E382 -> 67.58227539 | CO42: ='Compile Data'!E383 -> 78.31806183 | CP42: ='Compile Data'!E384 -> 75.32440186 | CR42: 64.4583238 | CS42: 64.9786342 | CT42: 64.7384402 | CV42: 70.94453144 | CW42: 57.81546402 | CX42: 54.46460438 | CY42: 69.27078915 | CZ42: 78.37517039 | DB42: 1952 | DC42: ='Compile Data'!F373 -> 80.22957611 | DD42: ='Compile Data'!F374 -> 84.20944977 | DE42: ='Compile Data'!F375 -> 64.62086487 | DF42: ='Compile Data'!F376 -> 54.02017212 | DG42: ='Compile Data'!F377 -> 54 | DH42: ='Compile Data'!F378 -> 54 | DI42: ='Compile Data'!F379 -> 54 | DJ42: ='Compile Data'!F380 -> 54 | DK42: ='Compile Data'!F381 -> 55.86574554 | DL42: ='Compile Data'!F382 -> 67.59465027 | DM42: ='Compile Data'!F383 -> 78.15841675 | DN42: ='Compile Data'!F384 -> 74.95837402 | DP42: 64.43166161 | DQ42: 64.95342604 | DR42: 64.63810412 | DT42: 70.77001572 | DU42: 57.54701233 | DV42: 54.46643639 | DW42: 69.14429665 | DX42: 78.28412628
A43: 1924-04-30 | B43: =INDIRECT(CONCATENATE("'",B$1,"'!",B$4,(YEAR($A43)-1921)*12+MONTH($A43)+3+IF(ISNUMBER(FIND("PRV",B$6)),1,0)))*IF(AND(B$3>0,TRIM(B$9)="CFS"),Conv_Flags!$C43,1) -> 82.68484497 | C43: =INDIRECT(CONCATENATE("'",C$1,"'!",C$4,(YEAR($A43)-1921)*12+MONTH($A43)+3+IF(ISNUMBER(FIND("PRV",C$6)),1,0)))*IF(AND(C$3>0,TRIM(C$9)="CFS"),Conv_Flags!$C43,1) -> 82.68197632 | D43: =INDIRECT(CONCATENATE("'",D$1,"'!",D$4,(YEAR($A43)-1921)*12+MONTH($A43)+3+IF(ISNUMBER(FIND("PRV",D$6)),1,0)))*IF(AND(D$3>0,TRIM(D$9)="CFS"),Conv_Flags!$C43,1) -> 82.68273926 | E43: =INDIRECT(CONCATENATE("'",E$1,"'!",E$4,(YEAR($A43)-1921)*12+MONTH($A43)+3+IF(ISNUMBER(FIND("PRV",E$6)),1,0)))*IF(AND(E$3>0,TRIM(E$9)="CFS"),Conv_Flags!$C43,1) -> 82.68197632 | F43: =INDIRECT(CONCATENATE("'",F$1,"'!",F$4,(YEAR($A43)-1921)*12+MONTH($A43)+3+IF(ISNUMBER(FIND("PRV",F$6)),1,0)))*IF(AND(F$3>0,TRIM(F$9)="CFS"),Conv_Flags!$C43,1) -> 82.68096161 | J43: 1953 | K43: =B385 -> 76.96785736 | L43: =B386 -> 83.47444916 | M43: =B387 -> 65.6774292 | N43: =B388 -> 54.06077957 | O43: =B389 -> 60.18453598 | P43: =B390 -> 64.35354614 | Q43: =B391 -> 66.37882233 | R43: =B392 -> 63.30648041 | S43: =B393 -> 65.41464233 | T43: =B394 -> 75.36082458 | U43: =B395 -> 82.61203003 | V43: =B396 -> 79.5552597 | X43: 71.16429265 | Y43: 72.1818072 | Z43: 69.77888807 | AB43: 70.04512882 | AC43: 59.97424825 | AD43: 64.8633728 | AE43: 75.73568916 | AF43: 79.26120249 | AH43: 1953 | AI43: ='Compile Data'!C385 -> 76.49264526 | AJ43: ='Compile Data'!C386 -> 83.30799866 | AK43: ='Compile Data'!C387 -> 66.59628296 | AL43: ='Compile Data'!C388 -> 54.09059525 | AM43: ='Compile Data'!C389 -> 60.18918991 | AN43: ='Compile Data'!C390 -> 64.35829163 | AO43: ='Compile Data'!C391 -> 66.38088226 | AP43: ='Compile Data'!C392 -> 63.30717468 | AQ43: ='Compile Data'!C393 -> 65.41471863 | AR43: ='Compile Data'!C394 -> 75.38114166 | AS43: ='Compile Data'!C395 -> 82.33648682 | AT43: ='Compile Data'!C396 -> 78.6578598 | AV43: 71.0480442 | AW43: 72.25056998 | AX43: 69.70943896 | AZ43: 70.12188053 | BA43: 60.29202271 | BB43: 64.8652668 | BC43: 75.44755173 | BD43: 78.8125356 | BF43: 1953 | BG43: ='Compile Data'!D385 -> 76.49272919 | BH43: ='Compile Data'!D386 -> 83.3068924 | BI43: ='Compile Data'!D387 -> 66.64296722 | BJ43: ='Compile Data'!D388 -> 54.09203339 | BK43: ='Compile Data'!D389 -> 60.18946457 | BL43: ='Compile Data'!D390 -> 64.35856628 | BM43: ='Compile Data'!D391 -> 66.38106537 | BN43: ='Compile Data'!D392 -> 63.30729675 | BO43: ='Compile Data'!D393 -> 65.41482544 | BP43: ='Compile Data'!D394 -> 75.3813324 | BQ43: ='Compile Data'!D395 -> 82.3313446 | BR43: ='Compile Data'!D396 -> 79.03351593 | BT43: 71.04418786 | BU43: 72.2409544 | BV43: 69.74433613 | BX43: 70.13365555 | BY43: 60.30815506 | BZ43: 64.86543846 | CA43: 75.54025459 | CB43: 78.87125397 | CD43: 1953 | CE43: ='Compile Data'!E385 -> 76.49268341 | CF43: ='Compile Data'!E386 -> 83.3084259 | CG43: ='Compile Data'!E387 -> 66.58005524 | CH43: ='Compile Data'!E388 -> 54.09011841 | CI43: ='Compile Data'!E389 -> 60.18917084 | CJ43: ='Compile Data'!E390 -> 64.35832214 | CK43: ='Compile Data'!E391 -> 66.38096619 | CL43: ='Compile Data'!E392 -> 63.30727386 | CM43: ='Compile Data'!E393 -> 65.4148407 | CN43: ='Compile Data'!E394 -> 75.3812027 | CO43: ='Compile Data'!E395 -> 82.33654785 | CP43: ='Compile Data'!E396 -> 78.65798187 | CR43: 71.04814593 | CS43: 72.24742126 | CT43: 69.70813243 | CV43: 70.11782074 | CW43: 60.28644816 | CX43: 64.86535072 | CY43: 75.44764328 | CZ43: 78.81265004 | DB43: 1953 | DC43: ='Compile Data'!F385 -> 76.50904846 | DD43: ='Compile Data'!F386 -> 83.38495636 | DE43: ='Compile Data'!F387 -> 66.68857574 | DF43: ='Compile Data'!F388 -> 54.09360504 | DG43: ='Compile Data'!F389 -> 60.18774033 | DH43: ='Compile Data'!F390 -> 64.35655975 | DI43: ='Compile Data'!F391 -> 66.38076782 | DJ43: ='Compile Data'!F392 -> 63.30699921 | DK43: ='Compile Data'!F393 -> 65.41456604 | DL43: ='Compile Data'!F394 -> 75.38123322 | DM43: ='Compile Data'!F395 -> 82.33132935 | DN43: ='Compile Data'!F396 -> 79.03346252 | DP43: 71.04295381 | DQ43: 72.23953279 | DR43: 69.75573699 | DT43: 70.1690464 | DU43: 60.32330704 | DV43: 64.86472321 | DW43: 75.54014778 | DX43: 78.8712031
A44: 1924-05-31 | B44: =INDIRECT(CONCATENATE("'",B$1,"'!",B$4,(YEAR($A44)-1921)*12+MONTH($A44)+3+IF(ISNUMBER(FIND("PRV",B$6)),1,0)))*IF(AND(B$3>0,TRIM(B$9)="CFS"),Conv_Flags!$C44,1) -> 88.17504883 | C44: =INDIRECT(CONCATENATE("'",C$1,"'!",C$4,(YEAR($A44)-1921)*12+MONTH($A44)+3+IF(ISNUMBER(FIND("PRV",C$6)),1,0)))*IF(AND(C$3>0,TRIM(C$9)="CFS"),Conv_Flags!$C44,1) -> 87.85391998 | D44: =INDIRECT(CONCATENATE("'",D$1,"'!",D$4,(YEAR($A44)-1921)*12+MONTH($A44)+3+IF(ISNUMBER(FIND("PRV",D$6)),1,0)))*IF(AND(D$3>0,TRIM(D$9)="CFS"),Conv_Flags!$C44,1) -> 87.85397339 | E44: =INDIRECT(CONCATENATE("'",E$1,"'!",E$4,(YEAR($A44)-1921)*12+MONTH($A44)+3+IF(ISNUMBER(FIND("PRV",E$6)),1,0)))*IF(AND(E$3>0,TRIM(E$9)="CFS"),Conv_Flags!$C44,1) -> 87.85391998 | F44: =INDIRECT(CONCATENATE("'",F$1,"'!",F$4,(YEAR($A44)-1921)*12+MONTH($A44)+3+IF(ISNUMBER(FIND("PRV",F$6)),1,0)))*IF(AND(F$3>0,TRIM(F$9)="CFS"),Conv_Flags!$C44,1) -> 87.85172272 | J44: 1954 | K44: =B397 -> 77.37887573 | L44: =B398 -> 80.84947205 | M44: =B399 -> 84.51624298 | N44: =B400 -> 71.41161346 | O44: =B401 -> 55.04387665 | P44: =B402 -> 54.36569214 | Q44: =B403 -> 54.28283691 | R44: =B404 -> 66.89555359 | S44: =B405 -> 78.67975616 | T44: =B406 -> 78.65106964 | U44: =B407 -> 82.16114044 | V44: =B408 -> 79.19896698 | X44: =IF(X$11="AVG",AVERAGE(N44:V44,K45:M45),SUM(N44:V44,K45:M45)) -> 71.90285683 | Y44: =IF(Y$11="AVG",AVERAGE(P44:V44,K45:O45),SUM(P44:V44,K45:O45)) -> 73.59485435 | Z44: =IF(Z$11="AVG",AVERAGE(K44:V44),SUM(K44:V44)) -> 71.95292473 | AB44: =IF(AB$11="AVG",IF(AB$1="INST-VAL",AVERAGE(V43,K44:M44,K44:N44),AVERAGE(K44:N44)),SUM(K44:N44)) -> 78.53905106 | AC44: =IF(AC$11="AVG",IF(AB$1="INST-VAL",AVERAGE(L44:N44,M44:O44),AVERAGE(M44:O44)),SUM(M44:O44)) -> 70.32391103 | AD44: =IF(AD$11="AVG",IF(AB$1="INST-VAL",AVERAGE(O44:R44,P44:S44),AVERAGE(P44:S44)),SUM(P44:S44)) -> 63.5559597 | AE44: =IF(AE$11="AVG",IF(AB$1="INST-VAL",AVERAGE(R44:U44,S44:V44),AVERAGE(S44:V44)),SUM(S44:V44)) -> 79.67273331 | AF44: =IF(AF$11="AVG",IF(AB$1="INST-VAL",AVERAGE(U44:V44,K45,V44,K45:L45),AVERAGE(V44,K45:L45)),SUM(V44,K45:L45)) -> 80.90252686 | AH44: 1954 | AI44: ='Compile Data'!C397 -> 76.92665863 | AJ44: ='Compile Data'!C398 -> 80.85308838 | AK44: ='Compile Data'!C399 -> 84.68044281 | AL44: ='Compile Data'!C400 -> 73.39128113 | AM44: ='Compile Data'!C401 -> 55.31881332 | AN44: ='Compile Data'!C402 -> 54.37598419 | AO44: ='Compile Data'!C403 -> 54.28619003 | AP44: ='Compile Data'!C404 -> 66.89426422 | AQ44: ='Compile Data'!C405 -> 78.66822815 | AR44: ='Compile Data'!C406 -> 78.63699341 | AS44: ='Compile Data'!C407 -> 81.90507507 | AT44: ='Compile Data'!C408 -> 78.69766235 | AV44: =IF(AV$11="AVG",AVERAGE(AL44:AT44,AI45:AK45),SUM(AL44:AT44,AI45:AK45)) -> 71.95206769 | AW44: =IF(AW$11="AVG",AVERAGE(AN44:AT44,AI45:AM45),SUM(AN44:AT44,AI45:AM45)) -> 73.4438626 | AX44: =IF(AX$11="AVG",AVERAGE(AI44:AT44),SUM(AI44:AT44)) -> 72.05289014 | AZ44: =IF(AZ$11="AVG",IF(AZ$1="INST-VAL",AVERAGE(AT43,AI44:AK44,AI44:AL44),AVERAGE(AI44:AL44)),SUM(AI44:AL44)) -> 78.96286774 | BA44: =IF(BA$11="AVG",IF(AZ$1="INST-VAL",AVERAGE(AJ44:AL44,AK44:AM44),AVERAGE(AK44:AM44)),SUM(AK44:AM44)) -> 71.13017909 | BB44: =IF(BB$11="AVG",IF(AZ$1="INST-VAL",AVERAGE(AM44:AP44,AN44:AQ44),AVERAGE(AN44:AQ44)),SUM(AN44:AQ44)) -> 63.55616665 | BC44: =IF(BC$11="AVG",IF(AZ$1="INST-VAL",AVERAGE(AP44:AS44,AQ44:AT44),AVERAGE(AQ44:AT44)),SUM(AQ44:AT44)) -> 79.47698975 | BD44: =IF(BD$11="AVG",IF(AZ$1="INST-VAL",AVERAGE(AS44:AT44,AI45,AT44,AI45:AJ45),AVERAGE(AT44,AI45:AJ45)),SUM(AT44,AI45:AJ45)) -> 80.52175903 | BF44: 1954 | BG44: ='Compile Data'!D397 -> 76.86737823 | BH44: ='Compile Data'!D398 -> 80.71286774 | BI44: ='Compile Data'!D399 -> 84.46056366 | BJ44: ='Compile Data'!D400 -> 73.32226562 | BK44: ='Compile Data'!D401 -> 55.32043076 | BL44: ='Compile Data'!D402 -> 54.36722565 | BM44: ='Compile Data'!D403 -> 54.2843132 | BN44: ='Compile Data'!D404 -> 66.89318848 | BO44: ='Compile Data'!D405 -> 78.79722595 | BP44: ='Compile Data'!D406 -> 78.59725952 | BQ44: ='Compile Data'!D407 -> 81.84277344 | BR44: ='Compile Data'!D408 -> 78.67893982 | BT44: =IF(BT$11="AVG",AVERAGE(BJ44:BR44,BG45:BI45),SUM(BJ44:BR44,BG45:BI45)) -> 71.92122523 | BU44: =IF(BU$11="AVG",AVERAGE(BL44:BR44,BG45:BK45),SUM(BL44:BR44,BG45:BK45)) -> 73.40481091 | BV44: =IF(BV$11="AVG",AVERAGE(BG44:BR44),SUM(BG44:BR44)) -> 72.01203601 | BX44: =IF(BX$11="AVG",IF(BX$1="INST-VAL",AVERAGE(BR43,BG44:BI44,BG44:BJ44),AVERAGE(BG44:BJ44)),SUM(BG44:BJ44)) -> 78.84076881 | BY44: =IF(BY$11="AVG",IF(BX$1="INST-VAL",AVERAGE(BH44:BJ44,BI44:BK44),AVERAGE(BI44:BK44)),SUM(BI44:BK44)) -> 71.03442001 | BZ44: =IF(BZ$11="AVG",IF(BX$1="INST-VAL",AVERAGE(BK44:BN44,BL44:BO44),AVERAGE(BL44:BO44)),SUM(BL44:BO44)) -> 63.58548832 | CA44: =IF(CA$11="AVG",IF(BX$1="INST-VAL",AVERAGE(BN44:BQ44,BO44:BR44),AVERAGE(BO44:BR44)),SUM(BO44:BR44)) -> 79.47904968 | CB44: =IF(CB$11="AVG",IF(BX$1="INST-VAL",AVERAGE(BQ44:BR44,BG45,BR44,BG45:BH45),AVERAGE(BR44,BG45:BH45)),SUM(BR44,BG45:BH45)) -> 80.50517273 | CD44: 1954 | CE44: ='Compile Data'!E397 -> 76.92675781 | CF44: ='Compile Data'!E398 -> 80.85321045 | CG44: ='Compile Data'!E399 -> 84.68135834 | CH44: ='Compile Data'!E400 -> 73.35709381 | CI44: ='Compile Data'!E401 -> 55.31349945 | CJ44: ='Compile Data'!E402 -> 54.37599182 | CK44: ='Compile Data'!E403 -> 54.28617859 | CL44: ='Compile Data'!E404 -> 66.89428711 | CM44: ='Compile Data'!E405 -> 78.6682663 | CN44: ='Compile Data'!E406 -> 78.63705444 | CO44: ='Compile Data'!E407 -> 81.90506744 | CP44: ='Compile Data'!E408 -> 78.69768524 | CR44: 71.94881884 | CS44: 73.44393031 | CT44: 72.04970423 | CV44: 78.9546051 | CW44: 71.1173172 | CX44: 63.55618095 | CY44: 79.47701836 | CZ44: 80.52181498 | DB44: 1954 | DC44: ='Compile Data'!F397 -> 76.86727905 | DD44: ='Compile Data'!F398 -> 80.71286774 | DE44: ='Compile Data'!F399 -> 84.44903564 | DF44: ='Compile Data'!F400 -> 73.31949615 | DG44: ='Compile Data'!F401 -> 55.32079697 | DH44: ='Compile Data'!F402 -> 54.36941528 | DI44: ='Compile Data'!F403 -> 54.28474426 | DJ44: ='Compile Data'!F404 -> 66.8928833 | DK44: ='Compile Data'!F405 -> 78.79606628 | DL44: ='Compile Data'!F406 -> 78.61214447 | DM44: ='Compile Data'!F407 -> 81.85050964 | DN44: ='Compile Data'!F408 -> 78.6835022 | DP44: 71.49708398 | DQ44: 72.80470721 | DR44: 72.01322842 | DT44: 78.83716965 | DU44: 71.02977626 | DV44: 63.58577728 | DW44: 79.48555565 | DX44: 79.6778539
A45: 1924-06-30 | B45: =INDIRECT(CONCATENATE("'",B$1,"'!",B$4,(YEAR($A45)-1921)*12+MONTH($A45)+3+IF(ISNUMBER(FIND("PRV",B$6)),1,0)))*IF(AND(B$3>0,TRIM(B$9)="CFS"),Conv_Flags!$C45,1) -> 91.3505249 | C45: =INDIRECT(CONCATENATE("'",C$1,"'!",C$4,(YEAR($A45)-1921)*12+MONTH($A45)+3+IF(ISNUMBER(FIND("PRV",C$6)),1,0)))*IF(AND(C$3>0,TRIM(C$9)="CFS"),Conv_Flags!$C45,1) -> 91.14375305 | D45: =INDIRECT(CONCATENATE("'",D$1,"'!",D$4,(YEAR($A45)-1921)*12+MONTH($A45)+3+IF(ISNUMBER(FIND("PRV",D$6)),1,0)))*IF(AND(D$3>0,TRIM(D$9)="CFS"),Conv_Flags!$C45,1) -> 91.14228821 | E45: =INDIRECT(CONCATENATE("'",E$1,"'!",E$4,(YEAR($A45)-1921)*12+MONTH($A45)+3+IF(ISNUMBER(FIND("PRV",E$6)),1,0)))*IF(AND(E$3>0,TRIM(E$9)="CFS"),Conv_Flags!$C45,1) -> 91.14375305 | F45: =INDIRECT(CONCATENATE("'",F$1,"'!",F$4,(YEAR($A45)-1921)*12+MONTH($A45)+3+IF(ISNUMBER(FIND("PRV",F$6)),1,0)))*IF(AND(F$3>0,TRIM(F$9)="CFS"),Conv_Flags!$C45,1) -> 91.14141083 | J45: 1955 | K45: =B409 -> 79.93366241 | L45: =B410 -> 83.57495117 | M45: =B411 -> 78.63516235 | N45: =B412 -> 71.36958313 | O45: =B413 -> 75.38987732 | P45: =B414 -> 80.688591 | Q45: =B415 -> 79.31214905 | R45: =B416 -> 79.50462341 | S45: =B417 -> 81.63713074 | T45: =B418 -> 84.83416748 | U45: =B419 -> 89.54541016 | V45: =B420 -> 91.28325653 | X45: 81.04813194 | Y45: 77.81817691 | Z45: 81.30904706 | AB45: 78.37833977 | AC45: 75.13154093 | AD45: 80.28562355 | AE45: 86.82499123 | AF45: 91.13758087 | AH45: 1955 | AI45: ='Compile Data'!C409 -> 79.4514389 | AJ45: ='Compile Data'!C410 -> 83.41617584 | AK45: ='Compile Data'!C411 -> 78.38270569 | AL45: ='Compile Data'!C412 -> 71.23688507 | AM45: ='Compile Data'!C413 -> 75.37474823 | AN45: ='Compile Data'!C414 -> 80.68312836 | AO45: ='Compile Data'!C415 -> 79.30646515 | AP45: ='Compile Data'!C416 -> 79.50132751 | AQ45: ='Compile Data'!C417 -> 81.66401672 | AR45: ='Compile Data'!C418 -> 84.33446503 | AS45: ='Compile Data'!C419 -> 88.35221863 | AT45: ='Compile Data'!C420 -> 90.22357178 | AV45: 80.63092327 | AW45: 77.41328716 | AX45: 80.99392891 | AZ45: 78.12180138 | BA45: 74.998113 | BB45: 80.28873444 | BC45: 86.14356804 | BD45: 90.18829854 | BF45: 1955 | BG45: ='Compile Data'!D409 -> 79.44890594 | BH45: ='Compile Data'!D410 -> 83.38767242 | BI45: ='Compile Data'!D411 -> 78.11450195 | BJ45: ='Compile Data'!D412 -> 71.08918762 | BK45: ='Compile Data'!D413 -> 75.35653687 | BL45: ='Compile Data'!D414 -> 80.67852783 | BM45: ='Compile Data'!D415 -> 79.30828094 | BN45: ='Compile Data'!D416 -> 79.50074005 | BO45: ='Compile Data'!D417 -> 81.66267395 | BP45: ='Compile Data'!D418 -> 84.33644867 | BQ45: ='Compile Data'!D419 -> 88.35736847 | BR45: ='Compile Data'!D420 -> 90.07524109 | BT45: 80.6538105 | BU45: 77.45000013 | BV45: 80.94300715 | BX45: 78.01006699 | BY45: 74.85340881 | BZ45: 80.28755569 | CA45: 86.10793304 | CB45: 90.31580607 | CD45: 1955 | CE45: ='Compile Data'!E409 -> 79.45160675 | CF45: ='Compile Data'!E410 -> 83.41615295 | CG45: ='Compile Data'!E411 -> 78.3829422 | CH45: ='Compile Data'!E412 -> 71.23709869 | CI45: ='Compile Data'!E413 -> 75.37483215 | CJ45: ='Compile Data'!E414 -> 80.68315125 | CK45: ='Compile Data'!E415 -> 79.30665588 | CL45: ='Compile Data'!E416 -> 79.5014267 | CM45: ='Compile Data'!E417 -> 81.66403961 | CN45: ='Compile Data'!E418 -> 84.33441162 | CO45: ='Compile Data'!E419 -> 88.35222626 | CP45: ='Compile Data'!E420 -> 90.22359467 | CR45: 80.63097382 | CS45: 77.41331291 | CT45: 80.99401156 | CV45: 78.12195015 | CW45: 74.99829102 | CX45: 80.28881836 | CY45: 86.14356804 | CZ45: 90.18829854 | DB45: 1955 | DC45: ='Compile Data'!F409 -> 79.09960175 | DD45: ='Compile Data'!F410 -> 81.25045776 | DE45: ='Compile Data'!F411 -> 75.48538971 | DF45: ='Compile Data'!F412 -> 70.42907715 | DG45: ='Compile Data'!F413 -> 73.9026947 | DH45: ='Compile Data'!F414 -> 80.32463074 | DI45: ='Compile Data'!F415 -> 79.2844162 | DJ45: ='Compile Data'!F416 -> 79.498909 | DK45: ='Compile Data'!F417 -> 81.66123962 | DL45: ='Compile Data'!F418 -> 84.34907532 | DM45: ='Compile Data'!F419 -> 88.36081696 | DN45: ='Compile Data'!F420 -> 90.06945038 | DP45: 80.44230111 | DQ45: 77.41465346 | DR45: 80.30964661 | DT45: 76.56613159 | DU45: 73.27238719 | DV45: 80.19229889 | DW45: 86.11014557 | DX45: 90.3064092
A46: 1924-07-31 | B46: =INDIRECT(CONCATENATE("'",B$1,"'!",B$4,(YEAR($A46)-1921)*12+MONTH($A46)+3+IF(ISNUMBER(FIND("PRV",B$6)),1,0)))*IF(AND(B$3>0,TRIM(B$9)="CFS"),Conv_Flags!$C46,1) -> 91.81104279 | C46: =INDIRECT(CONCATENATE("'",C$1,"'!",C$4,(YEAR($A46)-1921)*12+MONTH($A46)+3+IF(ISNUMBER(FIND("PRV",C$6)),1,0)))*IF(AND(C$3>0,TRIM(C$9)="CFS"),Conv_Flags!$C46,1) -> 90.83376312 | D46: =INDIRECT(CONCATENATE("'",D$1,"'!",D$4,(YEAR($A46)-1921)*12+MONTH($A46)+3+IF(ISNUMBER(FIND("PRV",D$6)),1,0)))*IF(AND(D$3>0,TRIM(D$9)="CFS"),Conv_Flags!$C46,1) -> 90.87792969 | E46: =INDIRECT(CONCATENATE("'",E$1,"'!",E$4,(YEAR($A46)-1921)*12+MONTH($A46)+3+IF(ISNUMBER(FIND("PRV",E$6)),1,0)))*IF(AND(E$3>0,TRIM(E$9)="CFS"),Conv_Flags!$C46,1) -> 90.83376312 | F46: =INDIRECT(CONCATENATE("'",F$1,"'!",F$4,(YEAR($A46)-1921)*12+MONTH($A46)+3+IF(ISNUMBER(FIND("PRV",F$6)),1,0)))*IF(AND(F$3>0,TRIM(F$9)="CFS"),Conv_Flags!$C46,1) -> 90.85521698 | J46: 1956 | K46: =B421 -> 91.37112427 | L46: =B422 -> 90.75836182 | M46: =B423 -> 56.88330841 | N46: =B424 -> 54 | O46: =B425 -> 54 | P46: =B426 -> 54.62542725 | Q46: =B427 -> 60.6122551 | R46: =B428 -> 55.74702454 | S46: =B429 -> 62.93335724 | T46: =B430 -> 74.90385437 | U46: =B431 -> 82.84708405 | V46: =B432 -> 78.73256683 | X46: 68.55880578 | Y46: 72.61326567 | Z46: 68.11786366 | AB46: 73.25319862 | AC46: 54.9611028 | AD46: 58.47951603 | AE46: 74.85421562 | AF46: 79.35321554 | AH46: 1956 | AI46: ='Compile Data'!C421 -> 90.90435028 | AJ46: ='Compile Data'!C422 -> 89.43697357 | AK46: ='Compile Data'!C423 -> 56.55292892 | AL46: ='Compile Data'!C424 -> 54 | AM46: ='Compile Data'!C425 -> 54 | AN46: ='Compile Data'!C426 -> 54.95762253 | AO46: ='Compile Data'!C427 -> 60.76099396 | AP46: ='Compile Data'!C428 -> 55.7583046 | AQ46: ='Compile Data'!C429 -> 62.93649292 | AR46: ='Compile Data'!C430 -> 74.90206146 | AS46: ='Compile Data'!C431 -> 82.48835754 | AT46: ='Compile Data'!C432 -> 78.20501709 | AV46: 68.47186915 | AW46: 72.55899366 | AX46: 67.90859191 | AZ46: 72.72356319 | BA46: 54.85097631 | BB46: 58.6033535 | BC46: 74.63298225 | BD46: 78.96577199 | BF46: 1956 | BG46: ='Compile Data'!D421 -> 90.53656006 | BH46: ='Compile Data'!D422 -> 90.33561707 | BI46: ='Compile Data'!D423 -> 56.6085434 | BJ46: ='Compile Data'!D424 -> 54 | BK46: ='Compile Data'!D425 -> 54 | BL46: ='Compile Data'!D426 -> 54.95611191 | BM46: ='Compile Data'!D427 -> 60.7593689 | BN46: ='Compile Data'!D428 -> 55.71261597 | BO46: ='Compile Data'!D429 -> 62.92371368 | BP46: ='Compile Data'!D430 -> 74.91099548 | BQ46: ='Compile Data'!D431 -> 82.42608643 | BR46: ='Compile Data'!D432 -> 78.21393585 | BT46: 68.47289689 | BU46: 72.55995019 | BV46: 67.94862906 | BX46: 72.87018013 | BY46: 54.86951447 | BZ46: 58.58795261 | CA46: 74.61868286 | CB46: 79.00767771 | CD46: 1956 | CE46: ='Compile Data'!E421 -> 90.90437317 | CF46: ='Compile Data'!E422 -> 89.4369278 | CG46: ='Compile Data'!E423 -> 56.552948 | CH46: ='Compile Data'!E424 -> 54 | CI46: ='Compile Data'!E425 -> 54 | CJ46: ='Compile Data'!E426 -> 54.9576416 | CK46: ='Compile Data'!E427 -> 60.7610817 | CL46: ='Compile Data'!E428 -> 55.75835419 | CM46: ='Compile Data'!E429 -> 62.93655777 | CN46: ='Compile Data'!E430 -> 74.90209198 | CO46: ='Compile Data'!E431 -> 82.4883728 | CP46: ='Compile Data'!E432 -> 78.20509338 | CR46: 68.47191048 | CS46: 72.55921618 | CT46: 67.9086202 | CV46: 72.72356224 | CW46: 54.85098267 | CX46: 58.60340881 | CY46: 74.63302898 | CZ46: 78.96582794 | DB46: 1956 | DC46: ='Compile Data'!F421 -> 90.54333496 | DD46: ='Compile Data'!F422 -> 90.30644226 | DE46: ='Compile Data'!F423 -> 56.57752609 | DF46: ='Compile Data'!F424 -> 54 | DG46: ='Compile Data'!F425 -> 54 | DH46: ='Compile Data'!F426 -> 55.03931046 | DI46: ='Compile Data'!F427 -> 60.46696091 | DJ46: ='Compile Data'!F428 -> 55.64950562 | DK46: ='Compile Data'!F429 -> 62.9304657 | DL46: ='Compile Data'!F430 -> 74.90910339 | DM46: ='Compile Data'!F431 -> 82.46569824 | DN46: ='Compile Data'!F432 -> 76.6897583 | DP46: 68.54272334 | DQ46: 72.68294716 | DR46: 67.79817549 | DT46: 72.85682583 | DU46: 54.85917536 | DV46: 58.52156067 | DW46: 74.24875641 | DX46: 79.04760742
A47: 1924-08-31 | B47: =INDIRECT(CONCATENATE("'",B$1,"'!",B$4,(YEAR($A47)-1921)*12+MONTH($A47)+3+IF(ISNUMBER(FIND("PRV",B$6)),1,0)))*IF(AND(B$3>0,TRIM(B$9)="CFS"),Conv_Flags!$C47,1) -> 91.36144257 | C47: =INDIRECT(CONCATENATE("'",C$1,"'!",C$4,(YEAR($A47)-1921)*12+MONTH($A47)+3+IF(ISNUMBER(FIND("PRV",C$6)),1,0)))*IF(AND(C$3>0,TRIM(C$9)="CFS"),Conv_Flags!$C47,1) -> 89.88305664 | D47: =INDIRECT(CONCATENATE("'",D$1,"'!",D$4,(YEAR($A47)-1921)*12+MONTH($A47)+3+IF(ISNUMBER(FIND("PRV",D$6)),1,0)))*IF(AND(D$3>0,TRIM(D$9)="CFS"),Conv_Flags!$C47,1) -> 89.88957977 | E47: =INDIRECT(CONCATENATE("'",E$1,"'!",E$4,(YEAR($A47)-1921)*12+MONTH($A47)+3+IF(ISNUMBER(FIND("PRV",E$6)),1,0)))*IF(AND(E$3>0,TRIM(E$9)="CFS"),Conv_Flags!$C47,1) -> 89.88302612 | F47: =INDIRECT(CONCATENATE("'",F$1,"'!",F$4,(YEAR($A47)-1921)*12+MONTH($A47)+3+IF(ISNUMBER(FIND("PRV",F$6)),1,0)))*IF(AND(F$3>0,TRIM(F$9)="CFS"),Conv_Flags!$C47,1) -> 90.28614044 | J47: 1957 | K47: =B433 -> 77.04986572 | L47: =B434 -> 82.27721405 | M47: =B435 -> 84.97702026 | N47: =B436 -> 85.11157227 | O47: =B437 -> 71.54194641 | P47: =B438 -> 56.22113419 | Q47: =B439 -> 65.28793335 | R47: =B440 -> 64.95319366 | S47: =B441 -> 77.20878601 | T47: =B442 -> 79.94886017 | U47: =B443 -> 82.54386902 | V47: =B444 -> 79.93282318 | X47: 75.2229236 | Y47: 71.70886326 | Z47: 75.58785152 | AB47: 82.35391808 | AC47: 80.54351298 | AD47: 65.9177618 | AE47: 79.90858459 | AF47: 80.53865814 | AH47: 1957 | AI47: ='Compile Data'!C433 -> 76.55132294 | AJ47: ='Compile Data'!C434 -> 82.14097595 | AK47: ='Compile Data'!C435 -> 84.96128082 | AL47: ='Compile Data'!C436 -> 85.09946442 | AM47: ='Compile Data'!C437 -> 71.94602966 | AN47: ='Compile Data'!C438 -> 56.93757629 | AO47: ='Compile Data'!C439 -> 65.47647858 | AP47: ='Compile Data'!C440 -> 65.1157074 | AQ47: ='Compile Data'!C441 -> 77.30813599 | AR47: ='Compile Data'!C442 -> 79.92395782 | AS47: ='Compile Data'!C443 -> 82.19528961 | AT47: ='Compile Data'!C444 -> 79.55564117 | AV47: 75.24666341 | AW47: 71.76212788 | AX47: 75.60098839 | AZ47: 82.18826103 | BA47: 80.66892497 | BB47: 66.20947456 | BC47: 79.74575615 | BD47: 79.74043528 | BF47: 1957 | BG47: ='Compile Data'!D433 -> 76.64026642 | BH47: ='Compile Data'!D434 -> 82.16883087 | BI47: ='Compile Data'!D435 -> 84.96283722 | BJ47: ='Compile Data'!D436 -> 85.09792328 | BK47: ='Compile Data'!D437 -> 71.94671631 | BL47: ='Compile Data'!D438 -> 57.359375 | BM47: ='Compile Data'!D439 -> 65.61552429 | BN47: ='Compile Data'!D440 -> 64.47795868 | BO47: ='Compile Data'!D441 -> 77.20508575 | BP47: ='Compile Data'!D442 -> 79.98641205 | BQ47: ='Compile Data'!D443 -> 82.18044281 | BR47: ='Compile Data'!D444 -> 79.40492249 | BT47: 75.20677503 | BU47: 71.80422815 | BV47: 75.58719126 | BX47: 82.21746445 | BY47: 80.66915894 | BZ47: 66.16448593 | CA47: 79.69421577 | CB47: 79.66531881 | CD47: 1957 | CE47: ='Compile Data'!E433 -> 76.55140686 | CF47: ='Compile Data'!E434 -> 82.14098358 | CG47: ='Compile Data'!E435 -> 84.96134186 | CH47: ='Compile Data'!E436 -> 85.09950256 | CI47: ='Compile Data'!E437 -> 71.94816589 | CJ47: ='Compile Data'!E438 -> 56.90042114 | CK47: ='Compile Data'!E439 -> 65.46575928 | CL47: ='Compile Data'!E440 -> 65.11628723 | CM47: ='Compile Data'!E441 -> 77.30815887 | CN47: ='Compile Data'!E442 -> 79.92422485 | CO47: ='Compile Data'!E443 -> 82.19548798 | CP47: ='Compile Data'!E444 -> 79.55573273 | CR47: 75.24296188 | CS47: 71.75812467 | CT47: 75.5972894 | CV47: 82.18830872 | CW47: 80.6696701 | CX47: 66.19765663 | CY47: 79.74590111 | CZ47: 79.74045308 | DB47: 1957 | DC47: ='Compile Data'!F433 -> 77.45704651 | DD47: ='Compile Data'!F434 -> 82.99601746 | DE47: ='Compile Data'!F435 -> 85.90881348 | DF47: ='Compile Data'!F436 -> 85.63903046 | DG47: ='Compile Data'!F437 -> 72.0436554 | DH47: ='Compile Data'!F438 -> 57.89411545 | DI47: ='Compile Data'!F439 -> 65.78939056 | DJ47: ='Compile Data'!F440 -> 64.4790802 | DK47: ='Compile Data'!F441 -> 77.2075882 | DL47: ='Compile Data'!F442 -> 80.00318909 | DM47: ='Compile Data'!F443 -> 81.70674133 | DN47: ='Compile Data'!F444 -> 79.74492645 | DP47: 75.65321382 | DQ47: 72.2192812 | DR47: 75.90579955 | DT47: 83.00022697 | DU47: 81.19716644 | DV47: 66.3425436 | DW47: 79.66561127 | DX47: 80.97074636
A48: 1924-09-30 | B48: =INDIRECT(CONCATENATE("'",B$1,"'!",B$4,(YEAR($A48)-1921)*12+MONTH($A48)+3+IF(ISNUMBER(FIND("PRV",B$6)),1,0)))*IF(AND(B$3>0,TRIM(B$9)="CFS"),Conv_Flags!$C48,1) -> 92.2723465 | C48: =INDIRECT(CONCATENATE("'",C$1,"'!",C$4,(YEAR($A48)-1921)*12+MONTH($A48)+3+IF(ISNUMBER(FIND("PRV",C$6)),1,0)))*IF(AND(C$3>0,TRIM(C$9)="CFS"),Conv_Flags!$C48,1) -> 90.87411499 | D48: =INDIRECT(CONCATENATE("'",D$1,"'!",D$4,(YEAR($A48)-1921)*12+MONTH($A48)+3+IF(ISNUMBER(FIND("PRV",D$6)),1,0)))*IF(AND(D$3>0,TRIM(D$9)="CFS"),Conv_Flags!$C48,1) -> 90.87065125 | E48: =INDIRECT(CONCATENATE("'",E$1,"'!",E$4,(YEAR($A48)-1921)*12+MONTH($A48)+3+IF(ISNUMBER(FIND("PRV",E$6)),1,0)))*IF(AND(E$3>0,TRIM(E$9)="CFS"),Conv_Flags!$C48,1) -> 90.87612915 | F48: =INDIRECT(CONCATENATE("'",F$1,"'!",F$4,(YEAR($A48)-1921)*12+MONTH($A48)+3+IF(ISNUMBER(FIND("PRV",F$6)),1,0)))*IF(AND(F$3>0,TRIM(F$9)="CFS"),Conv_Flags!$C48,1) -> 91.73227692 | J48: 1958 | K48: =B445 -> 78.94006348 | L48: =B446 -> 82.74308777 | M48: =B447 -> 78.24181366 | N48: =B448 -> 60.48479462 | O48: =B449 -> 54 | P48: =B450 -> 54 | Q48: =B451 -> 54 | R48: =B452 -> 54.07468796 | S48: =B453 -> 57.88269806 | T48: =B454 -> 72.38091278 | U48: =B455 -> 81.30039978 | V48: =B456 -> 78.27492523 | X48: 67.7628425 | Y48: 68.68661149 | Z48: 67.19361528 | AB48: 75.10243988 | AC48: 64.24220276 | AD48: 54.9893465 | AE48: 72.45973396 | AF48: 79.56309509 | AH48: 1958 | AI48: ='Compile Data'!C445 -> 77.61201477 | AJ48: ='Compile Data'!C446 -> 82.0536499 | AK48: ='Compile Data'!C447 -> 79.73601532 | AL48: ='Compile Data'!C448 -> 61.23106766 | AM48: ='Compile Data'!C449 -> 54 | AN48: ='Compile Data'!C450 -> 54 | AO48: ='Compile Data'!C451 -> 54 | AP48: ='Compile Data'!C452 -> 54.07995224 | AQ48: ='Compile Data'!C453 -> 57.88789749 | AR48: ='Compile Data'!C454 -> 72.37981415 | AS48: ='Compile Data'!C455 -> 80.96348572 | AT48: ='Compile Data'!C456 -> 77.67723846 | AV48: 67.68383376 | AW48: 68.67487462 | AX48: 67.13509464 | AZ48: 75.15818691 | BA48: 64.98902766 | BB48: 54.99196243 | BC48: 72.22710896 | BD48: 79.12384796 | BF48: 1958 | BG48: ='Compile Data'!D445 -> 77.4884491 | BH48: ='Compile Data'!D446 -> 82.10258484 | BI48: ='Compile Data'!D447 -> 79.61590576 | BJ48: ='Compile Data'!D448 -> 62.214077 | BK48: ='Compile Data'!D449 -> 54 | BL48: ='Compile Data'!D450 -> 54 | BM48: ='Compile Data'!D451 -> 54 | BN48: ='Compile Data'!D452 -> 54.07987213 | BO48: ='Compile Data'!D453 -> 57.88850021 | BP48: ='Compile Data'!D454 -> 72.37982941 | BQ48: ='Compile Data'!D455 -> 80.97964478 | BR48: ='Compile Data'!D456 -> 76.92409515 | BT48: 67.83148956 | BU48: 68.74621264 | BV48: 67.1394132 | BX48: 75.35525417 | BY48: 65.27666092 | BZ48: 54.99209309 | CA48: 72.04301739 | CB48: 79.17462667 | CD48: 1958 | CE48: ='Compile Data'!E445 -> 77.61195374 | CF48: ='Compile Data'!E446 -> 82.05367279 | CG48: ='Compile Data'!E447 -> 79.73617554 | CH48: ='Compile Data'!E448 -> 61.22962189 | CI48: ='Compile Data'!E449 -> 54 | CJ48: ='Compile Data'!E450 -> 54 | CK48: ='Compile Data'!E451 -> 54 | CL48: ='Compile Data'!E452 -> 54.07961273 | CM48: ='Compile Data'!E453 -> 57.88751984 | CN48: ='Compile Data'!E454 -> 72.37978363 | CO48: ='Compile Data'!E455 -> 80.96326447 | CP48: ='Compile Data'!E456 -> 77.67710114 | CR48: 67.68366687 | CS48: 68.67211755 | CT48: 67.13489215 | CV48: 75.15785599 | CW48: 64.98859914 | CX48: 54.99178314 | CY48: 72.22691727 | CZ48: 79.12377167 | DB48: 1958 | DC48: ='Compile Data'!F445 -> 79.81465149 | DD48: ='Compile Data'!F446 -> 83.35266113 | DE48: ='Compile Data'!F447 -> 80.16353607 | DF48: ='Compile Data'!F448 -> 62.47549438 | DG48: ='Compile Data'!F449 -> 54 | DH48: ='Compile Data'!F450 -> 54 | DI48: ='Compile Data'!F451 -> 54 | DJ48: ='Compile Data'!F452 -> 54.08097839 | DK48: ='Compile Data'!F453 -> 57.89026642 | DL48: ='Compile Data'!F454 -> 72.38002014 | DM48: ='Compile Data'!F455 -> 80.96330261 | DN48: ='Compile Data'!F456 -> 77.67712402 | DP48: 67.7879111 | DQ48: 68.67048295 | DR48: 67.56650289 | DT48: 76.45158577 | DU48: 65.54634349 | DV48: 54.9928112 | DW48: 72.2276783 | DX48: 79.12379964
A49: 1924-10-31 | B49: =INDIRECT(CONCATENATE("'",B$1,"'!",B$4,(YEAR($A49)-1921)*12+MONTH($A49)+3+IF(ISNUMBER(FIND("PRV",B$6)),1,0)))*IF(AND(B$3>0,TRIM(B$9)="CFS"),Conv_Flags!$C49,1) -> 93.71186829 | C49: =INDIRECT(CONCATENATE("'",C$1,"'!",C$4,(YEAR($A49)-1921)*12+MONTH($A49)+3+IF(ISNUMBER(FIND("PRV",C$6)),1,0)))*IF(AND(C$3>0,TRIM(C$9)="CFS"),Conv_Flags!$C49,1) -> 93.12824249 | D49: =INDIRECT(CONCATENATE("'",D$1,"'!",D$4,(YEAR($A49)-1921)*12+MONTH($A49)+3+IF(ISNUMBER(FIND("PRV",D$6)),1,0)))*IF(AND(D$3>0,TRIM(D$9)="CFS"),Conv_Flags!$C49,1) -> 93.14537811 | E49: =INDIRECT(CONCATENATE("'",E$1,"'!",E$4,(YEAR($A49)-1921)*12+MONTH($A49)+3+IF(ISNUMBER(FIND("PRV",E$6)),1,0)))*IF(AND(E$3>0,TRIM(E$9)="CFS"),Conv_Flags!$C49,1) -> 93.07946014 | F49: =INDIRECT(CONCATENATE("'",F$1,"'!",F$4,(YEAR($A49)-1921)*12+MONTH($A49)+3+IF(ISNUMBER(FIND("PRV",F$6)),1,0)))*IF(AND(F$3>0,TRIM(F$9)="CFS"),Conv_Flags!$C49,1) -> 93.26766205 | J49: 1959 | K49: =B457 -> 77.69317627 | L49: =B458 -> 82.72118378 | M49: =B459 -> 86.34133148 | N49: =B460 -> 70.61708069 | O49: =B461 -> 54.95294189 | P49: =B462 -> 63.90335083 | Q49: =B463 -> 75.97162628 | R49: =B464 -> 79.92198181 | S49: =B465 -> 83.19335175 | T49: =B466 -> 81.71457672 | U49: =B467 -> 84.34872437 | V49: =B468 -> 87.79981232 | X49: 79.58787727 | Y49: 81.93983587 | Z49: 77.43159485 | AB49: 79.34319305 | AC49: 70.63711802 | AD49: 75.74757767 | AE49: 84.26411629 | AF49: 89.64871979 | AH49: 1959 | AI49: ='Compile Data'!C457 -> 77.14096069 | AJ49: ='Compile Data'!C458 -> 82.55334473 | AK49: ='Compile Data'!C459 -> 86.29224396 | AL49: ='Compile Data'!C460 -> 71.95694733 | AM49: ='Compile Data'!C461 -> 55.16661072 | AN49: ='Compile Data'!C462 -> 63.90880203 | AO49: ='Compile Data'!C463 -> 76.08521271 | AP49: ='Compile Data'!C464 -> 79.86530304 | AQ49: ='Compile Data'!C465 -> 83.15798187 | AR49: ='Compile Data'!C466 -> 81.6383667 | AS49: ='Compile Data'!C467 -> 83.89840698 | AT49: ='Compile Data'!C468 -> 87.0450592 | AV49: 79.46070449 | AW49: 81.74114704 | AX49: 77.39243666 | AZ49: 79.48587418 | BA49: 71.13860067 | BB49: 75.75432491 | BC49: 83.93495369 | BD49: 88.85099538 | BF49: 1959 | BG49: ='Compile Data'!D457 -> 77.52090454 | BH49: ='Compile Data'!D458 -> 83.07888031 | BI49: ='Compile Data'!D459 -> 86.91207123 | BJ49: ='Compile Data'!D460 -> 72.02615356 | BK49: ='Compile Data'!D461 -> 55.16460037 | BL49: ='Compile Data'!D462 -> 63.912323 | BM49: ='Compile Data'!D463 -> 75.97306061 | BN49: ='Compile Data'!D464 -> 79.93139648 | BO49: ='Compile Data'!D465 -> 83.18778992 | BP49: ='Compile Data'!D466 -> 81.64096832 | BQ49: ='Compile Data'!D467 -> 83.9176178 | BR49: ='Compile Data'!D468 -> 86.87939453 | BT49: 79.40000884 | BU49: 81.66670418 | BV49: 77.51209672 | BX49: 79.88450241 | BY49: 71.36760839 | BZ49: 75.7511425 | CA49: 83.90644264 | CB49: 88.58379364 | CD49: 1959 | CE49: ='Compile Data'!E457 -> 77.14093781 | CF49: ='Compile Data'!E458 -> 82.55327606 | CG49: ='Compile Data'!E459 -> 86.29288483 | CH49: ='Compile Data'!E460 -> 71.92896271 | CI49: ='Compile Data'!E461 -> 55.16206741 | CJ49: ='Compile Data'!E462 -> 63.90864182 | CK49: ='Compile Data'!E463 -> 76.08461761 | CL49: ='Compile Data'!E464 -> 79.865448 | CM49: ='Compile Data'!E465 -> 83.15815735 | CN49: ='Compile Data'!E466 -> 81.63839722 | CO49: ='Compile Data'!E467 -> 83.89842224 | CP49: ='Compile Data'!E468 -> 87.04497528 | CR49: 79.45794169 | CS49: 81.7411267 | CT49: 77.38973236 | CV49: 79.47901535 | CW49: 71.12797165 | CX49: 75.75421619 | CY49: 83.93498802 | CZ49: 88.85091654 | DB49: 1959 | DC49: ='Compile Data'!F457 -> 77.14091492 | DD49: ='Compile Data'!F458 -> 82.55335999 | DE49: ='Compile Data'!F459 -> 86.29347229 | DF49: ='Compile Data'!F460 -> 71.90418243 | DG49: ='Compile Data'!F461 -> 55.16217422 | DH49: ='Compile Data'!F462 -> 63.91189194 | DI49: ='Compile Data'!F463 -> 75.98187256 | DJ49: ='Compile Data'!F464 -> 79.90856934 | DK49: ='Compile Data'!F465 -> 83.33673859 | DL49: ='Compile Data'!F466 -> 81.52951813 | DM49: ='Compile Data'!F467 -> 83.78273773 | DN49: ='Compile Data'!F468 -> 87.07632446 | DP49: 79.3867232 | DQ49: 81.67649237 | DR49: 77.38181305 | DT49: 79.47298241 | DU49: 71.11994298 | DV49: 75.7847681 | DW49: 83.93132973 | DX49: 88.70881144
A50: 1924-11-30 | B50: =INDIRECT(CONCATENATE("'",B$1,"'!",B$4,(YEAR($A50)-1921)*12+MONTH($A50)+3+IF(ISNUMBER(FIND("PRV",B$6)),1,0)))*IF(AND(B$3>0,TRIM(B$9)="CFS"),Conv_Flags!$C50,1) -> 93.66447449 | C50: =INDIRECT(CONCATENATE("'",C$1,"'!",C$4,(YEAR($A50)-1921)*12+MONTH($A50)+3+IF(ISNUMBER(FIND("PRV",C$6)),1,0)))*IF(AND(C$3>0,TRIM(C$9)="CFS"),Conv_Flags!$C50,1) -> 93.30484009 | D50: =INDIRECT(CONCATENATE("'",D$1,"'!",D$4,(YEAR($A50)-1921)*12+MONTH($A50)+3+IF(ISNUMBER(FIND("PRV",D$6)),1,0)))*IF(AND(D$3>0,TRIM(D$9)="CFS"),Conv_Flags!$C50,1) -> 93.30673218 | E50: =INDIRECT(CONCATENATE("'",E$1,"'!",E$4,(YEAR($A50)-1921)*12+MONTH($A50)+3+IF(ISNUMBER(FIND("PRV",E$6)),1,0)))*IF(AND(E$3>0,TRIM(E$9)="CFS"),Conv_Flags!$C50,1) -> 93.29055023 | F50: =INDIRECT(CONCATENATE("'",F$1,"'!",F$4,(YEAR($A50)-1921)*12+MONTH($A50)+3+IF(ISNUMBER(FIND("PRV",F$6)),1,0)))*IF(AND(F$3>0,TRIM(F$9)="CFS"),Conv_Flags!$C50,1) -> 93.24076843 | J50: 1960 | K50: =B469 -> 90.46190643 | L50: =B470 -> 90.68444061 | M50: =B471 -> 91.48473358 | N50: =B472 -> 87.21484375 | O50: =B473 -> 66.57868195 | P50: =B474 -> 64.9679718 | Q50: =B475 -> 70.23484039 | R50: =B476 -> 78.24012756 | S50: =B477 -> 82.98751831 | T50: =B478 -> 84.01340485 | U50: =B479 -> 88.70773315 | V50: =B480 -> 91.98931885 | X50: 81.8124059 | Y50: 81.35031764 | Z50: 82.29712677 | AB50: 89.96148109 | AC50: 81.75941976 | AD50: 74.10761452 | AE50: 86.92449379 | AF50: 91.4276123 | AH50: 1960 | AI50: ='Compile Data'!C469 -> 89.29747009 | AJ50: ='Compile Data'!C470 -> 90.21045685 | AK50: ='Compile Data'!C471 -> 91.2978363 | AL50: ='Compile Data'!C472 -> 87.11878204 | AM50: ='Compile Data'!C473 -> 67.37008667 | AN50: ='Compile Data'!C474 -> 65.32642365 | AO50: ='Compile Data'!C475 -> 70.35458374 | AP50: ='Compile Data'!C476 -> 78.33300018 | AQ50: ='Compile Data'!C477 -> 83.0298996 | AR50: ='Compile Data'!C478 -> 84.03369904 | AS50: ='Compile Data'!C479 -> 87.61216736 | AT50: ='Compile Data'!C480 -> 90.78964233 | AV50: 81.58551343 | AW50: 81.1998113 | AX50: 82.06450399 | AZ50: 89.48113632 | BA50: 81.92890167 | BB50: 74.26097679 | BC50: 86.36635208 | BD50: 90.35389709 | BF50: 1960 | BG50: ='Compile Data'!D469 -> 89.25416565 | BH50: ='Compile Data'!D470 -> 89.61782074 | BI50: ='Compile Data'!D471 -> 91.29481506 | BJ50: ='Compile Data'!D472 -> 87.07853699 | BK50: ='Compile Data'!D473 -> 67.31256104 | BL50: ='Compile Data'!D474 -> 65.84870911 | BM50: ='Compile Data'!D475 -> 70.35655975 | BN50: ='Compile Data'!D476 -> 77.59029388 | BO50: ='Compile Data'!D477 -> 82.65894318 | BP50: ='Compile Data'!D478 -> 84.05181122 | BQ50: ='Compile Data'!D479 -> 87.4943924 | BR50: ='Compile Data'!D480 -> 90.73116302 | BT50: 81.39264806 | BU50: 80.72863134 | BV50: 81.94081434 | BX50: 89.31133461 | BY50: 81.89530436 | BZ50: 74.11362648 | CA50: 86.23407745 | CB50: 90.64555868 | CD50: 1960 | CE50: ='Compile Data'!E469 -> 89.29734802 | CF50: ='Compile Data'!E470 -> 90.21042633 | CG50: ='Compile Data'!E471 -> 91.2978363 | CH50: ='Compile Data'!E472 -> 87.11894989 | CI50: ='Compile Data'!E473 -> 67.37030029 | CJ50: ='Compile Data'!E474 -> 65.32647705 | CK50: ='Compile Data'!E475 -> 70.35457611 | CL50: ='Compile Data'!E476 -> 78.33249664 | CM50: ='Compile Data'!E477 -> 83.02992249 | CN50: ='Compile Data'!E478 -> 84.03366852 | CO50: ='Compile Data'!E479 -> 87.61222839 | CP50: ='Compile Data'!E480 -> 90.78968811 | CR50: 81.5855395 | CS50: 81.19983927 | CT50: 82.06449318 | CV50: 89.48114014 | CW50: 81.92902883 | CX50: 74.26086807 | CY50: 86.36637688 | CZ50: 90.35393016 | DB50: 1960 | DC50: ='Compile Data'!F469 -> 89.38746643 | DD50: ='Compile Data'!F470 -> 89.66264343 | DE50: ='Compile Data'!F471 -> 90.99655914 | DF50: ='Compile Data'!F472 -> 87.17214966 | DG50: ='Compile Data'!F473 -> 67.37143707 | DH50: ='Compile Data'!F474 -> 64.97264862 | DI50: ='Compile Data'!F475 -> 70.30899811 | DJ50: ='Compile Data'!F476 -> 77.73636627 | DK50: ='Compile Data'!F477 -> 82.65200806 | DL50: ='Compile Data'!F478 -> 84.01908875 | DM50: ='Compile Data'!F479 -> 87.50778198 | DN50: ='Compile Data'!F480 -> 90.74552917 | DP50: 81.44706599 | DQ50: 81.02602196 | DR50: 81.87772306 | DT50: 89.30470467 | DU50: 81.84671529 | DV50: 73.91750526 | DW50: 86.23110199 | DX50: 90.39098612
A51: 1924-12-31 | B51: =INDIRECT(CONCATENATE("'",B$1,"'!",B$4,(YEAR($A51)-1921)*12+MONTH($A51)+3+IF(ISNUMBER(FIND("PRV",B$6)),1,0)))*IF(AND(B$3>0,TRIM(B$9)="CFS"),Conv_Flags!$C51,1) -> 86.71098328 | C51: =INDIRECT(CONCATENATE("'",C$1,"'!",C$4,(YEAR($A51)-1921)*12+MONTH($A51)+3+IF(ISNUMBER(FIND("PRV",C$6)),1,0)))*IF(AND(C$3>0,TRIM(C$9)="CFS"),Conv_Flags!$C51,1) -> 86.67453003 | D51: =INDIRECT(CONCATENATE("'",D$1,"'!",D$4,(YEAR($A51)-1921)*12+MONTH($A51)+3+IF(ISNUMBER(FIND("PRV",D$6)),1,0)))*IF(AND(D$3>0,TRIM(D$9)="CFS"),Conv_Flags!$C51,1) -> 86.67453003 | E51: =INDIRECT(CONCATENATE("'",E$1,"'!",E$4,(YEAR($A51)-1921)*12+MONTH($A51)+3+IF(ISNUMBER(FIND("PRV",E$6)),1,0)))*IF(AND(E$3>0,TRIM(E$9)="CFS"),Conv_Flags!$C51,1) -> 86.6473465 | F51: =INDIRECT(CONCATENATE("'",F$1,"'!",F$4,(YEAR($A51)-1921)*12+MONTH($A51)+3+IF(ISNUMBER(FIND("PRV",F$6)),1,0)))*IF(AND(F$3>0,TRIM(F$9)="CFS"),Conv_Flags!$C51,1) -> 86.71076965 | J51: 1961 | K51: =B481 -> 92.16410065 | L51: =B482 -> 90.12941742 | M51: =B483 -> 84.52091217 | N51: =B484 -> 84.04838562 | O51: =B485 -> 64.20008087 | P51: =B486 -> 65.11280823 | Q51: =B487 -> 73.73379517 | R51: =B488 -> 80.55975342 | S51: =B489 -> 82.49594879 | T51: =B490 -> 85.33818054 | U51: =B491 -> 89.97418213 | V51: =B492 -> 91.90058899 | X51: 81.94149017 | Y51: 81.44505533 | Z51: 82.01484617 | AB51: 87.71570396 | AC51: 77.58979289 | AD51: 75.4755764 | AE51: 87.42722511 | AF51: 91.75126902 | AH51: 1961 | AI51: ='Compile Data'!C481 -> 91.02378082 | AJ51: ='Compile Data'!C482 -> 89.24826813 | AK51: ='Compile Data'!C483 -> 84.78582764 | AL51: ='Compile Data'!C484 -> 84.32529449 | AM51: ='Compile Data'!C485 -> 65.53514862 | AN51: ='Compile Data'!C486 -> 65.66046906 | AO51: ='Compile Data'!C487 -> 73.80857849 | AP51: ='Compile Data'!C488 -> 80.39020538 | AQ51: ='Compile Data'!C489 -> 82.39324188 | AR51: ='Compile Data'!C490 -> 84.84207153 | AS51: ='Compile Data'!C491 -> 89.03501892 | AT51: ='Compile Data'!C492 -> 91.10482788 | AV51: 81.76950836 | AW51: 81.14836566 | AX51: 81.84606107 | AZ51: 87.34579277 | BA51: 78.21542358 | BB51: 75.5631237 | BC51: 86.84379005 | BD51: 90.99417369 | BF51: 1961 | BG51: ='Compile Data'!D481 -> 90.93712616 | BH51: ='Compile Data'!D482 -> 90.26838684 | BI51: ='Compile Data'!D483 -> 82.38329315 | BJ51: ='Compile Data'!D484 -> 81.56598663 | BK51: ='Compile Data'!D485 -> 64.85691071 | BL51: ='Compile Data'!D486 -> 65.41848755 | BM51: ='Compile Data'!D487 -> 73.92197418 | BN51: ='Compile Data'!D488 -> 80.42536163 | BO51: ='Compile Data'!D489 -> 82.37643433 | BP51: ='Compile Data'!D490 -> 84.70131683 | BQ51: ='Compile Data'!D491 -> 89.01107788 | BR51: ='Compile Data'!D492 -> 91.03633118 | BT51: 81.47351201 | BU51: 81.14016342 | BV51: 81.40855726 | BX51: 86.2886982 | BY51: 76.26873016 | BZ51: 75.53556442 | CA51: 86.78129005 | CB51: 90.99940491 | CD51: 1961 | CE51: ='Compile Data'!E481 -> 91.02385712 | CF51: ='Compile Data'!E482 -> 89.24824524 | CG51: ='Compile Data'!E483 -> 84.78606415 | CH51: ='Compile Data'!E484 -> 84.32550812 | CI51: ='Compile Data'!E485 -> 65.53533936 | CJ51: ='Compile Data'!E486 -> 65.66053009 | CK51: ='Compile Data'!E487 -> 73.80865479 | CL51: ='Compile Data'!E488 -> 80.39022827 | CM51: ='Compile Data'!E489 -> 82.39337158 | CN51: ='Compile Data'!E490 -> 84.84379578 | CO51: ='Compile Data'!E491 -> 89.03580475 | CP51: ='Compile Data'!E492 -> 91.10456848 | CR51: 81.76984278 | CS51: 81.14864477 | CT51: 81.84633064 | CV51: 87.34591866 | CW51: 78.21563721 | CX51: 75.56319618 | CY51: 86.84438515 | CZ51: 90.99561818 | DB51: 1961 | DC51: ='Compile Data'!F481 -> 90.9129715 | DD51: ='Compile Data'!F482 -> 89.5144577 | DE51: ='Compile Data'!F483 -> 84.45135498 | DF51: ='Compile Data'!F484 -> 84.02865601 | DG51: ='Compile Data'!F485 -> 65.46240234 | DH51: ='Compile Data'!F486 -> 65.65198517 | DI51: ='Compile Data'!F487 -> 73.80297852 | DJ51: ='Compile Data'!F488 -> 80.39022064 | DK51: ='Compile Data'!F489 -> 82.39673615 | DL51: ='Compile Data'!F490 -> 84.8048172 | DM51: ='Compile Data'!F491 -> 89.03017426 | DN51: ='Compile Data'!F492 -> 91.04698944 | DP51: 81.72044627 | DQ51: 81.11764081 | DR51: 81.79114532 | DT51: 87.22686005 | DU51: 77.98080444 | DV51: 75.56048012 | DW51: 86.81967926 | DX51: 90.95239512
A52: 1925-01-31 | B52: =INDIRECT(CONCATENATE("'",B$1,"'!",B$4,(YEAR($A52)-1921)*12+MONTH($A52)+3+IF(ISNUMBER(FIND("PRV",B$6)),1,0)))*IF(AND(B$3>0,TRIM(B$9)="CFS"),Conv_Flags!$C52,1) -> 84.77311707 | C52: =INDIRECT(CONCATENATE("'",C$1,"'!",C$4,(YEAR($A52)-1921)*12+MONTH($A52)+3+IF(ISNUMBER(FIND("PRV",C$6)),1,0)))*IF(AND(C$3>0,TRIM(C$9)="CFS"),Conv_Flags!$C52,1) -> 84.72810364 | D52: =INDIRECT(CONCATENATE("'",D$1,"'!",D$4,(YEAR($A52)-1921)*12+MONTH($A52)+3+IF(ISNUMBER(FIND("PRV",D$6)),1,0)))*IF(AND(D$3>0,TRIM(D$9)="CFS"),Conv_Flags!$C52,1) -> 84.72756195 | E52: =INDIRECT(CONCATENATE("'",E$1,"'!",E$4,(YEAR($A52)-1921)*12+MONTH($A52)+3+IF(ISNUMBER(FIND("PRV",E$6)),1,0)))*IF(AND(E$3>0,TRIM(E$9)="CFS"),Conv_Flags!$C52,1) -> 84.71910095 | F52: =INDIRECT(CONCATENATE("'",F$1,"'!",F$4,(YEAR($A52)-1921)*12+MONTH($A52)+3+IF(ISNUMBER(FIND("PRV",F$6)),1,0)))*IF(AND(F$3>0,TRIM(F$9)="CFS"),Conv_Flags!$C52,1) -> 84.88467407 | J52: 1962 | K52: =B493 -> 91.64429474 | L52: =B494 -> 91.70892334 | M52: =B495 -> 82.58094025 | N52: =B496 -> 84.19568634 | O52: =B497 -> 58.09556198 | P52: =B498 -> 60.12159348 | Q52: =B499 -> 68.05826569 | R52: =B500 -> 73.89424896 | S52: =B501 -> 81.67147827 | T52: =B502 -> 82.48680115 | U52: =B503 -> 86.43688202 | V52: =B504 -> 91.58267975 | X52: 74.84881846 | Y52: 73.41516972 | Z52: 79.373113 | AB52: 87.53246117 | AC52: 74.95739619 | AD52: 70.9363966 | AE52: 85.5444603 | AF52: 78.12347412 | AH52: 1962 | AI52: ='Compile Data'!C493 -> 91.03356171 | AJ52: ='Compile Data'!C494 -> 90.84413147 | AK52: ='Compile Data'!C495 -> 82.2615509 | AL52: ='Compile Data'!C496 -> 84.05794525 | AM52: ='Compile Data'!C497 -> 58.3487854 | AN52: ='Compile Data'!C498 -> 60.64658737 | AO52: ='Compile Data'!C499 -> 68.2713623 | AP52: ='Compile Data'!C500 -> 73.91313171 | AQ52: ='Compile Data'!C501 -> 81.67734528 | AR52: ='Compile Data'!C502 -> 82.44548035 | AS52: ='Compile Data'!C503 -> 86.03395081 | AT52: ='Compile Data'!C504 -> 90.58161163 | AV52: 75.06266371 | AW52: 73.67026869 | AX52: 79.17628702 | AZ52: 87.04929733 | BA52: 74.88942719 | BB52: 71.12710667 | BC52: 85.18459702 | BD52: 78.33745829 | BF52: 1962 | BG52: ='Compile Data'!D493 -> 90.88040924 | BH52: ='Compile Data'!D494 -> 91.0814743 | BI52: ='Compile Data'!D495 -> 82.4063797 | BJ52: ='Compile Data'!D496 -> 84.12049866 | BK52: ='Compile Data'!D497 -> 58.30221558 | BL52: ='Compile Data'!D498 -> 60.63356018 | BM52: ='Compile Data'!D499 -> 68.2739563 | BN52: ='Compile Data'!D500 -> 73.91352844 | BO52: ='Compile Data'!D501 -> 81.6776886 | BP52: ='Compile Data'!D502 -> 82.44186401 | BQ52: ='Compile Data'!D503 -> 86.03313446 | BR52: ='Compile Data'!D504 -> 90.8292923 | BT52: 75.08002345 | BU52: 73.68607012 | BV52: 79.21616681 | BX52: 87.12219048 | BY52: 74.94303131 | BZ52: 71.12468338 | CA52: 85.24549484 | CB52: 78.40762838 | CD52: 1962 | CE52: ='Compile Data'!E493 -> 91.04931641 | CF52: ='Compile Data'!E494 -> 90.83296967 | CG52: ='Compile Data'!E495 -> 82.25802612 | CH52: ='Compile Data'!E496 -> 84.05767059 | CI52: ='Compile Data'!E497 -> 58.34880066 | CJ52: ='Compile Data'!E498 -> 60.64663696 | CK52: ='Compile Data'!E499 -> 68.2714386 | CL52: ='Compile Data'!E500 -> 73.91313934 | CM52: ='Compile Data'!E501 -> 81.67732239 | CN52: ='Compile Data'!E502 -> 82.44553375 | CO52: ='Compile Data'!E503 -> 86.0330658 | CP52: ='Compile Data'!E504 -> 90.58358002 | CR52: 75.06282934 | CS52: 73.67046706 | CT52: 79.17645836 | CV52: 87.0494957 | CW52: 74.88816579 | CX52: 71.12713432 | CY52: 85.18487549 | CZ52: 78.33841705 | DB52: 1962 | DC52: ='Compile Data'!F493 -> 90.91822815 | DD52: ='Compile Data'!F494 -> 90.89196777 | DE52: ='Compile Data'!F495 -> 82.22019958 | DF52: ='Compile Data'!F496 -> 83.90377808 | DG52: ='Compile Data'!F497 -> 58.35361481 | DH52: ='Compile Data'!F498 -> 60.6492157 | DI52: ='Compile Data'!F499 -> 68.2774353 | DJ52: ='Compile Data'!F500 -> 73.72645569 | DK52: ='Compile Data'!F501 -> 81.85142517 | DL52: ='Compile Data'!F502 -> 82.3396759 | DM52: ='Compile Data'!F503 -> 85.89054108 | DN52: ='Compile Data'!F504 -> 90.59239197 | DP52: 74.99694888 | DQ52: 73.61739953 | DR52: 79.13457743 | DT52: 86.9835434 | DU52: 74.82586416 | DV52: 71.12613297 | DW52: 85.16850853 | DX52: 78.2156601
A53: 1925-02-28 | B53: =INDIRECT(CONCATENATE("'",B$1,"'!",B$4,(YEAR($A53)-1921)*12+MONTH($A53)+3+IF(ISNUMBER(FIND("PRV",B$6)),1,0)))*IF(AND(B$3>0,TRIM(B$9)="CFS"),Conv_Flags!$C53,1) -> 56.98350906 | C53: =INDIRECT(CONCATENATE("'",C$1,"'!",C$4,(YEAR($A53)-1921)*12+MONTH($A53)+3+IF(ISNUMBER(FIND("PRV",C$6)),1,0)))*IF(AND(C$3>0,TRIM(C$9)="CFS"),Conv_Flags!$C53,1) -> 57.16724777 | D53: =INDIRECT(CONCATENATE("'",D$1,"'!",D$4,(YEAR($A53)-1921)*12+MONTH($A53)+3+IF(ISNUMBER(FIND("PRV",D$6)),1,0)))*IF(AND(D$3>0,TRIM(D$9)="CFS"),Conv_Flags!$C53,1) -> 57.17139435 | E53: =INDIRECT(CONCATENATE("'",E$1,"'!",E$4,(YEAR($A53)-1921)*12+MONTH($A53)+3+IF(ISNUMBER(FIND("PRV",E$6)),1,0)))*IF(AND(E$3>0,TRIM(E$9)="CFS"),Conv_Flags!$C53,1) -> 57.16619492 | F53: =INDIRECT(CONCATENATE("'",F$1,"'!",F$4,(YEAR($A53)-1921)*12+MONTH($A53)+3+IF(ISNUMBER(FIND("PRV",F$6)),1,0)))*IF(AND(F$3>0,TRIM(F$9)="CFS"),Conv_Flags!$C53,1) -> 57.18001938 | J53: 1963 | K53: =B505 -> 67.5086441 | L53: =B506 -> 75.27909851 | M53: =B507 -> 68.85488129 | N53: =B508 -> 69.77833557 | O53: =B509 -> 55.30912781 | P53: =B510 -> 58.77318954 | Q53: =B511 -> 54.12695312 | R53: =B512 -> 57.91427612 | S53: =B513 -> 71.71092224 | T53: =B514 -> 78.02041626 | U53: =B515 -> 83.32357788 | V53: =B516 -> 79.6938324 | X53: 69.87418652 | Y53: 71.46859455 | Z53: 68.35777124 | AB53: 70.35523987 | AC53: 64.64744822 | AD53: 60.63133526 | AE53: 78.18718719 | AF53: 77.00402323 | AH53: 1963 | AI53: ='Compile Data'!C505 -> 68.63524628 | AJ53: ='Compile Data'!C506 -> 75.79551697 | AK53: ='Compile Data'!C507 -> 70.34500122 | AL53: ='Compile Data'!C508 -> 70.29091644 | AM53: ='Compile Data'!C509 -> 55.40707397 | AN53: ='Compile Data'!C510 -> 58.99251938 | AO53: ='Compile Data'!C511 -> 54.15072632 | AP53: ='Compile Data'!C512 -> 57.91370773 | AQ53: ='Compile Data'!C513 -> 71.69426727 | AR53: ='Compile Data'!C514 -> 78.02701569 | AS53: ='Compile Data'!C515 -> 82.97646332 | AT53: ='Compile Data'!C516 -> 79.17523193 | AV53: 70.00296021 | AW53: 71.56089846 | AX53: 68.61697388 | AZ53: 71.26667023 | BA53: 65.34766388 | BB53: 60.68780518 | BC53: 77.96824455 | BD53: 77.08382161 | BF53: 1963 | BG53: ='Compile Data'!D505 -> 68.6314621 | BH53: ='Compile Data'!D506 -> 75.76213074 | BI53: ='Compile Data'!D507 -> 70.34095001 | BJ53: ='Compile Data'!D508 -> 70.28920746 | BK53: ='Compile Data'!D509 -> 55.40606689 | BL53: ='Compile Data'!D510 -> 58.99215698 | BM53: ='Compile Data'!D511 -> 54.15073013 | BN53: ='Compile Data'!D512 -> 57.91362762 | BO53: ='Compile Data'!D513 -> 71.69421387 | BP53: ='Compile Data'!D514 -> 78.02687073 | BQ53: ='Compile Data'!D515 -> 82.97629547 | BR53: ='Compile Data'!D516 -> 79.17549133 | BT53: 70.03005886 | BU53: 71.59176604 | BV53: 68.61326694 | BX53: 71.25593758 | BY53: 65.34540812 | BZ53: 60.68768215 | CA53: 77.96821785 | CB53: 77.19149272 | CD53: 1963 | CE53: ='Compile Data'!E505 -> 68.6361084 | CF53: ='Compile Data'!E506 -> 75.79556274 | CG53: ='Compile Data'!E507 -> 70.34509277 | CH53: ='Compile Data'!E508 -> 70.29103088 | CI53: ='Compile Data'!E509 -> 55.40709305 | CJ53: ='Compile Data'!E510 -> 58.9925499 | CK53: ='Compile Data'!E511 -> 54.15072632 | CL53: ='Compile Data'!E512 -> 57.91374969 | CM53: ='Compile Data'!E513 -> 71.69429779 | CN53: ='Compile Data'!E514 -> 78.02690887 | CO53: ='Compile Data'!E515 -> 82.97644043 | CP53: ='Compile Data'!E516 -> 79.17529297 | CR53: 69.99549484 | CS53: 71.55343405 | CT53: 68.61707115 | CV53: 71.2669487 | CW53: 65.3477389 | CX53: 60.68783092 | CY53: 77.96823502 | CZ53: 77.05422465 | DB53: 1963 | DC53: ='Compile Data'!F505 -> 68.37030792 | DD53: ='Compile Data'!F506 -> 75.6842804 | DE53: ='Compile Data'!F507 -> 70.32426453 | DF53: ='Compile Data'!F508 -> 70.28003693 | DG53: ='Compile Data'!F509 -> 55.42276382 | DH53: ='Compile Data'!F510 -> 58.99698639 | DI53: ='Compile Data'!F511 -> 54.15049362 | DJ53: ='Compile Data'!F512 -> 57.91350937 | DK53: ='Compile Data'!F513 -> 71.69406891 | DL53: ='Compile Data'!F514 -> 78.02642822 | DM53: ='Compile Data'!F515 -> 82.97592163 | DN53: ='Compile Data'!F516 -> 79.17617798 | DP53: 70.03459454 | DQ53: 71.60257276 | DR53: 68.58460331 | DT53: 71.16472244 | DU53: 65.34235509 | DV53: 60.68876457 | DW53: 77.96814919 | DX53: 77.20405833
A54: 1925-03-31 | B54: =INDIRECT(CONCATENATE("'",B$1,"'!",B$4,(YEAR($A54)-1921)*12+MONTH($A54)+3+IF(ISNUMBER(FIND("PRV",B$6)),1,0)))*IF(AND(B$3>0,TRIM(B$9)="CFS"),Conv_Flags!$C54,1) -> 63.95012283 | C54: =INDIRECT(CONCATENATE("'",C$1,"'!",C$4,(YEAR($A54)-1921)*12+MONTH($A54)+3+IF(ISNUMBER(FIND("PRV",C$6)),1,0)))*IF(AND(C$3>0,TRIM(C$9)="CFS"),Conv_Flags!$C54,1) -> 63.99378204 | D54: =INDIRECT(CONCATENATE("'",D$1,"'!",D$4,(YEAR($A54)-1921)*12+MONTH($A54)+3+IF(ISNUMBER(FIND("PRV",D$6)),1,0)))*IF(AND(D$3>0,TRIM(D$9)="CFS"),Conv_Flags!$C54,1) -> 63.99509811 | E54: =INDIRECT(CONCATENATE("'",E$1,"'!",E$4,(YEAR($A54)-1921)*12+MONTH($A54)+3+IF(ISNUMBER(FIND("PRV",E$6)),1,0)))*IF(AND(E$3>0,TRIM(E$9)="CFS"),Conv_Flags!$C54,1) -> 63.99374008 | F54: =INDIRECT(CONCATENATE("'",F$1,"'!",F$4,(YEAR($A54)-1921)*12+MONTH($A54)+3+IF(ISNUMBER(FIND("PRV",F$6)),1,0)))*IF(AND(F$3>0,TRIM(F$9)="CFS"),Conv_Flags!$C54,1) -> 63.99219131 | J54: 1964 | K54: =B517 -> 79.95411682 | L54: =B518 -> 71.36412048 | M54: =B519 -> 78.52136993 | N54: =B520 -> 71.6658783 | O54: =B521 -> 72.55448151 | P54: =B522 -> 79.59433746 | Q54: =B523 -> 81.20884705 | R54: =B524 -> 81.76033783 | S54: =B525 -> 83.14202881 | T54: =B526 -> 84.90429688 | U54: =B527 -> 90.14115906 | V54: =B528 -> 92.30195618 | X54: 80.95609728 | Y54: 78.0914491 | Z54: 80.59274419 | AB54: 75.37637138 | AC54: 74.24724325 | AD54: 81.42638779 | AE54: 87.62236023 | AF54: 90.11664836 | AH54: 1964 | AI54: ='Compile Data'!C517 -> 79.5141449 | AJ54: ='Compile Data'!C518 -> 72.56208801 | AK54: ='Compile Data'!C519 -> 79.33136749 | AL54: ='Compile Data'!C520 -> 71.80269623 | AM54: ='Compile Data'!C521 -> 72.59055328 | AN54: ='Compile Data'!C522 -> 79.60484314 | AO54: ='Compile Data'!C523 -> 81.21323395 | AP54: ='Compile Data'!C524 -> 81.76065826 | AQ54: ='Compile Data'!C525 -> 83.14253998 | AR54: ='Compile Data'!C526 -> 84.89383698 | AS54: ='Compile Data'!C527 -> 89.97849274 | AT54: ='Compile Data'!C528 -> 91.61697388 | AV54: 80.76479467 | AW54: 77.89498361 | AX54: 80.66761907 | AZ54: 75.80257416 | BA54: 74.57487233 | BB54: 81.43031883 | BC54: 87.40796089 | BD54: 89.33749135 | BF54: 1964 | BG54: ='Compile Data'!D517 -> 79.75401306 | BH54: ='Compile Data'!D518 -> 72.64497375 | BI54: ='Compile Data'!D519 -> 79.33705902 | BJ54: ='Compile Data'!D520 -> 71.84642792 | BK54: ='Compile Data'!D521 -> 72.58933258 | BL54: ='Compile Data'!D522 -> 79.59524536 | BM54: ='Compile Data'!D523 -> 81.2133255 | BN54: ='Compile Data'!D524 -> 81.76146698 | BO54: ='Compile Data'!D525 -> 83.14253235 | BP54: ='Compile Data'!D526 -> 84.89380646 | BQ54: ='Compile Data'!D527 -> 89.98052216 | BR54: ='Compile Data'!D528 -> 91.61488342 | BT54: 80.69545174 | BU54: 77.82204723 | BV54: 80.69779905 | BX54: 75.89561844 | BY54: 74.59093984 | BZ54: 81.42814255 | CA54: 87.4079361 | CB54: 89.09868368 | CD54: 1964 | CE54: ='Compile Data'!E517 -> 79.44844818 | CF54: ='Compile Data'!E518 -> 72.5389328 | CG54: ='Compile Data'!E519 -> 79.33046722 | CH54: ='Compile Data'!E520 -> 71.80271149 | CI54: ='Compile Data'!E521 -> 72.59068298 | CJ54: ='Compile Data'!E522 -> 79.60501862 | CK54: ='Compile Data'!E523 -> 81.21334076 | CL54: ='Compile Data'!E524 -> 81.76059723 | CM54: ='Compile Data'!E525 -> 83.14263916 | CN54: ='Compile Data'!E526 -> 84.89364624 | CO54: ='Compile Data'!E527 -> 89.48738098 | CP54: ='Compile Data'!E528 -> 91.32212067 | CR54: 80.69200357 | CS54: 77.82218202 | CT54: 80.59466553 | CV54: 75.78013992 | CW54: 74.57462056 | CX54: 81.43039894 | CY54: 87.21144676 | CZ54: 89.21009572 | DB54: 1964 | DC54: ='Compile Data'!F517 -> 79.78752136 | DD54: ='Compile Data'!F518 -> 72.64847565 | DE54: ='Compile Data'!F519 -> 79.34275055 | DF54: ='Compile Data'!F520 -> 71.90126801 | DG54: ='Compile Data'!F521 -> 72.61727142 | DH54: ='Compile Data'!F522 -> 79.6000824 | DI54: ='Compile Data'!F523 -> 81.21334839 | DJ54: ='Compile Data'!F524 -> 81.76145172 | DK54: ='Compile Data'!F525 -> 83.14289093 | DL54: ='Compile Data'!F526 -> 84.89385986 | DM54: ='Compile Data'!F527 -> 89.97843933 | DN54: ='Compile Data'!F528 -> 91.64128113 | DP54: 80.83496634 | DQ54: 77.95455519 | DR54: 80.71072006 | DT54: 75.92000389 | DU54: 74.62042999 | DV54: 81.42944336 | DW54: 87.41411781 | DX54: 89.55518087
A55: 1925-04-30 | B55: =INDIRECT(CONCATENATE("'",B$1,"'!",B$4,(YEAR($A55)-1921)*12+MONTH($A55)+3+IF(ISNUMBER(FIND("PRV",B$6)),1,0)))*IF(AND(B$3>0,TRIM(B$9)="CFS"),Conv_Flags!$C55,1) -> 61.4784317 | C55: =INDIRECT(CONCATENATE("'",C$1,"'!",C$4,(YEAR($A55)-1921)*12+MONTH($A55)+3+IF(ISNUMBER(FIND("PRV",C$6)),1,0)))*IF(AND(C$3>0,TRIM(C$9)="CFS"),Conv_Flags!$C55,1) -> 61.471138 | D55: =INDIRECT(CONCATENATE("'",D$1,"'!",D$4,(YEAR($A55)-1921)*12+MONTH($A55)+3+IF(ISNUMBER(FIND("PRV",D$6)),1,0)))*IF(AND(D$3>0,TRIM(D$9)="CFS"),Conv_Flags!$C55,1) -> 61.46934891 | E55: =INDIRECT(CONCATENATE("'",E$1,"'!",E$4,(YEAR($A55)-1921)*12+MONTH($A55)+3+IF(ISNUMBER(FIND("PRV",E$6)),1,0)))*IF(AND(E$3>0,TRIM(E$9)="CFS"),Conv_Flags!$C55,1) -> 61.47102356 | F55: =INDIRECT(CONCATENATE("'",F$1,"'!",F$4,(YEAR($A55)-1921)*12+MONTH($A55)+3+IF(ISNUMBER(FIND("PRV",F$6)),1,0)))*IF(AND(F$3>0,TRIM(F$9)="CFS"),Conv_Flags!$C55,1) -> 61.47975159 | J55: 1965 | K55: =B529 -> 92.61186981 | L55: =B530 -> 85.43611908 | M55: =B531 -> 56.15185547 | N55: =B532 -> 54 | O55: =B533 -> 55.8445816 | P55: =B534 -> 63.04788971 | Q55: =B535 -> 55.27817154 | R55: =B536 -> 62.57452393 | S55: =B537 -> 73.37270355 | T55: =B538 -> 78.974617 | U55: =B539 -> 84.32136536 | V55: =B540 -> 80.47444153 | X55: 69.91945616 | Y55: 71.39198494 | Z55: 70.17401155 | AB55: 72.04996109 | AC55: 55.33214569 | AD55: 63.56832218 | AE55: 79.28578186 | AF55: 77.87902578 | AH55: 1965 | AI55: ='Compile Data'!C529 -> 91.40358734 | AJ55: ='Compile Data'!C530 -> 84.99191284 | AK55: ='Compile Data'!C531 -> 56.1782074 | AL55: ='Compile Data'!C532 -> 54 | AM55: ='Compile Data'!C533 -> 55.95551682 | AN55: ='Compile Data'!C534 -> 63.05886078 | AO55: ='Compile Data'!C535 -> 55.51300812 | AP55: ='Compile Data'!C536 -> 62.7399826 | AQ55: ='Compile Data'!C537 -> 73.35865021 | AR55: ='Compile Data'!C538 -> 79.1237793 | AS55: ='Compile Data'!C539 -> 83.87310791 | AT55: ='Compile Data'!C540 -> 80.36279297 | AV55: 70.02107843 | AW55: 71.55309359 | AX55: 70.04661719 | AZ55: 71.6434269 | BA55: 55.37790807 | BB55: 63.66762543 | BC55: 79.1795826 | BD55: 78.07330831 | BF55: 1965 | BG55: ='Compile Data'!D529 -> 91.40590668 | BH55: ='Compile Data'!D530 -> 84.27526093 | BI55: ='Compile Data'!D531 -> 56.02671051 | BJ55: ='Compile Data'!D532 -> 54 | BK55: ='Compile Data'!D533 -> 55.95490646 | BL55: ='Compile Data'!D534 -> 63.05704498 | BM55: ='Compile Data'!D535 -> 55.51463699 | BN55: ='Compile Data'!D536 -> 62.14917374 | BO55: ='Compile Data'!D537 -> 72.98298645 | BP55: ='Compile Data'!D538 -> 79.08332825 | BQ55: ='Compile Data'!D539 -> 83.92935944 | BR55: ='Compile Data'!D540 -> 79.95378113 | BT55: 70.06958993 | BU55: 71.78133265 | BV55: 69.8610913 | BX55: 71.42696953 | BY55: 55.32720566 | BZ55: 63.42596054 | CA55: 78.98736382 | CB55: 78.40934499 | CD55: 1965 | CE55: ='Compile Data'!E529 -> 91.3314743 | CF55: ='Compile Data'!E530 -> 84.9766922 | CG55: ='Compile Data'!E531 -> 56.17773819 | CH55: ='Compile Data'!E532 -> 54 | CI55: ='Compile Data'!E533 -> 55.95553589 | CJ55: ='Compile Data'!E534 -> 63.05895996 | CK55: ='Compile Data'!E535 -> 55.51303482 | CL55: ='Compile Data'!E536 -> 62.74002838 | CM55: ='Compile Data'!E537 -> 73.35868835 | CN55: ='Compile Data'!E538 -> 79.12384796 | CO55: ='Compile Data'!E539 -> 83.87310791 | CP55: ='Compile Data'!E540 -> 80.0127182 | CR55: 69.97845491 | CS55: 71.54811509 | CT55: 70.01015218 | CV55: 71.62147617 | CW55: 55.37775803 | CX55: 63.66767788 | CY55: 79.09209061 | CZ55: 77.90565745 | DB55: 1965 | DC55: ='Compile Data'!F529 -> 91.4706192 | DD55: ='Compile Data'!F530 -> 85.55364227 | DE55: ='Compile Data'!F531 -> 56.24544144 | DF55: ='Compile Data'!F532 -> 54 | DG55: ='Compile Data'!F533 -> 55.95360565 | DH55: ='Compile Data'!F534 -> 63.0524292 | DI55: ='Compile Data'!F535 -> 55.51124954 | DJ55: ='Compile Data'!F536 -> 62.73871231 | DK55: ='Compile Data'!F537 -> 73.3558197 | DL55: ='Compile Data'!F538 -> 79.12276459 | DM55: ='Compile Data'!F539 -> 83.87698364 | DN55: ='Compile Data'!F540 -> 80.01564789 | DP55: 70.04988607 | DQ55: 71.76167488 | DR55: 70.07474295 | DT55: 71.81742573 | DU55: 55.39968236 | DV55: 63.66455269 | DW55: 79.09280396 | DX55: 78.17613983
A56: 1925-05-31 | B56: =INDIRECT(CONCATENATE("'",B$1,"'!",B$4,(YEAR($A56)-1921)*12+MONTH($A56)+3+IF(ISNUMBER(FIND("PRV",B$6)),1,0)))*IF(AND(B$3>0,TRIM(B$9)="CFS"),Conv_Flags!$C56,1) -> 64.73806763 | C56: =INDIRECT(CONCATENATE("'",C$1,"'!",C$4,(YEAR($A56)-1921)*12+MONTH($A56)+3+IF(ISNUMBER(FIND("PRV",C$6)),1,0)))*IF(AND(C$3>0,TRIM(C$9)="CFS"),Conv_Flags!$C56,1) -> 64.45993805 | D56: =INDIRECT(CONCATENATE("'",D$1,"'!",D$4,(YEAR($A56)-1921)*12+MONTH($A56)+3+IF(ISNUMBER(FIND("PRV",D$6)),1,0)))*IF(AND(D$3>0,TRIM(D$9)="CFS"),Conv_Flags!$C56,1) -> 64.73804474 | E56: =INDIRECT(CONCATENATE("'",E$1,"'!",E$4,(YEAR($A56)-1921)*12+MONTH($A56)+3+IF(ISNUMBER(FIND("PRV",E$6)),1,0)))*IF(AND(E$3>0,TRIM(E$9)="CFS"),Conv_Flags!$C56,1) -> 64.45989227 | F56: =INDIRECT(CONCATENATE("'",F$1,"'!",F$4,(YEAR($A56)-1921)*12+MONTH($A56)+3+IF(ISNUMBER(FIND("PRV",F$6)),1,0)))*IF(AND(F$3>0,TRIM(F$9)="CFS"),Conv_Flags!$C56,1) -> 64.46598053 | J56: 1966 | K56: =B541 -> 79.62283325 | L56: =B542 -> 73.53980255 | M56: =B543 -> 77.98254395 | N56: =B544 -> 65.77505493 | O56: =B545 -> 61.73987198 | P56: =B546 -> 63.16931152 | Q56: =B547 -> 66.96263123 | R56: =B548 -> 73.73072815 | S56: =B549 -> 81.47544861 | T56: =B550 -> 82.17739868 | U56: =B551 -> 85.75263977 | V56: =B552 -> 90.70211029 | X56: 76.22173436 | Y56: 74.64149888 | Z56: 75.21919791 | AB56: 74.23005867 | AC56: 68.49915695 | AD56: 71.33452988 | AE56: 85.02689934 | AF56: 90.20283508 | AH56: 1966 | AI56: ='Compile Data'!C541 -> 79.36441803 | AJ56: ='Compile Data'!C542 -> 74.49271393 | AK56: ='Compile Data'!C543 -> 78.41011047 | AL56: ='Compile Data'!C544 -> 66.44139099 | AM56: ='Compile Data'!C545 -> 61.8983078 | AN56: ='Compile Data'!C546 -> 63.19688416 | AO56: ='Compile Data'!C547 -> 66.97634888 | AP56: ='Compile Data'!C548 -> 73.73321533 | AQ56: ='Compile Data'!C549 -> 81.47612762 | AR56: ='Compile Data'!C550 -> 82.17847443 | AS56: ='Compile Data'!C551 -> 85.74492645 | AT56: ='Compile Data'!C552 -> 90.56250763 | AV56: 76.51930618 | AW56: 74.88670731 | AX56: 75.37295214 | AZ56: 74.67715836 | BA56: 68.91660309 | BB56: 71.345644 | BC56: 84.99050903 | BD56: 90.41483053 | BF56: 1966 | BG56: ='Compile Data'!D541 -> 79.3966217 | BH56: ='Compile Data'!D542 -> 75.87763214 | BI56: ='Compile Data'!D543 -> 78.93560791 | BJ56: ='Compile Data'!D544 -> 67.51552582 | BK56: ='Compile Data'!D545 -> 62.98029327 | BL56: ='Compile Data'!D546 -> 63.47794724 | BM56: ='Compile Data'!D547 -> 66.99411774 | BN56: ='Compile Data'!D548 -> 73.74565887 | BO56: ='Compile Data'!D549 -> 81.63783264 | BP56: ='Compile Data'!D550 -> 82.12110138 | BQ56: ='Compile Data'!D551 -> 85.66751099 | BR56: ='Compile Data'!D552 -> 90.54376984 | BT56: 76.70384757 | BU56: 74.89431667 | BV56: 75.74113496 | BX56: 75.43134689 | BY56: 69.81047567 | BZ56: 71.46388912 | CA56: 84.99255371 | CB56: 90.39992523 | CD56: 1966 | CE56: ='Compile Data'!E541 -> 79.21936035 | CF56: ='Compile Data'!E542 -> 74.4848938 | CG56: ='Compile Data'!E543 -> 78.40128326 | CH56: ='Compile Data'!E544 -> 66.80102539 | CI56: ='Compile Data'!E545 -> 61.99043274 | CJ56: ='Compile Data'!E546 -> 63.19900894 | CK56: ='Compile Data'!E547 -> 66.97886658 | CL56: ='Compile Data'!E548 -> 73.73460388 | CM56: ='Compile Data'!E549 -> 81.47634888 | CN56: ='Compile Data'!E550 -> 82.17843628 | CO56: ='Compile Data'!E551 -> 85.74485016 | CP56: ='Compile Data'!E552 -> 90.56256866 | CR56: 76.55762323 | CS56: 74.88694477 | CT56: 75.39763991 | CV56: 74.7266407 | CW56: 69.06424713 | CX56: 71.34720707 | CY56: 84.99055099 | CZ56: 90.41490173 | DB56: 1966 | DC56: ='Compile Data'!F541 -> 79.65751648 | DD56: ='Compile Data'!F542 -> 74.85525513 | DE56: ='Compile Data'!F543 -> 78.45864868 | DF56: ='Compile Data'!F544 -> 67.4287796 | DG56: ='Compile Data'!F545 -> 63.06629181 | DH56: ='Compile Data'!F546 -> 65.44064331 | DI56: ='Compile Data'!F547 -> 67.73620605 | DJ56: ='Compile Data'!F548 -> 73.40890503 | DK56: ='Compile Data'!F549 -> 81.60913086 | DL56: ='Compile Data'!F550 -> 82.07958221 | DM56: ='Compile Data'!F551 -> 85.62626648 | DN56: ='Compile Data'!F552 -> 90.55282593 | DP56: 76.35952886 | DQ56: 74.57188257 | DR56: 75.82667096 | DT56: 75.10004997 | DU56: 69.65124003 | DV56: 72.04872131 | DW56: 84.96695137 | DX56: 88.88717651
